Workbook

Sheet Instrucciones
A1: Sistema de Evaluación por Puntajes para la PAZ del Sistema General de Regalías
A6: INSTRUCTIVO PARA DILIGENCIAMIENTO
A7: PASOS A SEGUIR
A8: 1. Ubiquese en la Hoja "Calificación"
A9: 2. Ubicados en la hoja correcta, dirigase a diligenciar las celdas resaltadas en azul. Las celdas de color blanco tienen fórmulas y no pueden ser modificadas. Recuerde que hay celdas en las que se despliega un menú, y otras en las que hay que ingresar información.
A10: 3. Si tiene alguna duda sobre la distribución de los puntajes, puede consultar la Hoja "Tabla de Puntajes"

Sheet Cálculos (hidden)
A1: Proyecto 1
A3: 1. Impacto territorial | B3: Proyecto 1 | C3: IICA | D3: CULTIVOS ILÍCITOS | E3: DEBILIDAD INSTITUCIONAL | F3: RURALIDAD | G3: NBI RURAL | H3: ICV | I3: ZONA DE FRONTERA | J3: ZONA NO INTERCONECTADA | K3: a) INTEGRACIÓN INTERDEPARTAMENTAL | L3: BRECHAS | M3: COD SUBREGIÓN | N3: NOM SUBREGIÓN | O3: #SUBREG | P3: E&E | Q3: Puerto | R3: ZOMAC | T3: b) INTEGRACIÓN INTERDEPARTAMENTAL
A5: Código DANE Entidad 1 | B5: =Calificación!B20 -> 0 | C5: =IFERROR(VLOOKUP(Cálculos!B5,IICA!$A$9:$G$1131,7,FALSE),"-") -> - | D5: =IFERROR(VLOOKUP(B5,CultIllic!$A$1:$K$1144,11,FALSE),"-") -> - | E5: =IFERROR(VLOOKUP(B5,MDM!$A$1:$S$1102,14,FALSE),"-") -> - | F5: =IFERROR(VLOOKUP(B5,Ruralidad!$A$1:$E$1123,5,FALSE),"-") -> - | G5: =IFERROR(VLOOKUP(B5,'NBI Rural'!$B$1:$E$1103,4,FALSE),"-") -> - | H5: =IFERROR(VLOOKUP(B5,ICV!$A$1:$G$1123,7,FALSE),"-") -> - | I5: =IFERROR(VLOOKUP(B5,Frontera!$A$1:$G$103,7,FALSE),"-") -> - | J5: =IFERROR(VLOOKUP(B5,ZNI!$A$4:$X$128,24,FALSE),"-") -> - | K5: =IFERROR(VLOOKUP(B5,Listas!$A$1:$J$1144,10,FALSE),0) -> 0 | L5: =IFERROR(INDEX(Brechas!$B$2:$AD$1145,MATCH(Cálculos!B5,Brechas!$A$2:$A$1145,0),MATCH(Calificación!$B$13,Brechas!$B$1:$AD$1,0)),"-") -> - | M5: =IFERROR(VLOOKUP(B5,Listas!$A$1:$I$1144,6,FALSE),"-") -> - | N5: =IFERROR(VLOOKUP(B5,Listas!$A$1:$I$1144,7,FALSE),"-") -> - | O5: =IFERROR(VLOOKUP(B5,Listas!$A$1:$I$1144,8,FALSE),"-") -> - | P5: =IFERROR(VLOOKUP(B5,'E&E 15_12_20'!$A$4:$Q$442,17,FALSE),"-") -> - | Q5: =IFERROR(VLOOKUP(B5,Puerto!$A$4:$C$22,3,FALSE),"-") -> - | R5: =IFERROR(VLOOKUP(B5,ZOMAC!$A$3:$K$346,11,FALSE),"-") -> - | T5: =IF(SUMPRODUCT(($K5:K5=K5)*1)>1,0,1) -> 1
A6: Código DANE Entidad 2 | B6: =Calificación!B21 -> 0 | C6: =IFERROR(VLOOKUP(Cálculos!B6,IICA!$A$9:$G$1131,7,FALSE),"-") -> - | D6: =IFERROR(VLOOKUP(B6,CultIllic!$A$1:$K$1144,11,FALSE),"-") -> - | E6: =IFERROR(VLOOKUP(B6,MDM!$A$1:$S$1102,14,FALSE),"-") -> - | F6: =IFERROR(VLOOKUP(B6,Ruralidad!$A$1:$E$1123,5,FALSE),"-") -> - | G6: =IFERROR(VLOOKUP(B6,'NBI Rural'!$B$1:$E$1103,4,FALSE),"-") -> - | H6: =IFERROR(VLOOKUP(B6,ICV!$A$1:$G$1123,7,FALSE),"-") -> - | I6: =IFERROR(VLOOKUP(B6,Frontera!$A$1:$G$103,7,FALSE),"-") -> - | J6: =IFERROR(VLOOKUP(B6,ZNI!$A$4:$X$128,24,FALSE),"-") -> - | K6: =IFERROR(VLOOKUP(B6,Listas!$A$1:$J$1144,10,FALSE),0) -> 0 | L6: =IFERROR(INDEX(Brechas!$B$2:$AD$1145,MATCH(Cálculos!B6,Brechas!$A$2:$A$1145,0),MATCH(Calificación!$B$13,Brechas!$B$1:$AD$1,0)),"-") -> - | M6: =IFERROR(VLOOKUP(B6,Listas!$A$1:$I$1144,6,FALSE),"-") -> - | N6: =IFERROR(VLOOKUP(B6,Listas!$A$1:$I$1144,7,FALSE),"-") -> - | O6: =IFERROR(VLOOKUP(B6,Listas!$A$1:$I$1144,8,FALSE),"-") -> - | P6: =IFERROR(VLOOKUP(B6,'E&E 15_12_20'!$A$4:$Q$442,17,FALSE),"-") -> - | Q6: =IFERROR(VLOOKUP(B6,Puerto!$A$4:$C$22,3,FALSE),"-") -> - | R6: =IFERROR(VLOOKUP(B6,ZOMAC!$A$3:$K$346,11,FALSE),"-") -> - | T6: =IF(K6=0,0,IF(SUMPRODUCT(($K5:K6=K6)*1)>1,0,1)) -> 0
A7: Código DANE Entidad 3 | B7: =Calificación!B22 -> 0 | C7: =IFERROR(VLOOKUP(Cálculos!B7,IICA!$A$9:$G$1131,7,FALSE),"-") -> - | D7: =IFERROR(VLOOKUP(B7,CultIllic!$A$1:$K$1144,11,FALSE),"-") -> - | E7: =IFERROR(VLOOKUP(B7,MDM!$A$1:$S$1102,14,FALSE),"-") -> - | F7: =IFERROR(VLOOKUP(B7,Ruralidad!$A$1:$E$1123,5,FALSE),"-") -> - | G7: =IFERROR(VLOOKUP(B7,'NBI Rural'!$B$1:$E$1103,4,FALSE),"-") -> - | H7: =IFERROR(VLOOKUP(B7,ICV!$A$1:$G$1123,7,FALSE),"-") -> - | I7: =IFERROR(VLOOKUP(B7,Frontera!$A$1:$G$103,7,FALSE),"-") -> - | J7: =IFERROR(VLOOKUP(B7,ZNI!$A$4:$X$128,24,FALSE),"-") -> - | K7: =IFERROR(VLOOKUP(B7,Listas!$A$1:$J$1144,10,FALSE),0) -> 0 | L7: =IFERROR(INDEX(Brechas!$B$2:$AD$1145,MATCH(Cálculos!B7,Brechas!$A$2:$A$1145,0),MATCH(Calificación!$B$13,Brechas!$B$1:$AD$1,0)),"-") -> - | M7: =IFERROR(VLOOKUP(B7,Listas!$A$1:$I$1144,6,FALSE),"-") -> - | N7: =IFERROR(VLOOKUP(B7,Listas!$A$1:$I$1144,7,FALSE),"-") -> - | O7: =IFERROR(VLOOKUP(B7,Listas!$A$1:$I$1144,8,FALSE),"-") -> - | P7: =IFERROR(VLOOKUP(B7,'E&E 15_12_20'!$A$4:$Q$442,17,FALSE),"-") -> - | Q7: =IFERROR(VLOOKUP(B7,Puerto!$A$4:$C$22,3,FALSE),"-") -> - | R7: =IFERROR(VLOOKUP(B7,ZOMAC!$A$3:$K$346,11,FALSE),"-") -> - | T7: =IF(K7=0,0,IF(SUMPRODUCT(($K6:K7=K7)*1)>1,0,1)) -> 0
A8: Código DANE Entidad 4 | B8: =Calificación!B23 -> 0 | C8: =IFERROR(VLOOKUP(Cálculos!B8,IICA!$A$9:$G$1131,7,FALSE),"-") -> - | D8: =IFERROR(VLOOKUP(B8,CultIllic!$A$1:$K$1144,11,FALSE),"-") -> - | E8: =IFERROR(VLOOKUP(B8,MDM!$A$1:$S$1102,14,FALSE),"-") -> - | F8: =IFERROR(VLOOKUP(B8,Ruralidad!$A$1:$E$1123,5,FALSE),"-") -> - | G8: =IFERROR(VLOOKUP(B8,'NBI Rural'!$B$1:$E$1103,4,FALSE),"-") -> - | H8: =IFERROR(VLOOKUP(B8,ICV!$A$1:$G$1123,7,FALSE),"-") -> - | I8: =IFERROR(VLOOKUP(B8,Frontera!$A$1:$G$103,7,FALSE),"-") -> - | J8: =IFERROR(VLOOKUP(B8,ZNI!$A$4:$X$128,24,FALSE),"-") -> - | K8: =IFERROR(VLOOKUP(B8,Listas!$A$1:$J$1144,10,FALSE),0) -> 0 | L8: =IFERROR(INDEX(Brechas!$B$2:$AD$1145,MATCH(Cálculos!B8,Brechas!$A$2:$A$1145,0),MATCH(Calificación!$B$13,Brechas!$B$1:$AD$1,0)),"-") -> - | M8: =IFERROR(VLOOKUP(B8,Listas!$A$1:$I$1144,6,FALSE),"-") -> - | N8: =IFERROR(VLOOKUP(B8,Listas!$A$1:$I$1144,7,FALSE),"-") -> - | O8: =IFERROR(VLOOKUP(B8,Listas!$A$1:$I$1144,8,FALSE),"-") -> - | P8: =IFERROR(VLOOKUP(B8,'E&E 15_12_20'!$A$4:$Q$442,17,FALSE),"-") -> - | Q8: =IFERROR(VLOOKUP(B8,Puerto!$A$4:$C$22,3,FALSE),"-") -> - | R8: =IFERROR(VLOOKUP(B8,ZOMAC!$A$3:$K$346,11,FALSE),"-") -> - | T8: =IF(K8=0,0,IF(SUMPRODUCT(($K7:K8=K8)*1)>1,0,1)) -> 0
A9: Código DANE Entidad 5 | B9: =Calificación!B24 -> 0 | C9: =IFERROR(VLOOKUP(Cálculos!B9,IICA!$A$9:$G$1131,7,FALSE),"-") -> - | D9: =IFERROR(VLOOKUP(B9,CultIllic!$A$1:$K$1144,11,FALSE),"-") -> - | E9: =IFERROR(VLOOKUP(B9,MDM!$A$1:$S$1102,14,FALSE),"-") -> - | F9: =IFERROR(VLOOKUP(B9,Ruralidad!$A$1:$E$1123,5,FALSE),"-") -> - | G9: =IFERROR(VLOOKUP(B9,'NBI Rural'!$B$1:$E$1103,4,FALSE),"-") -> - | H9: =IFERROR(VLOOKUP(B9,ICV!$A$1:$G$1123,7,FALSE),"-") -> - | I9: =IFERROR(VLOOKUP(B9,Frontera!$A$1:$G$103,7,FALSE),"-") -> - | J9: =IFERROR(VLOOKUP(B9,ZNI!$A$4:$X$128,24,FALSE),"-") -> - | K9: =IFERROR(VLOOKUP(B9,Listas!$A$1:$J$1144,10,FALSE),0) -> 0 | L9: =IFERROR(INDEX(Brechas!$B$2:$AD$1145,MATCH(Cálculos!B9,Brechas!$A$2:$A$1145,0),MATCH(Calificación!$B$13,Brechas!$B$1:$AD$1,0)),"-") -> - | M9: =IFERROR(VLOOKUP(B9,Listas!$A$1:$I$1144,6,FALSE),"-") -> - | N9: =IFERROR(VLOOKUP(B9,Listas!$A$1:$I$1144,7,FALSE),"-") -> - | O9: =IFERROR(VLOOKUP(B9,Listas!$A$1:$I$1144,8,FALSE),"-") -> - | P9: =IFERROR(VLOOKUP(B9,'E&E 15_12_20'!$A$4:$Q$442,17,FALSE),"-") -> - | Q9: =IFERROR(VLOOKUP(B9,Puerto!$A$4:$C$22,3,FALSE),"-") -> - | R9: =IFERROR(VLOOKUP(B9,ZOMAC!$A$3:$K$346,11,FALSE),"-") -> - | T9: =IF(K9=0,0,IF(SUMPRODUCT(($K8:K9=K9)*1)>1,0,1)) -> 0
A10: Código DANE Entidad 6 | B10: =Calificación!B25 -> 0 | C10: =IFERROR(VLOOKUP(Cálculos!B10,IICA!$A$9:$G$1131,7,FALSE),"-") -> - | D10: =IFERROR(VLOOKUP(B10,CultIllic!$A$1:$K$1144,11,FALSE),"-") -> - | E10: =IFERROR(VLOOKUP(B10,MDM!$A$1:$S$1102,14,FALSE),"-") -> - | F10: =IFERROR(VLOOKUP(B10,Ruralidad!$A$1:$E$1123,5,FALSE),"-") -> - | G10: =IFERROR(VLOOKUP(B10,'NBI Rural'!$B$1:$E$1103,4,FALSE),"-") -> - | H10: =IFERROR(VLOOKUP(B10,ICV!$A$1:$G$1123,7,FALSE),"-") -> - | I10: =IFERROR(VLOOKUP(B10,Frontera!$A$1:$G$103,7,FALSE),"-") -> - | J10: =IFERROR(VLOOKUP(B10,ZNI!$A$4:$X$128,24,FALSE),"-") -> - | K10: =IFERROR(VLOOKUP(B10,Listas!$A$1:$J$1144,10,FALSE),0) -> 0 | L10: =IFERROR(INDEX(Brechas!$B$2:$AD$1145,MATCH(Cálculos!B10,Brechas!$A$2:$A$1145,0),MATCH(Calificación!$B$13,Brechas!$B$1:$AD$1,0)),"-") -> - | M10: =IFERROR(VLOOKUP(B10,Listas!$A$1:$I$1144,6,FALSE),"-") -> - | N10: =IFERROR(VLOOKUP(B10,Listas!$A$1:$I$1144,7,FALSE),"-") -> - | O10: =IFERROR(VLOOKUP(B10,Listas!$A$1:$I$1144,8,FALSE),"-") -> - | P10: =IFERROR(VLOOKUP(B10,'E&E 15_12_20'!$A$4:$Q$442,17,FALSE),"-") -> - | Q10: =IFERROR(VLOOKUP(B10,Puerto!$A$4:$C$22,3,FALSE),"-") -> - | R10: =IFERROR(VLOOKUP(B10,ZOMAC!$A$3:$K$346,11,FALSE),"-") -> - | T10: =IF(K10=0,0,IF(SUMPRODUCT(($K9:K10=K10)*1)>1,0,1)) -> 0
A11: Código DANE Entidad 7 | B11: =Calificación!B26 -> 0 | C11: =IFERROR(VLOOKUP(Cálculos!B11,IICA!$A$9:$G$1131,7,FALSE),"-") -> - | D11: =IFERROR(VLOOKUP(B11,CultIllic!$A$1:$K$1144,11,FALSE),"-") -> - | E11: =IFERROR(VLOOKUP(B11,MDM!$A$1:$S$1102,14,FALSE),"-") -> - | F11: =IFERROR(VLOOKUP(B11,Ruralidad!$A$1:$E$1123,5,FALSE),"-") -> - | G11: =IFERROR(VLOOKUP(B11,'NBI Rural'!$B$1:$E$1103,4,FALSE),"-") -> - | H11: =IFERROR(VLOOKUP(B11,ICV!$A$1:$G$1123,7,FALSE),"-") -> - | I11: =IFERROR(VLOOKUP(B11,Frontera!$A$1:$G$103,7,FALSE),"-") -> - | J11: =IFERROR(VLOOKUP(B11,ZNI!$A$4:$X$128,24,FALSE),"-") -> - | K11: =IFERROR(VLOOKUP(B11,Listas!$A$1:$J$1144,10,FALSE),0) -> 0 | L11: =IFERROR(INDEX(Brechas!$B$2:$AD$1145,MATCH(Cálculos!B11,Brechas!$A$2:$A$1145,0),MATCH(Calificación!$B$13,Brechas!$B$1:$AD$1,0)),"-") -> - | M11: =IFERROR(VLOOKUP(B11,Listas!$A$1:$I$1144,6,FALSE),"-") -> - | N11: =IFERROR(VLOOKUP(B11,Listas!$A$1:$I$1144,7,FALSE),"-") -> - | O11: =IFERROR(VLOOKUP(B11,Listas!$A$1:$I$1144,8,FALSE),"-") -> - | P11: =IFERROR(VLOOKUP(B11,'E&E 15_12_20'!$A$4:$Q$442,17,FALSE),"-") -> - | Q11: =IFERROR(VLOOKUP(B11,Puerto!$A$4:$C$22,3,FALSE),"-") -> - | R11: =IFERROR(VLOOKUP(B11,ZOMAC!$A$3:$K$346,11,FALSE),"-") -> - | T11: =IF(K11=0,0,IF(SUMPRODUCT(($K10:K11=K11)*1)>1,0,1)) -> 0
A12: Código DANE Entidad 8 | B12: =Calificación!B27 -> 0 | C12: =IFERROR(VLOOKUP(Cálculos!B12,IICA!$A$9:$G$1131,7,FALSE),"-") -> - | D12: =IFERROR(VLOOKUP(B12,CultIllic!$A$1:$K$1144,11,FALSE),"-") -> - | E12: =IFERROR(VLOOKUP(B12,MDM!$A$1:$S$1102,14,FALSE),"-") -> - | F12: =IFERROR(VLOOKUP(B12,Ruralidad!$A$1:$E$1123,5,FALSE),"-") -> - | G12: =IFERROR(VLOOKUP(B12,'NBI Rural'!$B$1:$E$1103,4,FALSE),"-") -> - | H12: =IFERROR(VLOOKUP(B12,ICV!$A$1:$G$1123,7,FALSE),"-") -> - | I12: =IFERROR(VLOOKUP(B12,Frontera!$A$1:$G$103,7,FALSE),"-") -> - | J12: =IFERROR(VLOOKUP(B12,ZNI!$A$4:$X$128,24,FALSE),"-") -> - | K12: =IFERROR(VLOOKUP(B12,Listas!$A$1:$J$1144,10,FALSE),0) -> 0 | L12: =IFERROR(INDEX(Brechas!$B$2:$AD$1145,MATCH(Cálculos!B12,Brechas!$A$2:$A$1145,0),MATCH(Calificación!$B$13,Brechas!$B$1:$AD$1,0)),"-") -> - | M12: =IFERROR(VLOOKUP(B12,Listas!$A$1:$I$1144,6,FALSE),"-") -> - | N12: =IFERROR(VLOOKUP(B12,Listas!$A$1:$I$1144,7,FALSE),"-") -> - | O12: =IFERROR(VLOOKUP(B12,Listas!$A$1:$I$1144,8,FALSE),"-") -> - | P12: =IFERROR(VLOOKUP(B12,'E&E 15_12_20'!$A$4:$Q$442,17,FALSE),"-") -> - | Q12: =IFERROR(VLOOKUP(B12,Puerto!$A$4:$C$22,3,FALSE),"-") -> - | R12: =IFERROR(VLOOKUP(B12,ZOMAC!$A$3:$K$346,11,FALSE),"-") -> - | T12: =IF(K12=0,0,IF(SUMPRODUCT(($K11:K12=K12)*1)>1,0,1)) -> 0
A13: Código DANE Entidad 9 | B13: =Calificación!B28 -> 0 | C13: =IFERROR(VLOOKUP(Cálculos!B13,IICA!$A$9:$G$1131,7,FALSE),"-") -> - | D13: =IFERROR(VLOOKUP(B13,CultIllic!$A$1:$K$1144,11,FALSE),"-") -> - | E13: =IFERROR(VLOOKUP(B13,MDM!$A$1:$S$1102,14,FALSE),"-") -> - | F13: =IFERROR(VLOOKUP(B13,Ruralidad!$A$1:$E$1123,5,FALSE),"-") -> - | G13: =IFERROR(VLOOKUP(B13,'NBI Rural'!$B$1:$E$1103,4,FALSE),"-") -> - | H13: =IFERROR(VLOOKUP(B13,ICV!$A$1:$G$1123,7,FALSE),"-") -> - | I13: =IFERROR(VLOOKUP(B13,Frontera!$A$1:$G$103,7,FALSE),"-") -> - | J13: =IFERROR(VLOOKUP(B13,ZNI!$A$4:$X$128,24,FALSE),"-") -> - | K13: =IFERROR(VLOOKUP(B13,Listas!$A$1:$J$1144,10,FALSE),0) -> 0 | L13: =IFERROR(INDEX(Brechas!$B$2:$AD$1145,MATCH(Cálculos!B13,Brechas!$A$2:$A$1145,0),MATCH(Calificación!$B$13,Brechas!$B$1:$AD$1,0)),"-") -> - | M13: =IFERROR(VLOOKUP(B13,Listas!$A$1:$I$1144,6,FALSE),"-") -> - | N13: =IFERROR(VLOOKUP(B13,Listas!$A$1:$I$1144,7,FALSE),"-") -> - | O13: =IFERROR(VLOOKUP(B13,Listas!$A$1:$I$1144,8,FALSE),"-") -> - | P13: =IFERROR(VLOOKUP(B13,'E&E 15_12_20'!$A$4:$Q$442,17,FALSE),"-") -> - | Q13: =IFERROR(VLOOKUP(B13,Puerto!$A$4:$C$22,3,FALSE),"-") -> - | R13: =IFERROR(VLOOKUP(B13,ZOMAC!$A$3:$K$346,11,FALSE),"-") -> - | T13: =IF(K13=0,0,IF(SUMPRODUCT(($K12:K13=K13)*1)>1,0,1)) -> 0
A14: Código DANE Entidad 10 | B14: =Calificación!B29 -> 0 | C14: =IFERROR(VLOOKUP(Cálculos!B14,IICA!$A$9:$G$1131,7,FALSE),"-") -> - | D14: =IFERROR(VLOOKUP(B14,CultIllic!$A$1:$K$1144,11,FALSE),"-") -> - | E14: =IFERROR(VLOOKUP(B14,MDM!$A$1:$S$1102,14,FALSE),"-") -> - | F14: =IFERROR(VLOOKUP(B14,Ruralidad!$A$1:$E$1123,5,FALSE),"-") -> - | G14: =IFERROR(VLOOKUP(B14,'NBI Rural'!$B$1:$E$1103,4,FALSE),"-") -> - | H14: =IFERROR(VLOOKUP(B14,ICV!$A$1:$G$1123,7,FALSE),"-") -> - | I14: =IFERROR(VLOOKUP(B14,Frontera!$A$1:$G$103,7,FALSE),"-") -> - | J14: =IFERROR(VLOOKUP(B14,ZNI!$A$4:$X$128,24,FALSE),"-") -> - | K14: =IFERROR(VLOOKUP(B14,Listas!$A$1:$J$1144,10,FALSE),0) -> 0 | L14: =IFERROR(INDEX(Brechas!$B$2:$AD$1145,MATCH(Cálculos!B14,Brechas!$A$2:$A$1145,0),MATCH(Calificación!$B$13,Brechas!$B$1:$AD$1,0)),"-") -> - | M14: =IFERROR(VLOOKUP(B14,Listas!$A$1:$I$1144,6,FALSE),"-") -> - | N14: =IFERROR(VLOOKUP(B14,Listas!$A$1:$I$1144,7,FALSE),"-") -> - | O14: =IFERROR(VLOOKUP(B14,Listas!$A$1:$I$1144,8,FALSE),"-") -> - | P14: =IFERROR(VLOOKUP(B14,'E&E 15_12_20'!$A$4:$Q$442,17,FALSE),"-") -> - | Q14: =IFERROR(VLOOKUP(B14,Puerto!$A$4:$C$22,3,FALSE),"-") -> - | R14: =IFERROR(VLOOKUP(B14,ZOMAC!$A$3:$K$346,11,FALSE),"-") -> - | T14: =IF(K14=0,0,IF(SUMPRODUCT(($K13:K14=K14)*1)>1,0,1)) -> 0
A15: Código DANE Entidad 11 | B15: =Calificación!B30 -> 0 | C15: =IFERROR(VLOOKUP(Cálculos!B15,IICA!$A$9:$G$1131,7,FALSE),"-") -> - | D15: =IFERROR(VLOOKUP(B15,CultIllic!$A$1:$K$1144,11,FALSE),"-") -> - | E15: =IFERROR(VLOOKUP(B15,MDM!$A$1:$S$1102,14,FALSE),"-") -> - | F15: =IFERROR(VLOOKUP(B15,Ruralidad!$A$1:$E$1123,5,FALSE),"-") -> - | G15: =IFERROR(VLOOKUP(B15,'NBI Rural'!$B$1:$E$1103,4,FALSE),"-") -> - | H15: =IFERROR(VLOOKUP(B15,ICV!$A$1:$G$1123,7,FALSE),"-") -> - | I15: =IFERROR(VLOOKUP(B15,Frontera!$A$1:$G$103,7,FALSE),"-") -> - | J15: =IFERROR(VLOOKUP(B15,ZNI!$A$4:$X$128,24,FALSE),"-") -> - | K15: =IFERROR(VLOOKUP(B15,Listas!$A$1:$J$1144,10,FALSE),0) -> 0 | L15: =IFERROR(INDEX(Brechas!$B$2:$AD$1145,MATCH(Cálculos!B15,Brechas!$A$2:$A$1145,0),MATCH(Calificación!$B$13,Brechas!$B$1:$AD$1,0)),"-") -> - | M15: =IFERROR(VLOOKUP(B15,Listas!$A$1:$I$1144,6,FALSE),"-") -> - | N15: =IFERROR(VLOOKUP(B15,Listas!$A$1:$I$1144,7,FALSE),"-") -> - | O15: =IFERROR(VLOOKUP(B15,Listas!$A$1:$I$1144,8,FALSE),"-") -> - | P15: =IFERROR(VLOOKUP(B15,'E&E 15_12_20'!$A$4:$Q$442,17,FALSE),"-") -> - | Q15: =IFERROR(VLOOKUP(B15,Puerto!$A$4:$C$22,3,FALSE),"-") -> - | R15: =IFERROR(VLOOKUP(B15,ZOMAC!$A$3:$K$346,11,FALSE),"-") -> - | T15: =IF(K15=0,0,IF(SUMPRODUCT(($K14:K15=K15)*1)>1,0,1)) -> 0
A16: Código DANE Entidad 12 | B16: =Calificación!B31 -> 0 | C16: =IFERROR(VLOOKUP(Cálculos!B16,IICA!$A$9:$G$1131,7,FALSE),"-") -> - | D16: =IFERROR(VLOOKUP(B16,CultIllic!$A$1:$K$1144,11,FALSE),"-") -> - | E16: =IFERROR(VLOOKUP(B16,MDM!$A$1:$S$1102,14,FALSE),"-") -> - | F16: =IFERROR(VLOOKUP(B16,Ruralidad!$A$1:$E$1123,5,FALSE),"-") -> - | G16: =IFERROR(VLOOKUP(B16,'NBI Rural'!$B$1:$E$1103,4,FALSE),"-") -> - | H16: =IFERROR(VLOOKUP(B16,ICV!$A$1:$G$1123,7,FALSE),"-") -> - | I16: =IFERROR(VLOOKUP(B16,Frontera!$A$1:$G$103,7,FALSE),"-") -> - | J16: =IFERROR(VLOOKUP(B16,ZNI!$A$4:$X$128,24,FALSE),"-") -> - | K16: =IFERROR(VLOOKUP(B16,Listas!$A$1:$J$1144,10,FALSE),0) -> 0 | L16: =IFERROR(INDEX(Brechas!$B$2:$AD$1145,MATCH(Cálculos!B16,Brechas!$A$2:$A$1145,0),MATCH(Calificación!$B$13,Brechas!$B$1:$AD$1,0)),"-") -> - | M16: =IFERROR(VLOOKUP(B16,Listas!$A$1:$I$1144,6,FALSE),"-") -> - | N16: =IFERROR(VLOOKUP(B16,Listas!$A$1:$I$1144,7,FALSE),"-") -> - | O16: =IFERROR(VLOOKUP(B16,Listas!$A$1:$I$1144,8,FALSE),"-") -> - | P16: =IFERROR(VLOOKUP(B16,'E&E 15_12_20'!$A$4:$Q$442,17,FALSE),"-") -> - | Q16: =IFERROR(VLOOKUP(B16,Puerto!$A$4:$C$22,3,FALSE),"-") -> - | R16: =IFERROR(VLOOKUP(B16,ZOMAC!$A$3:$K$346,11,FALSE),"-") -> - | T16: =IF(K16=0,0,IF(SUMPRODUCT(($K15:K16=K16)*1)>1,0,1)) -> 0
A17: Código DANE Entidad 13 | B17: =Calificación!B32 -> 0 | C17: =IFERROR(VLOOKUP(Cálculos!B17,IICA!$A$9:$G$1131,7,FALSE),"-") -> - | D17: =IFERROR(VLOOKUP(B17,CultIllic!$A$1:$K$1144,11,FALSE),"-") -> - | E17: =IFERROR(VLOOKUP(B17,MDM!$A$1:$S$1102,14,FALSE),"-") -> - | F17: =IFERROR(VLOOKUP(B17,Ruralidad!$A$1:$E$1123,5,FALSE),"-") -> - | G17: =IFERROR(VLOOKUP(B17,'NBI Rural'!$B$1:$E$1103,4,FALSE),"-") -> - | H17: =IFERROR(VLOOKUP(B17,ICV!$A$1:$G$1123,7,FALSE),"-") -> - | I17: =IFERROR(VLOOKUP(B17,Frontera!$A$1:$G$103,7,FALSE),"-") -> - | J17: =IFERROR(VLOOKUP(B17,ZNI!$A$4:$X$128,24,FALSE),"-") -> - | K17: =IFERROR(VLOOKUP(B17,Listas!$A$1:$J$1144,10,FALSE),0) -> 0 | L17: =IFERROR(INDEX(Brechas!$B$2:$AD$1145,MATCH(Cálculos!B17,Brechas!$A$2:$A$1145,0),MATCH(Calificación!$B$13,Brechas!$B$1:$AD$1,0)),"-") -> - | M17: =IFERROR(VLOOKUP(B17,Listas!$A$1:$I$1144,6,FALSE),"-") -> - | N17: =IFERROR(VLOOKUP(B17,Listas!$A$1:$I$1144,7,FALSE),"-") -> - | O17: =IFERROR(VLOOKUP(B17,Listas!$A$1:$I$1144,8,FALSE),"-") -> - | P17: =IFERROR(VLOOKUP(B17,'E&E 15_12_20'!$A$4:$Q$442,17,FALSE),"-") -> - | Q17: =IFERROR(VLOOKUP(B17,Puerto!$A$4:$C$22,3,FALSE),"-") -> - | R17: =IFERROR(VLOOKUP(B17,ZOMAC!$A$3:$K$346,11,FALSE),"-") -> - | T17: =IF(K17=0,0,IF(SUMPRODUCT(($K16:K17=K17)*1)>1,0,1)) -> 0
A18: Código DANE Entidad 14 | B18: =Calificación!B33 -> 0 | C18: =IFERROR(VLOOKUP(Cálculos!B18,IICA!$A$9:$G$1131,7,FALSE),"-") -> - | D18: =IFERROR(VLOOKUP(B18,CultIllic!$A$1:$K$1144,11,FALSE),"-") -> - | E18: =IFERROR(VLOOKUP(B18,MDM!$A$1:$S$1102,14,FALSE),"-") -> - | F18: =IFERROR(VLOOKUP(B18,Ruralidad!$A$1:$E$1123,5,FALSE),"-") -> - | G18: =IFERROR(VLOOKUP(B18,'NBI Rural'!$B$1:$E$1103,4,FALSE),"-") -> - | H18: =IFERROR(VLOOKUP(B18,ICV!$A$1:$G$1123,7,FALSE),"-") -> - | I18: =IFERROR(VLOOKUP(B18,Frontera!$A$1:$G$103,7,FALSE),"-") -> - | J18: =IFERROR(VLOOKUP(B18,ZNI!$A$4:$X$128,24,FALSE),"-") -> - | K18: =IFERROR(VLOOKUP(B18,Listas!$A$1:$J$1144,10,FALSE),0) -> 0 | L18: =IFERROR(INDEX(Brechas!$B$2:$AD$1145,MATCH(Cálculos!B18,Brechas!$A$2:$A$1145,0),MATCH(Calificación!$B$13,Brechas!$B$1:$AD$1,0)),"-") -> - | M18: =IFERROR(VLOOKUP(B18,Listas!$A$1:$I$1144,6,FALSE),"-") -> - | N18: =IFERROR(VLOOKUP(B18,Listas!$A$1:$I$1144,7,FALSE),"-") -> - | O18: =IFERROR(VLOOKUP(B18,Listas!$A$1:$I$1144,8,FALSE),"-") -> - | P18: =IFERROR(VLOOKUP(B18,'E&E 15_12_20'!$A$4:$Q$442,17,FALSE),"-") -> - | Q18: =IFERROR(VLOOKUP(B18,Puerto!$A$4:$C$22,3,FALSE),"-") -> - | R18: =IFERROR(VLOOKUP(B18,ZOMAC!$A$3:$K$346,11,FALSE),"-") -> - | T18: =IF(K18=0,0,IF(SUMPRODUCT(($K17:K18=K18)*1)>1,0,1)) -> 0
A19: Código DANE Entidad 15 | B19: =Calificación!B34 -> 0 | C19: =IFERROR(VLOOKUP(Cálculos!B19,IICA!$A$9:$G$1131,7,FALSE),"-") -> - | D19: =IFERROR(VLOOKUP(B19,CultIllic!$A$1:$K$1144,11,FALSE),"-") -> - | E19: =IFERROR(VLOOKUP(B19,MDM!$A$1:$S$1102,14,FALSE),"-") -> - | F19: =IFERROR(VLOOKUP(B19,Ruralidad!$A$1:$E$1123,5,FALSE),"-") -> - | G19: =IFERROR(VLOOKUP(B19,'NBI Rural'!$B$1:$E$1103,4,FALSE),"-") -> - | H19: =IFERROR(VLOOKUP(B19,ICV!$A$1:$G$1123,7,FALSE),"-") -> - | I19: =IFERROR(VLOOKUP(B19,Frontera!$A$1:$G$103,7,FALSE),"-") -> - | J19: =IFERROR(VLOOKUP(B19,ZNI!$A$4:$X$128,24,FALSE),"-") -> - | K19: =IFERROR(VLOOKUP(B19,Listas!$A$1:$J$1144,10,FALSE),0) -> 0 | L19: =IFERROR(INDEX(Brechas!$B$2:$AD$1145,MATCH(Cálculos!B19,Brechas!$A$2:$A$1145,0),MATCH(Calificación!$B$13,Brechas!$B$1:$AD$1,0)),"-") -> - | M19: =IFERROR(VLOOKUP(B19,Listas!$A$1:$I$1144,6,FALSE),"-") -> - | N19: =IFERROR(VLOOKUP(B19,Listas!$A$1:$I$1144,7,FALSE),"-") -> - | O19: =IFERROR(VLOOKUP(B19,Listas!$A$1:$I$1144,8,FALSE),"-") -> - | P19: =IFERROR(VLOOKUP(B19,'E&E 15_12_20'!$A$4:$Q$442,17,FALSE),"-") -> - | Q19: =IFERROR(VLOOKUP(B19,Puerto!$A$4:$C$22,3,FALSE),"-") -> - | R19: =IFERROR(VLOOKUP(B19,ZOMAC!$A$3:$K$346,11,FALSE),"-") -> - | T19: =IF(K19=0,0,IF(SUMPRODUCT(($K18:K19=K19)*1)>1,0,1)) -> 0
A20: Código DANE Entidad 16 | B20: =Calificación!B35 -> 0 | C20: =IFERROR(VLOOKUP(Cálculos!B20,IICA!$A$9:$G$1131,7,FALSE),"-") -> - | D20: =IFERROR(VLOOKUP(B20,CultIllic!$A$1:$K$1144,11,FALSE),"-") -> - | E20: =IFERROR(VLOOKUP(B20,MDM!$A$1:$S$1102,14,FALSE),"-") -> - | F20: =IFERROR(VLOOKUP(B20,Ruralidad!$A$1:$E$1123,5,FALSE),"-") -> - | G20: =IFERROR(VLOOKUP(B20,'NBI Rural'!$B$1:$E$1103,4,FALSE),"-") -> - | H20: =IFERROR(VLOOKUP(B20,ICV!$A$1:$G$1123,7,FALSE),"-") -> - | I20: =IFERROR(VLOOKUP(B20,Frontera!$A$1:$G$103,7,FALSE),"-") -> - | J20: =IFERROR(VLOOKUP(B20,ZNI!$A$4:$X$128,24,FALSE),"-") -> - | K20: =IFERROR(VLOOKUP(B20,Listas!$A$1:$J$1144,10,FALSE),0) -> 0 | L20: =IFERROR(INDEX(Brechas!$B$2:$AD$1145,MATCH(Cálculos!B20,Brechas!$A$2:$A$1145,0),MATCH(Calificación!$B$13,Brechas!$B$1:$AD$1,0)),"-") -> - | M20: =IFERROR(VLOOKUP(B20,Listas!$A$1:$I$1144,6,FALSE),"-") -> - | N20: =IFERROR(VLOOKUP(B20,Listas!$A$1:$I$1144,7,FALSE),"-") -> - | O20: =IFERROR(VLOOKUP(B20,Listas!$A$1:$I$1144,8,FALSE),"-") -> - | P20: =IFERROR(VLOOKUP(B20,'E&E 15_12_20'!$A$4:$Q$442,17,FALSE),"-") -> - | Q20: =IFERROR(VLOOKUP(B20,Puerto!$A$4:$C$22,3,FALSE),"-") -> - | R20: =IFERROR(VLOOKUP(B20,ZOMAC!$A$3:$K$346,11,FALSE),"-") -> - | T20: =IF(K20=0,0,IF(SUMPRODUCT(($K19:K20=K20)*1)>1,0,1)) -> 0
A21: Código DANE Entidad 17 | B21: =Calificación!B36 -> 0 | C21: =IFERROR(VLOOKUP(Cálculos!B21,IICA!$A$9:$G$1131,7,FALSE),"-") -> - | D21: =IFERROR(VLOOKUP(B21,CultIllic!$A$1:$K$1144,11,FALSE),"-") -> - | E21: =IFERROR(VLOOKUP(B21,MDM!$A$1:$S$1102,14,FALSE),"-") -> - | F21: =IFERROR(VLOOKUP(B21,Ruralidad!$A$1:$E$1123,5,FALSE),"-") -> - | G21: =IFERROR(VLOOKUP(B21,'NBI Rural'!$B$1:$E$1103,4,FALSE),"-") -> - | H21: =IFERROR(VLOOKUP(B21,ICV!$A$1:$G$1123,7,FALSE),"-") -> - | I21: =IFERROR(VLOOKUP(B21,Frontera!$A$1:$G$103,7,FALSE),"-") -> - | J21: =IFERROR(VLOOKUP(B21,ZNI!$A$4:$X$128,24,FALSE),"-") -> - | K21: =IFERROR(VLOOKUP(B21,Listas!$A$1:$J$1144,10,FALSE),0) -> 0 | L21: =IFERROR(INDEX(Brechas!$B$2:$AD$1145,MATCH(Cálculos!B21,Brechas!$A$2:$A$1145,0),MATCH(Calificación!$B$13,Brechas!$B$1:$AD$1,0)),"-") -> - | M21: =IFERROR(VLOOKUP(B21,Listas!$A$1:$I$1144,6,FALSE),"-") -> - | N21: =IFERROR(VLOOKUP(B21,Listas!$A$1:$I$1144,7,FALSE),"-") -> - | O21: =IFERROR(VLOOKUP(B21,Listas!$A$1:$I$1144,8,FALSE),"-") -> - | P21: =IFERROR(VLOOKUP(B21,'E&E 15_12_20'!$A$4:$Q$442,17,FALSE),"-") -> - | Q21: =IFERROR(VLOOKUP(B21,Puerto!$A$4:$C$22,3,FALSE),"-") -> - | R21: =IFERROR(VLOOKUP(B21,ZOMAC!$A$3:$K$346,11,FALSE),"-") -> - | T21: =IF(K21=0,0,IF(SUMPRODUCT(($K20:K21=K21)*1)>1,0,1)) -> 0
A22: Código DANE Entidad 18 | B22: =Calificación!B37 -> 0 | C22: =IFERROR(VLOOKUP(Cálculos!B22,IICA!$A$9:$G$1131,7,FALSE),"-") -> - | D22: =IFERROR(VLOOKUP(B22,CultIllic!$A$1:$K$1144,11,FALSE),"-") -> - | E22: =IFERROR(VLOOKUP(B22,MDM!$A$1:$S$1102,14,FALSE),"-") -> - | F22: =IFERROR(VLOOKUP(B22,Ruralidad!$A$1:$E$1123,5,FALSE),"-") -> - | G22: =IFERROR(VLOOKUP(B22,'NBI Rural'!$B$1:$E$1103,4,FALSE),"-") -> - | H22: =IFERROR(VLOOKUP(B22,ICV!$A$1:$G$1123,7,FALSE),"-") -> - | I22: =IFERROR(VLOOKUP(B22,Frontera!$A$1:$G$103,7,FALSE),"-") -> - | J22: =IFERROR(VLOOKUP(B22,ZNI!$A$4:$X$128,24,FALSE),"-") -> - | K22: =IFERROR(VLOOKUP(B22,Listas!$A$1:$J$1144,10,FALSE),0) -> 0 | L22: =IFERROR(INDEX(Brechas!$B$2:$AD$1145,MATCH(Cálculos!B22,Brechas!$A$2:$A$1145,0),MATCH(Calificación!$B$13,Brechas!$B$1:$AD$1,0)),"-") -> - | M22: =IFERROR(VLOOKUP(B22,Listas!$A$1:$I$1144,6,FALSE),"-") -> - | N22: =IFERROR(VLOOKUP(B22,Listas!$A$1:$I$1144,7,FALSE),"-") -> - | O22: =IFERROR(VLOOKUP(B22,Listas!$A$1:$I$1144,8,FALSE),"-") -> - | P22: =IFERROR(VLOOKUP(B22,'E&E 15_12_20'!$A$4:$Q$442,17,FALSE),"-") -> - | Q22: =IFERROR(VLOOKUP(B22,Puerto!$A$4:$C$22,3,FALSE),"-") -> - | R22: =IFERROR(VLOOKUP(B22,ZOMAC!$A$3:$K$346,11,FALSE),"-") -> - | T22: =IF(K22=0,0,IF(SUMPRODUCT(($K21:K22=K22)*1)>1,0,1)) -> 0
A23: Código DANE Entidad 19 | B23: =Calificación!B38 -> 0 | C23: =IFERROR(VLOOKUP(Cálculos!B23,IICA!$A$9:$G$1131,7,FALSE),"-") -> - | D23: =IFERROR(VLOOKUP(B23,CultIllic!$A$1:$K$1144,11,FALSE),"-") -> - | E23: =IFERROR(VLOOKUP(B23,MDM!$A$1:$S$1102,14,FALSE),"-") -> - | F23: =IFERROR(VLOOKUP(B23,Ruralidad!$A$1:$E$1123,5,FALSE),"-") -> - | G23: =IFERROR(VLOOKUP(B23,'NBI Rural'!$B$1:$E$1103,4,FALSE),"-") -> - | H23: =IFERROR(VLOOKUP(B23,ICV!$A$1:$G$1123,7,FALSE),"-") -> - | I23: =IFERROR(VLOOKUP(B23,Frontera!$A$1:$G$103,7,FALSE),"-") -> - | J23: =IFERROR(VLOOKUP(B23,ZNI!$A$4:$X$128,24,FALSE),"-") -> - | K23: =IFERROR(VLOOKUP(B23,Listas!$A$1:$J$1144,10,FALSE),0) -> 0 | L23: =IFERROR(INDEX(Brechas!$B$2:$AD$1145,MATCH(Cálculos!B23,Brechas!$A$2:$A$1145,0),MATCH(Calificación!$B$13,Brechas!$B$1:$AD$1,0)),"-") -> - | M23: =IFERROR(VLOOKUP(B23,Listas!$A$1:$I$1144,6,FALSE),"-") -> - | N23: =IFERROR(VLOOKUP(B23,Listas!$A$1:$I$1144,7,FALSE),"-") -> - | O23: =IFERROR(VLOOKUP(B23,Listas!$A$1:$I$1144,8,FALSE),"-") -> - | P23: =IFERROR(VLOOKUP(B23,'E&E 15_12_20'!$A$4:$Q$442,17,FALSE),"-") -> - | Q23: =IFERROR(VLOOKUP(B23,Puerto!$A$4:$C$22,3,FALSE),"-") -> - | R23: =IFERROR(VLOOKUP(B23,ZOMAC!$A$3:$K$346,11,FALSE),"-") -> - | T23: =IF(K23=0,0,IF(SUMPRODUCT(($K22:K23=K23)*1)>1,0,1)) -> 0
A24: Código DANE Entidad 20 | B24: =Calificación!B39 -> 0 | C24: =IFERROR(VLOOKUP(Cálculos!B24,IICA!$A$9:$G$1131,7,FALSE),"-") -> - | D24: =IFERROR(VLOOKUP(B24,CultIllic!$A$1:$K$1144,11,FALSE),"-") -> - | E24: =IFERROR(VLOOKUP(B24,MDM!$A$1:$S$1102,14,FALSE),"-") -> - | F24: =IFERROR(VLOOKUP(B24,Ruralidad!$A$1:$E$1123,5,FALSE),"-") -> - | G24: =IFERROR(VLOOKUP(B24,'NBI Rural'!$B$1:$E$1103,4,FALSE),"-") -> - | H24: =IFERROR(VLOOKUP(B24,ICV!$A$1:$G$1123,7,FALSE),"-") -> - | I24: =IFERROR(VLOOKUP(B24,Frontera!$A$1:$G$103,7,FALSE),"-") -> - | J24: =IFERROR(VLOOKUP(B24,ZNI!$A$4:$X$128,24,FALSE),"-") -> - | K24: =IFERROR(VLOOKUP(B24,Listas!$A$1:$J$1144,10,FALSE),0) -> 0 | L24: =IFERROR(INDEX(Brechas!$B$2:$AD$1145,MATCH(Cálculos!B24,Brechas!$A$2:$A$1145,0),MATCH(Calificación!$B$13,Brechas!$B$1:$AD$1,0)),"-") -> - | M24: =IFERROR(VLOOKUP(B24,Listas!$A$1:$I$1144,6,FALSE),"-") -> - | N24: =IFERROR(VLOOKUP(B24,Listas!$A$1:$I$1144,7,FALSE),"-") -> - | O24: =IFERROR(VLOOKUP(B24,Listas!$A$1:$I$1144,8,FALSE),"-") -> - | P24: =IFERROR(VLOOKUP(B24,'E&E 15_12_20'!$A$4:$Q$442,17,FALSE),"-") -> - | Q24: =IFERROR(VLOOKUP(B24,Puerto!$A$4:$C$22,3,FALSE),"-") -> - | R24: =IFERROR(VLOOKUP(B24,ZOMAC!$A$3:$K$346,11,FALSE),"-") -> - | T24: =IF(K24=0,0,IF(SUMPRODUCT(($K23:K24=K24)*1)>1,0,1)) -> 0
A25: Código DANE Entidad 21 | B25: =Calificación!B40 -> 0 | C25: =IFERROR(VLOOKUP(Cálculos!B25,IICA!$A$9:$G$1131,7,FALSE),"-") -> - | D25: =IFERROR(VLOOKUP(B25,CultIllic!$A$1:$K$1144,11,FALSE),"-") -> - | E25: =IFERROR(VLOOKUP(B25,MDM!$A$1:$S$1102,14,FALSE),"-") -> - | F25: =IFERROR(VLOOKUP(B25,Ruralidad!$A$1:$E$1123,5,FALSE),"-") -> - | G25: =IFERROR(VLOOKUP(B25,'NBI Rural'!$B$1:$E$1103,4,FALSE),"-") -> - | H25: =IFERROR(VLOOKUP(B25,ICV!$A$1:$G$1123,7,FALSE),"-") -> - | I25: =IFERROR(VLOOKUP(B25,Frontera!$A$1:$G$103,7,FALSE),"-") -> - | J25: =IFERROR(VLOOKUP(B25,ZNI!$A$4:$X$128,24,FALSE),"-") -> - | K25: =IFERROR(VLOOKUP(B25,Listas!$A$1:$J$1144,10,FALSE),0) -> 0 | L25: =IFERROR(INDEX(Brechas!$B$2:$AD$1145,MATCH(Cálculos!B25,Brechas!$A$2:$A$1145,0),MATCH(Calificación!$B$13,Brechas!$B$1:$AD$1,0)),"-") -> - | M25: =IFERROR(VLOOKUP(B25,Listas!$A$1:$I$1144,6,FALSE),"-") -> - | N25: =IFERROR(VLOOKUP(B25,Listas!$A$1:$I$1144,7,FALSE),"-") -> - | O25: =IFERROR(VLOOKUP(B25,Listas!$A$1:$I$1144,8,FALSE),"-") -> - | P25: =IFERROR(VLOOKUP(B25,'E&E 15_12_20'!$A$4:$Q$442,17,FALSE),"-") -> - | Q25: =IFERROR(VLOOKUP(B25,Puerto!$A$4:$C$22,3,FALSE),"-") -> - | R25: =IFERROR(VLOOKUP(B25,ZOMAC!$A$3:$K$346,11,FALSE),"-") -> - | T25: =IF(K25=0,0,IF(SUMPRODUCT(($K24:K25=K25)*1)>1,0,1)) -> 0
A26: Código DANE Entidad 22 | B26: =Calificación!B41 -> 0 | C26: =IFERROR(VLOOKUP(Cálculos!B26,IICA!$A$9:$G$1131,7,FALSE),"-") -> - | D26: =IFERROR(VLOOKUP(B26,CultIllic!$A$1:$K$1144,11,FALSE),"-") -> - | E26: =IFERROR(VLOOKUP(B26,MDM!$A$1:$S$1102,14,FALSE),"-") -> - | F26: =IFERROR(VLOOKUP(B26,Ruralidad!$A$1:$E$1123,5,FALSE),"-") -> - | G26: =IFERROR(VLOOKUP(B26,'NBI Rural'!$B$1:$E$1103,4,FALSE),"-") -> - | H26: =IFERROR(VLOOKUP(B26,ICV!$A$1:$G$1123,7,FALSE),"-") -> - | I26: =IFERROR(VLOOKUP(B26,Frontera!$A$1:$G$103,7,FALSE),"-") -> - | J26: =IFERROR(VLOOKUP(B26,ZNI!$A$4:$X$128,24,FALSE),"-") -> - | K26: =IFERROR(VLOOKUP(B26,Listas!$A$1:$J$1144,10,FALSE),0) -> 0 | L26: =IFERROR(INDEX(Brechas!$B$2:$AD$1145,MATCH(Cálculos!B26,Brechas!$A$2:$A$1145,0),MATCH(Calificación!$B$13,Brechas!$B$1:$AD$1,0)),"-") -> - | M26: =IFERROR(VLOOKUP(B26,Listas!$A$1:$I$1144,6,FALSE),"-") -> - | N26: =IFERROR(VLOOKUP(B26,Listas!$A$1:$I$1144,7,FALSE),"-") -> - | O26: =IFERROR(VLOOKUP(B26,Listas!$A$1:$I$1144,8,FALSE),"-") -> - | P26: =IFERROR(VLOOKUP(B26,'E&E 15_12_20'!$A$4:$Q$442,17,FALSE),"-") -> - | Q26: =IFERROR(VLOOKUP(B26,Puerto!$A$4:$C$22,3,FALSE),"-") -> - | R26: =IFERROR(VLOOKUP(B26,ZOMAC!$A$3:$K$346,11,FALSE),"-") -> - | T26: =IF(K26=0,0,IF(SUMPRODUCT(($K25:K26=K26)*1)>1,0,1)) -> 0
A27: Código DANE Entidad 23 | B27: =Calificación!B42 -> 0 | C27: =IFERROR(VLOOKUP(Cálculos!B27,IICA!$A$9:$G$1131,7,FALSE),"-") -> - | D27: =IFERROR(VLOOKUP(B27,CultIllic!$A$1:$K$1144,11,FALSE),"-") -> - | E27: =IFERROR(VLOOKUP(B27,MDM!$A$1:$S$1102,14,FALSE),"-") -> - | F27: =IFERROR(VLOOKUP(B27,Ruralidad!$A$1:$E$1123,5,FALSE),"-") -> - | G27: =IFERROR(VLOOKUP(B27,'NBI Rural'!$B$1:$E$1103,4,FALSE),"-") -> - | H27: =IFERROR(VLOOKUP(B27,ICV!$A$1:$G$1123,7,FALSE),"-") -> - | I27: =IFERROR(VLOOKUP(B27,Frontera!$A$1:$G$103,7,FALSE),"-") -> - | J27: =IFERROR(VLOOKUP(B27,ZNI!$A$4:$X$128,24,FALSE),"-") -> - | K27: =IFERROR(VLOOKUP(B27,Listas!$A$1:$J$1144,10,FALSE),0) -> 0 | L27: =IFERROR(INDEX(Brechas!$B$2:$AD$1145,MATCH(Cálculos!B27,Brechas!$A$2:$A$1145,0),MATCH(Calificación!$B$13,Brechas!$B$1:$AD$1,0)),"-") -> - | M27: =IFERROR(VLOOKUP(B27,Listas!$A$1:$I$1144,6,FALSE),"-") -> - | N27: =IFERROR(VLOOKUP(B27,Listas!$A$1:$I$1144,7,FALSE),"-") -> - | O27: =IFERROR(VLOOKUP(B27,Listas!$A$1:$I$1144,8,FALSE),"-") -> - | P27: =IFERROR(VLOOKUP(B27,'E&E 15_12_20'!$A$4:$Q$442,17,FALSE),"-") -> - | Q27: =IFERROR(VLOOKUP(B27,Puerto!$A$4:$C$22,3,FALSE),"-") -> - | R27: =IFERROR(VLOOKUP(B27,ZOMAC!$A$3:$K$346,11,FALSE),"-") -> - | T27: =IF(K27=0,0,IF(SUMPRODUCT(($K26:K27=K27)*1)>1,0,1)) -> 0
A28: Código DANE Entidad 24 | B28: =Calificación!B43 -> 0 | C28: =IFERROR(VLOOKUP(Cálculos!B28,IICA!$A$9:$G$1131,7,FALSE),"-") -> - | D28: =IFERROR(VLOOKUP(B28,CultIllic!$A$1:$K$1144,11,FALSE),"-") -> - | E28: =IFERROR(VLOOKUP(B28,MDM!$A$1:$S$1102,14,FALSE),"-") -> - | F28: =IFERROR(VLOOKUP(B28,Ruralidad!$A$1:$E$1123,5,FALSE),"-") -> - | G28: =IFERROR(VLOOKUP(B28,'NBI Rural'!$B$1:$E$1103,4,FALSE),"-") -> - | H28: =IFERROR(VLOOKUP(B28,ICV!$A$1:$G$1123,7,FALSE),"-") -> - | I28: =IFERROR(VLOOKUP(B28,Frontera!$A$1:$G$103,7,FALSE),"-") -> - | J28: =IFERROR(VLOOKUP(B28,ZNI!$A$4:$X$128,24,FALSE),"-") -> - | K28: =IFERROR(VLOOKUP(B28,Listas!$A$1:$J$1144,10,FALSE),0) -> 0 | L28: =IFERROR(INDEX(Brechas!$B$2:$AD$1145,MATCH(Cálculos!B28,Brechas!$A$2:$A$1145,0),MATCH(Calificación!$B$13,Brechas!$B$1:$AD$1,0)),"-") -> - | M28: =IFERROR(VLOOKUP(B28,Listas!$A$1:$I$1144,6,FALSE),"-") -> - | N28: =IFERROR(VLOOKUP(B28,Listas!$A$1:$I$1144,7,FALSE),"-") -> - | O28: =IFERROR(VLOOKUP(B28,Listas!$A$1:$I$1144,8,FALSE),"-") -> - | P28: =IFERROR(VLOOKUP(B28,'E&E 15_12_20'!$A$4:$Q$442,17,FALSE),"-") -> - | Q28: =IFERROR(VLOOKUP(B28,Puerto!$A$4:$C$22,3,FALSE),"-") -> - | R28: =IFERROR(VLOOKUP(B28,ZOMAC!$A$3:$K$346,11,FALSE),"-") -> - | T28: =IF(K28=0,0,IF(SUMPRODUCT(($K27:K28=K28)*1)>1,0,1)) -> 0
A29: Código DANE Entidad 25 | B29: =Calificación!B44 -> 0 | C29: =IFERROR(VLOOKUP(Cálculos!B29,IICA!$A$9:$G$1131,7,FALSE),"-") -> - | D29: =IFERROR(VLOOKUP(B29,CultIllic!$A$1:$K$1144,11,FALSE),"-") -> - | E29: =IFERROR(VLOOKUP(B29,MDM!$A$1:$S$1102,14,FALSE),"-") -> - | F29: =IFERROR(VLOOKUP(B29,Ruralidad!$A$1:$E$1123,5,FALSE),"-") -> - | G29: =IFERROR(VLOOKUP(B29,'NBI Rural'!$B$1:$E$1103,4,FALSE),"-") -> - | H29: =IFERROR(VLOOKUP(B29,ICV!$A$1:$G$1123,7,FALSE),"-") -> - | I29: =IFERROR(VLOOKUP(B29,Frontera!$A$1:$G$103,7,FALSE),"-") -> - | J29: =IFERROR(VLOOKUP(B29,ZNI!$A$4:$X$128,24,FALSE),"-") -> - | K29: =IFERROR(VLOOKUP(B29,Listas!$A$1:$J$1144,10,FALSE),0) -> 0 | L29: =IFERROR(INDEX(Brechas!$B$2:$AD$1145,MATCH(Cálculos!B29,Brechas!$A$2:$A$1145,0),MATCH(Calificación!$B$13,Brechas!$B$1:$AD$1,0)),"-") -> - | M29: =IFERROR(VLOOKUP(B29,Listas!$A$1:$I$1144,6,FALSE),"-") -> - | N29: =IFERROR(VLOOKUP(B29,Listas!$A$1:$I$1144,7,FALSE),"-") -> - | O29: =IFERROR(VLOOKUP(B29,Listas!$A$1:$I$1144,8,FALSE),"-") -> - | P29: =IFERROR(VLOOKUP(B29,'E&E 15_12_20'!$A$4:$Q$442,17,FALSE),"-") -> - | Q29: =IFERROR(VLOOKUP(B29,Puerto!$A$4:$C$22,3,FALSE),"-") -> - | R29: =IFERROR(VLOOKUP(B29,ZOMAC!$A$3:$K$346,11,FALSE),"-") -> - | T29: =IF(K29=0,0,IF(SUMPRODUCT(($K28:K29=K29)*1)>1,0,1)) -> 0
A30: Código DANE Entidad 26 | B30: =Calificación!B45 -> 0 | C30: =IFERROR(VLOOKUP(Cálculos!B30,IICA!$A$9:$G$1131,7,FALSE),"-") -> - | D30: =IFERROR(VLOOKUP(B30,CultIllic!$A$1:$K$1144,11,FALSE),"-") -> - | E30: =IFERROR(VLOOKUP(B30,MDM!$A$1:$S$1102,14,FALSE),"-") -> - | F30: =IFERROR(VLOOKUP(B30,Ruralidad!$A$1:$E$1123,5,FALSE),"-") -> - | G30: =IFERROR(VLOOKUP(B30,'NBI Rural'!$B$1:$E$1103,4,FALSE),"-") -> - | H30: =IFERROR(VLOOKUP(B30,ICV!$A$1:$G$1123,7,FALSE),"-") -> - | I30: =IFERROR(VLOOKUP(B30,Frontera!$A$1:$G$103,7,FALSE),"-") -> - | J30: =IFERROR(VLOOKUP(B30,ZNI!$A$4:$X$128,24,FALSE),"-") -> - | K30: =IFERROR(VLOOKUP(B30,Listas!$A$1:$J$1144,10,FALSE),0) -> 0 | L30: =IFERROR(INDEX(Brechas!$B$2:$AD$1145,MATCH(Cálculos!B30,Brechas!$A$2:$A$1145,0),MATCH(Calificación!$B$13,Brechas!$B$1:$AD$1,0)),"-") -> - | M30: =IFERROR(VLOOKUP(B30,Listas!$A$1:$I$1144,6,FALSE),"-") -> - | N30: =IFERROR(VLOOKUP(B30,Listas!$A$1:$I$1144,7,FALSE),"-") -> - | O30: =IFERROR(VLOOKUP(B30,Listas!$A$1:$I$1144,8,FALSE),"-") -> - | P30: =IFERROR(VLOOKUP(B30,'E&E 15_12_20'!$A$4:$Q$442,17,FALSE),"-") -> - | Q30: =IFERROR(VLOOKUP(B30,Puerto!$A$4:$C$22,3,FALSE),"-") -> - | R30: =IFERROR(VLOOKUP(B30,ZOMAC!$A$3:$K$346,11,FALSE),"-") -> - | T30: =IF(K30=0,0,IF(SUMPRODUCT(($K29:K30=K30)*1)>1,0,1)) -> 0
A31: Código DANE Entidad 27 | B31: =Calificación!B46 -> 0 | C31: =IFERROR(VLOOKUP(Cálculos!B31,IICA!$A$9:$G$1131,7,FALSE),"-") -> - | D31: =IFERROR(VLOOKUP(B31,CultIllic!$A$1:$K$1144,11,FALSE),"-") -> - | E31: =IFERROR(VLOOKUP(B31,MDM!$A$1:$S$1102,14,FALSE),"-") -> - | F31: =IFERROR(VLOOKUP(B31,Ruralidad!$A$1:$E$1123,5,FALSE),"-") -> - | G31: =IFERROR(VLOOKUP(B31,'NBI Rural'!$B$1:$E$1103,4,FALSE),"-") -> - | H31: =IFERROR(VLOOKUP(B31,ICV!$A$1:$G$1123,7,FALSE),"-") -> - | I31: =IFERROR(VLOOKUP(B31,Frontera!$A$1:$G$103,7,FALSE),"-") -> - | J31: =IFERROR(VLOOKUP(B31,ZNI!$A$4:$X$128,24,FALSE),"-") -> - | K31: =IFERROR(VLOOKUP(B31,Listas!$A$1:$J$1144,10,FALSE),0) -> 0 | L31: =IFERROR(INDEX(Brechas!$B$2:$AD$1145,MATCH(Cálculos!B31,Brechas!$A$2:$A$1145,0),MATCH(Calificación!$B$13,Brechas!$B$1:$AD$1,0)),"-") -> - | M31: =IFERROR(VLOOKUP(B31,Listas!$A$1:$I$1144,6,FALSE),"-") -> - | N31: =IFERROR(VLOOKUP(B31,Listas!$A$1:$I$1144,7,FALSE),"-") -> - | O31: =IFERROR(VLOOKUP(B31,Listas!$A$1:$I$1144,8,FALSE),"-") -> - | P31: =IFERROR(VLOOKUP(B31,'E&E 15_12_20'!$A$4:$Q$442,17,FALSE),"-") -> - | Q31: =IFERROR(VLOOKUP(B31,Puerto!$A$4:$C$22,3,FALSE),"-") -> - | R31: =IFERROR(VLOOKUP(B31,ZOMAC!$A$3:$K$346,11,FALSE),"-") -> - | T31: =IF(K31=0,0,IF(SUMPRODUCT(($K30:K31=K31)*1)>1,0,1)) -> 0
A32: Código DANE Entidad 28 | B32: =Calificación!B47 -> 0 | C32: =IFERROR(VLOOKUP(Cálculos!B32,IICA!$A$9:$G$1131,7,FALSE),"-") -> - | D32: =IFERROR(VLOOKUP(B32,CultIllic!$A$1:$K$1144,11,FALSE),"-") -> - | E32: =IFERROR(VLOOKUP(B32,MDM!$A$1:$S$1102,14,FALSE),"-") -> - | F32: =IFERROR(VLOOKUP(B32,Ruralidad!$A$1:$E$1123,5,FALSE),"-") -> - | G32: =IFERROR(VLOOKUP(B32,'NBI Rural'!$B$1:$E$1103,4,FALSE),"-") -> - | H32: =IFERROR(VLOOKUP(B32,ICV!$A$1:$G$1123,7,FALSE),"-") -> - | I32: =IFERROR(VLOOKUP(B32,Frontera!$A$1:$G$103,7,FALSE),"-") -> - | J32: =IFERROR(VLOOKUP(B32,ZNI!$A$4:$X$128,24,FALSE),"-") -> - | K32: =IFERROR(VLOOKUP(B32,Listas!$A$1:$J$1144,10,FALSE),0) -> 0 | L32: =IFERROR(INDEX(Brechas!$B$2:$AD$1145,MATCH(Cálculos!B32,Brechas!$A$2:$A$1145,0),MATCH(Calificación!$B$13,Brechas!$B$1:$AD$1,0)),"-") -> - | M32: =IFERROR(VLOOKUP(B32,Listas!$A$1:$I$1144,6,FALSE),"-") -> - | N32: =IFERROR(VLOOKUP(B32,Listas!$A$1:$I$1144,7,FALSE),"-") -> - | O32: =IFERROR(VLOOKUP(B32,Listas!$A$1:$I$1144,8,FALSE),"-") -> - | P32: =IFERROR(VLOOKUP(B32,'E&E 15_12_20'!$A$4:$Q$442,17,FALSE),"-") -> - | Q32: =IFERROR(VLOOKUP(B32,Puerto!$A$4:$C$22,3,FALSE),"-") -> - | R32: =IFERROR(VLOOKUP(B32,ZOMAC!$A$3:$K$346,11,FALSE),"-") -> - | T32: =IF(K32=0,0,IF(SUMPRODUCT(($K31:K32=K32)*1)>1,0,1)) -> 0
A33: Código DANE Entidad 29 | B33: =Calificación!B48 -> 0 | C33: =IFERROR(VLOOKUP(Cálculos!B33,IICA!$A$9:$G$1131,7,FALSE),"-") -> - | D33: =IFERROR(VLOOKUP(B33,CultIllic!$A$1:$K$1144,11,FALSE),"-") -> - | E33: =IFERROR(VLOOKUP(B33,MDM!$A$1:$S$1102,14,FALSE),"-") -> - | F33: =IFERROR(VLOOKUP(B33,Ruralidad!$A$1:$E$1123,5,FALSE),"-") -> - | G33: =IFERROR(VLOOKUP(B33,'NBI Rural'!$B$1:$E$1103,4,FALSE),"-") -> - | H33: =IFERROR(VLOOKUP(B33,ICV!$A$1:$G$1123,7,FALSE),"-") -> - | I33: =IFERROR(VLOOKUP(B33,Frontera!$A$1:$G$103,7,FALSE),"-") -> - | J33: =IFERROR(VLOOKUP(B33,ZNI!$A$4:$X$128,24,FALSE),"-") -> - | K33: =IFERROR(VLOOKUP(B33,Listas!$A$1:$J$1144,10,FALSE),0) -> 0 | L33: =IFERROR(INDEX(Brechas!$B$2:$AD$1145,MATCH(Cálculos!B33,Brechas!$A$2:$A$1145,0),MATCH(Calificación!$B$13,Brechas!$B$1:$AD$1,0)),"-") -> - | M33: =IFERROR(VLOOKUP(B33,Listas!$A$1:$I$1144,6,FALSE),"-") -> - | N33: =IFERROR(VLOOKUP(B33,Listas!$A$1:$I$1144,7,FALSE),"-") -> - | O33: =IFERROR(VLOOKUP(B33,Listas!$A$1:$I$1144,8,FALSE),"-") -> - | P33: =IFERROR(VLOOKUP(B33,'E&E 15_12_20'!$A$4:$Q$442,17,FALSE),"-") -> - | Q33: =IFERROR(VLOOKUP(B33,Puerto!$A$4:$C$22,3,FALSE),"-") -> - | R33: =IFERROR(VLOOKUP(B33,ZOMAC!$A$3:$K$346,11,FALSE),"-") -> - | T33: =IF(K33=0,0,IF(SUMPRODUCT(($K32:K33=K33)*1)>1,0,1)) -> 0
A34: Código DANE Entidad 30 | B34: =Calificación!B49 -> 0 | C34: =IFERROR(VLOOKUP(Cálculos!B34,IICA!$A$9:$G$1131,7,FALSE),"-") -> - | D34: =IFERROR(VLOOKUP(B34,CultIllic!$A$1:$K$1144,11,FALSE),"-") -> - | E34: =IFERROR(VLOOKUP(B34,MDM!$A$1:$S$1102,14,FALSE),"-") -> - | F34: =IFERROR(VLOOKUP(B34,Ruralidad!$A$1:$E$1123,5,FALSE),"-") -> - | G34: =IFERROR(VLOOKUP(B34,'NBI Rural'!$B$1:$E$1103,4,FALSE),"-") -> - | H34: =IFERROR(VLOOKUP(B34,ICV!$A$1:$G$1123,7,FALSE),"-") -> - | I34: =IFERROR(VLOOKUP(B34,Frontera!$A$1:$G$103,7,FALSE),"-") -> - | J34: =IFERROR(VLOOKUP(B34,ZNI!$A$4:$X$128,24,FALSE),"-") -> - | K34: =IFERROR(VLOOKUP(B34,Listas!$A$1:$J$1144,10,FALSE),0) -> 0 | L34: =IFERROR(INDEX(Brechas!$B$2:$AD$1145,MATCH(Cálculos!B34,Brechas!$A$2:$A$1145,0),MATCH(Calificación!$B$13,Brechas!$B$1:$AD$1,0)),"-") -> - | M34: =IFERROR(VLOOKUP(B34,Listas!$A$1:$I$1144,6,FALSE),"-") -> - | N34: =IFERROR(VLOOKUP(B34,Listas!$A$1:$I$1144,7,FALSE),"-") -> - | O34: =IFERROR(VLOOKUP(B34,Listas!$A$1:$I$1144,8,FALSE),"-") -> - | P34: =IFERROR(VLOOKUP(B34,'E&E 15_12_20'!$A$4:$Q$442,17,FALSE),"-") -> - | Q34: =IFERROR(VLOOKUP(B34,Puerto!$A$4:$C$22,3,FALSE),"-") -> - | R34: =IFERROR(VLOOKUP(B34,ZOMAC!$A$3:$K$346,11,FALSE),"-") -> - | T34: =IF(K34=0,0,IF(SUMPRODUCT(($K33:K34=K34)*1)>1,0,1)) -> 0
A35: Código DANE Entidad 31 | B35: =Calificación!B50 -> 0 | C35: =IFERROR(VLOOKUP(Cálculos!B35,IICA!$A$9:$G$1131,7,FALSE),"-") -> - | D35: =IFERROR(VLOOKUP(B35,CultIllic!$A$1:$K$1144,11,FALSE),"-") -> - | E35: =IFERROR(VLOOKUP(B35,MDM!$A$1:$S$1102,14,FALSE),"-") -> - | F35: =IFERROR(VLOOKUP(B35,Ruralidad!$A$1:$E$1123,5,FALSE),"-") -> - | G35: =IFERROR(VLOOKUP(B35,'NBI Rural'!$B$1:$E$1103,4,FALSE),"-") -> - | H35: =IFERROR(VLOOKUP(B35,ICV!$A$1:$G$1123,7,FALSE),"-") -> - | I35: =IFERROR(VLOOKUP(B35,Frontera!$A$1:$G$103,7,FALSE),"-") -> - | J35: =IFERROR(VLOOKUP(B35,ZNI!$A$4:$X$128,24,FALSE),"-") -> - | K35: =IFERROR(VLOOKUP(B35,Listas!$A$1:$J$1144,10,FALSE),0) -> 0 | L35: =IFERROR(INDEX(Brechas!$B$2:$AD$1145,MATCH(Cálculos!B35,Brechas!$A$2:$A$1145,0),MATCH(Calificación!$B$13,Brechas!$B$1:$AD$1,0)),"-") -> - | M35: =IFERROR(VLOOKUP(B35,Listas!$A$1:$I$1144,6,FALSE),"-") -> - | N35: =IFERROR(VLOOKUP(B35,Listas!$A$1:$I$1144,7,FALSE),"-") -> - | O35: =IFERROR(VLOOKUP(B35,Listas!$A$1:$I$1144,8,FALSE),"-") -> - | P35: =IFERROR(VLOOKUP(B35,'E&E 15_12_20'!$A$4:$Q$442,17,FALSE),"-") -> - | Q35: =IFERROR(VLOOKUP(B35,Puerto!$A$4:$C$22,3,FALSE),"-") -> - | R35: =IFERROR(VLOOKUP(B35,ZOMAC!$A$3:$K$346,11,FALSE),"-") -> - | T35: =IF(K35=0,0,IF(SUMPRODUCT(($K34:K35=K35)*1)>1,0,1)) -> 0
A36: Código DANE Entidad 32 | B36: =Calificación!B51 -> 0 | C36: =IFERROR(VLOOKUP(Cálculos!B36,IICA!$A$9:$G$1131,7,FALSE),"-") -> - | D36: =IFERROR(VLOOKUP(B36,CultIllic!$A$1:$K$1144,11,FALSE),"-") -> - | E36: =IFERROR(VLOOKUP(B36,MDM!$A$1:$S$1102,14,FALSE),"-") -> - | F36: =IFERROR(VLOOKUP(B36,Ruralidad!$A$1:$E$1123,5,FALSE),"-") -> - | G36: =IFERROR(VLOOKUP(B36,'NBI Rural'!$B$1:$E$1103,4,FALSE),"-") -> - | H36: =IFERROR(VLOOKUP(B36,ICV!$A$1:$G$1123,7,FALSE),"-") -> - | I36: =IFERROR(VLOOKUP(B36,Frontera!$A$1:$G$103,7,FALSE),"-") -> - | J36: =IFERROR(VLOOKUP(B36,ZNI!$A$4:$X$128,24,FALSE),"-") -> - | K36: =IFERROR(VLOOKUP(B36,Listas!$A$1:$J$1144,10,FALSE),0) -> 0 | L36: =IFERROR(INDEX(Brechas!$B$2:$AD$1145,MATCH(Cálculos!B36,Brechas!$A$2:$A$1145,0),MATCH(Calificación!$B$13,Brechas!$B$1:$AD$1,0)),"-") -> - | M36: =IFERROR(VLOOKUP(B36,Listas!$A$1:$I$1144,6,FALSE),"-") -> - | N36: =IFERROR(VLOOKUP(B36,Listas!$A$1:$I$1144,7,FALSE),"-") -> - | O36: =IFERROR(VLOOKUP(B36,Listas!$A$1:$I$1144,8,FALSE),"-") -> - | P36: =IFERROR(VLOOKUP(B36,'E&E 15_12_20'!$A$4:$Q$442,17,FALSE),"-") -> - | Q36: =IFERROR(VLOOKUP(B36,Puerto!$A$4:$C$22,3,FALSE),"-") -> - | R36: =IFERROR(VLOOKUP(B36,ZOMAC!$A$3:$K$346,11,FALSE),"-") -> - | T36: =IF(K36=0,0,IF(SUMPRODUCT(($K35:K36=K36)*1)>1,0,1)) -> 0
A37: Código DANE Entidad 33 | B37: =Calificación!B52 -> 0 | C37: =IFERROR(VLOOKUP(Cálculos!B37,IICA!$A$9:$G$1131,7,FALSE),"-") -> - | D37: =IFERROR(VLOOKUP(B37,CultIllic!$A$1:$K$1144,11,FALSE),"-") -> - | E37: =IFERROR(VLOOKUP(B37,MDM!$A$1:$S$1102,14,FALSE),"-") -> - | F37: =IFERROR(VLOOKUP(B37,Ruralidad!$A$1:$E$1123,5,FALSE),"-") -> - | G37: =IFERROR(VLOOKUP(B37,'NBI Rural'!$B$1:$E$1103,4,FALSE),"-") -> - | H37: =IFERROR(VLOOKUP(B37,ICV!$A$1:$G$1123,7,FALSE),"-") -> - | I37: =IFERROR(VLOOKUP(B37,Frontera!$A$1:$G$103,7,FALSE),"-") -> - | J37: =IFERROR(VLOOKUP(B37,ZNI!$A$4:$X$128,24,FALSE),"-") -> - | K37: =IFERROR(VLOOKUP(B37,Listas!$A$1:$J$1144,10,FALSE),0) -> 0 | L37: =IFERROR(INDEX(Brechas!$B$2:$AD$1145,MATCH(Cálculos!B37,Brechas!$A$2:$A$1145,0),MATCH(Calificación!$B$13,Brechas!$B$1:$AD$1,0)),"-") -> - | M37: =IFERROR(VLOOKUP(B37,Listas!$A$1:$I$1144,6,FALSE),"-") -> - | N37: =IFERROR(VLOOKUP(B37,Listas!$A$1:$I$1144,7,FALSE),"-") -> - | O37: =IFERROR(VLOOKUP(B37,Listas!$A$1:$I$1144,8,FALSE),"-") -> - | P37: =IFERROR(VLOOKUP(B37,'E&E 15_12_20'!$A$4:$Q$442,17,FALSE),"-") -> - | Q37: =IFERROR(VLOOKUP(B37,Puerto!$A$4:$C$22,3,FALSE),"-") -> - | R37: =IFERROR(VLOOKUP(B37,ZOMAC!$A$3:$K$346,11,FALSE),"-") -> - | T37: =IF(K37=0,0,IF(SUMPRODUCT(($K36:K37=K37)*1)>1,0,1)) -> 0
A38: Código DANE Entidad 34 | B38: =Calificación!B53 -> 0 | C38: =IFERROR(VLOOKUP(Cálculos!B38,IICA!$A$9:$G$1131,7,FALSE),"-") -> - | D38: =IFERROR(VLOOKUP(B38,CultIllic!$A$1:$K$1144,11,FALSE),"-") -> - | E38: =IFERROR(VLOOKUP(B38,MDM!$A$1:$S$1102,14,FALSE),"-") -> - | F38: =IFERROR(VLOOKUP(B38,Ruralidad!$A$1:$E$1123,5,FALSE),"-") -> - | G38: =IFERROR(VLOOKUP(B38,'NBI Rural'!$B$1:$E$1103,4,FALSE),"-") -> - | H38: =IFERROR(VLOOKUP(B38,ICV!$A$1:$G$1123,7,FALSE),"-") -> - | I38: =IFERROR(VLOOKUP(B38,Frontera!$A$1:$G$103,7,FALSE),"-") -> - | J38: =IFERROR(VLOOKUP(B38,ZNI!$A$4:$X$128,24,FALSE),"-") -> - | K38: =IFERROR(VLOOKUP(B38,Listas!$A$1:$J$1144,10,FALSE),0) -> 0 | L38: =IFERROR(INDEX(Brechas!$B$2:$AD$1145,MATCH(Cálculos!B38,Brechas!$A$2:$A$1145,0),MATCH(Calificación!$B$13,Brechas!$B$1:$AD$1,0)),"-") -> - | M38: =IFERROR(VLOOKUP(B38,Listas!$A$1:$I$1144,6,FALSE),"-") -> - | N38: =IFERROR(VLOOKUP(B38,Listas!$A$1:$I$1144,7,FALSE),"-") -> - | O38: =IFERROR(VLOOKUP(B38,Listas!$A$1:$I$1144,8,FALSE),"-") -> - | P38: =IFERROR(VLOOKUP(B38,'E&E 15_12_20'!$A$4:$Q$442,17,FALSE),"-") -> - | Q38: =IFERROR(VLOOKUP(B38,Puerto!$A$4:$C$22,3,FALSE),"-") -> - | R38: =IFERROR(VLOOKUP(B38,ZOMAC!$A$3:$K$346,11,FALSE),"-") -> - | T38: =IF(K38=0,0,IF(SUMPRODUCT(($K37:K38=K38)*1)>1,0,1)) -> 0
A39: Código DANE Entidad 35 | B39: =Calificación!B54 -> 0 | C39: =IFERROR(VLOOKUP(Cálculos!B39,IICA!$A$9:$G$1131,7,FALSE),"-") -> - | D39: =IFERROR(VLOOKUP(B39,CultIllic!$A$1:$K$1144,11,FALSE),"-") -> - | E39: =IFERROR(VLOOKUP(B39,MDM!$A$1:$S$1102,14,FALSE),"-") -> - | F39: =IFERROR(VLOOKUP(B39,Ruralidad!$A$1:$E$1123,5,FALSE),"-") -> - | G39: =IFERROR(VLOOKUP(B39,'NBI Rural'!$B$1:$E$1103,4,FALSE),"-") -> - | H39: =IFERROR(VLOOKUP(B39,ICV!$A$1:$G$1123,7,FALSE),"-") -> - | I39: =IFERROR(VLOOKUP(B39,Frontera!$A$1:$G$103,7,FALSE),"-") -> - | J39: =IFERROR(VLOOKUP(B39,ZNI!$A$4:$X$128,24,FALSE),"-") -> - | K39: =IFERROR(VLOOKUP(B39,Listas!$A$1:$J$1144,10,FALSE),0) -> 0 | L39: =IFERROR(INDEX(Brechas!$B$2:$AD$1145,MATCH(Cálculos!B39,Brechas!$A$2:$A$1145,0),MATCH(Calificación!$B$13,Brechas!$B$1:$AD$1,0)),"-") -> - | M39: =IFERROR(VLOOKUP(B39,Listas!$A$1:$I$1144,6,FALSE),"-") -> - | N39: =IFERROR(VLOOKUP(B39,Listas!$A$1:$I$1144,7,FALSE),"-") -> - | O39: =IFERROR(VLOOKUP(B39,Listas!$A$1:$I$1144,8,FALSE),"-") -> - | P39: =IFERROR(VLOOKUP(B39,'E&E 15_12_20'!$A$4:$Q$442,17,FALSE),"-") -> - | Q39: =IFERROR(VLOOKUP(B39,Puerto!$A$4:$C$22,3,FALSE),"-") -> - | R39: =IFERROR(VLOOKUP(B39,ZOMAC!$A$3:$K$346,11,FALSE),"-") -> - | T39: =IF(K39=0,0,IF(SUMPRODUCT(($K38:K39=K39)*1)>1,0,1)) -> 0
A40: Código DANE Entidad 36 | B40: =Calificación!B55 -> 0 | C40: =IFERROR(VLOOKUP(Cálculos!B40,IICA!$A$9:$G$1131,7,FALSE),"-") -> - | D40: =IFERROR(VLOOKUP(B40,CultIllic!$A$1:$K$1144,11,FALSE),"-") -> - | E40: =IFERROR(VLOOKUP(B40,MDM!$A$1:$S$1102,14,FALSE),"-") -> - | F40: =IFERROR(VLOOKUP(B40,Ruralidad!$A$1:$E$1123,5,FALSE),"-") -> - | G40: =IFERROR(VLOOKUP(B40,'NBI Rural'!$B$1:$E$1103,4,FALSE),"-") -> - | H40: =IFERROR(VLOOKUP(B40,ICV!$A$1:$G$1123,7,FALSE),"-") -> - | I40: =IFERROR(VLOOKUP(B40,Frontera!$A$1:$G$103,7,FALSE),"-") -> - | J40: =IFERROR(VLOOKUP(B40,ZNI!$A$4:$X$128,24,FALSE),"-") -> - | K40: =IFERROR(VLOOKUP(B40,Listas!$A$1:$J$1144,10,FALSE),0) -> 0 | L40: =IFERROR(INDEX(Brechas!$B$2:$AD$1145,MATCH(Cálculos!B40,Brechas!$A$2:$A$1145,0),MATCH(Calificación!$B$13,Brechas!$B$1:$AD$1,0)),"-") -> - | M40: =IFERROR(VLOOKUP(B40,Listas!$A$1:$I$1144,6,FALSE),"-") -> - | N40: =IFERROR(VLOOKUP(B40,Listas!$A$1:$I$1144,7,FALSE),"-") -> - | O40: =IFERROR(VLOOKUP(B40,Listas!$A$1:$I$1144,8,FALSE),"-") -> - | P40: =IFERROR(VLOOKUP(B40,'E&E 15_12_20'!$A$4:$Q$442,17,FALSE),"-") -> - | Q40: =IFERROR(VLOOKUP(B40,Puerto!$A$4:$C$22,3,FALSE),"-") -> - | R40: =IFERROR(VLOOKUP(B40,ZOMAC!$A$3:$K$346,11,FALSE),"-") -> - | T40: =IF(K40=0,0,IF(SUMPRODUCT(($K39:K40=K40)*1)>1,0,1)) -> 0
A41: Código DANE Entidad 37 | B41: =Calificación!B56 -> 0 | C41: =IFERROR(VLOOKUP(Cálculos!B41,IICA!$A$9:$G$1131,7,FALSE),"-") -> - | D41: =IFERROR(VLOOKUP(B41,CultIllic!$A$1:$K$1144,11,FALSE),"-") -> - | E41: =IFERROR(VLOOKUP(B41,MDM!$A$1:$S$1102,14,FALSE),"-") -> - | F41: =IFERROR(VLOOKUP(B41,Ruralidad!$A$1:$E$1123,5,FALSE),"-") -> - | G41: =IFERROR(VLOOKUP(B41,'NBI Rural'!$B$1:$E$1103,4,FALSE),"-") -> - | H41: =IFERROR(VLOOKUP(B41,ICV!$A$1:$G$1123,7,FALSE),"-") -> - | I41: =IFERROR(VLOOKUP(B41,Frontera!$A$1:$G$103,7,FALSE),"-") -> - | J41: =IFERROR(VLOOKUP(B41,ZNI!$A$4:$X$128,24,FALSE),"-") -> - | K41: =IFERROR(VLOOKUP(B41,Listas!$A$1:$J$1144,10,FALSE),0) -> 0 | L41: =IFERROR(INDEX(Brechas!$B$2:$AD$1145,MATCH(Cálculos!B41,Brechas!$A$2:$A$1145,0),MATCH(Calificación!$B$13,Brechas!$B$1:$AD$1,0)),"-") -> - | M41: =IFERROR(VLOOKUP(B41,Listas!$A$1:$I$1144,6,FALSE),"-") -> - | N41: =IFERROR(VLOOKUP(B41,Listas!$A$1:$I$1144,7,FALSE),"-") -> - | O41: =IFERROR(VLOOKUP(B41,Listas!$A$1:$I$1144,8,FALSE),"-") -> - | P41: =IFERROR(VLOOKUP(B41,'E&E 15_12_20'!$A$4:$Q$442,17,FALSE),"-") -> - | Q41: =IFERROR(VLOOKUP(B41,Puerto!$A$4:$C$22,3,FALSE),"-") -> - | R41: =IFERROR(VLOOKUP(B41,ZOMAC!$A$3:$K$346,11,FALSE),"-") -> - | T41: =IF(K41=0,0,IF(SUMPRODUCT(($K40:K41=K41)*1)>1,0,1)) -> 0
A42: Código DANE Entidad 38 | B42: =Calificación!B57 -> 0 | C42: =IFERROR(VLOOKUP(Cálculos!B42,IICA!$A$9:$G$1131,7,FALSE),"-") -> - | D42: =IFERROR(VLOOKUP(B42,CultIllic!$A$1:$K$1144,11,FALSE),"-") -> - | E42: =IFERROR(VLOOKUP(B42,MDM!$A$1:$S$1102,14,FALSE),"-") -> - | F42: =IFERROR(VLOOKUP(B42,Ruralidad!$A$1:$E$1123,5,FALSE),"-") -> - | G42: =IFERROR(VLOOKUP(B42,'NBI Rural'!$B$1:$E$1103,4,FALSE),"-") -> - | H42: =IFERROR(VLOOKUP(B42,ICV!$A$1:$G$1123,7,FALSE),"-") -> - | I42: =IFERROR(VLOOKUP(B42,Frontera!$A$1:$G$103,7,FALSE),"-") -> - | J42: =IFERROR(VLOOKUP(B42,ZNI!$A$4:$X$128,24,FALSE),"-") -> - | K42: =IFERROR(VLOOKUP(B42,Listas!$A$1:$J$1144,10,FALSE),0) -> 0 | L42: =IFERROR(INDEX(Brechas!$B$2:$AD$1145,MATCH(Cálculos!B42,Brechas!$A$2:$A$1145,0),MATCH(Calificación!$B$13,Brechas!$B$1:$AD$1,0)),"-") -> - | M42: =IFERROR(VLOOKUP(B42,Listas!$A$1:$I$1144,6,FALSE),"-") -> - | N42: =IFERROR(VLOOKUP(B42,Listas!$A$1:$I$1144,7,FALSE),"-") -> - | O42: =IFERROR(VLOOKUP(B42,Listas!$A$1:$I$1144,8,FALSE),"-") -> - | P42: =IFERROR(VLOOKUP(B42,'E&E 15_12_20'!$A$4:$Q$442,17,FALSE),"-") -> - | Q42: =IFERROR(VLOOKUP(B42,Puerto!$A$4:$C$22,3,FALSE),"-") -> - | R42: =IFERROR(VLOOKUP(B42,ZOMAC!$A$3:$K$346,11,FALSE),"-") -> - | T42: =IF(K42=0,0,IF(SUMPRODUCT(($K41:K42=K42)*1)>1,0,1)) -> 0
A43: Código DANE Entidad 39 | B43: =Calificación!B58 -> 0 | C43: =IFERROR(VLOOKUP(Cálculos!B43,IICA!$A$9:$G$1131,7,FALSE),"-") -> - | D43: =IFERROR(VLOOKUP(B43,CultIllic!$A$1:$K$1144,11,FALSE),"-") -> - | E43: =IFERROR(VLOOKUP(B43,MDM!$A$1:$S$1102,14,FALSE),"-") -> - | F43: =IFERROR(VLOOKUP(B43,Ruralidad!$A$1:$E$1123,5,FALSE),"-") -> - | G43: =IFERROR(VLOOKUP(B43,'NBI Rural'!$B$1:$E$1103,4,FALSE),"-") -> - | H43: =IFERROR(VLOOKUP(B43,ICV!$A$1:$G$1123,7,FALSE),"-") -> - | I43: =IFERROR(VLOOKUP(B43,Frontera!$A$1:$G$103,7,FALSE),"-") -> - | J43: =IFERROR(VLOOKUP(B43,ZNI!$A$4:$X$128,24,FALSE),"-") -> - | K43: =IFERROR(VLOOKUP(B43,Listas!$A$1:$J$1144,10,FALSE),0) -> 0 | L43: =IFERROR(INDEX(Brechas!$B$2:$AD$1145,MATCH(Cálculos!B43,Brechas!$A$2:$A$1145,0),MATCH(Calificación!$B$13,Brechas!$B$1:$AD$1,0)),"-") -> - | M43: =IFERROR(VLOOKUP(B43,Listas!$A$1:$I$1144,6,FALSE),"-") -> - | N43: =IFERROR(VLOOKUP(B43,Listas!$A$1:$I$1144,7,FALSE),"-") -> - | O43: =IFERROR(VLOOKUP(B43,Listas!$A$1:$I$1144,8,FALSE),"-") -> - | P43: =IFERROR(VLOOKUP(B43,'E&E 15_12_20'!$A$4:$Q$442,17,FALSE),"-") -> - | Q43: =IFERROR(VLOOKUP(B43,Puerto!$A$4:$C$22,3,FALSE),"-") -> - | R43: =IFERROR(VLOOKUP(B43,ZOMAC!$A$3:$K$346,11,FALSE),"-") -> - | T43: =IF(K43=0,0,IF(SUMPRODUCT(($K42:K43=K43)*1)>1,0,1)) -> 0
A44: Código DANE Entidad 40 | B44: =Calificación!B59 -> 0 | C44: =IFERROR(VLOOKUP(Cálculos!B44,IICA!$A$9:$G$1131,7,FALSE),"-") -> - | D44: =IFERROR(VLOOKUP(B44,CultIllic!$A$1:$K$1144,11,FALSE),"-") -> - | E44: =IFERROR(VLOOKUP(B44,MDM!$A$1:$S$1102,14,FALSE),"-") -> - | F44: =IFERROR(VLOOKUP(B44,Ruralidad!$A$1:$E$1123,5,FALSE),"-") -> - | G44: =IFERROR(VLOOKUP(B44,'NBI Rural'!$B$1:$E$1103,4,FALSE),"-") -> - | H44: =IFERROR(VLOOKUP(B44,ICV!$A$1:$G$1123,7,FALSE),"-") -> - | I44: =IFERROR(VLOOKUP(B44,Frontera!$A$1:$G$103,7,FALSE),"-") -> - | J44: =IFERROR(VLOOKUP(B44,ZNI!$A$4:$X$128,24,FALSE),"-") -> - | K44: =IFERROR(VLOOKUP(B44,Listas!$A$1:$J$1144,10,FALSE),0) -> 0 | L44: =IFERROR(INDEX(Brechas!$B$2:$AD$1145,MATCH(Cálculos!B44,Brechas!$A$2:$A$1145,0),MATCH(Calificación!$B$13,Brechas!$B$1:$AD$1,0)),"-") -> - | M44: =IFERROR(VLOOKUP(B44,Listas!$A$1:$I$1144,6,FALSE),"-") -> - | N44: =IFERROR(VLOOKUP(B44,Listas!$A$1:$I$1144,7,FALSE),"-") -> - | O44: =IFERROR(VLOOKUP(B44,Listas!$A$1:$I$1144,8,FALSE),"-") -> - | P44: =IFERROR(VLOOKUP(B44,'E&E 15_12_20'!$A$4:$Q$442,17,FALSE),"-") -> - | Q44: =IFERROR(VLOOKUP(B44,Puerto!$A$4:$C$22,3,FALSE),"-") -> - | R44: =IFERROR(VLOOKUP(B44,ZOMAC!$A$3:$K$346,11,FALSE),"-") -> - | T44: =IF(K44=0,0,IF(SUMPRODUCT(($K43:K44=K44)*1)>1,0,1)) -> 0
A45: Código DANE Entidad 41 | B45: =Calificación!B60 -> 0 | C45: =IFERROR(VLOOKUP(Cálculos!B45,IICA!$A$9:$G$1131,7,FALSE),"-") -> - | D45: =IFERROR(VLOOKUP(B45,CultIllic!$A$1:$K$1144,11,FALSE),"-") -> - | E45: =IFERROR(VLOOKUP(B45,MDM!$A$1:$S$1102,14,FALSE),"-") -> - | F45: =IFERROR(VLOOKUP(B45,Ruralidad!$A$1:$E$1123,5,FALSE),"-") -> - | G45: =IFERROR(VLOOKUP(B45,'NBI Rural'!$B$1:$E$1103,4,FALSE),"-") -> - | H45: =IFERROR(VLOOKUP(B45,ICV!$A$1:$G$1123,7,FALSE),"-") -> - | I45: =IFERROR(VLOOKUP(B45,Frontera!$A$1:$G$103,7,FALSE),"-") -> - | J45: =IFERROR(VLOOKUP(B45,ZNI!$A$4:$X$128,24,FALSE),"-") -> - | K45: =IFERROR(VLOOKUP(B45,Listas!$A$1:$J$1144,10,FALSE),0) -> 0 | L45: =IFERROR(INDEX(Brechas!$B$2:$AD$1145,MATCH(Cálculos!B45,Brechas!$A$2:$A$1145,0),MATCH(Calificación!$B$13,Brechas!$B$1:$AD$1,0)),"-") -> - | M45: =IFERROR(VLOOKUP(B45,Listas!$A$1:$I$1144,6,FALSE),"-") -> - | N45: =IFERROR(VLOOKUP(B45,Listas!$A$1:$I$1144,7,FALSE),"-") -> - | O45: =IFERROR(VLOOKUP(B45,Listas!$A$1:$I$1144,8,FALSE),"-") -> - | P45: =IFERROR(VLOOKUP(B45,'E&E 15_12_20'!$A$4:$Q$442,17,FALSE),"-") -> - | Q45: =IFERROR(VLOOKUP(B45,Puerto!$A$4:$C$22,3,FALSE),"-") -> - | R45: =IFERROR(VLOOKUP(B45,ZOMAC!$A$3:$K$346,11,FALSE),"-") -> - | T45: =IF(K45=0,0,IF(SUMPRODUCT(($K44:K45=K45)*1)>1,0,1)) -> 0
A46: Código DANE Entidad 42 | B46: =Calificación!B61 -> 0 | C46: =IFERROR(VLOOKUP(Cálculos!B46,IICA!$A$9:$G$1131,7,FALSE),"-") -> - | D46: =IFERROR(VLOOKUP(B46,CultIllic!$A$1:$K$1144,11,FALSE),"-") -> - | E46: =IFERROR(VLOOKUP(B46,MDM!$A$1:$S$1102,14,FALSE),"-") -> - | F46: =IFERROR(VLOOKUP(B46,Ruralidad!$A$1:$E$1123,5,FALSE),"-") -> - | G46: =IFERROR(VLOOKUP(B46,'NBI Rural'!$B$1:$E$1103,4,FALSE),"-") -> - | H46: =IFERROR(VLOOKUP(B46,ICV!$A$1:$G$1123,7,FALSE),"-") -> - | I46: =IFERROR(VLOOKUP(B46,Frontera!$A$1:$G$103,7,FALSE),"-") -> - | J46: =IFERROR(VLOOKUP(B46,ZNI!$A$4:$X$128,24,FALSE),"-") -> - | K46: =IFERROR(VLOOKUP(B46,Listas!$A$1:$J$1144,10,FALSE),0) -> 0 | L46: =IFERROR(INDEX(Brechas!$B$2:$AD$1145,MATCH(Cálculos!B46,Brechas!$A$2:$A$1145,0),MATCH(Calificación!$B$13,Brechas!$B$1:$AD$1,0)),"-") -> - | M46: =IFERROR(VLOOKUP(B46,Listas!$A$1:$I$1144,6,FALSE),"-") -> - | N46: =IFERROR(VLOOKUP(B46,Listas!$A$1:$I$1144,7,FALSE),"-") -> - | O46: =IFERROR(VLOOKUP(B46,Listas!$A$1:$I$1144,8,FALSE),"-") -> - | P46: =IFERROR(VLOOKUP(B46,'E&E 15_12_20'!$A$4:$Q$442,17,FALSE),"-") -> - | Q46: =IFERROR(VLOOKUP(B46,Puerto!$A$4:$C$22,3,FALSE),"-") -> - | R46: =IFERROR(VLOOKUP(B46,ZOMAC!$A$3:$K$346,11,FALSE),"-") -> - | T46: =IF(K46=0,0,IF(SUMPRODUCT(($K45:K46=K46)*1)>1,0,1)) -> 0
A47: Código DANE Entidad 43 | B47: =Calificación!B62 -> 0 | C47: =IFERROR(VLOOKUP(Cálculos!B47,IICA!$A$9:$G$1131,7,FALSE),"-") -> - | D47: =IFERROR(VLOOKUP(B47,CultIllic!$A$1:$K$1144,11,FALSE),"-") -> - | E47: =IFERROR(VLOOKUP(B47,MDM!$A$1:$S$1102,14,FALSE),"-") -> - | F47: =IFERROR(VLOOKUP(B47,Ruralidad!$A$1:$E$1123,5,FALSE),"-") -> - | G47: =IFERROR(VLOOKUP(B47,'NBI Rural'!$B$1:$E$1103,4,FALSE),"-") -> - | H47: =IFERROR(VLOOKUP(B47,ICV!$A$1:$G$1123,7,FALSE),"-") -> - | I47: =IFERROR(VLOOKUP(B47,Frontera!$A$1:$G$103,7,FALSE),"-") -> - | J47: =IFERROR(VLOOKUP(B47,ZNI!$A$4:$X$128,24,FALSE),"-") -> - | K47: =IFERROR(VLOOKUP(B47,Listas!$A$1:$J$1144,10,FALSE),0) -> 0 | L47: =IFERROR(INDEX(Brechas!$B$2:$AD$1145,MATCH(Cálculos!B47,Brechas!$A$2:$A$1145,0),MATCH(Calificación!$B$13,Brechas!$B$1:$AD$1,0)),"-") -> - | M47: =IFERROR(VLOOKUP(B47,Listas!$A$1:$I$1144,6,FALSE),"-") -> - | N47: =IFERROR(VLOOKUP(B47,Listas!$A$1:$I$1144,7,FALSE),"-") -> - | O47: =IFERROR(VLOOKUP(B47,Listas!$A$1:$I$1144,8,FALSE),"-") -> - | P47: =IFERROR(VLOOKUP(B47,'E&E 15_12_20'!$A$4:$Q$442,17,FALSE),"-") -> - | Q47: =IFERROR(VLOOKUP(B47,Puerto!$A$4:$C$22,3,FALSE),"-") -> - | R47: =IFERROR(VLOOKUP(B47,ZOMAC!$A$3:$K$346,11,FALSE),"-") -> - | T47: =IF(K47=0,0,IF(SUMPRODUCT(($K46:K47=K47)*1)>1,0,1)) -> 0
A48: Código DANE Entidad 44 | B48: =Calificación!B63 -> 0 | C48: =IFERROR(VLOOKUP(Cálculos!B48,IICA!$A$9:$G$1131,7,FALSE),"-") -> - | D48: =IFERROR(VLOOKUP(B48,CultIllic!$A$1:$K$1144,11,FALSE),"-") -> - | E48: =IFERROR(VLOOKUP(B48,MDM!$A$1:$S$1102,14,FALSE),"-") -> - | F48: =IFERROR(VLOOKUP(B48,Ruralidad!$A$1:$E$1123,5,FALSE),"-") -> - | G48: =IFERROR(VLOOKUP(B48,'NBI Rural'!$B$1:$E$1103,4,FALSE),"-") -> - | H48: =IFERROR(VLOOKUP(B48,ICV!$A$1:$G$1123,7,FALSE),"-") -> - | I48: =IFERROR(VLOOKUP(B48,Frontera!$A$1:$G$103,7,FALSE),"-") -> - | J48: =IFERROR(VLOOKUP(B48,ZNI!$A$4:$X$128,24,FALSE),"-") -> - | K48: =IFERROR(VLOOKUP(B48,Listas!$A$1:$J$1144,10,FALSE),0) -> 0 | L48: =IFERROR(INDEX(Brechas!$B$2:$AD$1145,MATCH(Cálculos!B48,Brechas!$A$2:$A$1145,0),MATCH(Calificación!$B$13,Brechas!$B$1:$AD$1,0)),"-") -> - | M48: =IFERROR(VLOOKUP(B48,Listas!$A$1:$I$1144,6,FALSE),"-") -> - | N48: =IFERROR(VLOOKUP(B48,Listas!$A$1:$I$1144,7,FALSE),"-") -> - | O48: =IFERROR(VLOOKUP(B48,Listas!$A$1:$I$1144,8,FALSE),"-") -> - | P48: =IFERROR(VLOOKUP(B48,'E&E 15_12_20'!$A$4:$Q$442,17,FALSE),"-") -> - | Q48: =IFERROR(VLOOKUP(B48,Puerto!$A$4:$C$22,3,FALSE),"-") -> - | R48: =IFERROR(VLOOKUP(B48,ZOMAC!$A$3:$K$346,11,FALSE),"-") -> - | T48: =IF(K48=0,0,IF(SUMPRODUCT(($K47:K48=K48)*1)>1,0,1)) -> 0
A49: Código DANE Entidad 45 | B49: =Calificación!B64 -> 0 | C49: =IFERROR(VLOOKUP(Cálculos!B49,IICA!$A$9:$G$1131,7,FALSE),"-") -> - | D49: =IFERROR(VLOOKUP(B49,CultIllic!$A$1:$K$1144,11,FALSE),"-") -> - | E49: =IFERROR(VLOOKUP(B49,MDM!$A$1:$S$1102,14,FALSE),"-") -> - | F49: =IFERROR(VLOOKUP(B49,Ruralidad!$A$1:$E$1123,5,FALSE),"-") -> - | G49: =IFERROR(VLOOKUP(B49,'NBI Rural'!$B$1:$E$1103,4,FALSE),"-") -> - | H49: =IFERROR(VLOOKUP(B49,ICV!$A$1:$G$1123,7,FALSE),"-") -> - | I49: =IFERROR(VLOOKUP(B49,Frontera!$A$1:$G$103,7,FALSE),"-") -> - | J49: =IFERROR(VLOOKUP(B49,ZNI!$A$4:$X$128,24,FALSE),"-") -> - | K49: =IFERROR(VLOOKUP(B49,Listas!$A$1:$J$1144,10,FALSE),0) -> 0 | L49: =IFERROR(INDEX(Brechas!$B$2:$AD$1145,MATCH(Cálculos!B49,Brechas!$A$2:$A$1145,0),MATCH(Calificación!$B$13,Brechas!$B$1:$AD$1,0)),"-") -> - | M49: =IFERROR(VLOOKUP(B49,Listas!$A$1:$I$1144,6,FALSE),"-") -> - | N49: =IFERROR(VLOOKUP(B49,Listas!$A$1:$I$1144,7,FALSE),"-") -> - | O49: =IFERROR(VLOOKUP(B49,Listas!$A$1:$I$1144,8,FALSE),"-") -> - | P49: =IFERROR(VLOOKUP(B49,'E&E 15_12_20'!$A$4:$Q$442,17,FALSE),"-") -> - | Q49: =IFERROR(VLOOKUP(B49,Puerto!$A$4:$C$22,3,FALSE),"-") -> - | R49: =IFERROR(VLOOKUP(B49,ZOMAC!$A$3:$K$346,11,FALSE),"-") -> - | T49: =IF(K49=0,0,IF(SUMPRODUCT(($K48:K49=K49)*1)>1,0,1)) -> 0
A50: Código DANE Entidad 46 | B50: =Calificación!B65 -> 0 | C50: =IFERROR(VLOOKUP(Cálculos!B50,IICA!$A$9:$G$1131,7,FALSE),"-") -> - | D50: =IFERROR(VLOOKUP(B50,CultIllic!$A$1:$K$1144,11,FALSE),"-") -> - | E50: =IFERROR(VLOOKUP(B50,MDM!$A$1:$S$1102,14,FALSE),"-") -> - | F50: =IFERROR(VLOOKUP(B50,Ruralidad!$A$1:$E$1123,5,FALSE),"-") -> - | G50: =IFERROR(VLOOKUP(B50,'NBI Rural'!$B$1:$E$1103,4,FALSE),"-") -> - | H50: =IFERROR(VLOOKUP(B50,ICV!$A$1:$G$1123,7,FALSE),"-") -> - | I50: =IFERROR(VLOOKUP(B50,Frontera!$A$1:$G$103,7,FALSE),"-") -> - | J50: =IFERROR(VLOOKUP(B50,ZNI!$A$4:$X$128,24,FALSE),"-") -> - | K50: =IFERROR(VLOOKUP(B50,Listas!$A$1:$J$1144,10,FALSE),0) -> 0 | L50: =IFERROR(INDEX(Brechas!$B$2:$AD$1145,MATCH(Cálculos!B50,Brechas!$A$2:$A$1145,0),MATCH(Calificación!$B$13,Brechas!$B$1:$AD$1,0)),"-") -> - | M50: =IFERROR(VLOOKUP(B50,Listas!$A$1:$I$1144,6,FALSE),"-") -> - | N50: =IFERROR(VLOOKUP(B50,Listas!$A$1:$I$1144,7,FALSE),"-") -> - | O50: =IFERROR(VLOOKUP(B50,Listas!$A$1:$I$1144,8,FALSE),"-") -> - | P50: =IFERROR(VLOOKUP(B50,'E&E 15_12_20'!$A$4:$Q$442,17,FALSE),"-") -> - | Q50: =IFERROR(VLOOKUP(B50,Puerto!$A$4:$C$22,3,FALSE),"-") -> - | R50: =IFERROR(VLOOKUP(B50,ZOMAC!$A$3:$K$346,11,FALSE),"-") -> - | T50: =IF(K50=0,0,IF(SUMPRODUCT(($K49:K50=K50)*1)>1,0,1)) -> 0
A51: Código DANE Entidad 47 | B51: =Calificación!B66 -> 0 | C51: =IFERROR(VLOOKUP(Cálculos!B51,IICA!$A$9:$G$1131,7,FALSE),"-") -> - | D51: =IFERROR(VLOOKUP(B51,CultIllic!$A$1:$K$1144,11,FALSE),"-") -> - | E51: =IFERROR(VLOOKUP(B51,MDM!$A$1:$S$1102,14,FALSE),"-") -> - | F51: =IFERROR(VLOOKUP(B51,Ruralidad!$A$1:$E$1123,5,FALSE),"-") -> - | G51: =IFERROR(VLOOKUP(B51,'NBI Rural'!$B$1:$E$1103,4,FALSE),"-") -> - | H51: =IFERROR(VLOOKUP(B51,ICV!$A$1:$G$1123,7,FALSE),"-") -> - | I51: =IFERROR(VLOOKUP(B51,Frontera!$A$1:$G$103,7,FALSE),"-") -> - | J51: =IFERROR(VLOOKUP(B51,ZNI!$A$4:$X$128,24,FALSE),"-") -> - | K51: =IFERROR(VLOOKUP(B51,Listas!$A$1:$J$1144,10,FALSE),0) -> 0 | L51: =IFERROR(INDEX(Brechas!$B$2:$AD$1145,MATCH(Cálculos!B51,Brechas!$A$2:$A$1145,0),MATCH(Calificación!$B$13,Brechas!$B$1:$AD$1,0)),"-") -> - | M51: =IFERROR(VLOOKUP(B51,Listas!$A$1:$I$1144,6,FALSE),"-") -> - | N51: =IFERROR(VLOOKUP(B51,Listas!$A$1:$I$1144,7,FALSE),"-") -> - | O51: =IFERROR(VLOOKUP(B51,Listas!$A$1:$I$1144,8,FALSE),"-") -> - | P51: =IFERROR(VLOOKUP(B51,'E&E 15_12_20'!$A$4:$Q$442,17,FALSE),"-") -> - | Q51: =IFERROR(VLOOKUP(B51,Puerto!$A$4:$C$22,3,FALSE),"-") -> - | R51: =IFERROR(VLOOKUP(B51,ZOMAC!$A$3:$K$346,11,FALSE),"-") -> - | T51: =IF(K51=0,0,IF(SUMPRODUCT(($K50:K51=K51)*1)>1,0,1)) -> 0
A52: Código DANE Entidad 48 | B52: =Calificación!B67 -> 0 | C52: =IFERROR(VLOOKUP(Cálculos!B52,IICA!$A$9:$G$1131,7,FALSE),"-") -> - | D52: =IFERROR(VLOOKUP(B52,CultIllic!$A$1:$K$1144,11,FALSE),"-") -> - | E52: =IFERROR(VLOOKUP(B52,MDM!$A$1:$S$1102,14,FALSE),"-") -> - | F52: =IFERROR(VLOOKUP(B52,Ruralidad!$A$1:$E$1123,5,FALSE),"-") -> - | G52: =IFERROR(VLOOKUP(B52,'NBI Rural'!$B$1:$E$1103,4,FALSE),"-") -> - | H52: =IFERROR(VLOOKUP(B52,ICV!$A$1:$G$1123,7,FALSE),"-") -> - | I52: =IFERROR(VLOOKUP(B52,Frontera!$A$1:$G$103,7,FALSE),"-") -> - | J52: =IFERROR(VLOOKUP(B52,ZNI!$A$4:$X$128,24,FALSE),"-") -> - | K52: =IFERROR(VLOOKUP(B52,Listas!$A$1:$J$1144,10,FALSE),0) -> 0 | L52: =IFERROR(INDEX(Brechas!$B$2:$AD$1145,MATCH(Cálculos!B52,Brechas!$A$2:$A$1145,0),MATCH(Calificación!$B$13,Brechas!$B$1:$AD$1,0)),"-") -> - | M52: =IFERROR(VLOOKUP(B52,Listas!$A$1:$I$1144,6,FALSE),"-") -> - | N52: =IFERROR(VLOOKUP(B52,Listas!$A$1:$I$1144,7,FALSE),"-") -> - | O52: =IFERROR(VLOOKUP(B52,Listas!$A$1:$I$1144,8,FALSE),"-") -> - | P52: =IFERROR(VLOOKUP(B52,'E&E 15_12_20'!$A$4:$Q$442,17,FALSE),"-") -> - | Q52: =IFERROR(VLOOKUP(B52,Puerto!$A$4:$C$22,3,FALSE),"-") -> - | R52: =IFERROR(VLOOKUP(B52,ZOMAC!$A$3:$K$346,11,FALSE),"-") -> - | T52: =IF(K52=0,0,IF(SUMPRODUCT(($K51:K52=K52)*1)>1,0,1)) -> 0
A53: Código DANE Entidad 49 | B53: =Calificación!B68 -> 0 | C53: =IFERROR(VLOOKUP(Cálculos!B53,IICA!$A$9:$G$1131,7,FALSE),"-") -> - | D53: =IFERROR(VLOOKUP(B53,CultIllic!$A$1:$K$1144,11,FALSE),"-") -> - | E53: =IFERROR(VLOOKUP(B53,MDM!$A$1:$S$1102,14,FALSE),"-") -> - | F53: =IFERROR(VLOOKUP(B53,Ruralidad!$A$1:$E$1123,5,FALSE),"-") -> - | G53: =IFERROR(VLOOKUP(B53,'NBI Rural'!$B$1:$E$1103,4,FALSE),"-") -> - | H53: =IFERROR(VLOOKUP(B53,ICV!$A$1:$G$1123,7,FALSE),"-") -> - | I53: =IFERROR(VLOOKUP(B53,Frontera!$A$1:$G$103,7,FALSE),"-") -> - | J53: =IFERROR(VLOOKUP(B53,ZNI!$A$4:$X$128,24,FALSE),"-") -> - | K53: =IFERROR(VLOOKUP(B53,Listas!$A$1:$J$1144,10,FALSE),0) -> 0 | L53: =IFERROR(INDEX(Brechas!$B$2:$AD$1145,MATCH(Cálculos!B53,Brechas!$A$2:$A$1145,0),MATCH(Calificación!$B$13,Brechas!$B$1:$AD$1,0)),"-") -> - | M53: =IFERROR(VLOOKUP(B53,Listas!$A$1:$I$1144,6,FALSE),"-") -> - | N53: =IFERROR(VLOOKUP(B53,Listas!$A$1:$I$1144,7,FALSE),"-") -> - | O53: =IFERROR(VLOOKUP(B53,Listas!$A$1:$I$1144,8,FALSE),"-") -> - | P53: =IFERROR(VLOOKUP(B53,'E&E 15_12_20'!$A$4:$Q$442,17,FALSE),"-") -> - | Q53: =IFERROR(VLOOKUP(B53,Puerto!$A$4:$C$22,3,FALSE),"-") -> - | R53: =IFERROR(VLOOKUP(B53,ZOMAC!$A$3:$K$346,11,FALSE),"-") -> - | T53: =IF(K53=0,0,IF(SUMPRODUCT(($K52:K53=K53)*1)>1,0,1)) -> 0
A54: Código DANE Entidad 50 | B54: =Calificación!B69 -> 0 | C54: =IFERROR(VLOOKUP(Cálculos!B54,IICA!$A$9:$G$1131,7,FALSE),"-") -> - | D54: =IFERROR(VLOOKUP(B54,CultIllic!$A$1:$K$1144,11,FALSE),"-") -> - | E54: =IFERROR(VLOOKUP(B54,MDM!$A$1:$S$1102,14,FALSE),"-") -> - | F54: =IFERROR(VLOOKUP(B54,Ruralidad!$A$1:$E$1123,5,FALSE),"-") -> - | G54: =IFERROR(VLOOKUP(B54,'NBI Rural'!$B$1:$E$1103,4,FALSE),"-") -> - | H54: =IFERROR(VLOOKUP(B54,ICV!$A$1:$G$1123,7,FALSE),"-") -> - | I54: =IFERROR(VLOOKUP(B54,Frontera!$A$1:$G$103,7,FALSE),"-") -> - | J54: =IFERROR(VLOOKUP(B54,ZNI!$A$4:$X$128,24,FALSE),"-") -> - | K54: =IFERROR(VLOOKUP(B54,Listas!$A$1:$J$1144,10,FALSE),0) -> 0 | L54: =IFERROR(INDEX(Brechas!$B$2:$AD$1145,MATCH(Cálculos!B54,Brechas!$A$2:$A$1145,0),MATCH(Calificación!$B$13,Brechas!$B$1:$AD$1,0)),"-") -> - | M54: =IFERROR(VLOOKUP(B54,Listas!$A$1:$I$1144,6,FALSE),"-") -> - | N54: =IFERROR(VLOOKUP(B54,Listas!$A$1:$I$1144,7,FALSE),"-") -> - | O54: =IFERROR(VLOOKUP(B54,Listas!$A$1:$I$1144,8,FALSE),"-") -> - | P54: =IFERROR(VLOOKUP(B54,'E&E 15_12_20'!$A$4:$Q$442,17,FALSE),"-") -> - | Q54: =IFERROR(VLOOKUP(B54,Puerto!$A$4:$C$22,3,FALSE),"-") -> - | R54: =IFERROR(VLOOKUP(B54,ZOMAC!$A$3:$K$346,11,FALSE),"-") -> - | T54: =IF(K54=0,0,IF(SUMPRODUCT(($K53:K54=K54)*1)>1,0,1)) -> 0
A55: Código DANE Entidad 51 | B55: =Calificación!B70 -> 0 | C55: =IFERROR(VLOOKUP(Cálculos!B55,IICA!$A$9:$G$1131,7,FALSE),"-") -> - | D55: =IFERROR(VLOOKUP(B55,CultIllic!$A$1:$K$1144,11,FALSE),"-") -> - | E55: =IFERROR(VLOOKUP(B55,MDM!$A$1:$S$1102,14,FALSE),"-") -> - | F55: =IFERROR(VLOOKUP(B55,Ruralidad!$A$1:$E$1123,5,FALSE),"-") -> - | G55: =IFERROR(VLOOKUP(B55,'NBI Rural'!$B$1:$E$1103,4,FALSE),"-") -> - | H55: =IFERROR(VLOOKUP(B55,ICV!$A$1:$G$1123,7,FALSE),"-") -> - | I55: =IFERROR(VLOOKUP(B55,Frontera!$A$1:$G$103,7,FALSE),"-") -> - | J55: =IFERROR(VLOOKUP(B55,ZNI!$A$4:$X$128,24,FALSE),"-") -> - | K55: =IFERROR(VLOOKUP(B55,Listas!$A$1:$J$1144,10,FALSE),0) -> 0 | L55: =IFERROR(INDEX(Brechas!$B$2:$AD$1145,MATCH(Cálculos!B55,Brechas!$A$2:$A$1145,0),MATCH(Calificación!$B$13,Brechas!$B$1:$AD$1,0)),"-") -> - | M55: =IFERROR(VLOOKUP(B55,Listas!$A$1:$I$1144,6,FALSE),"-") -> - | N55: =IFERROR(VLOOKUP(B55,Listas!$A$1:$I$1144,7,FALSE),"-") -> - | O55: =IFERROR(VLOOKUP(B55,Listas!$A$1:$I$1144,8,FALSE),"-") -> - | P55: =IFERROR(VLOOKUP(B55,'E&E 15_12_20'!$A$4:$Q$442,17,FALSE),"-") -> - | Q55: =IFERROR(VLOOKUP(B55,Puerto!$A$4:$C$22,3,FALSE),"-") -> - | R55: =IFERROR(VLOOKUP(B55,ZOMAC!$A$3:$K$346,11,FALSE),"-") -> - | T55: =IF(K55=0,0,IF(SUMPRODUCT(($K54:K55=K55)*1)>1,0,1)) -> 0
A56: Código DANE Entidad 52 | B56: =Calificación!B71 -> 0 | C56: =IFERROR(VLOOKUP(Cálculos!B56,IICA!$A$9:$G$1131,7,FALSE),"-") -> - | D56: =IFERROR(VLOOKUP(B56,CultIllic!$A$1:$K$1144,11,FALSE),"-") -> - | E56: =IFERROR(VLOOKUP(B56,MDM!$A$1:$S$1102,14,FALSE),"-") -> - | F56: =IFERROR(VLOOKUP(B56,Ruralidad!$A$1:$E$1123,5,FALSE),"-") -> - | G56: =IFERROR(VLOOKUP(B56,'NBI Rural'!$B$1:$E$1103,4,FALSE),"-") -> - | H56: =IFERROR(VLOOKUP(B56,ICV!$A$1:$G$1123,7,FALSE),"-") -> - | I56: =IFERROR(VLOOKUP(B56,Frontera!$A$1:$G$103,7,FALSE),"-") -> - | J56: =IFERROR(VLOOKUP(B56,ZNI!$A$4:$X$128,24,FALSE),"-") -> - | K56: =IFERROR(VLOOKUP(B56,Listas!$A$1:$J$1144,10,FALSE),0) -> 0 | L56: =IFERROR(INDEX(Brechas!$B$2:$AD$1145,MATCH(Cálculos!B56,Brechas!$A$2:$A$1145,0),MATCH(Calificación!$B$13,Brechas!$B$1:$AD$1,0)),"-") -> - | M56: =IFERROR(VLOOKUP(B56,Listas!$A$1:$I$1144,6,FALSE),"-") -> - | N56: =IFERROR(VLOOKUP(B56,Listas!$A$1:$I$1144,7,FALSE),"-") -> - | O56: =IFERROR(VLOOKUP(B56,Listas!$A$1:$I$1144,8,FALSE),"-") -> - | P56: =IFERROR(VLOOKUP(B56,'E&E 15_12_20'!$A$4:$Q$442,17,FALSE),"-") -> - | Q56: =IFERROR(VLOOKUP(B56,Puerto!$A$4:$C$22,3,FALSE),"-") -> - | R56: =IFERROR(VLOOKUP(B56,ZOMAC!$A$3:$K$346,11,FALSE),"-") -> - | T56: =IF(K56=0,0,IF(SUMPRODUCT(($K55:K56=K56)*1)>1,0,1)) -> 0
A57: Código DANE Entidad 53 | B57: =Calificación!B72 -> 0 | C57: =IFERROR(VLOOKUP(Cálculos!B57,IICA!$A$9:$G$1131,7,FALSE),"-") -> - | D57: =IFERROR(VLOOKUP(B57,CultIllic!$A$1:$K$1144,11,FALSE),"-") -> - | E57: =IFERROR(VLOOKUP(B57,MDM!$A$1:$S$1102,14,FALSE),"-") -> - | F57: =IFERROR(VLOOKUP(B57,Ruralidad!$A$1:$E$1123,5,FALSE),"-") -> - | G57: =IFERROR(VLOOKUP(B57,'NBI Rural'!$B$1:$E$1103,4,FALSE),"-") -> - | H57: =IFERROR(VLOOKUP(B57,ICV!$A$1:$G$1123,7,FALSE),"-") -> - | I57: =IFERROR(VLOOKUP(B57,Frontera!$A$1:$G$103,7,FALSE),"-") -> - | J57: =IFERROR(VLOOKUP(B57,ZNI!$A$4:$X$128,24,FALSE),"-") -> - | K57: =IFERROR(VLOOKUP(B57,Listas!$A$1:$J$1144,10,FALSE),0) -> 0 | L57: =IFERROR(INDEX(Brechas!$B$2:$AD$1145,MATCH(Cálculos!B57,Brechas!$A$2:$A$1145,0),MATCH(Calificación!$B$13,Brechas!$B$1:$AD$1,0)),"-") -> - | M57: =IFERROR(VLOOKUP(B57,Listas!$A$1:$I$1144,6,FALSE),"-") -> - | N57: =IFERROR(VLOOKUP(B57,Listas!$A$1:$I$1144,7,FALSE),"-") -> - | O57: =IFERROR(VLOOKUP(B57,Listas!$A$1:$I$1144,8,FALSE),"-") -> - | P57: =IFERROR(VLOOKUP(B57,'E&E 15_12_20'!$A$4:$Q$442,17,FALSE),"-") -> - | Q57: =IFERROR(VLOOKUP(B57,Puerto!$A$4:$C$22,3,FALSE),"-") -> - | R57: =IFERROR(VLOOKUP(B57,ZOMAC!$A$3:$K$346,11,FALSE),"-") -> - | T57: =IF(K57=0,0,IF(SUMPRODUCT(($K56:K57=K57)*1)>1,0,1)) -> 0
A58: Código DANE Entidad 54 | B58: =Calificación!B73 -> 0 | C58: =IFERROR(VLOOKUP(Cálculos!B58,IICA!$A$9:$G$1131,7,FALSE),"-") -> - | D58: =IFERROR(VLOOKUP(B58,CultIllic!$A$1:$K$1144,11,FALSE),"-") -> - | E58: =IFERROR(VLOOKUP(B58,MDM!$A$1:$S$1102,14,FALSE),"-") -> - | F58: =IFERROR(VLOOKUP(B58,Ruralidad!$A$1:$E$1123,5,FALSE),"-") -> - | G58: =IFERROR(VLOOKUP(B58,'NBI Rural'!$B$1:$E$1103,4,FALSE),"-") -> - | H58: =IFERROR(VLOOKUP(B58,ICV!$A$1:$G$1123,7,FALSE),"-") -> - | I58: =IFERROR(VLOOKUP(B58,Frontera!$A$1:$G$103,7,FALSE),"-") -> - | J58: =IFERROR(VLOOKUP(B58,ZNI!$A$4:$X$128,24,FALSE),"-") -> - | K58: =IFERROR(VLOOKUP(B58,Listas!$A$1:$J$1144,10,FALSE),0) -> 0 | L58: =IFERROR(INDEX(Brechas!$B$2:$AD$1145,MATCH(Cálculos!B58,Brechas!$A$2:$A$1145,0),MATCH(Calificación!$B$13,Brechas!$B$1:$AD$1,0)),"-") -> - | M58: =IFERROR(VLOOKUP(B58,Listas!$A$1:$I$1144,6,FALSE),"-") -> - | N58: =IFERROR(VLOOKUP(B58,Listas!$A$1:$I$1144,7,FALSE),"-") -> - | O58: =IFERROR(VLOOKUP(B58,Listas!$A$1:$I$1144,8,FALSE),"-") -> - | P58: =IFERROR(VLOOKUP(B58,'E&E 15_12_20'!$A$4:$Q$442,17,FALSE),"-") -> - | Q58: =IFERROR(VLOOKUP(B58,Puerto!$A$4:$C$22,3,FALSE),"-") -> - | R58: =IFERROR(VLOOKUP(B58,ZOMAC!$A$3:$K$346,11,FALSE),"-") -> - | T58: =IF(K58=0,0,IF(SUMPRODUCT(($K57:K58=K58)*1)>1,0,1)) -> 0
A59: Código DANE Entidad 55 | B59: =Calificación!B74 -> 0 | C59: =IFERROR(VLOOKUP(Cálculos!B59,IICA!$A$9:$G$1131,7,FALSE),"-") -> - | D59: =IFERROR(VLOOKUP(B59,CultIllic!$A$1:$K$1144,11,FALSE),"-") -> - | E59: =IFERROR(VLOOKUP(B59,MDM!$A$1:$S$1102,14,FALSE),"-") -> - | F59: =IFERROR(VLOOKUP(B59,Ruralidad!$A$1:$E$1123,5,FALSE),"-") -> - | G59: =IFERROR(VLOOKUP(B59,'NBI Rural'!$B$1:$E$1103,4,FALSE),"-") -> - | H59: =IFERROR(VLOOKUP(B59,ICV!$A$1:$G$1123,7,FALSE),"-") -> - | I59: =IFERROR(VLOOKUP(B59,Frontera!$A$1:$G$103,7,FALSE),"-") -> - | J59: =IFERROR(VLOOKUP(B59,ZNI!$A$4:$X$128,24,FALSE),"-") -> - | K59: =IFERROR(VLOOKUP(B59,Listas!$A$1:$J$1144,10,FALSE),0) -> 0 | L59: =IFERROR(INDEX(Brechas!$B$2:$AD$1145,MATCH(Cálculos!B59,Brechas!$A$2:$A$1145,0),MATCH(Calificación!$B$13,Brechas!$B$1:$AD$1,0)),"-") -> - | M59: =IFERROR(VLOOKUP(B59,Listas!$A$1:$I$1144,6,FALSE),"-") -> - | N59: =IFERROR(VLOOKUP(B59,Listas!$A$1:$I$1144,7,FALSE),"-") -> - | O59: =IFERROR(VLOOKUP(B59,Listas!$A$1:$I$1144,8,FALSE),"-") -> - | P59: =IFERROR(VLOOKUP(B59,'E&E 15_12_20'!$A$4:$Q$442,17,FALSE),"-") -> - | Q59: =IFERROR(VLOOKUP(B59,Puerto!$A$4:$C$22,3,FALSE),"-") -> - | R59: =IFERROR(VLOOKUP(B59,ZOMAC!$A$3:$K$346,11,FALSE),"-") -> - | T59: =IF(K59=0,0,IF(SUMPRODUCT(($K58:K59=K59)*1)>1,0,1)) -> 0
A60: Código DANE Entidad 56 | B60: =Calificación!B75 -> 0 | C60: =IFERROR(VLOOKUP(Cálculos!B60,IICA!$A$9:$G$1131,7,FALSE),"-") -> - | D60: =IFERROR(VLOOKUP(B60,CultIllic!$A$1:$K$1144,11,FALSE),"-") -> - | E60: =IFERROR(VLOOKUP(B60,MDM!$A$1:$S$1102,14,FALSE),"-") -> - | F60: =IFERROR(VLOOKUP(B60,Ruralidad!$A$1:$E$1123,5,FALSE),"-") -> - | G60: =IFERROR(VLOOKUP(B60,'NBI Rural'!$B$1:$E$1103,4,FALSE),"-") -> - | H60: =IFERROR(VLOOKUP(B60,ICV!$A$1:$G$1123,7,FALSE),"-") -> - | I60: =IFERROR(VLOOKUP(B60,Frontera!$A$1:$G$103,7,FALSE),"-") -> - | J60: =IFERROR(VLOOKUP(B60,ZNI!$A$4:$X$128,24,FALSE),"-") -> - | K60: =IFERROR(VLOOKUP(B60,Listas!$A$1:$J$1144,10,FALSE),0) -> 0 | L60: =IFERROR(INDEX(Brechas!$B$2:$AD$1145,MATCH(Cálculos!B60,Brechas!$A$2:$A$1145,0),MATCH(Calificación!$B$13,Brechas!$B$1:$AD$1,0)),"-") -> - | M60: =IFERROR(VLOOKUP(B60,Listas!$A$1:$I$1144,6,FALSE),"-") -> - | N60: =IFERROR(VLOOKUP(B60,Listas!$A$1:$I$1144,7,FALSE),"-") -> - | O60: =IFERROR(VLOOKUP(B60,Listas!$A$1:$I$1144,8,FALSE),"-") -> - | P60: =IFERROR(VLOOKUP(B60,'E&E 15_12_20'!$A$4:$Q$442,17,FALSE),"-") -> - | Q60: =IFERROR(VLOOKUP(B60,Puerto!$A$4:$C$22,3,FALSE),"-") -> - | R60: =IFERROR(VLOOKUP(B60,ZOMAC!$A$3:$K$346,11,FALSE),"-") -> - | T60: =IF(K60=0,0,IF(SUMPRODUCT(($K59:K60=K60)*1)>1,0,1)) -> 0
A61: Código DANE Entidad 57 | B61: =Calificación!B76 -> 0 | C61: =IFERROR(VLOOKUP(Cálculos!B61,IICA!$A$9:$G$1131,7,FALSE),"-") -> - | D61: =IFERROR(VLOOKUP(B61,CultIllic!$A$1:$K$1144,11,FALSE),"-") -> - | E61: =IFERROR(VLOOKUP(B61,MDM!$A$1:$S$1102,14,FALSE),"-") -> - | F61: =IFERROR(VLOOKUP(B61,Ruralidad!$A$1:$E$1123,5,FALSE),"-") -> - | G61: =IFERROR(VLOOKUP(B61,'NBI Rural'!$B$1:$E$1103,4,FALSE),"-") -> - | H61: =IFERROR(VLOOKUP(B61,ICV!$A$1:$G$1123,7,FALSE),"-") -> - | I61: =IFERROR(VLOOKUP(B61,Frontera!$A$1:$G$103,7,FALSE),"-") -> - | J61: =IFERROR(VLOOKUP(B61,ZNI!$A$4:$X$128,24,FALSE),"-") -> - | K61: =IFERROR(VLOOKUP(B61,Listas!$A$1:$J$1144,10,FALSE),0) -> 0 | L61: =IFERROR(INDEX(Brechas!$B$2:$AD$1145,MATCH(Cálculos!B61,Brechas!$A$2:$A$1145,0),MATCH(Calificación!$B$13,Brechas!$B$1:$AD$1,0)),"-") -> - | M61: =IFERROR(VLOOKUP(B61,Listas!$A$1:$I$1144,6,FALSE),"-") -> - | N61: =IFERROR(VLOOKUP(B61,Listas!$A$1:$I$1144,7,FALSE),"-") -> - | O61: =IFERROR(VLOOKUP(B61,Listas!$A$1:$I$1144,8,FALSE),"-") -> - | P61: =IFERROR(VLOOKUP(B61,'E&E 15_12_20'!$A$4:$Q$442,17,FALSE),"-") -> - | Q61: =IFERROR(VLOOKUP(B61,Puerto!$A$4:$C$22,3,FALSE),"-") -> - | R61: =IFERROR(VLOOKUP(B61,ZOMAC!$A$3:$K$346,11,FALSE),"-") -> - | T61: =IF(K61=0,0,IF(SUMPRODUCT(($K60:K61=K61)*1)>1,0,1)) -> 0
A62: Código DANE Entidad 58 | B62: =Calificación!B77 -> 0 | C62: =IFERROR(VLOOKUP(Cálculos!B62,IICA!$A$9:$G$1131,7,FALSE),"-") -> - | D62: =IFERROR(VLOOKUP(B62,CultIllic!$A$1:$K$1144,11,FALSE),"-") -> - | E62: =IFERROR(VLOOKUP(B62,MDM!$A$1:$S$1102,14,FALSE),"-") -> - | F62: =IFERROR(VLOOKUP(B62,Ruralidad!$A$1:$E$1123,5,FALSE),"-") -> - | G62: =IFERROR(VLOOKUP(B62,'NBI Rural'!$B$1:$E$1103,4,FALSE),"-") -> - | H62: =IFERROR(VLOOKUP(B62,ICV!$A$1:$G$1123,7,FALSE),"-") -> - | I62: =IFERROR(VLOOKUP(B62,Frontera!$A$1:$G$103,7,FALSE),"-") -> - | J62: =IFERROR(VLOOKUP(B62,ZNI!$A$4:$X$128,24,FALSE),"-") -> - | K62: =IFERROR(VLOOKUP(B62,Listas!$A$1:$J$1144,10,FALSE),0) -> 0 | L62: =IFERROR(INDEX(Brechas!$B$2:$AD$1145,MATCH(Cálculos!B62,Brechas!$A$2:$A$1145,0),MATCH(Calificación!$B$13,Brechas!$B$1:$AD$1,0)),"-") -> - | M62: =IFERROR(VLOOKUP(B62,Listas!$A$1:$I$1144,6,FALSE),"-") -> - | N62: =IFERROR(VLOOKUP(B62,Listas!$A$1:$I$1144,7,FALSE),"-") -> - | O62: =IFERROR(VLOOKUP(B62,Listas!$A$1:$I$1144,8,FALSE),"-") -> - | P62: =IFERROR(VLOOKUP(B62,'E&E 15_12_20'!$A$4:$Q$442,17,FALSE),"-") -> - | Q62: =IFERROR(VLOOKUP(B62,Puerto!$A$4:$C$22,3,FALSE),"-") -> - | R62: =IFERROR(VLOOKUP(B62,ZOMAC!$A$3:$K$346,11,FALSE),"-") -> - | T62: =IF(K62=0,0,IF(SUMPRODUCT(($K61:K62=K62)*1)>1,0,1)) -> 0
A63: Código DANE Entidad 59 | B63: =Calificación!B78 -> 0 | C63: =IFERROR(VLOOKUP(Cálculos!B63,IICA!$A$9:$G$1131,7,FALSE),"-") -> - | D63: =IFERROR(VLOOKUP(B63,CultIllic!$A$1:$K$1144,11,FALSE),"-") -> - | E63: =IFERROR(VLOOKUP(B63,MDM!$A$1:$S$1102,14,FALSE),"-") -> - | F63: =IFERROR(VLOOKUP(B63,Ruralidad!$A$1:$E$1123,5,FALSE),"-") -> - | G63: =IFERROR(VLOOKUP(B63,'NBI Rural'!$B$1:$E$1103,4,FALSE),"-") -> - | H63: =IFERROR(VLOOKUP(B63,ICV!$A$1:$G$1123,7,FALSE),"-") -> - | I63: =IFERROR(VLOOKUP(B63,Frontera!$A$1:$G$103,7,FALSE),"-") -> - | J63: =IFERROR(VLOOKUP(B63,ZNI!$A$4:$X$128,24,FALSE),"-") -> - | K63: =IFERROR(VLOOKUP(B63,Listas!$A$1:$J$1144,10,FALSE),0) -> 0 | L63: =IFERROR(INDEX(Brechas!$B$2:$AD$1145,MATCH(Cálculos!B63,Brechas!$A$2:$A$1145,0),MATCH(Calificación!$B$13,Brechas!$B$1:$AD$1,0)),"-") -> - | M63: =IFERROR(VLOOKUP(B63,Listas!$A$1:$I$1144,6,FALSE),"-") -> - | N63: =IFERROR(VLOOKUP(B63,Listas!$A$1:$I$1144,7,FALSE),"-") -> - | O63: =IFERROR(VLOOKUP(B63,Listas!$A$1:$I$1144,8,FALSE),"-") -> - | P63: =IFERROR(VLOOKUP(B63,'E&E 15_12_20'!$A$4:$Q$442,17,FALSE),"-") -> - | Q63: =IFERROR(VLOOKUP(B63,Puerto!$A$4:$C$22,3,FALSE),"-") -> - | R63: =IFERROR(VLOOKUP(B63,ZOMAC!$A$3:$K$346,11,FALSE),"-") -> - | T63: =IF(K63=0,0,IF(SUMPRODUCT(($K62:K63=K63)*1)>1,0,1)) -> 0
A64: Código DANE Entidad 60 | B64: =Calificación!B79 -> 0 | C64: =IFERROR(VLOOKUP(Cálculos!B64,IICA!$A$9:$G$1131,7,FALSE),"-") -> - | D64: =IFERROR(VLOOKUP(B64,CultIllic!$A$1:$K$1144,11,FALSE),"-") -> - | E64: =IFERROR(VLOOKUP(B64,MDM!$A$1:$S$1102,14,FALSE),"-") -> - | F64: =IFERROR(VLOOKUP(B64,Ruralidad!$A$1:$E$1123,5,FALSE),"-") -> - | G64: =IFERROR(VLOOKUP(B64,'NBI Rural'!$B$1:$E$1103,4,FALSE),"-") -> - | H64: =IFERROR(VLOOKUP(B64,ICV!$A$1:$G$1123,7,FALSE),"-") -> - | I64: =IFERROR(VLOOKUP(B64,Frontera!$A$1:$G$103,7,FALSE),"-") -> - | J64: =IFERROR(VLOOKUP(B64,ZNI!$A$4:$X$128,24,FALSE),"-") -> - | K64: =IFERROR(VLOOKUP(B64,Listas!$A$1:$J$1144,10,FALSE),0) -> 0 | L64: =IFERROR(INDEX(Brechas!$B$2:$AD$1145,MATCH(Cálculos!B64,Brechas!$A$2:$A$1145,0),MATCH(Calificación!$B$13,Brechas!$B$1:$AD$1,0)),"-") -> - | M64: =IFERROR(VLOOKUP(B64,Listas!$A$1:$I$1144,6,FALSE),"-") -> - | N64: =IFERROR(VLOOKUP(B64,Listas!$A$1:$I$1144,7,FALSE),"-") -> - | O64: =IFERROR(VLOOKUP(B64,Listas!$A$1:$I$1144,8,FALSE),"-") -> - | P64: =IFERROR(VLOOKUP(B64,'E&E 15_12_20'!$A$4:$Q$442,17,FALSE),"-") -> - | Q64: =IFERROR(VLOOKUP(B64,Puerto!$A$4:$C$22,3,FALSE),"-") -> - | R64: =IFERROR(VLOOKUP(B64,ZOMAC!$A$3:$K$346,11,FALSE),"-") -> - | T64: =IF(K64=0,0,IF(SUMPRODUCT(($K63:K64=K64)*1)>1,0,1)) -> 0
A65: Código DANE Entidad 61 | B65: =Calificación!B80 -> 0 | C65: =IFERROR(VLOOKUP(Cálculos!B65,IICA!$A$9:$G$1131,7,FALSE),"-") -> - | D65: =IFERROR(VLOOKUP(B65,CultIllic!$A$1:$K$1144,11,FALSE),"-") -> - | E65: =IFERROR(VLOOKUP(B65,MDM!$A$1:$S$1102,14,FALSE),"-") -> - | F65: =IFERROR(VLOOKUP(B65,Ruralidad!$A$1:$E$1123,5,FALSE),"-") -> - | G65: =IFERROR(VLOOKUP(B65,'NBI Rural'!$B$1:$E$1103,4,FALSE),"-") -> - | H65: =IFERROR(VLOOKUP(B65,ICV!$A$1:$G$1123,7,FALSE),"-") -> - | I65: =IFERROR(VLOOKUP(B65,Frontera!$A$1:$G$103,7,FALSE),"-") -> - | J65: =IFERROR(VLOOKUP(B65,ZNI!$A$4:$X$128,24,FALSE),"-") -> - | K65: =IFERROR(VLOOKUP(B65,Listas!$A$1:$J$1144,10,FALSE),0) -> 0 | L65: =IFERROR(INDEX(Brechas!$B$2:$AD$1145,MATCH(Cálculos!B65,Brechas!$A$2:$A$1145,0),MATCH(Calificación!$B$13,Brechas!$B$1:$AD$1,0)),"-") -> - | M65: =IFERROR(VLOOKUP(B65,Listas!$A$1:$I$1144,6,FALSE),"-") -> - | N65: =IFERROR(VLOOKUP(B65,Listas!$A$1:$I$1144,7,FALSE),"-") -> - | O65: =IFERROR(VLOOKUP(B65,Listas!$A$1:$I$1144,8,FALSE),"-") -> - | P65: =IFERROR(VLOOKUP(B65,'E&E 15_12_20'!$A$4:$Q$442,17,FALSE),"-") -> - | Q65: =IFERROR(VLOOKUP(B65,Puerto!$A$4:$C$22,3,FALSE),"-") -> - | R65: =IFERROR(VLOOKUP(B65,ZOMAC!$A$3:$K$346,11,FALSE),"-") -> - | T65: =IF(K65=0,0,IF(SUMPRODUCT(($K64:K65=K65)*1)>1,0,1)) -> 0
A66: Código DANE Entidad 62 | B66: =Calificación!B81 -> 0 | C66: =IFERROR(VLOOKUP(Cálculos!B66,IICA!$A$9:$G$1131,7,FALSE),"-") -> - | D66: =IFERROR(VLOOKUP(B66,CultIllic!$A$1:$K$1144,11,FALSE),"-") -> - | E66: =IFERROR(VLOOKUP(B66,MDM!$A$1:$S$1102,14,FALSE),"-") -> - | F66: =IFERROR(VLOOKUP(B66,Ruralidad!$A$1:$E$1123,5,FALSE),"-") -> - | G66: =IFERROR(VLOOKUP(B66,'NBI Rural'!$B$1:$E$1103,4,FALSE),"-") -> - | H66: =IFERROR(VLOOKUP(B66,ICV!$A$1:$G$1123,7,FALSE),"-") -> - | I66: =IFERROR(VLOOKUP(B66,Frontera!$A$1:$G$103,7,FALSE),"-") -> - | J66: =IFERROR(VLOOKUP(B66,ZNI!$A$4:$X$128,24,FALSE),"-") -> - | K66: =IFERROR(VLOOKUP(B66,Listas!$A$1:$J$1144,10,FALSE),0) -> 0 | L66: =IFERROR(INDEX(Brechas!$B$2:$AD$1145,MATCH(Cálculos!B66,Brechas!$A$2:$A$1145,0),MATCH(Calificación!$B$13,Brechas!$B$1:$AD$1,0)),"-") -> - | M66: =IFERROR(VLOOKUP(B66,Listas!$A$1:$I$1144,6,FALSE),"-") -> - | N66: =IFERROR(VLOOKUP(B66,Listas!$A$1:$I$1144,7,FALSE),"-") -> - | O66: =IFERROR(VLOOKUP(B66,Listas!$A$1:$I$1144,8,FALSE),"-") -> - | P66: =IFERROR(VLOOKUP(B66,'E&E 15_12_20'!$A$4:$Q$442,17,FALSE),"-") -> - | Q66: =IFERROR(VLOOKUP(B66,Puerto!$A$4:$C$22,3,FALSE),"-") -> - | R66: =IFERROR(VLOOKUP(B66,ZOMAC!$A$3:$K$346,11,FALSE),"-") -> - | T66: =IF(K66=0,0,IF(SUMPRODUCT(($K65:K66=K66)*1)>1,0,1)) -> 0
A67: Código DANE Entidad 63 | B67: =Calificación!B82 -> 0 | C67: =IFERROR(VLOOKUP(Cálculos!B67,IICA!$A$9:$G$1131,7,FALSE),"-") -> - | D67: =IFERROR(VLOOKUP(B67,CultIllic!$A$1:$K$1144,11,FALSE),"-") -> - | E67: =IFERROR(VLOOKUP(B67,MDM!$A$1:$S$1102,14,FALSE),"-") -> - | F67: =IFERROR(VLOOKUP(B67,Ruralidad!$A$1:$E$1123,5,FALSE),"-") -> - | G67: =IFERROR(VLOOKUP(B67,'NBI Rural'!$B$1:$E$1103,4,FALSE),"-") -> - | H67: =IFERROR(VLOOKUP(B67,ICV!$A$1:$G$1123,7,FALSE),"-") -> - | I67: =IFERROR(VLOOKUP(B67,Frontera!$A$1:$G$103,7,FALSE),"-") -> - | J67: =IFERROR(VLOOKUP(B67,ZNI!$A$4:$X$128,24,FALSE),"-") -> - | K67: =IFERROR(VLOOKUP(B67,Listas!$A$1:$J$1144,10,FALSE),0) -> 0 | L67: =IFERROR(INDEX(Brechas!$B$2:$AD$1145,MATCH(Cálculos!B67,Brechas!$A$2:$A$1145,0),MATCH(Calificación!$B$13,Brechas!$B$1:$AD$1,0)),"-") -> - | M67: =IFERROR(VLOOKUP(B67,Listas!$A$1:$I$1144,6,FALSE),"-") -> - | N67: =IFERROR(VLOOKUP(B67,Listas!$A$1:$I$1144,7,FALSE),"-") -> - | O67: =IFERROR(VLOOKUP(B67,Listas!$A$1:$I$1144,8,FALSE),"-") -> - | P67: =IFERROR(VLOOKUP(B67,'E&E 15_12_20'!$A$4:$Q$442,17,FALSE),"-") -> - | Q67: =IFERROR(VLOOKUP(B67,Puerto!$A$4:$C$22,3,FALSE),"-") -> - | R67: =IFERROR(VLOOKUP(B67,ZOMAC!$A$3:$K$346,11,FALSE),"-") -> - | T67: =IF(K67=0,0,IF(SUMPRODUCT(($K66:K67=K67)*1)>1,0,1)) -> 0
A68: Código DANE Entidad 64 | B68: =Calificación!B83 -> 0 | C68: =IFERROR(VLOOKUP(Cálculos!B68,IICA!$A$9:$G$1131,7,FALSE),"-") -> - | D68: =IFERROR(VLOOKUP(B68,CultIllic!$A$1:$K$1144,11,FALSE),"-") -> - | E68: =IFERROR(VLOOKUP(B68,MDM!$A$1:$S$1102,14,FALSE),"-") -> - | F68: =IFERROR(VLOOKUP(B68,Ruralidad!$A$1:$E$1123,5,FALSE),"-") -> - | G68: =IFERROR(VLOOKUP(B68,'NBI Rural'!$B$1:$E$1103,4,FALSE),"-") -> - | H68: =IFERROR(VLOOKUP(B68,ICV!$A$1:$G$1123,7,FALSE),"-") -> - | I68: =IFERROR(VLOOKUP(B68,Frontera!$A$1:$G$103,7,FALSE),"-") -> - | J68: =IFERROR(VLOOKUP(B68,ZNI!$A$4:$X$128,24,FALSE),"-") -> - | K68: =IFERROR(VLOOKUP(B68,Listas!$A$1:$J$1144,10,FALSE),0) -> 0 | L68: =IFERROR(INDEX(Brechas!$B$2:$AD$1145,MATCH(Cálculos!B68,Brechas!$A$2:$A$1145,0),MATCH(Calificación!$B$13,Brechas!$B$1:$AD$1,0)),"-") -> - | M68: =IFERROR(VLOOKUP(B68,Listas!$A$1:$I$1144,6,FALSE),"-") -> - | N68: =IFERROR(VLOOKUP(B68,Listas!$A$1:$I$1144,7,FALSE),"-") -> - | O68: =IFERROR(VLOOKUP(B68,Listas!$A$1:$I$1144,8,FALSE),"-") -> - | P68: =IFERROR(VLOOKUP(B68,'E&E 15_12_20'!$A$4:$Q$442,17,FALSE),"-") -> - | Q68: =IFERROR(VLOOKUP(B68,Puerto!$A$4:$C$22,3,FALSE),"-") -> - | R68: =IFERROR(VLOOKUP(B68,ZOMAC!$A$3:$K$346,11,FALSE),"-") -> - | T68: =IF(K68=0,0,IF(SUMPRODUCT(($K67:K68=K68)*1)>1,0,1)) -> 0
A69: Código DANE Entidad 65 | B69: =Calificación!B84 -> 0 | C69: =IFERROR(VLOOKUP(Cálculos!B69,IICA!$A$9:$G$1131,7,FALSE),"-") -> - | D69: =IFERROR(VLOOKUP(B69,CultIllic!$A$1:$K$1144,11,FALSE),"-") -> - | E69: =IFERROR(VLOOKUP(B69,MDM!$A$1:$S$1102,14,FALSE),"-") -> - | F69: =IFERROR(VLOOKUP(B69,Ruralidad!$A$1:$E$1123,5,FALSE),"-") -> - | G69: =IFERROR(VLOOKUP(B69,'NBI Rural'!$B$1:$E$1103,4,FALSE),"-") -> - | H69: =IFERROR(VLOOKUP(B69,ICV!$A$1:$G$1123,7,FALSE),"-") -> - | I69: =IFERROR(VLOOKUP(B69,Frontera!$A$1:$G$103,7,FALSE),"-") -> - | J69: =IFERROR(VLOOKUP(B69,ZNI!$A$4:$X$128,24,FALSE),"-") -> - | K69: =IFERROR(VLOOKUP(B69,Listas!$A$1:$J$1144,10,FALSE),0) -> 0 | L69: =IFERROR(INDEX(Brechas!$B$2:$AD$1145,MATCH(Cálculos!B69,Brechas!$A$2:$A$1145,0),MATCH(Calificación!$B$13,Brechas!$B$1:$AD$1,0)),"-") -> - | M69: =IFERROR(VLOOKUP(B69,Listas!$A$1:$I$1144,6,FALSE),"-") -> - | N69: =IFERROR(VLOOKUP(B69,Listas!$A$1:$I$1144,7,FALSE),"-") -> - | O69: =IFERROR(VLOOKUP(B69,Listas!$A$1:$I$1144,8,FALSE),"-") -> - | P69: =IFERROR(VLOOKUP(B69,'E&E 15_12_20'!$A$4:$Q$442,17,FALSE),"-") -> - | Q69: =IFERROR(VLOOKUP(B69,Puerto!$A$4:$C$22,3,FALSE),"-") -> - | R69: =IFERROR(VLOOKUP(B69,ZOMAC!$A$3:$K$346,11,FALSE),"-") -> - | T69: =IF(K69=0,0,IF(SUMPRODUCT(($K68:K69=K69)*1)>1,0,1)) -> 0
A70: Código DANE Entidad 66 | B70: =Calificación!B85 -> 0 | C70: =IFERROR(VLOOKUP(Cálculos!B70,IICA!$A$9:$G$1131,7,FALSE),"-") -> - | D70: =IFERROR(VLOOKUP(B70,CultIllic!$A$1:$K$1144,11,FALSE),"-") -> - | E70: =IFERROR(VLOOKUP(B70,MDM!$A$1:$S$1102,14,FALSE),"-") -> - | F70: =IFERROR(VLOOKUP(B70,Ruralidad!$A$1:$E$1123,5,FALSE),"-") -> - | G70: =IFERROR(VLOOKUP(B70,'NBI Rural'!$B$1:$E$1103,4,FALSE),"-") -> - | H70: =IFERROR(VLOOKUP(B70,ICV!$A$1:$G$1123,7,FALSE),"-") -> - | I70: =IFERROR(VLOOKUP(B70,Frontera!$A$1:$G$103,7,FALSE),"-") -> - | J70: =IFERROR(VLOOKUP(B70,ZNI!$A$4:$X$128,24,FALSE),"-") -> - | K70: =IFERROR(VLOOKUP(B70,Listas!$A$1:$J$1144,10,FALSE),0) -> 0 | L70: =IFERROR(INDEX(Brechas!$B$2:$AD$1145,MATCH(Cálculos!B70,Brechas!$A$2:$A$1145,0),MATCH(Calificación!$B$13,Brechas!$B$1:$AD$1,0)),"-") -> - | M70: =IFERROR(VLOOKUP(B70,Listas!$A$1:$I$1144,6,FALSE),"-") -> - | N70: =IFERROR(VLOOKUP(B70,Listas!$A$1:$I$1144,7,FALSE),"-") -> - | O70: =IFERROR(VLOOKUP(B70,Listas!$A$1:$I$1144,8,FALSE),"-") -> - | P70: =IFERROR(VLOOKUP(B70,'E&E 15_12_20'!$A$4:$Q$442,17,FALSE),"-") -> - | Q70: =IFERROR(VLOOKUP(B70,Puerto!$A$4:$C$22,3,FALSE),"-") -> - | R70: =IFERROR(VLOOKUP(B70,ZOMAC!$A$3:$K$346,11,FALSE),"-") -> - | T70: =IF(K70=0,0,IF(SUMPRODUCT(($K69:K70=K70)*1)>1,0,1)) -> 0
A71: Código DANE Entidad 67 | B71: =Calificación!B86 -> 0 | C71: =IFERROR(VLOOKUP(Cálculos!B71,IICA!$A$9:$G$1131,7,FALSE),"-") -> - | D71: =IFERROR(VLOOKUP(B71,CultIllic!$A$1:$K$1144,11,FALSE),"-") -> - | E71: =IFERROR(VLOOKUP(B71,MDM!$A$1:$S$1102,14,FALSE),"-") -> - | F71: =IFERROR(VLOOKUP(B71,Ruralidad!$A$1:$E$1123,5,FALSE),"-") -> - | G71: =IFERROR(VLOOKUP(B71,'NBI Rural'!$B$1:$E$1103,4,FALSE),"-") -> - | H71: =IFERROR(VLOOKUP(B71,ICV!$A$1:$G$1123,7,FALSE),"-") -> - | I71: =IFERROR(VLOOKUP(B71,Frontera!$A$1:$G$103,7,FALSE),"-") -> - | J71: =IFERROR(VLOOKUP(B71,ZNI!$A$4:$X$128,24,FALSE),"-") -> - | K71: =IFERROR(VLOOKUP(B71,Listas!$A$1:$J$1144,10,FALSE),0) -> 0 | L71: =IFERROR(INDEX(Brechas!$B$2:$AD$1145,MATCH(Cálculos!B71,Brechas!$A$2:$A$1145,0),MATCH(Calificación!$B$13,Brechas!$B$1:$AD$1,0)),"-") -> - | M71: =IFERROR(VLOOKUP(B71,Listas!$A$1:$I$1144,6,FALSE),"-") -> - | N71: =IFERROR(VLOOKUP(B71,Listas!$A$1:$I$1144,7,FALSE),"-") -> - | O71: =IFERROR(VLOOKUP(B71,Listas!$A$1:$I$1144,8,FALSE),"-") -> - | P71: =IFERROR(VLOOKUP(B71,'E&E 15_12_20'!$A$4:$Q$442,17,FALSE),"-") -> - | Q71: =IFERROR(VLOOKUP(B71,Puerto!$A$4:$C$22,3,FALSE),"-") -> - | R71: =IFERROR(VLOOKUP(B71,ZOMAC!$A$3:$K$346,11,FALSE),"-") -> - | T71: =IF(K71=0,0,IF(SUMPRODUCT(($K70:K71=K71)*1)>1,0,1)) -> 0
A72: Código DANE Entidad 68 | B72: =Calificación!B87 -> 0 | C72: =IFERROR(VLOOKUP(Cálculos!B72,IICA!$A$9:$G$1131,7,FALSE),"-") -> - | D72: =IFERROR(VLOOKUP(B72,CultIllic!$A$1:$K$1144,11,FALSE),"-") -> - | E72: =IFERROR(VLOOKUP(B72,MDM!$A$1:$S$1102,14,FALSE),"-") -> - | F72: =IFERROR(VLOOKUP(B72,Ruralidad!$A$1:$E$1123,5,FALSE),"-") -> - | G72: =IFERROR(VLOOKUP(B72,'NBI Rural'!$B$1:$E$1103,4,FALSE),"-") -> - | H72: =IFERROR(VLOOKUP(B72,ICV!$A$1:$G$1123,7,FALSE),"-") -> - | I72: =IFERROR(VLOOKUP(B72,Frontera!$A$1:$G$103,7,FALSE),"-") -> - | J72: =IFERROR(VLOOKUP(B72,ZNI!$A$4:$X$128,24,FALSE),"-") -> - | K72: =IFERROR(VLOOKUP(B72,Listas!$A$1:$J$1144,10,FALSE),0) -> 0 | L72: =IFERROR(INDEX(Brechas!$B$2:$AD$1145,MATCH(Cálculos!B72,Brechas!$A$2:$A$1145,0),MATCH(Calificación!$B$13,Brechas!$B$1:$AD$1,0)),"-") -> - | M72: =IFERROR(VLOOKUP(B72,Listas!$A$1:$I$1144,6,FALSE),"-") -> - | N72: =IFERROR(VLOOKUP(B72,Listas!$A$1:$I$1144,7,FALSE),"-") -> - | O72: =IFERROR(VLOOKUP(B72,Listas!$A$1:$I$1144,8,FALSE),"-") -> - | P72: =IFERROR(VLOOKUP(B72,'E&E 15_12_20'!$A$4:$Q$442,17,FALSE),"-") -> - | Q72: =IFERROR(VLOOKUP(B72,Puerto!$A$4:$C$22,3,FALSE),"-") -> - | R72: =IFERROR(VLOOKUP(B72,ZOMAC!$A$3:$K$346,11,FALSE),"-") -> - | T72: =IF(K72=0,0,IF(SUMPRODUCT(($K71:K72=K72)*1)>1,0,1)) -> 0
A73: Código DANE Entidad 69 | B73: =Calificación!B88 -> 0 | C73: =IFERROR(VLOOKUP(Cálculos!B73,IICA!$A$9:$G$1131,7,FALSE),"-") -> - | D73: =IFERROR(VLOOKUP(B73,CultIllic!$A$1:$K$1144,11,FALSE),"-") -> - | E73: =IFERROR(VLOOKUP(B73,MDM!$A$1:$S$1102,14,FALSE),"-") -> - | F73: =IFERROR(VLOOKUP(B73,Ruralidad!$A$1:$E$1123,5,FALSE),"-") -> - | G73: =IFERROR(VLOOKUP(B73,'NBI Rural'!$B$1:$E$1103,4,FALSE),"-") -> - | H73: =IFERROR(VLOOKUP(B73,ICV!$A$1:$G$1123,7,FALSE),"-") -> - | I73: =IFERROR(VLOOKUP(B73,Frontera!$A$1:$G$103,7,FALSE),"-") -> - | J73: =IFERROR(VLOOKUP(B73,ZNI!$A$4:$X$128,24,FALSE),"-") -> - | K73: =IFERROR(VLOOKUP(B73,Listas!$A$1:$J$1144,10,FALSE),0) -> 0 | L73: =IFERROR(INDEX(Brechas!$B$2:$AD$1145,MATCH(Cálculos!B73,Brechas!$A$2:$A$1145,0),MATCH(Calificación!$B$13,Brechas!$B$1:$AD$1,0)),"-") -> - | M73: =IFERROR(VLOOKUP(B73,Listas!$A$1:$I$1144,6,FALSE),"-") -> - | N73: =IFERROR(VLOOKUP(B73,Listas!$A$1:$I$1144,7,FALSE),"-") -> - | O73: =IFERROR(VLOOKUP(B73,Listas!$A$1:$I$1144,8,FALSE),"-") -> - | P73: =IFERROR(VLOOKUP(B73,'E&E 15_12_20'!$A$4:$Q$442,17,FALSE),"-") -> - | Q73: =IFERROR(VLOOKUP(B73,Puerto!$A$4:$C$22,3,FALSE),"-") -> - | R73: =IFERROR(VLOOKUP(B73,ZOMAC!$A$3:$K$346,11,FALSE),"-") -> - | T73: =IF(K73=0,0,IF(SUMPRODUCT(($K72:K73=K73)*1)>1,0,1)) -> 0
A74: Código DANE Entidad 70 | B74: =Calificación!B89 -> 0 | C74: =IFERROR(VLOOKUP(Cálculos!B74,IICA!$A$9:$G$1131,7,FALSE),"-") -> - | D74: =IFERROR(VLOOKUP(B74,CultIllic!$A$1:$K$1144,11,FALSE),"-") -> - | E74: =IFERROR(VLOOKUP(B74,MDM!$A$1:$S$1102,14,FALSE),"-") -> - | F74: =IFERROR(VLOOKUP(B74,Ruralidad!$A$1:$E$1123,5,FALSE),"-") -> - | G74: =IFERROR(VLOOKUP(B74,'NBI Rural'!$B$1:$E$1103,4,FALSE),"-") -> - | H74: =IFERROR(VLOOKUP(B74,ICV!$A$1:$G$1123,7,FALSE),"-") -> - | I74: =IFERROR(VLOOKUP(B74,Frontera!$A$1:$G$103,7,FALSE),"-") -> - | J74: =IFERROR(VLOOKUP(B74,ZNI!$A$4:$X$128,24,FALSE),"-") -> - | K74: =IFERROR(VLOOKUP(B74,Listas!$A$1:$J$1144,10,FALSE),0) -> 0 | L74: =IFERROR(INDEX(Brechas!$B$2:$AD$1145,MATCH(Cálculos!B74,Brechas!$A$2:$A$1145,0),MATCH(Calificación!$B$13,Brechas!$B$1:$AD$1,0)),"-") -> - | M74: =IFERROR(VLOOKUP(B74,Listas!$A$1:$I$1144,6,FALSE),"-") -> - | N74: =IFERROR(VLOOKUP(B74,Listas!$A$1:$I$1144,7,FALSE),"-") -> - | O74: =IFERROR(VLOOKUP(B74,Listas!$A$1:$I$1144,8,FALSE),"-") -> - | P74: =IFERROR(VLOOKUP(B74,'E&E 15_12_20'!$A$4:$Q$442,17,FALSE),"-") -> - | Q74: =IFERROR(VLOOKUP(B74,Puerto!$A$4:$C$22,3,FALSE),"-") -> - | R74: =IFERROR(VLOOKUP(B74,ZOMAC!$A$3:$K$346,11,FALSE),"-") -> - | T74: =IF(K74=0,0,IF(SUMPRODUCT(($K73:K74=K74)*1)>1,0,1)) -> 0
A75: Código DANE Entidad 71 | B75: =Calificación!B90 -> 0 | C75: =IFERROR(VLOOKUP(Cálculos!B75,IICA!$A$9:$G$1131,7,FALSE),"-") -> - | D75: =IFERROR(VLOOKUP(B75,CultIllic!$A$1:$K$1144,11,FALSE),"-") -> - | E75: =IFERROR(VLOOKUP(B75,MDM!$A$1:$S$1102,14,FALSE),"-") -> - | F75: =IFERROR(VLOOKUP(B75,Ruralidad!$A$1:$E$1123,5,FALSE),"-") -> - | G75: =IFERROR(VLOOKUP(B75,'NBI Rural'!$B$1:$E$1103,4,FALSE),"-") -> - | H75: =IFERROR(VLOOKUP(B75,ICV!$A$1:$G$1123,7,FALSE),"-") -> - | I75: =IFERROR(VLOOKUP(B75,Frontera!$A$1:$G$103,7,FALSE),"-") -> - | J75: =IFERROR(VLOOKUP(B75,ZNI!$A$4:$X$128,24,FALSE),"-") -> - | K75: =IFERROR(VLOOKUP(B75,Listas!$A$1:$J$1144,10,FALSE),0) -> 0 | L75: =IFERROR(INDEX(Brechas!$B$2:$AD$1145,MATCH(Cálculos!B75,Brechas!$A$2:$A$1145,0),MATCH(Calificación!$B$13,Brechas!$B$1:$AD$1,0)),"-") -> - | M75: =IFERROR(VLOOKUP(B75,Listas!$A$1:$I$1144,6,FALSE),"-") -> - | N75: =IFERROR(VLOOKUP(B75,Listas!$A$1:$I$1144,7,FALSE),"-") -> - | O75: =IFERROR(VLOOKUP(B75,Listas!$A$1:$I$1144,8,FALSE),"-") -> - | P75: =IFERROR(VLOOKUP(B75,'E&E 15_12_20'!$A$4:$Q$442,17,FALSE),"-") -> - | Q75: =IFERROR(VLOOKUP(B75,Puerto!$A$4:$C$22,3,FALSE),"-") -> - | R75: =IFERROR(VLOOKUP(B75,ZOMAC!$A$3:$K$346,11,FALSE),"-") -> - | T75: =IF(K75=0,0,IF(SUMPRODUCT(($K74:K75=K75)*1)>1,0,1)) -> 0
A76: Código DANE Entidad 72 | B76: =Calificación!B91 -> 0 | C76: =IFERROR(VLOOKUP(Cálculos!B76,IICA!$A$9:$G$1131,7,FALSE),"-") -> - | D76: =IFERROR(VLOOKUP(B76,CultIllic!$A$1:$K$1144,11,FALSE),"-") -> - | E76: =IFERROR(VLOOKUP(B76,MDM!$A$1:$S$1102,14,FALSE),"-") -> - | F76: =IFERROR(VLOOKUP(B76,Ruralidad!$A$1:$E$1123,5,FALSE),"-") -> - | G76: =IFERROR(VLOOKUP(B76,'NBI Rural'!$B$1:$E$1103,4,FALSE),"-") -> - | H76: =IFERROR(VLOOKUP(B76,ICV!$A$1:$G$1123,7,FALSE),"-") -> - | I76: =IFERROR(VLOOKUP(B76,Frontera!$A$1:$G$103,7,FALSE),"-") -> - | J76: =IFERROR(VLOOKUP(B76,ZNI!$A$4:$X$128,24,FALSE),"-") -> - | K76: =IFERROR(VLOOKUP(B76,Listas!$A$1:$J$1144,10,FALSE),0) -> 0 | L76: =IFERROR(INDEX(Brechas!$B$2:$AD$1145,MATCH(Cálculos!B76,Brechas!$A$2:$A$1145,0),MATCH(Calificación!$B$13,Brechas!$B$1:$AD$1,0)),"-") -> - | M76: =IFERROR(VLOOKUP(B76,Listas!$A$1:$I$1144,6,FALSE),"-") -> - | N76: =IFERROR(VLOOKUP(B76,Listas!$A$1:$I$1144,7,FALSE),"-") -> - | O76: =IFERROR(VLOOKUP(B76,Listas!$A$1:$I$1144,8,FALSE),"-") -> - | P76: =IFERROR(VLOOKUP(B76,'E&E 15_12_20'!$A$4:$Q$442,17,FALSE),"-") -> - | Q76: =IFERROR(VLOOKUP(B76,Puerto!$A$4:$C$22,3,FALSE),"-") -> - | R76: =IFERROR(VLOOKUP(B76,ZOMAC!$A$3:$K$346,11,FALSE),"-") -> - | T76: =IF(K76=0,0,IF(SUMPRODUCT(($K75:K76=K76)*1)>1,0,1)) -> 0
A77: Código DANE Entidad 73 | B77: =Calificación!B92 -> 0 | C77: =IFERROR(VLOOKUP(Cálculos!B77,IICA!$A$9:$G$1131,7,FALSE),"-") -> - | D77: =IFERROR(VLOOKUP(B77,CultIllic!$A$1:$K$1144,11,FALSE),"-") -> - | E77: =IFERROR(VLOOKUP(B77,MDM!$A$1:$S$1102,14,FALSE),"-") -> - | F77: =IFERROR(VLOOKUP(B77,Ruralidad!$A$1:$E$1123,5,FALSE),"-") -> - | G77: =IFERROR(VLOOKUP(B77,'NBI Rural'!$B$1:$E$1103,4,FALSE),"-") -> - | H77: =IFERROR(VLOOKUP(B77,ICV!$A$1:$G$1123,7,FALSE),"-") -> - | I77: =IFERROR(VLOOKUP(B77,Frontera!$A$1:$G$103,7,FALSE),"-") -> - | J77: =IFERROR(VLOOKUP(B77,ZNI!$A$4:$X$128,24,FALSE),"-") -> - | K77: =IFERROR(VLOOKUP(B77,Listas!$A$1:$J$1144,10,FALSE),0) -> 0 | L77: =IFERROR(INDEX(Brechas!$B$2:$AD$1145,MATCH(Cálculos!B77,Brechas!$A$2:$A$1145,0),MATCH(Calificación!$B$13,Brechas!$B$1:$AD$1,0)),"-") -> - | M77: =IFERROR(VLOOKUP(B77,Listas!$A$1:$I$1144,6,FALSE),"-") -> - | N77: =IFERROR(VLOOKUP(B77,Listas!$A$1:$I$1144,7,FALSE),"-") -> - | O77: =IFERROR(VLOOKUP(B77,Listas!$A$1:$I$1144,8,FALSE),"-") -> - | P77: =IFERROR(VLOOKUP(B77,'E&E 15_12_20'!$A$4:$Q$442,17,FALSE),"-") -> - | Q77: =IFERROR(VLOOKUP(B77,Puerto!$A$4:$C$22,3,FALSE),"-") -> - | R77: =IFERROR(VLOOKUP(B77,ZOMAC!$A$3:$K$346,11,FALSE),"-") -> - | T77: =IF(K77=0,0,IF(SUMPRODUCT(($K76:K77=K77)*1)>1,0,1)) -> 0
A78: Código DANE Entidad 74 | B78: =Calificación!B93 -> 0 | C78: =IFERROR(VLOOKUP(Cálculos!B78,IICA!$A$9:$G$1131,7,FALSE),"-") -> - | D78: =IFERROR(VLOOKUP(B78,CultIllic!$A$1:$K$1144,11,FALSE),"-") -> - | E78: =IFERROR(VLOOKUP(B78,MDM!$A$1:$S$1102,14,FALSE),"-") -> - | F78: =IFERROR(VLOOKUP(B78,Ruralidad!$A$1:$E$1123,5,FALSE),"-") -> - | G78: =IFERROR(VLOOKUP(B78,'NBI Rural'!$B$1:$E$1103,4,FALSE),"-") -> - | H78: =IFERROR(VLOOKUP(B78,ICV!$A$1:$G$1123,7,FALSE),"-") -> - | I78: =IFERROR(VLOOKUP(B78,Frontera!$A$1:$G$103,7,FALSE),"-") -> - | J78: =IFERROR(VLOOKUP(B78,ZNI!$A$4:$X$128,24,FALSE),"-") -> - | K78: =IFERROR(VLOOKUP(B78,Listas!$A$1:$J$1144,10,FALSE),0) -> 0 | L78: =IFERROR(INDEX(Brechas!$B$2:$AD$1145,MATCH(Cálculos!B78,Brechas!$A$2:$A$1145,0),MATCH(Calificación!$B$13,Brechas!$B$1:$AD$1,0)),"-") -> - | M78: =IFERROR(VLOOKUP(B78,Listas!$A$1:$I$1144,6,FALSE),"-") -> - | N78: =IFERROR(VLOOKUP(B78,Listas!$A$1:$I$1144,7,FALSE),"-") -> - | O78: =IFERROR(VLOOKUP(B78,Listas!$A$1:$I$1144,8,FALSE),"-") -> - | P78: =IFERROR(VLOOKUP(B78,'E&E 15_12_20'!$A$4:$Q$442,17,FALSE),"-") -> - | Q78: =IFERROR(VLOOKUP(B78,Puerto!$A$4:$C$22,3,FALSE),"-") -> - | R78: =IFERROR(VLOOKUP(B78,ZOMAC!$A$3:$K$346,11,FALSE),"-") -> - | T78: =IF(K78=0,0,IF(SUMPRODUCT(($K77:K78=K78)*1)>1,0,1)) -> 0
A79: Código DANE Entidad 75 | B79: =Calificación!B94 -> 0 | C79: =IFERROR(VLOOKUP(Cálculos!B79,IICA!$A$9:$G$1131,7,FALSE),"-") -> - | D79: =IFERROR(VLOOKUP(B79,CultIllic!$A$1:$K$1144,11,FALSE),"-") -> - | E79: =IFERROR(VLOOKUP(B79,MDM!$A$1:$S$1102,14,FALSE),"-") -> - | F79: =IFERROR(VLOOKUP(B79,Ruralidad!$A$1:$E$1123,5,FALSE),"-") -> - | G79: =IFERROR(VLOOKUP(B79,'NBI Rural'!$B$1:$E$1103,4,FALSE),"-") -> - | H79: =IFERROR(VLOOKUP(B79,ICV!$A$1:$G$1123,7,FALSE),"-") -> - | I79: =IFERROR(VLOOKUP(B79,Frontera!$A$1:$G$103,7,FALSE),"-") -> - | J79: =IFERROR(VLOOKUP(B79,ZNI!$A$4:$X$128,24,FALSE),"-") -> - | K79: =IFERROR(VLOOKUP(B79,Listas!$A$1:$J$1144,10,FALSE),0) -> 0 | L79: =IFERROR(INDEX(Brechas!$B$2:$AD$1145,MATCH(Cálculos!B79,Brechas!$A$2:$A$1145,0),MATCH(Calificación!$B$13,Brechas!$B$1:$AD$1,0)),"-") -> - | M79: =IFERROR(VLOOKUP(B79,Listas!$A$1:$I$1144,6,FALSE),"-") -> - | N79: =IFERROR(VLOOKUP(B79,Listas!$A$1:$I$1144,7,FALSE),"-") -> - | O79: =IFERROR(VLOOKUP(B79,Listas!$A$1:$I$1144,8,FALSE),"-") -> - | P79: =IFERROR(VLOOKUP(B79,'E&E 15_12_20'!$A$4:$Q$442,17,FALSE),"-") -> - | Q79: =IFERROR(VLOOKUP(B79,Puerto!$A$4:$C$22,3,FALSE),"-") -> - | R79: =IFERROR(VLOOKUP(B79,ZOMAC!$A$3:$K$346,11,FALSE),"-") -> - | T79: =IF(K79=0,0,IF(SUMPRODUCT(($K78:K79=K79)*1)>1,0,1)) -> 0
A80: Código DANE Entidad 76 | B80: =Calificación!B95 -> 0 | C80: =IFERROR(VLOOKUP(Cálculos!B80,IICA!$A$9:$G$1131,7,FALSE),"-") -> - | D80: =IFERROR(VLOOKUP(B80,CultIllic!$A$1:$K$1144,11,FALSE),"-") -> - | E80: =IFERROR(VLOOKUP(B80,MDM!$A$1:$S$1102,14,FALSE),"-") -> - | F80: =IFERROR(VLOOKUP(B80,Ruralidad!$A$1:$E$1123,5,FALSE),"-") -> - | G80: =IFERROR(VLOOKUP(B80,'NBI Rural'!$B$1:$E$1103,4,FALSE),"-") -> - | H80: =IFERROR(VLOOKUP(B80,ICV!$A$1:$G$1123,7,FALSE),"-") -> - | I80: =IFERROR(VLOOKUP(B80,Frontera!$A$1:$G$103,7,FALSE),"-") -> - | J80: =IFERROR(VLOOKUP(B80,ZNI!$A$4:$X$128,24,FALSE),"-") -> - | K80: =IFERROR(VLOOKUP(B80,Listas!$A$1:$J$1144,10,FALSE),0) -> 0 | L80: =IFERROR(INDEX(Brechas!$B$2:$AD$1145,MATCH(Cálculos!B80,Brechas!$A$2:$A$1145,0),MATCH(Calificación!$B$13,Brechas!$B$1:$AD$1,0)),"-") -> - | M80: =IFERROR(VLOOKUP(B80,Listas!$A$1:$I$1144,6,FALSE),"-") -> - | N80: =IFERROR(VLOOKUP(B80,Listas!$A$1:$I$1144,7,FALSE),"-") -> - | O80: =IFERROR(VLOOKUP(B80,Listas!$A$1:$I$1144,8,FALSE),"-") -> - | P80: =IFERROR(VLOOKUP(B80,'E&E 15_12_20'!$A$4:$Q$442,17,FALSE),"-") -> - | Q80: =IFERROR(VLOOKUP(B80,Puerto!$A$4:$C$22,3,FALSE),"-") -> - | R80: =IFERROR(VLOOKUP(B80,ZOMAC!$A$3:$K$346,11,FALSE),"-") -> - | T80: =IF(K80=0,0,IF(SUMPRODUCT(($K79:K80=K80)*1)>1,0,1)) -> 0
A81: Código DANE Entidad 77 | B81: =Calificación!B96 -> 0 | C81: =IFERROR(VLOOKUP(Cálculos!B81,IICA!$A$9:$G$1131,7,FALSE),"-") -> - | D81: =IFERROR(VLOOKUP(B81,CultIllic!$A$1:$K$1144,11,FALSE),"-") -> - | E81: =IFERROR(VLOOKUP(B81,MDM!$A$1:$S$1102,14,FALSE),"-") -> - | F81: =IFERROR(VLOOKUP(B81,Ruralidad!$A$1:$E$1123,5,FALSE),"-") -> - | G81: =IFERROR(VLOOKUP(B81,'NBI Rural'!$B$1:$E$1103,4,FALSE),"-") -> - | H81: =IFERROR(VLOOKUP(B81,ICV!$A$1:$G$1123,7,FALSE),"-") -> - | I81: =IFERROR(VLOOKUP(B81,Frontera!$A$1:$G$103,7,FALSE),"-") -> - | J81: =IFERROR(VLOOKUP(B81,ZNI!$A$4:$X$128,24,FALSE),"-") -> - | K81: =IFERROR(VLOOKUP(B81,Listas!$A$1:$J$1144,10,FALSE),0) -> 0 | L81: =IFERROR(INDEX(Brechas!$B$2:$AD$1145,MATCH(Cálculos!B81,Brechas!$A$2:$A$1145,0),MATCH(Calificación!$B$13,Brechas!$B$1:$AD$1,0)),"-") -> - | M81: =IFERROR(VLOOKUP(B81,Listas!$A$1:$I$1144,6,FALSE),"-") -> - | N81: =IFERROR(VLOOKUP(B81,Listas!$A$1:$I$1144,7,FALSE),"-") -> - | O81: =IFERROR(VLOOKUP(B81,Listas!$A$1:$I$1144,8,FALSE),"-") -> - | P81: =IFERROR(VLOOKUP(B81,'E&E 15_12_20'!$A$4:$Q$442,17,FALSE),"-") -> - | Q81: =IFERROR(VLOOKUP(B81,Puerto!$A$4:$C$22,3,FALSE),"-") -> - | R81: =IFERROR(VLOOKUP(B81,ZOMAC!$A$3:$K$346,11,FALSE),"-") -> - | T81: =IF(K81=0,0,IF(SUMPRODUCT(($K80:K81=K81)*1)>1,0,1)) -> 0
A82: Código DANE Entidad 78 | B82: =Calificación!B97 -> 0 | C82: =IFERROR(VLOOKUP(Cálculos!B82,IICA!$A$9:$G$1131,7,FALSE),"-") -> - | D82: =IFERROR(VLOOKUP(B82,CultIllic!$A$1:$K$1144,11,FALSE),"-") -> - | E82: =IFERROR(VLOOKUP(B82,MDM!$A$1:$S$1102,14,FALSE),"-") -> - | F82: =IFERROR(VLOOKUP(B82,Ruralidad!$A$1:$E$1123,5,FALSE),"-") -> - | G82: =IFERROR(VLOOKUP(B82,'NBI Rural'!$B$1:$E$1103,4,FALSE),"-") -> - | H82: =IFERROR(VLOOKUP(B82,ICV!$A$1:$G$1123,7,FALSE),"-") -> - | I82: =IFERROR(VLOOKUP(B82,Frontera!$A$1:$G$103,7,FALSE),"-") -> - | J82: =IFERROR(VLOOKUP(B82,ZNI!$A$4:$X$128,24,FALSE),"-") -> - | K82: =IFERROR(VLOOKUP(B82,Listas!$A$1:$J$1144,10,FALSE),0) -> 0 | L82: =IFERROR(INDEX(Brechas!$B$2:$AD$1145,MATCH(Cálculos!B82,Brechas!$A$2:$A$1145,0),MATCH(Calificación!$B$13,Brechas!$B$1:$AD$1,0)),"-") -> - | M82: =IFERROR(VLOOKUP(B82,Listas!$A$1:$I$1144,6,FALSE),"-") -> - | N82: =IFERROR(VLOOKUP(B82,Listas!$A$1:$I$1144,7,FALSE),"-") -> - | O82: =IFERROR(VLOOKUP(B82,Listas!$A$1:$I$1144,8,FALSE),"-") -> - | P82: =IFERROR(VLOOKUP(B82,'E&E 15_12_20'!$A$4:$Q$442,17,FALSE),"-") -> - | Q82: =IFERROR(VLOOKUP(B82,Puerto!$A$4:$C$22,3,FALSE),"-") -> - | R82: =IFERROR(VLOOKUP(B82,ZOMAC!$A$3:$K$346,11,FALSE),"-") -> - | T82: =IF(K82=0,0,IF(SUMPRODUCT(($K81:K82=K82)*1)>1,0,1)) -> 0
A83: Código DANE Entidad 79 | B83: =Calificación!B98 -> 0 | C83: =IFERROR(VLOOKUP(Cálculos!B83,IICA!$A$9:$G$1131,7,FALSE),"-") -> - | D83: =IFERROR(VLOOKUP(B83,CultIllic!$A$1:$K$1144,11,FALSE),"-") -> - | E83: =IFERROR(VLOOKUP(B83,MDM!$A$1:$S$1102,14,FALSE),"-") -> - | F83: =IFERROR(VLOOKUP(B83,Ruralidad!$A$1:$E$1123,5,FALSE),"-") -> - | G83: =IFERROR(VLOOKUP(B83,'NBI Rural'!$B$1:$E$1103,4,FALSE),"-") -> - | H83: =IFERROR(VLOOKUP(B83,ICV!$A$1:$G$1123,7,FALSE),"-") -> - | I83: =IFERROR(VLOOKUP(B83,Frontera!$A$1:$G$103,7,FALSE),"-") -> - | J83: =IFERROR(VLOOKUP(B83,ZNI!$A$4:$X$128,24,FALSE),"-") -> - | K83: =IFERROR(VLOOKUP(B83,Listas!$A$1:$J$1144,10,FALSE),0) -> 0 | L83: =IFERROR(INDEX(Brechas!$B$2:$AD$1145,MATCH(Cálculos!B83,Brechas!$A$2:$A$1145,0),MATCH(Calificación!$B$13,Brechas!$B$1:$AD$1,0)),"-") -> - | M83: =IFERROR(VLOOKUP(B83,Listas!$A$1:$I$1144,6,FALSE),"-") -> - | N83: =IFERROR(VLOOKUP(B83,Listas!$A$1:$I$1144,7,FALSE),"-") -> - | O83: =IFERROR(VLOOKUP(B83,Listas!$A$1:$I$1144,8,FALSE),"-") -> - | P83: =IFERROR(VLOOKUP(B83,'E&E 15_12_20'!$A$4:$Q$442,17,FALSE),"-") -> - | Q83: =IFERROR(VLOOKUP(B83,Puerto!$A$4:$C$22,3,FALSE),"-") -> - | R83: =IFERROR(VLOOKUP(B83,ZOMAC!$A$3:$K$346,11,FALSE),"-") -> - | T83: =IF(K83=0,0,IF(SUMPRODUCT(($K82:K83=K83)*1)>1,0,1)) -> 0
A84: Código DANE Entidad 80 | B84: =Calificación!B99 -> 0 | C84: =IFERROR(VLOOKUP(Cálculos!B84,IICA!$A$9:$G$1131,7,FALSE),"-") -> - | D84: =IFERROR(VLOOKUP(B84,CultIllic!$A$1:$K$1144,11,FALSE),"-") -> - | E84: =IFERROR(VLOOKUP(B84,MDM!$A$1:$S$1102,14,FALSE),"-") -> - | F84: =IFERROR(VLOOKUP(B84,Ruralidad!$A$1:$E$1123,5,FALSE),"-") -> - | G84: =IFERROR(VLOOKUP(B84,'NBI Rural'!$B$1:$E$1103,4,FALSE),"-") -> - | H84: =IFERROR(VLOOKUP(B84,ICV!$A$1:$G$1123,7,FALSE),"-") -> - | I84: =IFERROR(VLOOKUP(B84,Frontera!$A$1:$G$103,7,FALSE),"-") -> - | J84: =IFERROR(VLOOKUP(B84,ZNI!$A$4:$X$128,24,FALSE),"-") -> - | K84: =IFERROR(VLOOKUP(B84,Listas!$A$1:$J$1144,10,FALSE),0) -> 0 | L84: =IFERROR(INDEX(Brechas!$B$2:$AD$1145,MATCH(Cálculos!B84,Brechas!$A$2:$A$1145,0),MATCH(Calificación!$B$13,Brechas!$B$1:$AD$1,0)),"-") -> - | M84: =IFERROR(VLOOKUP(B84,Listas!$A$1:$I$1144,6,FALSE),"-") -> - | N84: =IFERROR(VLOOKUP(B84,Listas!$A$1:$I$1144,7,FALSE),"-") -> - | O84: =IFERROR(VLOOKUP(B84,Listas!$A$1:$I$1144,8,FALSE),"-") -> - | P84: =IFERROR(VLOOKUP(B84,'E&E 15_12_20'!$A$4:$Q$442,17,FALSE),"-") -> - | Q84: =IFERROR(VLOOKUP(B84,Puerto!$A$4:$C$22,3,FALSE),"-") -> - | R84: =IFERROR(VLOOKUP(B84,ZOMAC!$A$3:$K$346,11,FALSE),"-") -> - | T84: =IF(K84=0,0,IF(SUMPRODUCT(($K83:K84=K84)*1)>1,0,1)) -> 0
A85: Código DANE Entidad 81 | B85: =Calificación!B100 -> 0 | C85: =IFERROR(VLOOKUP(Cálculos!B85,IICA!$A$9:$G$1131,7,FALSE),"-") -> - | D85: =IFERROR(VLOOKUP(B85,CultIllic!$A$1:$K$1144,11,FALSE),"-") -> - | E85: =IFERROR(VLOOKUP(B85,MDM!$A$1:$S$1102,14,FALSE),"-") -> - | F85: =IFERROR(VLOOKUP(B85,Ruralidad!$A$1:$E$1123,5,FALSE),"-") -> - | G85: =IFERROR(VLOOKUP(B85,'NBI Rural'!$B$1:$E$1103,4,FALSE),"-") -> - | H85: =IFERROR(VLOOKUP(B85,ICV!$A$1:$G$1123,7,FALSE),"-") -> - | I85: =IFERROR(VLOOKUP(B85,Frontera!$A$1:$G$103,7,FALSE),"-") -> - | J85: =IFERROR(VLOOKUP(B85,ZNI!$A$4:$X$128,24,FALSE),"-") -> - | K85: =IFERROR(VLOOKUP(B85,Listas!$A$1:$J$1144,10,FALSE),0) -> 0 | L85: =IFERROR(INDEX(Brechas!$B$2:$AD$1145,MATCH(Cálculos!B85,Brechas!$A$2:$A$1145,0),MATCH(Calificación!$B$13,Brechas!$B$1:$AD$1,0)),"-") -> - | M85: =IFERROR(VLOOKUP(B85,Listas!$A$1:$I$1144,6,FALSE),"-") -> - | N85: =IFERROR(VLOOKUP(B85,Listas!$A$1:$I$1144,7,FALSE),"-") -> - | O85: =IFERROR(VLOOKUP(B85,Listas!$A$1:$I$1144,8,FALSE),"-") -> - | P85: =IFERROR(VLOOKUP(B85,'E&E 15_12_20'!$A$4:$Q$442,17,FALSE),"-") -> - | Q85: =IFERROR(VLOOKUP(B85,Puerto!$A$4:$C$22,3,FALSE),"-") -> - | R85: =IFERROR(VLOOKUP(B85,ZOMAC!$A$3:$K$346,11,FALSE),"-") -> - | T85: =IF(K85=0,0,IF(SUMPRODUCT(($K84:K85=K85)*1)>1,0,1)) -> 0
A86: Código DANE Entidad 82 | B86: =Calificación!B101 -> 0 | C86: =IFERROR(VLOOKUP(Cálculos!B86,IICA!$A$9:$G$1131,7,FALSE),"-") -> - | D86: =IFERROR(VLOOKUP(B86,CultIllic!$A$1:$K$1144,11,FALSE),"-") -> - | E86: =IFERROR(VLOOKUP(B86,MDM!$A$1:$S$1102,14,FALSE),"-") -> - | F86: =IFERROR(VLOOKUP(B86,Ruralidad!$A$1:$E$1123,5,FALSE),"-") -> - | G86: =IFERROR(VLOOKUP(B86,'NBI Rural'!$B$1:$E$1103,4,FALSE),"-") -> - | H86: =IFERROR(VLOOKUP(B86,ICV!$A$1:$G$1123,7,FALSE),"-") -> - | I86: =IFERROR(VLOOKUP(B86,Frontera!$A$1:$G$103,7,FALSE),"-") -> - | J86: =IFERROR(VLOOKUP(B86,ZNI!$A$4:$X$128,24,FALSE),"-") -> - | K86: =IFERROR(VLOOKUP(B86,Listas!$A$1:$J$1144,10,FALSE),0) -> 0 | L86: =IFERROR(INDEX(Brechas!$B$2:$AD$1145,MATCH(Cálculos!B86,Brechas!$A$2:$A$1145,0),MATCH(Calificación!$B$13,Brechas!$B$1:$AD$1,0)),"-") -> - | M86: =IFERROR(VLOOKUP(B86,Listas!$A$1:$I$1144,6,FALSE),"-") -> - | N86: =IFERROR(VLOOKUP(B86,Listas!$A$1:$I$1144,7,FALSE),"-") -> - | O86: =IFERROR(VLOOKUP(B86,Listas!$A$1:$I$1144,8,FALSE),"-") -> - | P86: =IFERROR(VLOOKUP(B86,'E&E 15_12_20'!$A$4:$Q$442,17,FALSE),"-") -> - | Q86: =IFERROR(VLOOKUP(B86,Puerto!$A$4:$C$22,3,FALSE),"-") -> - | R86: =IFERROR(VLOOKUP(B86,ZOMAC!$A$3:$K$346,11,FALSE),"-") -> - | T86: =IF(K86=0,0,IF(SUMPRODUCT(($K85:K86=K86)*1)>1,0,1)) -> 0
A87: Código DANE Entidad 83 | B87: =Calificación!B102 -> 0 | C87: =IFERROR(VLOOKUP(Cálculos!B87,IICA!$A$9:$G$1131,7,FALSE),"-") -> - | D87: =IFERROR(VLOOKUP(B87,CultIllic!$A$1:$K$1144,11,FALSE),"-") -> - | E87: =IFERROR(VLOOKUP(B87,MDM!$A$1:$S$1102,14,FALSE),"-") -> - | F87: =IFERROR(VLOOKUP(B87,Ruralidad!$A$1:$E$1123,5,FALSE),"-") -> - | G87: =IFERROR(VLOOKUP(B87,'NBI Rural'!$B$1:$E$1103,4,FALSE),"-") -> - | H87: =IFERROR(VLOOKUP(B87,ICV!$A$1:$G$1123,7,FALSE),"-") -> - | I87: =IFERROR(VLOOKUP(B87,Frontera!$A$1:$G$103,7,FALSE),"-") -> - | J87: =IFERROR(VLOOKUP(B87,ZNI!$A$4:$X$128,24,FALSE),"-") -> - | K87: =IFERROR(VLOOKUP(B87,Listas!$A$1:$J$1144,10,FALSE),0) -> 0 | L87: =IFERROR(INDEX(Brechas!$B$2:$AD$1145,MATCH(Cálculos!B87,Brechas!$A$2:$A$1145,0),MATCH(Calificación!$B$13,Brechas!$B$1:$AD$1,0)),"-") -> - | M87: =IFERROR(VLOOKUP(B87,Listas!$A$1:$I$1144,6,FALSE),"-") -> - | N87: =IFERROR(VLOOKUP(B87,Listas!$A$1:$I$1144,7,FALSE),"-") -> - | O87: =IFERROR(VLOOKUP(B87,Listas!$A$1:$I$1144,8,FALSE),"-") -> - | P87: =IFERROR(VLOOKUP(B87,'E&E 15_12_20'!$A$4:$Q$442,17,FALSE),"-") -> - | Q87: =IFERROR(VLOOKUP(B87,Puerto!$A$4:$C$22,3,FALSE),"-") -> - | R87: =IFERROR(VLOOKUP(B87,ZOMAC!$A$3:$K$346,11,FALSE),"-") -> - | T87: =IF(K87=0,0,IF(SUMPRODUCT(($K86:K87=K87)*1)>1,0,1)) -> 0
A88: Código DANE Entidad 84 | B88: =Calificación!B103 -> 0 | C88: =IFERROR(VLOOKUP(Cálculos!B88,IICA!$A$9:$G$1131,7,FALSE),"-") -> - | D88: =IFERROR(VLOOKUP(B88,CultIllic!$A$1:$K$1144,11,FALSE),"-") -> - | E88: =IFERROR(VLOOKUP(B88,MDM!$A$1:$S$1102,14,FALSE),"-") -> - | F88: =IFERROR(VLOOKUP(B88,Ruralidad!$A$1:$E$1123,5,FALSE),"-") -> - | G88: =IFERROR(VLOOKUP(B88,'NBI Rural'!$B$1:$E$1103,4,FALSE),"-") -> - | H88: =IFERROR(VLOOKUP(B88,ICV!$A$1:$G$1123,7,FALSE),"-") -> - | I88: =IFERROR(VLOOKUP(B88,Frontera!$A$1:$G$103,7,FALSE),"-") -> - | J88: =IFERROR(VLOOKUP(B88,ZNI!$A$4:$X$128,24,FALSE),"-") -> - | K88: =IFERROR(VLOOKUP(B88,Listas!$A$1:$J$1144,10,FALSE),0) -> 0 | L88: =IFERROR(INDEX(Brechas!$B$2:$AD$1145,MATCH(Cálculos!B88,Brechas!$A$2:$A$1145,0),MATCH(Calificación!$B$13,Brechas!$B$1:$AD$1,0)),"-") -> - | M88: =IFERROR(VLOOKUP(B88,Listas!$A$1:$I$1144,6,FALSE),"-") -> - | N88: =IFERROR(VLOOKUP(B88,Listas!$A$1:$I$1144,7,FALSE),"-") -> - | O88: =IFERROR(VLOOKUP(B88,Listas!$A$1:$I$1144,8,FALSE),"-") -> - | P88: =IFERROR(VLOOKUP(B88,'E&E 15_12_20'!$A$4:$Q$442,17,FALSE),"-") -> - | Q88: =IFERROR(VLOOKUP(B88,Puerto!$A$4:$C$22,3,FALSE),"-") -> - | R88: =IFERROR(VLOOKUP(B88,ZOMAC!$A$3:$K$346,11,FALSE),"-") -> - | T88: =IF(K88=0,0,IF(SUMPRODUCT(($K87:K88=K88)*1)>1,0,1)) -> 0
A89: Código DANE Entidad 85 | B89: =Calificación!B104 -> 0 | C89: =IFERROR(VLOOKUP(Cálculos!B89,IICA!$A$9:$G$1131,7,FALSE),"-") -> - | D89: =IFERROR(VLOOKUP(B89,CultIllic!$A$1:$K$1144,11,FALSE),"-") -> - | E89: =IFERROR(VLOOKUP(B89,MDM!$A$1:$S$1102,14,FALSE),"-") -> - | F89: =IFERROR(VLOOKUP(B89,Ruralidad!$A$1:$E$1123,5,FALSE),"-") -> - | G89: =IFERROR(VLOOKUP(B89,'NBI Rural'!$B$1:$E$1103,4,FALSE),"-") -> - | H89: =IFERROR(VLOOKUP(B89,ICV!$A$1:$G$1123,7,FALSE),"-") -> - | I89: =IFERROR(VLOOKUP(B89,Frontera!$A$1:$G$103,7,FALSE),"-") -> - | J89: =IFERROR(VLOOKUP(B89,ZNI!$A$4:$X$128,24,FALSE),"-") -> - | K89: =IFERROR(VLOOKUP(B89,Listas!$A$1:$J$1144,10,FALSE),0) -> 0 | L89: =IFERROR(INDEX(Brechas!$B$2:$AD$1145,MATCH(Cálculos!B89,Brechas!$A$2:$A$1145,0),MATCH(Calificación!$B$13,Brechas!$B$1:$AD$1,0)),"-") -> - | M89: =IFERROR(VLOOKUP(B89,Listas!$A$1:$I$1144,6,FALSE),"-") -> - | N89: =IFERROR(VLOOKUP(B89,Listas!$A$1:$I$1144,7,FALSE),"-") -> - | O89: =IFERROR(VLOOKUP(B89,Listas!$A$1:$I$1144,8,FALSE),"-") -> - | P89: =IFERROR(VLOOKUP(B89,'E&E 15_12_20'!$A$4:$Q$442,17,FALSE),"-") -> - | Q89: =IFERROR(VLOOKUP(B89,Puerto!$A$4:$C$22,3,FALSE),"-") -> - | R89: =IFERROR(VLOOKUP(B89,ZOMAC!$A$3:$K$346,11,FALSE),"-") -> - | T89: =IF(K89=0,0,IF(SUMPRODUCT(($K88:K89=K89)*1)>1,0,1)) -> 0
A90: Código DANE Entidad 86 | B90: =Calificación!B105 -> 0 | C90: =IFERROR(VLOOKUP(Cálculos!B90,IICA!$A$9:$G$1131,7,FALSE),"-") -> - | D90: =IFERROR(VLOOKUP(B90,CultIllic!$A$1:$K$1144,11,FALSE),"-") -> - | E90: =IFERROR(VLOOKUP(B90,MDM!$A$1:$S$1102,14,FALSE),"-") -> - | F90: =IFERROR(VLOOKUP(B90,Ruralidad!$A$1:$E$1123,5,FALSE),"-") -> - | G90: =IFERROR(VLOOKUP(B90,'NBI Rural'!$B$1:$E$1103,4,FALSE),"-") -> - | H90: =IFERROR(VLOOKUP(B90,ICV!$A$1:$G$1123,7,FALSE),"-") -> - | I90: =IFERROR(VLOOKUP(B90,Frontera!$A$1:$G$103,7,FALSE),"-") -> - | J90: =IFERROR(VLOOKUP(B90,ZNI!$A$4:$X$128,24,FALSE),"-") -> - | K90: =IFERROR(VLOOKUP(B90,Listas!$A$1:$J$1144,10,FALSE),0) -> 0 | L90: =IFERROR(INDEX(Brechas!$B$2:$AD$1145,MATCH(Cálculos!B90,Brechas!$A$2:$A$1145,0),MATCH(Calificación!$B$13,Brechas!$B$1:$AD$1,0)),"-") -> - | M90: =IFERROR(VLOOKUP(B90,Listas!$A$1:$I$1144,6,FALSE),"-") -> - | N90: =IFERROR(VLOOKUP(B90,Listas!$A$1:$I$1144,7,FALSE),"-") -> - | O90: =IFERROR(VLOOKUP(B90,Listas!$A$1:$I$1144,8,FALSE),"-") -> - | P90: =IFERROR(VLOOKUP(B90,'E&E 15_12_20'!$A$4:$Q$442,17,FALSE),"-") -> - | Q90: =IFERROR(VLOOKUP(B90,Puerto!$A$4:$C$22,3,FALSE),"-") -> - | R90: =IFERROR(VLOOKUP(B90,ZOMAC!$A$3:$K$346,11,FALSE),"-") -> - | T90: =IF(K90=0,0,IF(SUMPRODUCT(($K89:K90=K90)*1)>1,0,1)) -> 0
A91: Código DANE Entidad 87 | B91: =Calificación!B106 -> 0 | C91: =IFERROR(VLOOKUP(Cálculos!B91,IICA!$A$9:$G$1131,7,FALSE),"-") -> - | D91: =IFERROR(VLOOKUP(B91,CultIllic!$A$1:$K$1144,11,FALSE),"-") -> - | E91: =IFERROR(VLOOKUP(B91,MDM!$A$1:$S$1102,14,FALSE),"-") -> - | F91: =IFERROR(VLOOKUP(B91,Ruralidad!$A$1:$E$1123,5,FALSE),"-") -> - | G91: =IFERROR(VLOOKUP(B91,'NBI Rural'!$B$1:$E$1103,4,FALSE),"-") -> - | H91: =IFERROR(VLOOKUP(B91,ICV!$A$1:$G$1123,7,FALSE),"-") -> - | I91: =IFERROR(VLOOKUP(B91,Frontera!$A$1:$G$103,7,FALSE),"-") -> - | J91: =IFERROR(VLOOKUP(B91,ZNI!$A$4:$X$128,24,FALSE),"-") -> - | K91: =IFERROR(VLOOKUP(B91,Listas!$A$1:$J$1144,10,FALSE),0) -> 0 | L91: =IFERROR(INDEX(Brechas!$B$2:$AD$1145,MATCH(Cálculos!B91,Brechas!$A$2:$A$1145,0),MATCH(Calificación!$B$13,Brechas!$B$1:$AD$1,0)),"-") -> - | M91: =IFERROR(VLOOKUP(B91,Listas!$A$1:$I$1144,6,FALSE),"-") -> - | N91: =IFERROR(VLOOKUP(B91,Listas!$A$1:$I$1144,7,FALSE),"-") -> - | O91: =IFERROR(VLOOKUP(B91,Listas!$A$1:$I$1144,8,FALSE),"-") -> - | P91: =IFERROR(VLOOKUP(B91,'E&E 15_12_20'!$A$4:$Q$442,17,FALSE),"-") -> - | Q91: =IFERROR(VLOOKUP(B91,Puerto!$A$4:$C$22,3,FALSE),"-") -> - | R91: =IFERROR(VLOOKUP(B91,ZOMAC!$A$3:$K$346,11,FALSE),"-") -> - | T91: =IF(K91=0,0,IF(SUMPRODUCT(($K90:K91=K91)*1)>1,0,1)) -> 0
A92: Código DANE Entidad 88 | B92: =Calificación!B107 -> 0 | C92: =IFERROR(VLOOKUP(Cálculos!B92,IICA!$A$9:$G$1131,7,FALSE),"-") -> - | D92: =IFERROR(VLOOKUP(B92,CultIllic!$A$1:$K$1144,11,FALSE),"-") -> - | E92: =IFERROR(VLOOKUP(B92,MDM!$A$1:$S$1102,14,FALSE),"-") -> - | F92: =IFERROR(VLOOKUP(B92,Ruralidad!$A$1:$E$1123,5,FALSE),"-") -> - | G92: =IFERROR(VLOOKUP(B92,'NBI Rural'!$B$1:$E$1103,4,FALSE),"-") -> - | H92: =IFERROR(VLOOKUP(B92,ICV!$A$1:$G$1123,7,FALSE),"-") -> - | I92: =IFERROR(VLOOKUP(B92,Frontera!$A$1:$G$103,7,FALSE),"-") -> - | J92: =IFERROR(VLOOKUP(B92,ZNI!$A$4:$X$128,24,FALSE),"-") -> - | K92: =IFERROR(VLOOKUP(B92,Listas!$A$1:$J$1144,10,FALSE),0) -> 0 | L92: =IFERROR(INDEX(Brechas!$B$2:$AD$1145,MATCH(Cálculos!B92,Brechas!$A$2:$A$1145,0),MATCH(Calificación!$B$13,Brechas!$B$1:$AD$1,0)),"-") -> - | M92: =IFERROR(VLOOKUP(B92,Listas!$A$1:$I$1144,6,FALSE),"-") -> - | N92: =IFERROR(VLOOKUP(B92,Listas!$A$1:$I$1144,7,FALSE),"-") -> - | O92: =IFERROR(VLOOKUP(B92,Listas!$A$1:$I$1144,8,FALSE),"-") -> - | P92: =IFERROR(VLOOKUP(B92,'E&E 15_12_20'!$A$4:$Q$442,17,FALSE),"-") -> - | Q92: =IFERROR(VLOOKUP(B92,Puerto!$A$4:$C$22,3,FALSE),"-") -> - | R92: =IFERROR(VLOOKUP(B92,ZOMAC!$A$3:$K$346,11,FALSE),"-") -> - | T92: =IF(K92=0,0,IF(SUMPRODUCT(($K91:K92=K92)*1)>1,0,1)) -> 0
A93: Código DANE Entidad 89 | B93: =Calificación!B108 -> 0 | C93: =IFERROR(VLOOKUP(Cálculos!B93,IICA!$A$9:$G$1131,7,FALSE),"-") -> - | D93: =IFERROR(VLOOKUP(B93,CultIllic!$A$1:$K$1144,11,FALSE),"-") -> - | E93: =IFERROR(VLOOKUP(B93,MDM!$A$1:$S$1102,14,FALSE),"-") -> - | F93: =IFERROR(VLOOKUP(B93,Ruralidad!$A$1:$E$1123,5,FALSE),"-") -> - | G93: =IFERROR(VLOOKUP(B93,'NBI Rural'!$B$1:$E$1103,4,FALSE),"-") -> - | H93: =IFERROR(VLOOKUP(B93,ICV!$A$1:$G$1123,7,FALSE),"-") -> - | I93: =IFERROR(VLOOKUP(B93,Frontera!$A$1:$G$103,7,FALSE),"-") -> - | J93: =IFERROR(VLOOKUP(B93,ZNI!$A$4:$X$128,24,FALSE),"-") -> - | K93: =IFERROR(VLOOKUP(B93,Listas!$A$1:$J$1144,10,FALSE),0) -> 0 | L93: =IFERROR(INDEX(Brechas!$B$2:$AD$1145,MATCH(Cálculos!B93,Brechas!$A$2:$A$1145,0),MATCH(Calificación!$B$13,Brechas!$B$1:$AD$1,0)),"-") -> - | M93: =IFERROR(VLOOKUP(B93,Listas!$A$1:$I$1144,6,FALSE),"-") -> - | N93: =IFERROR(VLOOKUP(B93,Listas!$A$1:$I$1144,7,FALSE),"-") -> - | O93: =IFERROR(VLOOKUP(B93,Listas!$A$1:$I$1144,8,FALSE),"-") -> - | P93: =IFERROR(VLOOKUP(B93,'E&E 15_12_20'!$A$4:$Q$442,17,FALSE),"-") -> - | Q93: =IFERROR(VLOOKUP(B93,Puerto!$A$4:$C$22,3,FALSE),"-") -> - | R93: =IFERROR(VLOOKUP(B93,ZOMAC!$A$3:$K$346,11,FALSE),"-") -> - | T93: =IF(K93=0,0,IF(SUMPRODUCT(($K92:K93=K93)*1)>1,0,1)) -> 0
A94: Código DANE Entidad 90 | B94: =Calificación!B109 -> 0 | C94: =IFERROR(VLOOKUP(Cálculos!B94,IICA!$A$9:$G$1131,7,FALSE),"-") -> - | D94: =IFERROR(VLOOKUP(B94,CultIllic!$A$1:$K$1144,11,FALSE),"-") -> - | E94: =IFERROR(VLOOKUP(B94,MDM!$A$1:$S$1102,14,FALSE),"-") -> - | F94: =IFERROR(VLOOKUP(B94,Ruralidad!$A$1:$E$1123,5,FALSE),"-") -> - | G94: =IFERROR(VLOOKUP(B94,'NBI Rural'!$B$1:$E$1103,4,FALSE),"-") -> - | H94: =IFERROR(VLOOKUP(B94,ICV!$A$1:$G$1123,7,FALSE),"-") -> - | I94: =IFERROR(VLOOKUP(B94,Frontera!$A$1:$G$103,7,FALSE),"-") -> - | J94: =IFERROR(VLOOKUP(B94,ZNI!$A$4:$X$128,24,FALSE),"-") -> - | K94: =IFERROR(VLOOKUP(B94,Listas!$A$1:$J$1144,10,FALSE),0) -> 0 | L94: =IFERROR(INDEX(Brechas!$B$2:$AD$1145,MATCH(Cálculos!B94,Brechas!$A$2:$A$1145,0),MATCH(Calificación!$B$13,Brechas!$B$1:$AD$1,0)),"-") -> - | M94: =IFERROR(VLOOKUP(B94,Listas!$A$1:$I$1144,6,FALSE),"-") -> - | N94: =IFERROR(VLOOKUP(B94,Listas!$A$1:$I$1144,7,FALSE),"-") -> - | O94: =IFERROR(VLOOKUP(B94,Listas!$A$1:$I$1144,8,FALSE),"-") -> - | P94: =IFERROR(VLOOKUP(B94,'E&E 15_12_20'!$A$4:$Q$442,17,FALSE),"-") -> - | Q94: =IFERROR(VLOOKUP(B94,Puerto!$A$4:$C$22,3,FALSE),"-") -> - | R94: =IFERROR(VLOOKUP(B94,ZOMAC!$A$3:$K$346,11,FALSE),"-") -> - | T94: =IF(K94=0,0,IF(SUMPRODUCT(($K93:K94=K94)*1)>1,0,1)) -> 0
A95: Código DANE Entidad 91 | B95: =Calificación!B110 -> 0 | C95: =IFERROR(VLOOKUP(Cálculos!B95,IICA!$A$9:$G$1131,7,FALSE),"-") -> - | D95: =IFERROR(VLOOKUP(B95,CultIllic!$A$1:$K$1144,11,FALSE),"-") -> - | E95: =IFERROR(VLOOKUP(B95,MDM!$A$1:$S$1102,14,FALSE),"-") -> - | F95: =IFERROR(VLOOKUP(B95,Ruralidad!$A$1:$E$1123,5,FALSE),"-") -> - | G95: =IFERROR(VLOOKUP(B95,'NBI Rural'!$B$1:$E$1103,4,FALSE),"-") -> - | H95: =IFERROR(VLOOKUP(B95,ICV!$A$1:$G$1123,7,FALSE),"-") -> - | I95: =IFERROR(VLOOKUP(B95,Frontera!$A$1:$G$103,7,FALSE),"-") -> - | J95: =IFERROR(VLOOKUP(B95,ZNI!$A$4:$X$128,24,FALSE),"-") -> - | K95: =IFERROR(VLOOKUP(B95,Listas!$A$1:$J$1144,10,FALSE),0) -> 0 | L95: =IFERROR(INDEX(Brechas!$B$2:$AD$1145,MATCH(Cálculos!B95,Brechas!$A$2:$A$1145,0),MATCH(Calificación!$B$13,Brechas!$B$1:$AD$1,0)),"-") -> - | M95: =IFERROR(VLOOKUP(B95,Listas!$A$1:$I$1144,6,FALSE),"-") -> - | N95: =IFERROR(VLOOKUP(B95,Listas!$A$1:$I$1144,7,FALSE),"-") -> - | O95: =IFERROR(VLOOKUP(B95,Listas!$A$1:$I$1144,8,FALSE),"-") -> - | P95: =IFERROR(VLOOKUP(B95,'E&E 15_12_20'!$A$4:$Q$442,17,FALSE),"-") -> - | Q95: =IFERROR(VLOOKUP(B95,Puerto!$A$4:$C$22,3,FALSE),"-") -> - | R95: =IFERROR(VLOOKUP(B95,ZOMAC!$A$3:$K$346,11,FALSE),"-") -> - | T95: =IF(K95=0,0,IF(SUMPRODUCT(($K94:K95=K95)*1)>1,0,1)) -> 0
A96: Código DANE Entidad 92 | B96: =Calificación!B111 -> 0 | C96: =IFERROR(VLOOKUP(Cálculos!B96,IICA!$A$9:$G$1131,7,FALSE),"-") -> - | D96: =IFERROR(VLOOKUP(B96,CultIllic!$A$1:$K$1144,11,FALSE),"-") -> - | E96: =IFERROR(VLOOKUP(B96,MDM!$A$1:$S$1102,14,FALSE),"-") -> - | F96: =IFERROR(VLOOKUP(B96,Ruralidad!$A$1:$E$1123,5,FALSE),"-") -> - | G96: =IFERROR(VLOOKUP(B96,'NBI Rural'!$B$1:$E$1103,4,FALSE),"-") -> - | H96: =IFERROR(VLOOKUP(B96,ICV!$A$1:$G$1123,7,FALSE),"-") -> - | I96: =IFERROR(VLOOKUP(B96,Frontera!$A$1:$G$103,7,FALSE),"-") -> - | J96: =IFERROR(VLOOKUP(B96,ZNI!$A$4:$X$128,24,FALSE),"-") -> - | K96: =IFERROR(VLOOKUP(B96,Listas!$A$1:$J$1144,10,FALSE),0) -> 0 | L96: =IFERROR(INDEX(Brechas!$B$2:$AD$1145,MATCH(Cálculos!B96,Brechas!$A$2:$A$1145,0),MATCH(Calificación!$B$13,Brechas!$B$1:$AD$1,0)),"-") -> - | M96: =IFERROR(VLOOKUP(B96,Listas!$A$1:$I$1144,6,FALSE),"-") -> - | N96: =IFERROR(VLOOKUP(B96,Listas!$A$1:$I$1144,7,FALSE),"-") -> - | O96: =IFERROR(VLOOKUP(B96,Listas!$A$1:$I$1144,8,FALSE),"-") -> - | P96: =IFERROR(VLOOKUP(B96,'E&E 15_12_20'!$A$4:$Q$442,17,FALSE),"-") -> - | Q96: =IFERROR(VLOOKUP(B96,Puerto!$A$4:$C$22,3,FALSE),"-") -> - | R96: =IFERROR(VLOOKUP(B96,ZOMAC!$A$3:$K$346,11,FALSE),"-") -> - | T96: =IF(K96=0,0,IF(SUMPRODUCT(($K95:K96=K96)*1)>1,0,1)) -> 0
A97: Código DANE Entidad 93 | B97: =Calificación!B112 -> 0 | C97: =IFERROR(VLOOKUP(Cálculos!B97,IICA!$A$9:$G$1131,7,FALSE),"-") -> - | D97: =IFERROR(VLOOKUP(B97,CultIllic!$A$1:$K$1144,11,FALSE),"-") -> - | E97: =IFERROR(VLOOKUP(B97,MDM!$A$1:$S$1102,14,FALSE),"-") -> - | F97: =IFERROR(VLOOKUP(B97,Ruralidad!$A$1:$E$1123,5,FALSE),"-") -> - | G97: =IFERROR(VLOOKUP(B97,'NBI Rural'!$B$1:$E$1103,4,FALSE),"-") -> - | H97: =IFERROR(VLOOKUP(B97,ICV!$A$1:$G$1123,7,FALSE),"-") -> - | I97: =IFERROR(VLOOKUP(B97,Frontera!$A$1:$G$103,7,FALSE),"-") -> - | J97: =IFERROR(VLOOKUP(B97,ZNI!$A$4:$X$128,24,FALSE),"-") -> - | K97: =IFERROR(VLOOKUP(B97,Listas!$A$1:$J$1144,10,FALSE),0) -> 0 | L97: =IFERROR(INDEX(Brechas!$B$2:$AD$1145,MATCH(Cálculos!B97,Brechas!$A$2:$A$1145,0),MATCH(Calificación!$B$13,Brechas!$B$1:$AD$1,0)),"-") -> - | M97: =IFERROR(VLOOKUP(B97,Listas!$A$1:$I$1144,6,FALSE),"-") -> - | N97: =IFERROR(VLOOKUP(B97,Listas!$A$1:$I$1144,7,FALSE),"-") -> - | O97: =IFERROR(VLOOKUP(B97,Listas!$A$1:$I$1144,8,FALSE),"-") -> - | P97: =IFERROR(VLOOKUP(B97,'E&E 15_12_20'!$A$4:$Q$442,17,FALSE),"-") -> - | Q97: =IFERROR(VLOOKUP(B97,Puerto!$A$4:$C$22,3,FALSE),"-") -> - | R97: =IFERROR(VLOOKUP(B97,ZOMAC!$A$3:$K$346,11,FALSE),"-") -> - | T97: =IF(K97=0,0,IF(SUMPRODUCT(($K96:K97=K97)*1)>1,0,1)) -> 0
A98: Código DANE Entidad 94 | B98: =Calificación!B113 -> 0 | C98: =IFERROR(VLOOKUP(Cálculos!B98,IICA!$A$9:$G$1131,7,FALSE),"-") -> - | D98: =IFERROR(VLOOKUP(B98,CultIllic!$A$1:$K$1144,11,FALSE),"-") -> - | E98: =IFERROR(VLOOKUP(B98,MDM!$A$1:$S$1102,14,FALSE),"-") -> - | F98: =IFERROR(VLOOKUP(B98,Ruralidad!$A$1:$E$1123,5,FALSE),"-") -> - | G98: =IFERROR(VLOOKUP(B98,'NBI Rural'!$B$1:$E$1103,4,FALSE),"-") -> - | H98: =IFERROR(VLOOKUP(B98,ICV!$A$1:$G$1123,7,FALSE),"-") -> - | I98: =IFERROR(VLOOKUP(B98,Frontera!$A$1:$G$103,7,FALSE),"-") -> - | J98: =IFERROR(VLOOKUP(B98,ZNI!$A$4:$X$128,24,FALSE),"-") -> - | K98: =IFERROR(VLOOKUP(B98,Listas!$A$1:$J$1144,10,FALSE),0) -> 0 | L98: =IFERROR(INDEX(Brechas!$B$2:$AD$1145,MATCH(Cálculos!B98,Brechas!$A$2:$A$1145,0),MATCH(Calificación!$B$13,Brechas!$B$1:$AD$1,0)),"-") -> - | M98: =IFERROR(VLOOKUP(B98,Listas!$A$1:$I$1144,6,FALSE),"-") -> - | N98: =IFERROR(VLOOKUP(B98,Listas!$A$1:$I$1144,7,FALSE),"-") -> - | O98: =IFERROR(VLOOKUP(B98,Listas!$A$1:$I$1144,8,FALSE),"-") -> - | P98: =IFERROR(VLOOKUP(B98,'E&E 15_12_20'!$A$4:$Q$442,17,FALSE),"-") -> - | Q98: =IFERROR(VLOOKUP(B98,Puerto!$A$4:$C$22,3,FALSE),"-") -> - | R98: =IFERROR(VLOOKUP(B98,ZOMAC!$A$3:$K$346,11,FALSE),"-") -> - | T98: =IF(K98=0,0,IF(SUMPRODUCT(($K97:K98=K98)*1)>1,0,1)) -> 0
A99: Código DANE Entidad 95 | B99: =Calificación!B114 -> 0 | C99: =IFERROR(VLOOKUP(Cálculos!B99,IICA!$A$9:$G$1131,7,FALSE),"-") -> - | D99: =IFERROR(VLOOKUP(B99,CultIllic!$A$1:$K$1144,11,FALSE),"-") -> - | E99: =IFERROR(VLOOKUP(B99,MDM!$A$1:$S$1102,14,FALSE),"-") -> - | F99: =IFERROR(VLOOKUP(B99,Ruralidad!$A$1:$E$1123,5,FALSE),"-") -> - | G99: =IFERROR(VLOOKUP(B99,'NBI Rural'!$B$1:$E$1103,4,FALSE),"-") -> - | H99: =IFERROR(VLOOKUP(B99,ICV!$A$1:$G$1123,7,FALSE),"-") -> - | I99: =IFERROR(VLOOKUP(B99,Frontera!$A$1:$G$103,7,FALSE),"-") -> - | J99: =IFERROR(VLOOKUP(B99,ZNI!$A$4:$X$128,24,FALSE),"-") -> - | K99: =IFERROR(VLOOKUP(B99,Listas!$A$1:$J$1144,10,FALSE),0) -> 0 | L99: =IFERROR(INDEX(Brechas!$B$2:$AD$1145,MATCH(Cálculos!B99,Brechas!$A$2:$A$1145,0),MATCH(Calificación!$B$13,Brechas!$B$1:$AD$1,0)),"-") -> - | M99: =IFERROR(VLOOKUP(B99,Listas!$A$1:$I$1144,6,FALSE),"-") -> - | N99: =IFERROR(VLOOKUP(B99,Listas!$A$1:$I$1144,7,FALSE),"-") -> - | O99: =IFERROR(VLOOKUP(B99,Listas!$A$1:$I$1144,8,FALSE),"-") -> - | P99: =IFERROR(VLOOKUP(B99,'E&E 15_12_20'!$A$4:$Q$442,17,FALSE),"-") -> - | Q99: =IFERROR(VLOOKUP(B99,Puerto!$A$4:$C$22,3,FALSE),"-") -> - | R99: =IFERROR(VLOOKUP(B99,ZOMAC!$A$3:$K$346,11,FALSE),"-") -> - | T99: =IF(K99=0,0,IF(SUMPRODUCT(($K98:K99=K99)*1)>1,0,1)) -> 0
A100: Código DANE Entidad 96 | B100: =Calificación!B115 -> 0 | C100: =IFERROR(VLOOKUP(Cálculos!B100,IICA!$A$9:$G$1131,7,FALSE),"-") -> - | D100: =IFERROR(VLOOKUP(B100,CultIllic!$A$1:$K$1144,11,FALSE),"-") -> - | E100: =IFERROR(VLOOKUP(B100,MDM!$A$1:$S$1102,14,FALSE),"-") -> - | F100: =IFERROR(VLOOKUP(B100,Ruralidad!$A$1:$E$1123,5,FALSE),"-") -> - | G100: =IFERROR(VLOOKUP(B100,'NBI Rural'!$B$1:$E$1103,4,FALSE),"-") -> - | H100: =IFERROR(VLOOKUP(B100,ICV!$A$1:$G$1123,7,FALSE),"-") -> - | I100: =IFERROR(VLOOKUP(B100,Frontera!$A$1:$G$103,7,FALSE),"-") -> - | J100: =IFERROR(VLOOKUP(B100,ZNI!$A$4:$X$128,24,FALSE),"-") -> - | K100: =IFERROR(VLOOKUP(B100,Listas!$A$1:$J$1144,10,FALSE),0) -> 0 | L100: =IFERROR(INDEX(Brechas!$B$2:$AD$1145,MATCH(Cálculos!B100,Brechas!$A$2:$A$1145,0),MATCH(Calificación!$B$13,Brechas!$B$1:$AD$1,0)),"-") -> - | M100: =IFERROR(VLOOKUP(B100,Listas!$A$1:$I$1144,6,FALSE),"-") -> - | N100: =IFERROR(VLOOKUP(B100,Listas!$A$1:$I$1144,7,FALSE),"-") -> - | O100: =IFERROR(VLOOKUP(B100,Listas!$A$1:$I$1144,8,FALSE),"-") -> - | P100: =IFERROR(VLOOKUP(B100,'E&E 15_12_20'!$A$4:$Q$442,17,FALSE),"-") -> - | Q100: =IFERROR(VLOOKUP(B100,Puerto!$A$4:$C$22,3,FALSE),"-") -> - | R100: =IFERROR(VLOOKUP(B100,ZOMAC!$A$3:$K$346,11,FALSE),"-") -> - | T100: =IF(K100=0,0,IF(SUMPRODUCT(($K99:K100=K100)*1)>1,0,1)) -> 0
A101: Código DANE Entidad 97 | B101: =Calificación!B116 -> 0 | C101: =IFERROR(VLOOKUP(Cálculos!B101,IICA!$A$9:$G$1131,7,FALSE),"-") -> - | D101: =IFERROR(VLOOKUP(B101,CultIllic!$A$1:$K$1144,11,FALSE),"-") -> - | E101: =IFERROR(VLOOKUP(B101,MDM!$A$1:$S$1102,14,FALSE),"-") -> - | F101: =IFERROR(VLOOKUP(B101,Ruralidad!$A$1:$E$1123,5,FALSE),"-") -> - | G101: =IFERROR(VLOOKUP(B101,'NBI Rural'!$B$1:$E$1103,4,FALSE),"-") -> - | H101: =IFERROR(VLOOKUP(B101,ICV!$A$1:$G$1123,7,FALSE),"-") -> - | I101: =IFERROR(VLOOKUP(B101,Frontera!$A$1:$G$103,7,FALSE),"-") -> - | J101: =IFERROR(VLOOKUP(B101,ZNI!$A$4:$X$128,24,FALSE),"-") -> - | K101: =IFERROR(VLOOKUP(B101,Listas!$A$1:$J$1144,10,FALSE),0) -> 0 | L101: =IFERROR(INDEX(Brechas!$B$2:$AD$1145,MATCH(Cálculos!B101,Brechas!$A$2:$A$1145,0),MATCH(Calificación!$B$13,Brechas!$B$1:$AD$1,0)),"-") -> - | M101: =IFERROR(VLOOKUP(B101,Listas!$A$1:$I$1144,6,FALSE),"-") -> - | N101: =IFERROR(VLOOKUP(B101,Listas!$A$1:$I$1144,7,FALSE),"-") -> - | O101: =IFERROR(VLOOKUP(B101,Listas!$A$1:$I$1144,8,FALSE),"-") -> - | P101: =IFERROR(VLOOKUP(B101,'E&E 15_12_20'!$A$4:$Q$442,17,FALSE),"-") -> - | Q101: =IFERROR(VLOOKUP(B101,Puerto!$A$4:$C$22,3,FALSE),"-") -> - | R101: =IFERROR(VLOOKUP(B101,ZOMAC!$A$3:$K$346,11,FALSE),"-") -> - | T101: =IF(K101=0,0,IF(SUMPRODUCT(($K100:K101=K101)*1)>1,0,1)) -> 0
A102: Código DANE Entidad 98 | B102: =Calificación!B117 -> 0 | C102: =IFERROR(VLOOKUP(Cálculos!B102,IICA!$A$9:$G$1131,7,FALSE),"-") -> - | D102: =IFERROR(VLOOKUP(B102,CultIllic!$A$1:$K$1144,11,FALSE),"-") -> - | E102: =IFERROR(VLOOKUP(B102,MDM!$A$1:$S$1102,14,FALSE),"-") -> - | F102: =IFERROR(VLOOKUP(B102,Ruralidad!$A$1:$E$1123,5,FALSE),"-") -> - | G102: =IFERROR(VLOOKUP(B102,'NBI Rural'!$B$1:$E$1103,4,FALSE),"-") -> - | H102: =IFERROR(VLOOKUP(B102,ICV!$A$1:$G$1123,7,FALSE),"-") -> - | I102: =IFERROR(VLOOKUP(B102,Frontera!$A$1:$G$103,7,FALSE),"-") -> - | J102: =IFERROR(VLOOKUP(B102,ZNI!$A$4:$X$128,24,FALSE),"-") -> - | K102: =IFERROR(VLOOKUP(B102,Listas!$A$1:$J$1144,10,FALSE),0) -> 0 | L102: =IFERROR(INDEX(Brechas!$B$2:$AD$1145,MATCH(Cálculos!B102,Brechas!$A$2:$A$1145,0),MATCH(Calificación!$B$13,Brechas!$B$1:$AD$1,0)),"-") -> - | M102: =IFERROR(VLOOKUP(B102,Listas!$A$1:$I$1144,6,FALSE),"-") -> - | N102: =IFERROR(VLOOKUP(B102,Listas!$A$1:$I$1144,7,FALSE),"-") -> - | O102: =IFERROR(VLOOKUP(B102,Listas!$A$1:$I$1144,8,FALSE),"-") -> - | P102: =IFERROR(VLOOKUP(B102,'E&E 15_12_20'!$A$4:$Q$442,17,FALSE),"-") -> - | Q102: =IFERROR(VLOOKUP(B102,Puerto!$A$4:$C$22,3,FALSE),"-") -> - | R102: =IFERROR(VLOOKUP(B102,ZOMAC!$A$3:$K$346,11,FALSE),"-") -> - | T102: =IF(K102=0,0,IF(SUMPRODUCT(($K101:K102=K102)*1)>1,0,1)) -> 0
A103: Código DANE Entidad 99 | B103: =Calificación!B118 -> 0 | C103: =IFERROR(VLOOKUP(Cálculos!B103,IICA!$A$9:$G$1131,7,FALSE),"-") -> - | D103: =IFERROR(VLOOKUP(B103,CultIllic!$A$1:$K$1144,11,FALSE),"-") -> - | E103: =IFERROR(VLOOKUP(B103,MDM!$A$1:$S$1102,14,FALSE),"-") -> - | F103: =IFERROR(VLOOKUP(B103,Ruralidad!$A$1:$E$1123,5,FALSE),"-") -> - | G103: =IFERROR(VLOOKUP(B103,'NBI Rural'!$B$1:$E$1103,4,FALSE),"-") -> - | H103: =IFERROR(VLOOKUP(B103,ICV!$A$1:$G$1123,7,FALSE),"-") -> - | I103: =IFERROR(VLOOKUP(B103,Frontera!$A$1:$G$103,7,FALSE),"-") -> - | J103: =IFERROR(VLOOKUP(B103,ZNI!$A$4:$X$128,24,FALSE),"-") -> - | K103: =IFERROR(VLOOKUP(B103,Listas!$A$1:$J$1144,10,FALSE),0) -> 0 | L103: =IFERROR(INDEX(Brechas!$B$2:$AD$1145,MATCH(Cálculos!B103,Brechas!$A$2:$A$1145,0),MATCH(Calificación!$B$13,Brechas!$B$1:$AD$1,0)),"-") -> - | M103: =IFERROR(VLOOKUP(B103,Listas!$A$1:$I$1144,6,FALSE),"-") -> - | N103: =IFERROR(VLOOKUP(B103,Listas!$A$1:$I$1144,7,FALSE),"-") -> - | O103: =IFERROR(VLOOKUP(B103,Listas!$A$1:$I$1144,8,FALSE),"-") -> - | P103: =IFERROR(VLOOKUP(B103,'E&E 15_12_20'!$A$4:$Q$442,17,FALSE),"-") -> - | Q103: =IFERROR(VLOOKUP(B103,Puerto!$A$4:$C$22,3,FALSE),"-") -> - | R103: =IFERROR(VLOOKUP(B103,ZOMAC!$A$3:$K$346,11,FALSE),"-") -> - | T103: =IF(K103=0,0,IF(SUMPRODUCT(($K102:K103=K103)*1)>1,0,1)) -> 0
A104: Código DANE Entidad 100 | B104: =Calificación!B119 -> 0 | C104: =IFERROR(VLOOKUP(Cálculos!B104,IICA!$A$9:$G$1131,7,FALSE),"-") -> - | D104: =IFERROR(VLOOKUP(B104,CultIllic!$A$1:$K$1144,11,FALSE),"-") -> - | E104: =IFERROR(VLOOKUP(B104,MDM!$A$1:$S$1102,14,FALSE),"-") -> - | F104: =IFERROR(VLOOKUP(B104,Ruralidad!$A$1:$E$1123,5,FALSE),"-") -> - | G104: =IFERROR(VLOOKUP(B104,'NBI Rural'!$B$1:$E$1103,4,FALSE),"-") -> - | H104: =IFERROR(VLOOKUP(B104,ICV!$A$1:$G$1123,7,FALSE),"-") -> - | I104: =IFERROR(VLOOKUP(B104,Frontera!$A$1:$G$103,7,FALSE),"-") -> - | J104: =IFERROR(VLOOKUP(B104,ZNI!$A$4:$X$128,24,FALSE),"-") -> - | K104: =IFERROR(VLOOKUP(B104,Listas!$A$1:$J$1144,10,FALSE),0) -> 0 | L104: =IFERROR(INDEX(Brechas!$B$2:$AD$1145,MATCH(Cálculos!B104,Brechas!$A$2:$A$1145,0),MATCH(Calificación!$B$13,Brechas!$B$1:$AD$1,0)),"-") -> - | M104: =IFERROR(VLOOKUP(B104,Listas!$A$1:$I$1144,6,FALSE),"-") -> - | N104: =IFERROR(VLOOKUP(B104,Listas!$A$1:$I$1144,7,FALSE),"-") -> - | O104: =IFERROR(VLOOKUP(B104,Listas!$A$1:$I$1144,8,FALSE),"-") -> - | P104: =IFERROR(VLOOKUP(B104,'E&E 15_12_20'!$A$4:$Q$442,17,FALSE),"-") -> - | Q104: =IFERROR(VLOOKUP(B104,Puerto!$A$4:$C$22,3,FALSE),"-") -> - | R104: =IFERROR(VLOOKUP(B104,ZOMAC!$A$3:$K$346,11,FALSE),"-") -> - | T104: =IF(K104=0,0,IF(SUMPRODUCT(($K103:K104=K104)*1)>1,0,1)) -> 0
A105: Código DANE Entidad 101 | B105: =Calificación!B120 -> 0 | C105: =IFERROR(VLOOKUP(Cálculos!B105,IICA!$A$9:$G$1131,7,FALSE),"-") -> - | D105: =IFERROR(VLOOKUP(B105,CultIllic!$A$1:$K$1144,11,FALSE),"-") -> - | E105: =IFERROR(VLOOKUP(B105,MDM!$A$1:$S$1102,14,FALSE),"-") -> - | F105: =IFERROR(VLOOKUP(B105,Ruralidad!$A$1:$E$1123,5,FALSE),"-") -> - | G105: =IFERROR(VLOOKUP(B105,'NBI Rural'!$B$1:$E$1103,4,FALSE),"-") -> - | H105: =IFERROR(VLOOKUP(B105,ICV!$A$1:$G$1123,7,FALSE),"-") -> - | I105: =IFERROR(VLOOKUP(B105,Frontera!$A$1:$G$103,7,FALSE),"-") -> - | J105: =IFERROR(VLOOKUP(B105,ZNI!$A$4:$X$128,24,FALSE),"-") -> - | K105: =IFERROR(VLOOKUP(B105,Listas!$A$1:$J$1144,10,FALSE),0) -> 0 | L105: =IFERROR(INDEX(Brechas!$B$2:$AD$1145,MATCH(Cálculos!B105,Brechas!$A$2:$A$1145,0),MATCH(Calificación!$B$13,Brechas!$B$1:$AD$1,0)),"-") -> - | M105: =IFERROR(VLOOKUP(B105,Listas!$A$1:$I$1144,6,FALSE),"-") -> - | N105: =IFERROR(VLOOKUP(B105,Listas!$A$1:$I$1144,7,FALSE),"-") -> - | O105: =IFERROR(VLOOKUP(B105,Listas!$A$1:$I$1144,8,FALSE),"-") -> - | P105: =IFERROR(VLOOKUP(B105,'E&E 15_12_20'!$A$4:$Q$442,17,FALSE),"-") -> - | Q105: =IFERROR(VLOOKUP(B105,Puerto!$A$4:$C$22,3,FALSE),"-") -> - | R105: =IFERROR(VLOOKUP(B105,ZOMAC!$A$3:$K$346,11,FALSE),"-") -> - | T105: =IF(K105=0,0,IF(SUMPRODUCT(($K104:K105=K105)*1)>1,0,1)) -> 0
A106: Código DANE Entidad 102 | B106: =Calificación!B121 -> 0 | C106: =IFERROR(VLOOKUP(Cálculos!B106,IICA!$A$9:$G$1131,7,FALSE),"-") -> - | D106: =IFERROR(VLOOKUP(B106,CultIllic!$A$1:$K$1144,11,FALSE),"-") -> - | E106: =IFERROR(VLOOKUP(B106,MDM!$A$1:$S$1102,14,FALSE),"-") -> - | F106: =IFERROR(VLOOKUP(B106,Ruralidad!$A$1:$E$1123,5,FALSE),"-") -> - | G106: =IFERROR(VLOOKUP(B106,'NBI Rural'!$B$1:$E$1103,4,FALSE),"-") -> - | H106: =IFERROR(VLOOKUP(B106,ICV!$A$1:$G$1123,7,FALSE),"-") -> - | I106: =IFERROR(VLOOKUP(B106,Frontera!$A$1:$G$103,7,FALSE),"-") -> - | J106: =IFERROR(VLOOKUP(B106,ZNI!$A$4:$X$128,24,FALSE),"-") -> - | K106: =IFERROR(VLOOKUP(B106,Listas!$A$1:$J$1144,10,FALSE),0) -> 0 | L106: =IFERROR(INDEX(Brechas!$B$2:$AD$1145,MATCH(Cálculos!B106,Brechas!$A$2:$A$1145,0),MATCH(Calificación!$B$13,Brechas!$B$1:$AD$1,0)),"-") -> - | M106: =IFERROR(VLOOKUP(B106,Listas!$A$1:$I$1144,6,FALSE),"-") -> - | N106: =IFERROR(VLOOKUP(B106,Listas!$A$1:$I$1144,7,FALSE),"-") -> - | O106: =IFERROR(VLOOKUP(B106,Listas!$A$1:$I$1144,8,FALSE),"-") -> - | P106: =IFERROR(VLOOKUP(B106,'E&E 15_12_20'!$A$4:$Q$442,17,FALSE),"-") -> - | Q106: =IFERROR(VLOOKUP(B106,Puerto!$A$4:$C$22,3,FALSE),"-") -> - | R106: =IFERROR(VLOOKUP(B106,ZOMAC!$A$3:$K$346,11,FALSE),"-") -> - | T106: =IF(K106=0,0,IF(SUMPRODUCT(($K105:K106=K106)*1)>1,0,1)) -> 0
A107: Código DANE Entidad 103 | B107: =Calificación!B122 -> 0 | C107: =IFERROR(VLOOKUP(Cálculos!B107,IICA!$A$9:$G$1131,7,FALSE),"-") -> - | D107: =IFERROR(VLOOKUP(B107,CultIllic!$A$1:$K$1144,11,FALSE),"-") -> - | E107: =IFERROR(VLOOKUP(B107,MDM!$A$1:$S$1102,14,FALSE),"-") -> - | F107: =IFERROR(VLOOKUP(B107,Ruralidad!$A$1:$E$1123,5,FALSE),"-") -> - | G107: =IFERROR(VLOOKUP(B107,'NBI Rural'!$B$1:$E$1103,4,FALSE),"-") -> - | H107: =IFERROR(VLOOKUP(B107,ICV!$A$1:$G$1123,7,FALSE),"-") -> - | I107: =IFERROR(VLOOKUP(B107,Frontera!$A$1:$G$103,7,FALSE),"-") -> - | J107: =IFERROR(VLOOKUP(B107,ZNI!$A$4:$X$128,24,FALSE),"-") -> - | K107: =IFERROR(VLOOKUP(B107,Listas!$A$1:$J$1144,10,FALSE),0) -> 0 | L107: =IFERROR(INDEX(Brechas!$B$2:$AD$1145,MATCH(Cálculos!B107,Brechas!$A$2:$A$1145,0),MATCH(Calificación!$B$13,Brechas!$B$1:$AD$1,0)),"-") -> - | M107: =IFERROR(VLOOKUP(B107,Listas!$A$1:$I$1144,6,FALSE),"-") -> - | N107: =IFERROR(VLOOKUP(B107,Listas!$A$1:$I$1144,7,FALSE),"-") -> - | O107: =IFERROR(VLOOKUP(B107,Listas!$A$1:$I$1144,8,FALSE),"-") -> - | P107: =IFERROR(VLOOKUP(B107,'E&E 15_12_20'!$A$4:$Q$442,17,FALSE),"-") -> - | Q107: =IFERROR(VLOOKUP(B107,Puerto!$A$4:$C$22,3,FALSE),"-") -> - | R107: =IFERROR(VLOOKUP(B107,ZOMAC!$A$3:$K$346,11,FALSE),"-") -> - | T107: =IF(K107=0,0,IF(SUMPRODUCT(($K106:K107=K107)*1)>1,0,1)) -> 0
A108: Código DANE Entidad 104 | B108: =Calificación!B123 -> 0 | C108: =IFERROR(VLOOKUP(Cálculos!B108,IICA!$A$9:$G$1131,7,FALSE),"-") -> - | D108: =IFERROR(VLOOKUP(B108,CultIllic!$A$1:$K$1144,11,FALSE),"-") -> - | E108: =IFERROR(VLOOKUP(B108,MDM!$A$1:$S$1102,14,FALSE),"-") -> - | F108: =IFERROR(VLOOKUP(B108,Ruralidad!$A$1:$E$1123,5,FALSE),"-") -> - | G108: =IFERROR(VLOOKUP(B108,'NBI Rural'!$B$1:$E$1103,4,FALSE),"-") -> - | H108: =IFERROR(VLOOKUP(B108,ICV!$A$1:$G$1123,7,FALSE),"-") -> - | I108: =IFERROR(VLOOKUP(B108,Frontera!$A$1:$G$103,7,FALSE),"-") -> - | J108: =IFERROR(VLOOKUP(B108,ZNI!$A$4:$X$128,24,FALSE),"-") -> - | K108: =IFERROR(VLOOKUP(B108,Listas!$A$1:$J$1144,10,FALSE),0) -> 0 | L108: =IFERROR(INDEX(Brechas!$B$2:$AD$1145,MATCH(Cálculos!B108,Brechas!$A$2:$A$1145,0),MATCH(Calificación!$B$13,Brechas!$B$1:$AD$1,0)),"-") -> - | M108: =IFERROR(VLOOKUP(B108,Listas!$A$1:$I$1144,6,FALSE),"-") -> - | N108: =IFERROR(VLOOKUP(B108,Listas!$A$1:$I$1144,7,FALSE),"-") -> - | O108: =IFERROR(VLOOKUP(B108,Listas!$A$1:$I$1144,8,FALSE),"-") -> - | P108: =IFERROR(VLOOKUP(B108,'E&E 15_12_20'!$A$4:$Q$442,17,FALSE),"-") -> - | Q108: =IFERROR(VLOOKUP(B108,Puerto!$A$4:$C$22,3,FALSE),"-") -> - | R108: =IFERROR(VLOOKUP(B108,ZOMAC!$A$3:$K$346,11,FALSE),"-") -> - | T108: =IF(K108=0,0,IF(SUMPRODUCT(($K107:K108=K108)*1)>1,0,1)) -> 0
A109: Código DANE Entidad 105 | B109: =Calificación!B124 -> 0 | C109: =IFERROR(VLOOKUP(Cálculos!B109,IICA!$A$9:$G$1131,7,FALSE),"-") -> - | D109: =IFERROR(VLOOKUP(B109,CultIllic!$A$1:$K$1144,11,FALSE),"-") -> - | E109: =IFERROR(VLOOKUP(B109,MDM!$A$1:$S$1102,14,FALSE),"-") -> - | F109: =IFERROR(VLOOKUP(B109,Ruralidad!$A$1:$E$1123,5,FALSE),"-") -> - | G109: =IFERROR(VLOOKUP(B109,'NBI Rural'!$B$1:$E$1103,4,FALSE),"-") -> - | H109: =IFERROR(VLOOKUP(B109,ICV!$A$1:$G$1123,7,FALSE),"-") -> - | I109: =IFERROR(VLOOKUP(B109,Frontera!$A$1:$G$103,7,FALSE),"-") -> - | J109: =IFERROR(VLOOKUP(B109,ZNI!$A$4:$X$128,24,FALSE),"-") -> - | K109: =IFERROR(VLOOKUP(B109,Listas!$A$1:$J$1144,10,FALSE),0) -> 0 | L109: =IFERROR(INDEX(Brechas!$B$2:$AD$1145,MATCH(Cálculos!B109,Brechas!$A$2:$A$1145,0),MATCH(Calificación!$B$13,Brechas!$B$1:$AD$1,0)),"-") -> - | M109: =IFERROR(VLOOKUP(B109,Listas!$A$1:$I$1144,6,FALSE),"-") -> - | N109: =IFERROR(VLOOKUP(B109,Listas!$A$1:$I$1144,7,FALSE),"-") -> - | O109: =IFERROR(VLOOKUP(B109,Listas!$A$1:$I$1144,8,FALSE),"-") -> - | P109: =IFERROR(VLOOKUP(B109,'E&E 15_12_20'!$A$4:$Q$442,17,FALSE),"-") -> - | Q109: =IFERROR(VLOOKUP(B109,Puerto!$A$4:$C$22,3,FALSE),"-") -> - | R109: =IFERROR(VLOOKUP(B109,ZOMAC!$A$3:$K$346,11,FALSE),"-") -> - | T109: =IF(K109=0,0,IF(SUMPRODUCT(($K108:K109=K109)*1)>1,0,1)) -> 0
A110: Código DANE Entidad 106 | B110: =Calificación!B125 -> 0 | C110: =IFERROR(VLOOKUP(Cálculos!B110,IICA!$A$9:$G$1131,7,FALSE),"-") -> - | D110: =IFERROR(VLOOKUP(B110,CultIllic!$A$1:$K$1144,11,FALSE),"-") -> - | E110: =IFERROR(VLOOKUP(B110,MDM!$A$1:$S$1102,14,FALSE),"-") -> - | F110: =IFERROR(VLOOKUP(B110,Ruralidad!$A$1:$E$1123,5,FALSE),"-") -> - | G110: =IFERROR(VLOOKUP(B110,'NBI Rural'!$B$1:$E$1103,4,FALSE),"-") -> - | H110: =IFERROR(VLOOKUP(B110,ICV!$A$1:$G$1123,7,FALSE),"-") -> - | I110: =IFERROR(VLOOKUP(B110,Frontera!$A$1:$G$103,7,FALSE),"-") -> - | J110: =IFERROR(VLOOKUP(B110,ZNI!$A$4:$X$128,24,FALSE),"-") -> - | K110: =IFERROR(VLOOKUP(B110,Listas!$A$1:$J$1144,10,FALSE),0) -> 0 | L110: =IFERROR(INDEX(Brechas!$B$2:$AD$1145,MATCH(Cálculos!B110,Brechas!$A$2:$A$1145,0),MATCH(Calificación!$B$13,Brechas!$B$1:$AD$1,0)),"-") -> - | M110: =IFERROR(VLOOKUP(B110,Listas!$A$1:$I$1144,6,FALSE),"-") -> - | N110: =IFERROR(VLOOKUP(B110,Listas!$A$1:$I$1144,7,FALSE),"-") -> - | O110: =IFERROR(VLOOKUP(B110,Listas!$A$1:$I$1144,8,FALSE),"-") -> - | P110: =IFERROR(VLOOKUP(B110,'E&E 15_12_20'!$A$4:$Q$442,17,FALSE),"-") -> - | Q110: =IFERROR(VLOOKUP(B110,Puerto!$A$4:$C$22,3,FALSE),"-") -> - | R110: =IFERROR(VLOOKUP(B110,ZOMAC!$A$3:$K$346,11,FALSE),"-") -> - | T110: =IF(K110=0,0,IF(SUMPRODUCT(($K109:K110=K110)*1)>1,0,1)) -> 0
A111: Código DANE Entidad 107 | B111: =Calificación!B126 -> 0 | C111: =IFERROR(VLOOKUP(Cálculos!B111,IICA!$A$9:$G$1131,7,FALSE),"-") -> - | D111: =IFERROR(VLOOKUP(B111,CultIllic!$A$1:$K$1144,11,FALSE),"-") -> - | E111: =IFERROR(VLOOKUP(B111,MDM!$A$1:$S$1102,14,FALSE),"-") -> - | F111: =IFERROR(VLOOKUP(B111,Ruralidad!$A$1:$E$1123,5,FALSE),"-") -> - | G111: =IFERROR(VLOOKUP(B111,'NBI Rural'!$B$1:$E$1103,4,FALSE),"-") -> - | H111: =IFERROR(VLOOKUP(B111,ICV!$A$1:$G$1123,7,FALSE),"-") -> - | I111: =IFERROR(VLOOKUP(B111,Frontera!$A$1:$G$103,7,FALSE),"-") -> - | J111: =IFERROR(VLOOKUP(B111,ZNI!$A$4:$X$128,24,FALSE),"-") -> - | K111: =IFERROR(VLOOKUP(B111,Listas!$A$1:$J$1144,10,FALSE),0) -> 0 | L111: =IFERROR(INDEX(Brechas!$B$2:$AD$1145,MATCH(Cálculos!B111,Brechas!$A$2:$A$1145,0),MATCH(Calificación!$B$13,Brechas!$B$1:$AD$1,0)),"-") -> - | M111: =IFERROR(VLOOKUP(B111,Listas!$A$1:$I$1144,6,FALSE),"-") -> - | N111: =IFERROR(VLOOKUP(B111,Listas!$A$1:$I$1144,7,FALSE),"-") -> - | O111: =IFERROR(VLOOKUP(B111,Listas!$A$1:$I$1144,8,FALSE),"-") -> - | P111: =IFERROR(VLOOKUP(B111,'E&E 15_12_20'!$A$4:$Q$442,17,FALSE),"-") -> - | Q111: =IFERROR(VLOOKUP(B111,Puerto!$A$4:$C$22,3,FALSE),"-") -> - | R111: =IFERROR(VLOOKUP(B111,ZOMAC!$A$3:$K$346,11,FALSE),"-") -> - | T111: =IF(K111=0,0,IF(SUMPRODUCT(($K110:K111=K111)*1)>1,0,1)) -> 0
A112: Código DANE Entidad 108 | B112: =Calificación!B127 -> 0 | C112: =IFERROR(VLOOKUP(Cálculos!B112,IICA!$A$9:$G$1131,7,FALSE),"-") -> - | D112: =IFERROR(VLOOKUP(B112,CultIllic!$A$1:$K$1144,11,FALSE),"-") -> - | E112: =IFERROR(VLOOKUP(B112,MDM!$A$1:$S$1102,14,FALSE),"-") -> - | F112: =IFERROR(VLOOKUP(B112,Ruralidad!$A$1:$E$1123,5,FALSE),"-") -> - | G112: =IFERROR(VLOOKUP(B112,'NBI Rural'!$B$1:$E$1103,4,FALSE),"-") -> - | H112: =IFERROR(VLOOKUP(B112,ICV!$A$1:$G$1123,7,FALSE),"-") -> - | I112: =IFERROR(VLOOKUP(B112,Frontera!$A$1:$G$103,7,FALSE),"-") -> - | J112: =IFERROR(VLOOKUP(B112,ZNI!$A$4:$X$128,24,FALSE),"-") -> - | K112: =IFERROR(VLOOKUP(B112,Listas!$A$1:$J$1144,10,FALSE),0) -> 0 | L112: =IFERROR(INDEX(Brechas!$B$2:$AD$1145,MATCH(Cálculos!B112,Brechas!$A$2:$A$1145,0),MATCH(Calificación!$B$13,Brechas!$B$1:$AD$1,0)),"-") -> - | M112: =IFERROR(VLOOKUP(B112,Listas!$A$1:$I$1144,6,FALSE),"-") -> - | N112: =IFERROR(VLOOKUP(B112,Listas!$A$1:$I$1144,7,FALSE),"-") -> - | O112: =IFERROR(VLOOKUP(B112,Listas!$A$1:$I$1144,8,FALSE),"-") -> - | P112: =IFERROR(VLOOKUP(B112,'E&E 15_12_20'!$A$4:$Q$442,17,FALSE),"-") -> - | Q112: =IFERROR(VLOOKUP(B112,Puerto!$A$4:$C$22,3,FALSE),"-") -> - | R112: =IFERROR(VLOOKUP(B112,ZOMAC!$A$3:$K$346,11,FALSE),"-") -> - | T112: =IF(K112=0,0,IF(SUMPRODUCT(($K111:K112=K112)*1)>1,0,1)) -> 0
A113: Código DANE Entidad 109 | B113: =Calificación!B128 -> 0 | C113: =IFERROR(VLOOKUP(Cálculos!B113,IICA!$A$9:$G$1131,7,FALSE),"-") -> - | D113: =IFERROR(VLOOKUP(B113,CultIllic!$A$1:$K$1144,11,FALSE),"-") -> - | E113: =IFERROR(VLOOKUP(B113,MDM!$A$1:$S$1102,14,FALSE),"-") -> - | F113: =IFERROR(VLOOKUP(B113,Ruralidad!$A$1:$E$1123,5,FALSE),"-") -> - | G113: =IFERROR(VLOOKUP(B113,'NBI Rural'!$B$1:$E$1103,4,FALSE),"-") -> - | H113: =IFERROR(VLOOKUP(B113,ICV!$A$1:$G$1123,7,FALSE),"-") -> - | I113: =IFERROR(VLOOKUP(B113,Frontera!$A$1:$G$103,7,FALSE),"-") -> - | J113: =IFERROR(VLOOKUP(B113,ZNI!$A$4:$X$128,24,FALSE),"-") -> - | K113: =IFERROR(VLOOKUP(B113,Listas!$A$1:$J$1144,10,FALSE),0) -> 0 | L113: =IFERROR(INDEX(Brechas!$B$2:$AD$1145,MATCH(Cálculos!B113,Brechas!$A$2:$A$1145,0),MATCH(Calificación!$B$13,Brechas!$B$1:$AD$1,0)),"-") -> - | M113: =IFERROR(VLOOKUP(B113,Listas!$A$1:$I$1144,6,FALSE),"-") -> - | N113: =IFERROR(VLOOKUP(B113,Listas!$A$1:$I$1144,7,FALSE),"-") -> - | O113: =IFERROR(VLOOKUP(B113,Listas!$A$1:$I$1144,8,FALSE),"-") -> - | P113: =IFERROR(VLOOKUP(B113,'E&E 15_12_20'!$A$4:$Q$442,17,FALSE),"-") -> - | Q113: =IFERROR(VLOOKUP(B113,Puerto!$A$4:$C$22,3,FALSE),"-") -> - | R113: =IFERROR(VLOOKUP(B113,ZOMAC!$A$3:$K$346,11,FALSE),"-") -> - | T113: =IF(K113=0,0,IF(SUMPRODUCT(($K112:K113=K113)*1)>1,0,1)) -> 0
A114: Código DANE Entidad 110 | B114: =Calificación!B129 -> 0 | C114: =IFERROR(VLOOKUP(Cálculos!B114,IICA!$A$9:$G$1131,7,FALSE),"-") -> - | D114: =IFERROR(VLOOKUP(B114,CultIllic!$A$1:$K$1144,11,FALSE),"-") -> - | E114: =IFERROR(VLOOKUP(B114,MDM!$A$1:$S$1102,14,FALSE),"-") -> - | F114: =IFERROR(VLOOKUP(B114,Ruralidad!$A$1:$E$1123,5,FALSE),"-") -> - | G114: =IFERROR(VLOOKUP(B114,'NBI Rural'!$B$1:$E$1103,4,FALSE),"-") -> - | H114: =IFERROR(VLOOKUP(B114,ICV!$A$1:$G$1123,7,FALSE),"-") -> - | I114: =IFERROR(VLOOKUP(B114,Frontera!$A$1:$G$103,7,FALSE),"-") -> - | J114: =IFERROR(VLOOKUP(B114,ZNI!$A$4:$X$128,24,FALSE),"-") -> - | K114: =IFERROR(VLOOKUP(B114,Listas!$A$1:$J$1144,10,FALSE),0) -> 0 | L114: =IFERROR(INDEX(Brechas!$B$2:$AD$1145,MATCH(Cálculos!B114,Brechas!$A$2:$A$1145,0),MATCH(Calificación!$B$13,Brechas!$B$1:$AD$1,0)),"-") -> - | M114: =IFERROR(VLOOKUP(B114,Listas!$A$1:$I$1144,6,FALSE),"-") -> - | N114: =IFERROR(VLOOKUP(B114,Listas!$A$1:$I$1144,7,FALSE),"-") -> - | O114: =IFERROR(VLOOKUP(B114,Listas!$A$1:$I$1144,8,FALSE),"-") -> - | P114: =IFERROR(VLOOKUP(B114,'E&E 15_12_20'!$A$4:$Q$442,17,FALSE),"-") -> - | Q114: =IFERROR(VLOOKUP(B114,Puerto!$A$4:$C$22,3,FALSE),"-") -> - | R114: =IFERROR(VLOOKUP(B114,ZOMAC!$A$3:$K$346,11,FALSE),"-") -> - | T114: =IF(K114=0,0,IF(SUMPRODUCT(($K113:K114=K114)*1)>1,0,1)) -> 0
A115: Código DANE Entidad 111 | B115: =Calificación!B130 -> 0 | C115: =IFERROR(VLOOKUP(Cálculos!B115,IICA!$A$9:$G$1131,7,FALSE),"-") -> - | D115: =IFERROR(VLOOKUP(B115,CultIllic!$A$1:$K$1144,11,FALSE),"-") -> - | E115: =IFERROR(VLOOKUP(B115,MDM!$A$1:$S$1102,14,FALSE),"-") -> - | F115: =IFERROR(VLOOKUP(B115,Ruralidad!$A$1:$E$1123,5,FALSE),"-") -> - | G115: =IFERROR(VLOOKUP(B115,'NBI Rural'!$B$1:$E$1103,4,FALSE),"-") -> - | H115: =IFERROR(VLOOKUP(B115,ICV!$A$1:$G$1123,7,FALSE),"-") -> - | I115: =IFERROR(VLOOKUP(B115,Frontera!$A$1:$G$103,7,FALSE),"-") -> - | J115: =IFERROR(VLOOKUP(B115,ZNI!$A$4:$X$128,24,FALSE),"-") -> - | K115: =IFERROR(VLOOKUP(B115,Listas!$A$1:$J$1144,10,FALSE),0) -> 0 | L115: =IFERROR(INDEX(Brechas!$B$2:$AD$1145,MATCH(Cálculos!B115,Brechas!$A$2:$A$1145,0),MATCH(Calificación!$B$13,Brechas!$B$1:$AD$1,0)),"-") -> - | M115: =IFERROR(VLOOKUP(B115,Listas!$A$1:$I$1144,6,FALSE),"-") -> - | N115: =IFERROR(VLOOKUP(B115,Listas!$A$1:$I$1144,7,FALSE),"-") -> - | O115: =IFERROR(VLOOKUP(B115,Listas!$A$1:$I$1144,8,FALSE),"-") -> - | P115: =IFERROR(VLOOKUP(B115,'E&E 15_12_20'!$A$4:$Q$442,17,FALSE),"-") -> - | Q115: =IFERROR(VLOOKUP(B115,Puerto!$A$4:$C$22,3,FALSE),"-") -> - | R115: =IFERROR(VLOOKUP(B115,ZOMAC!$A$3:$K$346,11,FALSE),"-") -> - | T115: =IF(K115=0,0,IF(SUMPRODUCT(($K114:K115=K115)*1)>1,0,1)) -> 0
A116: Código DANE Entidad 112 | B116: =Calificación!B131 -> 0 | C116: =IFERROR(VLOOKUP(Cálculos!B116,IICA!$A$9:$G$1131,7,FALSE),"-") -> - | D116: =IFERROR(VLOOKUP(B116,CultIllic!$A$1:$K$1144,11,FALSE),"-") -> - | E116: =IFERROR(VLOOKUP(B116,MDM!$A$1:$S$1102,14,FALSE),"-") -> - | F116: =IFERROR(VLOOKUP(B116,Ruralidad!$A$1:$E$1123,5,FALSE),"-") -> - | G116: =IFERROR(VLOOKUP(B116,'NBI Rural'!$B$1:$E$1103,4,FALSE),"-") -> - | H116: =IFERROR(VLOOKUP(B116,ICV!$A$1:$G$1123,7,FALSE),"-") -> - | I116: =IFERROR(VLOOKUP(B116,Frontera!$A$1:$G$103,7,FALSE),"-") -> - | J116: =IFERROR(VLOOKUP(B116,ZNI!$A$4:$X$128,24,FALSE),"-") -> - | K116: =IFERROR(VLOOKUP(B116,Listas!$A$1:$J$1144,10,FALSE),0) -> 0 | L116: =IFERROR(INDEX(Brechas!$B$2:$AD$1145,MATCH(Cálculos!B116,Brechas!$A$2:$A$1145,0),MATCH(Calificación!$B$13,Brechas!$B$1:$AD$1,0)),"-") -> - | M116: =IFERROR(VLOOKUP(B116,Listas!$A$1:$I$1144,6,FALSE),"-") -> - | N116: =IFERROR(VLOOKUP(B116,Listas!$A$1:$I$1144,7,FALSE),"-") -> - | O116: =IFERROR(VLOOKUP(B116,Listas!$A$1:$I$1144,8,FALSE),"-") -> - | P116: =IFERROR(VLOOKUP(B116,'E&E 15_12_20'!$A$4:$Q$442,17,FALSE),"-") -> - | Q116: =IFERROR(VLOOKUP(B116,Puerto!$A$4:$C$22,3,FALSE),"-") -> - | R116: =IFERROR(VLOOKUP(B116,ZOMAC!$A$3:$K$346,11,FALSE),"-") -> - | T116: =IF(K116=0,0,IF(SUMPRODUCT(($K115:K116=K116)*1)>1,0,1)) -> 0
A117: Código DANE Entidad 113 | B117: =Calificación!B132 -> 0 | C117: =IFERROR(VLOOKUP(Cálculos!B117,IICA!$A$9:$G$1131,7,FALSE),"-") -> - | D117: =IFERROR(VLOOKUP(B117,CultIllic!$A$1:$K$1144,11,FALSE),"-") -> - | E117: =IFERROR(VLOOKUP(B117,MDM!$A$1:$S$1102,14,FALSE),"-") -> - | F117: =IFERROR(VLOOKUP(B117,Ruralidad!$A$1:$E$1123,5,FALSE),"-") -> - | G117: =IFERROR(VLOOKUP(B117,'NBI Rural'!$B$1:$E$1103,4,FALSE),"-") -> - | H117: =IFERROR(VLOOKUP(B117,ICV!$A$1:$G$1123,7,FALSE),"-") -> - | I117: =IFERROR(VLOOKUP(B117,Frontera!$A$1:$G$103,7,FALSE),"-") -> - | J117: =IFERROR(VLOOKUP(B117,ZNI!$A$4:$X$128,24,FALSE),"-") -> - | K117: =IFERROR(VLOOKUP(B117,Listas!$A$1:$J$1144,10,FALSE),0) -> 0 | L117: =IFERROR(INDEX(Brechas!$B$2:$AD$1145,MATCH(Cálculos!B117,Brechas!$A$2:$A$1145,0),MATCH(Calificación!$B$13,Brechas!$B$1:$AD$1,0)),"-") -> - | M117: =IFERROR(VLOOKUP(B117,Listas!$A$1:$I$1144,6,FALSE),"-") -> - | N117: =IFERROR(VLOOKUP(B117,Listas!$A$1:$I$1144,7,FALSE),"-") -> - | O117: =IFERROR(VLOOKUP(B117,Listas!$A$1:$I$1144,8,FALSE),"-") -> - | P117: =IFERROR(VLOOKUP(B117,'E&E 15_12_20'!$A$4:$Q$442,17,FALSE),"-") -> - | Q117: =IFERROR(VLOOKUP(B117,Puerto!$A$4:$C$22,3,FALSE),"-") -> - | R117: =IFERROR(VLOOKUP(B117,ZOMAC!$A$3:$K$346,11,FALSE),"-") -> - | T117: =IF(K117=0,0,IF(SUMPRODUCT(($K116:K117=K117)*1)>1,0,1)) -> 0
A118: Código DANE Entidad 114 | B118: =Calificación!B133 -> 0 | C118: =IFERROR(VLOOKUP(Cálculos!B118,IICA!$A$9:$G$1131,7,FALSE),"-") -> - | D118: =IFERROR(VLOOKUP(B118,CultIllic!$A$1:$K$1144,11,FALSE),"-") -> - | E118: =IFERROR(VLOOKUP(B118,MDM!$A$1:$S$1102,14,FALSE),"-") -> - | F118: =IFERROR(VLOOKUP(B118,Ruralidad!$A$1:$E$1123,5,FALSE),"-") -> - | G118: =IFERROR(VLOOKUP(B118,'NBI Rural'!$B$1:$E$1103,4,FALSE),"-") -> - | H118: =IFERROR(VLOOKUP(B118,ICV!$A$1:$G$1123,7,FALSE),"-") -> - | I118: =IFERROR(VLOOKUP(B118,Frontera!$A$1:$G$103,7,FALSE),"-") -> - | J118: =IFERROR(VLOOKUP(B118,ZNI!$A$4:$X$128,24,FALSE),"-") -> - | K118: =IFERROR(VLOOKUP(B118,Listas!$A$1:$J$1144,10,FALSE),0) -> 0 | L118: =IFERROR(INDEX(Brechas!$B$2:$AD$1145,MATCH(Cálculos!B118,Brechas!$A$2:$A$1145,0),MATCH(Calificación!$B$13,Brechas!$B$1:$AD$1,0)),"-") -> - | M118: =IFERROR(VLOOKUP(B118,Listas!$A$1:$I$1144,6,FALSE),"-") -> - | N118: =IFERROR(VLOOKUP(B118,Listas!$A$1:$I$1144,7,FALSE),"-") -> - | O118: =IFERROR(VLOOKUP(B118,Listas!$A$1:$I$1144,8,FALSE),"-") -> - | P118: =IFERROR(VLOOKUP(B118,'E&E 15_12_20'!$A$4:$Q$442,17,FALSE),"-") -> - | Q118: =IFERROR(VLOOKUP(B118,Puerto!$A$4:$C$22,3,FALSE),"-") -> - | R118: =IFERROR(VLOOKUP(B118,ZOMAC!$A$3:$K$346,11,FALSE),"-") -> - | T118: =IF(K118=0,0,IF(SUMPRODUCT(($K117:K118=K118)*1)>1,0,1)) -> 0
A119: Código DANE Entidad 115 | B119: =Calificación!B134 -> 0 | C119: =IFERROR(VLOOKUP(Cálculos!B119,IICA!$A$9:$G$1131,7,FALSE),"-") -> - | D119: =IFERROR(VLOOKUP(B119,CultIllic!$A$1:$K$1144,11,FALSE),"-") -> - | E119: =IFERROR(VLOOKUP(B119,MDM!$A$1:$S$1102,14,FALSE),"-") -> - | F119: =IFERROR(VLOOKUP(B119,Ruralidad!$A$1:$E$1123,5,FALSE),"-") -> - | G119: =IFERROR(VLOOKUP(B119,'NBI Rural'!$B$1:$E$1103,4,FALSE),"-") -> - | H119: =IFERROR(VLOOKUP(B119,ICV!$A$1:$G$1123,7,FALSE),"-") -> - | I119: =IFERROR(VLOOKUP(B119,Frontera!$A$1:$G$103,7,FALSE),"-") -> - | J119: =IFERROR(VLOOKUP(B119,ZNI!$A$4:$X$128,24,FALSE),"-") -> - | K119: =IFERROR(VLOOKUP(B119,Listas!$A$1:$J$1144,10,FALSE),0) -> 0 | L119: =IFERROR(INDEX(Brechas!$B$2:$AD$1145,MATCH(Cálculos!B119,Brechas!$A$2:$A$1145,0),MATCH(Calificación!$B$13,Brechas!$B$1:$AD$1,0)),"-") -> - | M119: =IFERROR(VLOOKUP(B119,Listas!$A$1:$I$1144,6,FALSE),"-") -> - | N119: =IFERROR(VLOOKUP(B119,Listas!$A$1:$I$1144,7,FALSE),"-") -> - | O119: =IFERROR(VLOOKUP(B119,Listas!$A$1:$I$1144,8,FALSE),"-") -> - | P119: =IFERROR(VLOOKUP(B119,'E&E 15_12_20'!$A$4:$Q$442,17,FALSE),"-") -> - | Q119: =IFERROR(VLOOKUP(B119,Puerto!$A$4:$C$22,3,FALSE),"-") -> - | R119: =IFERROR(VLOOKUP(B119,ZOMAC!$A$3:$K$346,11,FALSE),"-") -> - | T119: =IF(K119=0,0,IF(SUMPRODUCT(($K118:K119=K119)*1)>1,0,1)) -> 0
A120: Código DANE Entidad 116 | B120: =Calificación!B135 -> 0 | C120: =IFERROR(VLOOKUP(Cálculos!B120,IICA!$A$9:$G$1131,7,FALSE),"-") -> - | D120: =IFERROR(VLOOKUP(B120,CultIllic!$A$1:$K$1144,11,FALSE),"-") -> - | E120: =IFERROR(VLOOKUP(B120,MDM!$A$1:$S$1102,14,FALSE),"-") -> - | F120: =IFERROR(VLOOKUP(B120,Ruralidad!$A$1:$E$1123,5,FALSE),"-") -> - | G120: =IFERROR(VLOOKUP(B120,'NBI Rural'!$B$1:$E$1103,4,FALSE),"-") -> - | H120: =IFERROR(VLOOKUP(B120,ICV!$A$1:$G$1123,7,FALSE),"-") -> - | I120: =IFERROR(VLOOKUP(B120,Frontera!$A$1:$G$103,7,FALSE),"-") -> - | J120: =IFERROR(VLOOKUP(B120,ZNI!$A$4:$X$128,24,FALSE),"-") -> - | K120: =IFERROR(VLOOKUP(B120,Listas!$A$1:$J$1144,10,FALSE),0) -> 0 | L120: =IFERROR(INDEX(Brechas!$B$2:$AD$1145,MATCH(Cálculos!B120,Brechas!$A$2:$A$1145,0),MATCH(Calificación!$B$13,Brechas!$B$1:$AD$1,0)),"-") -> - | M120: =IFERROR(VLOOKUP(B120,Listas!$A$1:$I$1144,6,FALSE),"-") -> - | N120: =IFERROR(VLOOKUP(B120,Listas!$A$1:$I$1144,7,FALSE),"-") -> - | O120: =IFERROR(VLOOKUP(B120,Listas!$A$1:$I$1144,8,FALSE),"-") -> - | P120: =IFERROR(VLOOKUP(B120,'E&E 15_12_20'!$A$4:$Q$442,17,FALSE),"-") -> - | Q120: =IFERROR(VLOOKUP(B120,Puerto!$A$4:$C$22,3,FALSE),"-") -> - | R120: =IFERROR(VLOOKUP(B120,ZOMAC!$A$3:$K$346,11,FALSE),"-") -> - | T120: =IF(K120=0,0,IF(SUMPRODUCT(($K119:K120=K120)*1)>1,0,1)) -> 0
A121: Código DANE Entidad 117 | B121: =Calificación!B136 -> 0 | C121: =IFERROR(VLOOKUP(Cálculos!B121,IICA!$A$9:$G$1131,7,FALSE),"-") -> - | D121: =IFERROR(VLOOKUP(B121,CultIllic!$A$1:$K$1144,11,FALSE),"-") -> - | E121: =IFERROR(VLOOKUP(B121,MDM!$A$1:$S$1102,14,FALSE),"-") -> - | F121: =IFERROR(VLOOKUP(B121,Ruralidad!$A$1:$E$1123,5,FALSE),"-") -> - | G121: =IFERROR(VLOOKUP(B121,'NBI Rural'!$B$1:$E$1103,4,FALSE),"-") -> - | H121: =IFERROR(VLOOKUP(B121,ICV!$A$1:$G$1123,7,FALSE),"-") -> - | I121: =IFERROR(VLOOKUP(B121,Frontera!$A$1:$G$103,7,FALSE),"-") -> - | J121: =IFERROR(VLOOKUP(B121,ZNI!$A$4:$X$128,24,FALSE),"-") -> - | K121: =IFERROR(VLOOKUP(B121,Listas!$A$1:$J$1144,10,FALSE),0) -> 0 | L121: =IFERROR(INDEX(Brechas!$B$2:$AD$1145,MATCH(Cálculos!B121,Brechas!$A$2:$A$1145,0),MATCH(Calificación!$B$13,Brechas!$B$1:$AD$1,0)),"-") -> - | M121: =IFERROR(VLOOKUP(B121,Listas!$A$1:$I$1144,6,FALSE),"-") -> - | N121: =IFERROR(VLOOKUP(B121,Listas!$A$1:$I$1144,7,FALSE),"-") -> - | O121: =IFERROR(VLOOKUP(B121,Listas!$A$1:$I$1144,8,FALSE),"-") -> - | P121: =IFERROR(VLOOKUP(B121,'E&E 15_12_20'!$A$4:$Q$442,17,FALSE),"-") -> - | Q121: =IFERROR(VLOOKUP(B121,Puerto!$A$4:$C$22,3,FALSE),"-") -> - | R121: =IFERROR(VLOOKUP(B121,ZOMAC!$A$3:$K$346,11,FALSE),"-") -> - | T121: =IF(K121=0,0,IF(SUMPRODUCT(($K120:K121=K121)*1)>1,0,1)) -> 0
A122: Código DANE Entidad 118 | B122: =Calificación!B137 -> 0 | C122: =IFERROR(VLOOKUP(Cálculos!B122,IICA!$A$9:$G$1131,7,FALSE),"-") -> - | D122: =IFERROR(VLOOKUP(B122,CultIllic!$A$1:$K$1144,11,FALSE),"-") -> - | E122: =IFERROR(VLOOKUP(B122,MDM!$A$1:$S$1102,14,FALSE),"-") -> - | F122: =IFERROR(VLOOKUP(B122,Ruralidad!$A$1:$E$1123,5,FALSE),"-") -> - | G122: =IFERROR(VLOOKUP(B122,'NBI Rural'!$B$1:$E$1103,4,FALSE),"-") -> - | H122: =IFERROR(VLOOKUP(B122,ICV!$A$1:$G$1123,7,FALSE),"-") -> - | I122: =IFERROR(VLOOKUP(B122,Frontera!$A$1:$G$103,7,FALSE),"-") -> - | J122: =IFERROR(VLOOKUP(B122,ZNI!$A$4:$X$128,24,FALSE),"-") -> - | K122: =IFERROR(VLOOKUP(B122,Listas!$A$1:$J$1144,10,FALSE),0) -> 0 | L122: =IFERROR(INDEX(Brechas!$B$2:$AD$1145,MATCH(Cálculos!B122,Brechas!$A$2:$A$1145,0),MATCH(Calificación!$B$13,Brechas!$B$1:$AD$1,0)),"-") -> - | M122: =IFERROR(VLOOKUP(B122,Listas!$A$1:$I$1144,6,FALSE),"-") -> - | N122: =IFERROR(VLOOKUP(B122,Listas!$A$1:$I$1144,7,FALSE),"-") -> - | O122: =IFERROR(VLOOKUP(B122,Listas!$A$1:$I$1144,8,FALSE),"-") -> - | P122: =IFERROR(VLOOKUP(B122,'E&E 15_12_20'!$A$4:$Q$442,17,FALSE),"-") -> - | Q122: =IFERROR(VLOOKUP(B122,Puerto!$A$4:$C$22,3,FALSE),"-") -> - | R122: =IFERROR(VLOOKUP(B122,ZOMAC!$A$3:$K$346,11,FALSE),"-") -> - | T122: =IF(K122=0,0,IF(SUMPRODUCT(($K121:K122=K122)*1)>1,0,1)) -> 0
A123: Código DANE Entidad 119 | B123: =Calificación!B138 -> 0 | C123: =IFERROR(VLOOKUP(Cálculos!B123,IICA!$A$9:$G$1131,7,FALSE),"-") -> - | D123: =IFERROR(VLOOKUP(B123,CultIllic!$A$1:$K$1144,11,FALSE),"-") -> - | E123: =IFERROR(VLOOKUP(B123,MDM!$A$1:$S$1102,14,FALSE),"-") -> - | F123: =IFERROR(VLOOKUP(B123,Ruralidad!$A$1:$E$1123,5,FALSE),"-") -> - | G123: =IFERROR(VLOOKUP(B123,'NBI Rural'!$B$1:$E$1103,4,FALSE),"-") -> - | H123: =IFERROR(VLOOKUP(B123,ICV!$A$1:$G$1123,7,FALSE),"-") -> - | I123: =IFERROR(VLOOKUP(B123,Frontera!$A$1:$G$103,7,FALSE),"-") -> - | J123: =IFERROR(VLOOKUP(B123,ZNI!$A$4:$X$128,24,FALSE),"-") -> - | K123: =IFERROR(VLOOKUP(B123,Listas!$A$1:$J$1144,10,FALSE),0) -> 0 | L123: =IFERROR(INDEX(Brechas!$B$2:$AD$1145,MATCH(Cálculos!B123,Brechas!$A$2:$A$1145,0),MATCH(Calificación!$B$13,Brechas!$B$1:$AD$1,0)),"-") -> - | M123: =IFERROR(VLOOKUP(B123,Listas!$A$1:$I$1144,6,FALSE),"-") -> - | N123: =IFERROR(VLOOKUP(B123,Listas!$A$1:$I$1144,7,FALSE),"-") -> - | O123: =IFERROR(VLOOKUP(B123,Listas!$A$1:$I$1144,8,FALSE),"-") -> - | P123: =IFERROR(VLOOKUP(B123,'E&E 15_12_20'!$A$4:$Q$442,17,FALSE),"-") -> - | Q123: =IFERROR(VLOOKUP(B123,Puerto!$A$4:$C$22,3,FALSE),"-") -> - | R123: =IFERROR(VLOOKUP(B123,ZOMAC!$A$3:$K$346,11,FALSE),"-") -> - | T123: =IF(K123=0,0,IF(SUMPRODUCT(($K122:K123=K123)*1)>1,0,1)) -> 0
A124: Código DANE Entidad 120 | B124: =Calificación!B139 -> 0 | C124: =IFERROR(VLOOKUP(Cálculos!B124,IICA!$A$9:$G$1131,7,FALSE),"-") -> - | D124: =IFERROR(VLOOKUP(B124,CultIllic!$A$1:$K$1144,11,FALSE),"-") -> - | E124: =IFERROR(VLOOKUP(B124,MDM!$A$1:$S$1102,14,FALSE),"-") -> - | F124: =IFERROR(VLOOKUP(B124,Ruralidad!$A$1:$E$1123,5,FALSE),"-") -> - | G124: =IFERROR(VLOOKUP(B124,'NBI Rural'!$B$1:$E$1103,4,FALSE),"-") -> - | H124: =IFERROR(VLOOKUP(B124,ICV!$A$1:$G$1123,7,FALSE),"-") -> - | I124: =IFERROR(VLOOKUP(B124,Frontera!$A$1:$G$103,7,FALSE),"-") -> - | J124: =IFERROR(VLOOKUP(B124,ZNI!$A$4:$X$128,24,FALSE),"-") -> - | K124: =IFERROR(VLOOKUP(B124,Listas!$A$1:$J$1144,10,FALSE),0) -> 0 | L124: =IFERROR(INDEX(Brechas!$B$2:$AD$1145,MATCH(Cálculos!B124,Brechas!$A$2:$A$1145,0),MATCH(Calificación!$B$13,Brechas!$B$1:$AD$1,0)),"-") -> - | M124: =IFERROR(VLOOKUP(B124,Listas!$A$1:$I$1144,6,FALSE),"-") -> - | N124: =IFERROR(VLOOKUP(B124,Listas!$A$1:$I$1144,7,FALSE),"-") -> - | O124: =IFERROR(VLOOKUP(B124,Listas!$A$1:$I$1144,8,FALSE),"-") -> - | P124: =IFERROR(VLOOKUP(B124,'E&E 15_12_20'!$A$4:$Q$442,17,FALSE),"-") -> - | Q124: =IFERROR(VLOOKUP(B124,Puerto!$A$4:$C$22,3,FALSE),"-") -> - | R124: =IFERROR(VLOOKUP(B124,ZOMAC!$A$3:$K$346,11,FALSE),"-") -> - | T124: =IF(K124=0,0,IF(SUMPRODUCT(($K123:K124=K124)*1)>1,0,1)) -> 0
A125: Código DANE Entidad 121 | B125: =Calificación!B140 -> 0 | C125: =IFERROR(VLOOKUP(Cálculos!B125,IICA!$A$9:$G$1131,7,FALSE),"-") -> - | D125: =IFERROR(VLOOKUP(B125,CultIllic!$A$1:$K$1144,11,FALSE),"-") -> - | E125: =IFERROR(VLOOKUP(B125,MDM!$A$1:$S$1102,14,FALSE),"-") -> - | F125: =IFERROR(VLOOKUP(B125,Ruralidad!$A$1:$E$1123,5,FALSE),"-") -> - | G125: =IFERROR(VLOOKUP(B125,'NBI Rural'!$B$1:$E$1103,4,FALSE),"-") -> - | H125: =IFERROR(VLOOKUP(B125,ICV!$A$1:$G$1123,7,FALSE),"-") -> - | I125: =IFERROR(VLOOKUP(B125,Frontera!$A$1:$G$103,7,FALSE),"-") -> - | J125: =IFERROR(VLOOKUP(B125,ZNI!$A$4:$X$128,24,FALSE),"-") -> - | K125: =IFERROR(VLOOKUP(B125,Listas!$A$1:$J$1144,10,FALSE),0) -> 0 | L125: =IFERROR(INDEX(Brechas!$B$2:$AD$1145,MATCH(Cálculos!B125,Brechas!$A$2:$A$1145,0),MATCH(Calificación!$B$13,Brechas!$B$1:$AD$1,0)),"-") -> - | M125: =IFERROR(VLOOKUP(B125,Listas!$A$1:$I$1144,6,FALSE),"-") -> - | N125: =IFERROR(VLOOKUP(B125,Listas!$A$1:$I$1144,7,FALSE),"-") -> - | O125: =IFERROR(VLOOKUP(B125,Listas!$A$1:$I$1144,8,FALSE),"-") -> - | P125: =IFERROR(VLOOKUP(B125,'E&E 15_12_20'!$A$4:$Q$442,17,FALSE),"-") -> - | Q125: =IFERROR(VLOOKUP(B125,Puerto!$A$4:$C$22,3,FALSE),"-") -> - | R125: =IFERROR(VLOOKUP(B125,ZOMAC!$A$3:$K$346,11,FALSE),"-") -> - | T125: =IF(K125=0,0,IF(SUMPRODUCT(($K124:K125=K125)*1)>1,0,1)) -> 0
A126: Código DANE Entidad 122 | B126: =Calificación!B141 -> 0 | C126: =IFERROR(VLOOKUP(Cálculos!B126,IICA!$A$9:$G$1131,7,FALSE),"-") -> - | D126: =IFERROR(VLOOKUP(B126,CultIllic!$A$1:$K$1144,11,FALSE),"-") -> - | E126: =IFERROR(VLOOKUP(B126,MDM!$A$1:$S$1102,14,FALSE),"-") -> - | F126: =IFERROR(VLOOKUP(B126,Ruralidad!$A$1:$E$1123,5,FALSE),"-") -> - | G126: =IFERROR(VLOOKUP(B126,'NBI Rural'!$B$1:$E$1103,4,FALSE),"-") -> - | H126: =IFERROR(VLOOKUP(B126,ICV!$A$1:$G$1123,7,FALSE),"-") -> - | I126: =IFERROR(VLOOKUP(B126,Frontera!$A$1:$G$103,7,FALSE),"-") -> - | J126: =IFERROR(VLOOKUP(B126,ZNI!$A$4:$X$128,24,FALSE),"-") -> - | K126: =IFERROR(VLOOKUP(B126,Listas!$A$1:$J$1144,10,FALSE),0) -> 0 | L126: =IFERROR(INDEX(Brechas!$B$2:$AD$1145,MATCH(Cálculos!B126,Brechas!$A$2:$A$1145,0),MATCH(Calificación!$B$13,Brechas!$B$1:$AD$1,0)),"-") -> - | M126: =IFERROR(VLOOKUP(B126,Listas!$A$1:$I$1144,6,FALSE),"-") -> - | N126: =IFERROR(VLOOKUP(B126,Listas!$A$1:$I$1144,7,FALSE),"-") -> - | O126: =IFERROR(VLOOKUP(B126,Listas!$A$1:$I$1144,8,FALSE),"-") -> - | P126: =IFERROR(VLOOKUP(B126,'E&E 15_12_20'!$A$4:$Q$442,17,FALSE),"-") -> - | Q126: =IFERROR(VLOOKUP(B126,Puerto!$A$4:$C$22,3,FALSE),"-") -> - | R126: =IFERROR(VLOOKUP(B126,ZOMAC!$A$3:$K$346,11,FALSE),"-") -> - | T126: =IF(K126=0,0,IF(SUMPRODUCT(($K125:K126=K126)*1)>1,0,1)) -> 0
A127: Código DANE Entidad 123 | B127: =Calificación!B142 -> 0 | C127: =IFERROR(VLOOKUP(Cálculos!B127,IICA!$A$9:$G$1131,7,FALSE),"-") -> - | D127: =IFERROR(VLOOKUP(B127,CultIllic!$A$1:$K$1144,11,FALSE),"-") -> - | E127: =IFERROR(VLOOKUP(B127,MDM!$A$1:$S$1102,14,FALSE),"-") -> - | F127: =IFERROR(VLOOKUP(B127,Ruralidad!$A$1:$E$1123,5,FALSE),"-") -> - | G127: =IFERROR(VLOOKUP(B127,'NBI Rural'!$B$1:$E$1103,4,FALSE),"-") -> - | H127: =IFERROR(VLOOKUP(B127,ICV!$A$1:$G$1123,7,FALSE),"-") -> - | I127: =IFERROR(VLOOKUP(B127,Frontera!$A$1:$G$103,7,FALSE),"-") -> - | J127: =IFERROR(VLOOKUP(B127,ZNI!$A$4:$X$128,24,FALSE),"-") -> - | K127: =IFERROR(VLOOKUP(B127,Listas!$A$1:$J$1144,10,FALSE),0) -> 0 | L127: =IFERROR(INDEX(Brechas!$B$2:$AD$1145,MATCH(Cálculos!B127,Brechas!$A$2:$A$1145,0),MATCH(Calificación!$B$13,Brechas!$B$1:$AD$1,0)),"-") -> - | M127: =IFERROR(VLOOKUP(B127,Listas!$A$1:$I$1144,6,FALSE),"-") -> - | N127: =IFERROR(VLOOKUP(B127,Listas!$A$1:$I$1144,7,FALSE),"-") -> - | O127: =IFERROR(VLOOKUP(B127,Listas!$A$1:$I$1144,8,FALSE),"-") -> - | P127: =IFERROR(VLOOKUP(B127,'E&E 15_12_20'!$A$4:$Q$442,17,FALSE),"-") -> - | Q127: =IFERROR(VLOOKUP(B127,Puerto!$A$4:$C$22,3,FALSE),"-") -> - | R127: =IFERROR(VLOOKUP(B127,ZOMAC!$A$3:$K$346,11,FALSE),"-") -> - | T127: =IF(K127=0,0,IF(SUMPRODUCT(($K126:K127=K127)*1)>1,0,1)) -> 0
A128: Código DANE Entidad 124 | B128: =Calificación!B143 -> 0 | C128: =IFERROR(VLOOKUP(Cálculos!B128,IICA!$A$9:$G$1131,7,FALSE),"-") -> - | D128: =IFERROR(VLOOKUP(B128,CultIllic!$A$1:$K$1144,11,FALSE),"-") -> - | E128: =IFERROR(VLOOKUP(B128,MDM!$A$1:$S$1102,14,FALSE),"-") -> - | F128: =IFERROR(VLOOKUP(B128,Ruralidad!$A$1:$E$1123,5,FALSE),"-") -> - | G128: =IFERROR(VLOOKUP(B128,'NBI Rural'!$B$1:$E$1103,4,FALSE),"-") -> - | H128: =IFERROR(VLOOKUP(B128,ICV!$A$1:$G$1123,7,FALSE),"-") -> - | I128: =IFERROR(VLOOKUP(B128,Frontera!$A$1:$G$103,7,FALSE),"-") -> - | J128: =IFERROR(VLOOKUP(B128,ZNI!$A$4:$X$128,24,FALSE),"-") -> - | K128: =IFERROR(VLOOKUP(B128,Listas!$A$1:$J$1144,10,FALSE),0) -> 0 | L128: =IFERROR(INDEX(Brechas!$B$2:$AD$1145,MATCH(Cálculos!B128,Brechas!$A$2:$A$1145,0),MATCH(Calificación!$B$13,Brechas!$B$1:$AD$1,0)),"-") -> - | M128: =IFERROR(VLOOKUP(B128,Listas!$A$1:$I$1144,6,FALSE),"-") -> - | N128: =IFERROR(VLOOKUP(B128,Listas!$A$1:$I$1144,7,FALSE),"-") -> - | O128: =IFERROR(VLOOKUP(B128,Listas!$A$1:$I$1144,8,FALSE),"-") -> - | P128: =IFERROR(VLOOKUP(B128,'E&E 15_12_20'!$A$4:$Q$442,17,FALSE),"-") -> - | Q128: =IFERROR(VLOOKUP(B128,Puerto!$A$4:$C$22,3,FALSE),"-") -> - | R128: =IFERROR(VLOOKUP(B128,ZOMAC!$A$3:$K$346,11,FALSE),"-") -> - | T128: =IF(K128=0,0,IF(SUMPRODUCT(($K127:K128=K128)*1)>1,0,1)) -> 0
A129: Código DANE Entidad 125 | B129: =Calificación!B144 -> 0 | C129: =IFERROR(VLOOKUP(Cálculos!B129,IICA!$A$9:$G$1131,7,FALSE),"-") -> - | D129: =IFERROR(VLOOKUP(B129,CultIllic!$A$1:$K$1144,11,FALSE),"-") -> - | E129: =IFERROR(VLOOKUP(B129,MDM!$A$1:$S$1102,14,FALSE),"-") -> - | F129: =IFERROR(VLOOKUP(B129,Ruralidad!$A$1:$E$1123,5,FALSE),"-") -> - | G129: =IFERROR(VLOOKUP(B129,'NBI Rural'!$B$1:$E$1103,4,FALSE),"-") -> - | H129: =IFERROR(VLOOKUP(B129,ICV!$A$1:$G$1123,7,FALSE),"-") -> - | I129: =IFERROR(VLOOKUP(B129,Frontera!$A$1:$G$103,7,FALSE),"-") -> - | J129: =IFERROR(VLOOKUP(B129,ZNI!$A$4:$X$128,24,FALSE),"-") -> - | K129: =IFERROR(VLOOKUP(B129,Listas!$A$1:$J$1144,10,FALSE),0) -> 0 | L129: =IFERROR(INDEX(Brechas!$B$2:$AD$1145,MATCH(Cálculos!B129,Brechas!$A$2:$A$1145,0),MATCH(Calificación!$B$13,Brechas!$B$1:$AD$1,0)),"-") -> - | M129: =IFERROR(VLOOKUP(B129,Listas!$A$1:$I$1144,6,FALSE),"-") -> - | N129: =IFERROR(VLOOKUP(B129,Listas!$A$1:$I$1144,7,FALSE),"-") -> - | O129: =IFERROR(VLOOKUP(B129,Listas!$A$1:$I$1144,8,FALSE),"-") -> - | P129: =IFERROR(VLOOKUP(B129,'E&E 15_12_20'!$A$4:$Q$442,17,FALSE),"-") -> - | Q129: =IFERROR(VLOOKUP(B129,Puerto!$A$4:$C$22,3,FALSE),"-") -> - | R129: =IFERROR(VLOOKUP(B129,ZOMAC!$A$3:$K$346,11,FALSE),"-") -> - | T129: =IF(K129=0,0,IF(SUMPRODUCT(($K128:K129=K129)*1)>1,0,1)) -> 0
A130: Código DANE Entidad 126 | B130: =Calificación!B145 -> 0 | C130: =IFERROR(VLOOKUP(Cálculos!B130,IICA!$A$9:$G$1131,7,FALSE),"-") -> - | D130: =IFERROR(VLOOKUP(B130,CultIllic!$A$1:$K$1144,11,FALSE),"-") -> - | E130: =IFERROR(VLOOKUP(B130,MDM!$A$1:$S$1102,14,FALSE),"-") -> - | F130: =IFERROR(VLOOKUP(B130,Ruralidad!$A$1:$E$1123,5,FALSE),"-") -> - | G130: =IFERROR(VLOOKUP(B130,'NBI Rural'!$B$1:$E$1103,4,FALSE),"-") -> - | H130: =IFERROR(VLOOKUP(B130,ICV!$A$1:$G$1123,7,FALSE),"-") -> - | I130: =IFERROR(VLOOKUP(B130,Frontera!$A$1:$G$103,7,FALSE),"-") -> - | J130: =IFERROR(VLOOKUP(B130,ZNI!$A$4:$X$128,24,FALSE),"-") -> - | K130: =IFERROR(VLOOKUP(B130,Listas!$A$1:$J$1144,10,FALSE),0) -> 0 | L130: =IFERROR(INDEX(Brechas!$B$2:$AD$1145,MATCH(Cálculos!B130,Brechas!$A$2:$A$1145,0),MATCH(Calificación!$B$13,Brechas!$B$1:$AD$1,0)),"-") -> - | M130: =IFERROR(VLOOKUP(B130,Listas!$A$1:$I$1144,6,FALSE),"-") -> - | N130: =IFERROR(VLOOKUP(B130,Listas!$A$1:$I$1144,7,FALSE),"-") -> - | O130: =IFERROR(VLOOKUP(B130,Listas!$A$1:$I$1144,8,FALSE),"-") -> - | P130: =IFERROR(VLOOKUP(B130,'E&E 15_12_20'!$A$4:$Q$442,17,FALSE),"-") -> - | Q130: =IFERROR(VLOOKUP(B130,Puerto!$A$4:$C$22,3,FALSE),"-") -> - | R130: =IFERROR(VLOOKUP(B130,ZOMAC!$A$3:$K$346,11,FALSE),"-") -> - | T130: =IF(K130=0,0,IF(SUMPRODUCT(($K129:K130=K130)*1)>1,0,1)) -> 0
A131: Código DANE Entidad 127 | B131: =Calificación!B146 -> 0 | C131: =IFERROR(VLOOKUP(Cálculos!B131,IICA!$A$9:$G$1131,7,FALSE),"-") -> - | D131: =IFERROR(VLOOKUP(B131,CultIllic!$A$1:$K$1144,11,FALSE),"-") -> - | E131: =IFERROR(VLOOKUP(B131,MDM!$A$1:$S$1102,14,FALSE),"-") -> - | F131: =IFERROR(VLOOKUP(B131,Ruralidad!$A$1:$E$1123,5,FALSE),"-") -> - | G131: =IFERROR(VLOOKUP(B131,'NBI Rural'!$B$1:$E$1103,4,FALSE),"-") -> - | H131: =IFERROR(VLOOKUP(B131,ICV!$A$1:$G$1123,7,FALSE),"-") -> - | I131: =IFERROR(VLOOKUP(B131,Frontera!$A$1:$G$103,7,FALSE),"-") -> - | J131: =IFERROR(VLOOKUP(B131,ZNI!$A$4:$X$128,24,FALSE),"-") -> - | K131: =IFERROR(VLOOKUP(B131,Listas!$A$1:$J$1144,10,FALSE),0) -> 0 | L131: =IFERROR(INDEX(Brechas!$B$2:$AD$1145,MATCH(Cálculos!B131,Brechas!$A$2:$A$1145,0),MATCH(Calificación!$B$13,Brechas!$B$1:$AD$1,0)),"-") -> - | M131: =IFERROR(VLOOKUP(B131,Listas!$A$1:$I$1144,6,FALSE),"-") -> - | N131: =IFERROR(VLOOKUP(B131,Listas!$A$1:$I$1144,7,FALSE),"-") -> - | O131: =IFERROR(VLOOKUP(B131,Listas!$A$1:$I$1144,8,FALSE),"-") -> - | P131: =IFERROR(VLOOKUP(B131,'E&E 15_12_20'!$A$4:$Q$442,17,FALSE),"-") -> - | Q131: =IFERROR(VLOOKUP(B131,Puerto!$A$4:$C$22,3,FALSE),"-") -> - | R131: =IFERROR(VLOOKUP(B131,ZOMAC!$A$3:$K$346,11,FALSE),"-") -> - | T131: =IF(K131=0,0,IF(SUMPRODUCT(($K130:K131=K131)*1)>1,0,1)) -> 0
A132: Código DANE Entidad 128 | B132: =Calificación!B147 -> 0 | C132: =IFERROR(VLOOKUP(Cálculos!B132,IICA!$A$9:$G$1131,7,FALSE),"-") -> - | D132: =IFERROR(VLOOKUP(B132,CultIllic!$A$1:$K$1144,11,FALSE),"-") -> - | E132: =IFERROR(VLOOKUP(B132,MDM!$A$1:$S$1102,14,FALSE),"-") -> - | F132: =IFERROR(VLOOKUP(B132,Ruralidad!$A$1:$E$1123,5,FALSE),"-") -> - | G132: =IFERROR(VLOOKUP(B132,'NBI Rural'!$B$1:$E$1103,4,FALSE),"-") -> - | H132: =IFERROR(VLOOKUP(B132,ICV!$A$1:$G$1123,7,FALSE),"-") -> - | I132: =IFERROR(VLOOKUP(B132,Frontera!$A$1:$G$103,7,FALSE),"-") -> - | J132: =IFERROR(VLOOKUP(B132,ZNI!$A$4:$X$128,24,FALSE),"-") -> - | K132: =IFERROR(VLOOKUP(B132,Listas!$A$1:$J$1144,10,FALSE),0) -> 0 | L132: =IFERROR(INDEX(Brechas!$B$2:$AD$1145,MATCH(Cálculos!B132,Brechas!$A$2:$A$1145,0),MATCH(Calificación!$B$13,Brechas!$B$1:$AD$1,0)),"-") -> - | M132: =IFERROR(VLOOKUP(B132,Listas!$A$1:$I$1144,6,FALSE),"-") -> - | N132: =IFERROR(VLOOKUP(B132,Listas!$A$1:$I$1144,7,FALSE),"-") -> - | O132: =IFERROR(VLOOKUP(B132,Listas!$A$1:$I$1144,8,FALSE),"-") -> - | P132: =IFERROR(VLOOKUP(B132,'E&E 15_12_20'!$A$4:$Q$442,17,FALSE),"-") -> - | Q132: =IFERROR(VLOOKUP(B132,Puerto!$A$4:$C$22,3,FALSE),"-") -> - | R132: =IFERROR(VLOOKUP(B132,ZOMAC!$A$3:$K$346,11,FALSE),"-") -> - | T132: =IF(K132=0,0,IF(SUMPRODUCT(($K131:K132=K132)*1)>1,0,1)) -> 0
A134: Puntaje Promedio | C134: =IFERROR(AVERAGEIF(C5:C132,">0"),0) -> 0 | D134: =IFERROR((SUMIF(D5:D132,">0"))/(COUNTIF($B$5:$B$132,">0")),0) -> 0 | E134: =IFERROR(AVERAGEIF(E5:E132,">0"),0) -> 0 | F134: =IFERROR(AVERAGEIF(F5:F132,">0"),0) -> 0 | G134: =IFERROR(AVERAGEIF(G5:G132,">0"),0) -> 0 | H134: =IFERROR(AVERAGEIF(H5:H132,">0"),0) -> 0 | I134: =IFERROR(AVERAGEIF(I5:I132,">0"),0) -> 0 | J134: =IFERROR(AVERAGEIF(J5:J132,">0"),0) -> 0 | L134: =IFERROR((SUMIF(L5:L132,">0"))/(COUNTIF($B$5:$B$132,">0")),0) -> 0 | P134: =IFERROR(AVERAGEIF(P5:P132,">0"),0) -> 0 | Q134: 0 | R134: =IFERROR(AVERAGEIF(R5:R132,">0"),0) -> 0 | T134: =SUBTOTAL(9,T5:T132) -> 1
L137: 0.6
L138: 1.2
A139: TOTAL | B139: 8.75 | D139: Beneficiados | E139: =Calificación!B14 -> 0 | L139: 1.8
A140: 0%-10% | B140: 0.6 | D140: Afectados | E140: =Calificación!B15 -> 0 | F140: OCAD PAZ | J140: OCAD PAZ | L140: 2.4
A141: 10,1%-20% | B141: 1.2 | F141: Impacto Territorial 1 | J141: Brechas 1 | L141: 3
A142: 20,1%-30% | B142: 1.8 | D142: Total | E142: =+E139/E140 ->  | F142: =IF(AND(E142>=0,E142<0.1),B140,IF(AND(E142>=0.1,E142<0.2),B141,IF(AND(E142>=0.2,E142<0.3),B142,IF(AND(E142>=0.3,E142<0.4),B143,IF(AND(E142>=0.4,E142<0.5),B144,IF(AND(E142>=0.5,E142<0.6),B145,IF(AND(E142>=0.6,E142<0.7),B146,IF(AND(E142>=0.7,E142<0.8),B147,IF(AND(E142>=0.8,E142<0.9),B148,IF(AND(E142>=0.9,E142<=1),B149,"")))))))))) ->  | H142: Total | I142: =L134 -> 0 | J142: =IF(AND(I142>=0,I142<0.1),0.6,IF(AND(I142>=0.1,I142<0.2),1.2,IF(AND(I142>=0.2,I142<0.3),1.8,IF(AND(I142>=0.3,I142<0.4),2.4,IF(AND(I142>=0.4,I142<0.5),3,IF(AND(I142>=0.5,I142<0.6),3.6,IF(AND(I142>=0.6,I142<0.7),4.2,IF(AND(I142>=0.7,I142<0.8),4.8,IF(AND(I142>=0.8,I142<0.9),5.4,IF(AND(I142>=0.9,I142<=1),6,"")))))))))) -> 0.6 | L142: 3.6
A143: 30,1%-40% | B143: 2.4 | L143: 4.2
A144: 40,1%-50% | B144: 3 | L144: 4.8
A145: 50,1%-60% | B145: 3.6 | J145: Brechas 2 | L145: 5.4
A146: 60,1%-70% | B146: 4.2 | D146: Total del Proyecto | E146: =Calificación!B16 -> 0 | H146: Total | I146: =L134 -> 0 | J146: =IF(AND(I146>=0,I146<0.1),B532,IF(AND(I146>=0.1,I146<0.2),B533,IF(AND(I146>=0.2,I146<0.3),B534,IF(AND(I146>=0.3,I146<0.4),B535,IF(AND(I146>=0.4,I146<0.5),B536,IF(AND(I146>=0.5,I146<0.6),B537,IF(AND(I146>=0.6,I146<0.7),B538,IF(AND(I146>=0.7,I146<0.8),B539,IF(AND(I146>=0.8,I146<0.9),B540,IF(AND(I146>=0.9,I146<=1),B541,"")))))))))) -> 0.8333333333 | L146: 6
A147: 70,1%-80% | B147: 4.8 | D147: Valor SGR | E147: =Calificación!B17 -> 0 | F147: OCAD PAZ
A148: 80,1%-90% | B148: 5.4 | E148: =+E146-E147 -> 0 | F148: Concurrencia 1
A149: 90,1%-100% | B149: 6 | D149: Total | E149: =+E148/E146 ->  | F149: =IF(AND(E149>=0,E149<0.001),0.6,IF(AND(E149>=0.001,E149<0.005),1.2,IF(AND(E149>=0.005,E149<0.01),1.8,IF(AND(E149>=0.01,E149<0.05),2.4,IF(AND(E149>=0.05,E149<0.1),3,IF(AND(E149>=0.1,E149<0.2),3.6,IF(AND(E149>=0.2,E149<0.3),4.2,IF(AND(E149>=0.3,E149<0.4),4.8,IF(AND(E149>=0.4,E149<0.5),5.4,IF(AND(E149>=0.5,E149<1),6,"")))))))))) -> 
I152: =COUNTIFS($M$6:$M$133,#REF!) -> 0 | J152: 402 | K152: =+I152/J152 -> 0
I153: =COUNTIFS($M$6:$M$133,#REF!) -> 0 | J153: 202 | K153: 0
I154: =COUNTIFS($M$6:$M$133,#REF!) -> 0 | J154: 204 | K154: 0
I155: =COUNTIFS($M$6:$M$133,#REF!) -> 0 | J155: 203 | K155: 0
I156: =COUNTIFS($M$6:$M$133,#REF!) -> 0 | J156: 205 | K156: 0
I157: =COUNTIFS($M$6:$M$133,#REF!) -> 0 | J157: 207 | K157: 0
I158: =COUNTIFS($M$6:$M$133,#REF!) -> 0 | J158: 210 | K158: 0
I159: =COUNTIFS($M$6:$M$133,#REF!) -> 0 | J159: 208 | K159: 0
I160: =COUNTIFS($M$6:$M$133,#REF!) -> 0 | J160: 209 | K160: 0
I161: =COUNTIFS($M$6:$M$133,#REF!) -> 0 | J161: 206 | K161: 0
I162: =COUNTIFS($M$6:$M$133,#REF!) -> 0 | J162: 211 | K162: 0
I163: =COUNTIFS($M$6:$M$133,#REF!) -> 0 | J163: 701 | K163: 0
I164: =COUNTIFS($M$6:$M$133,#REF!) -> 0 | J164: 709 | K164: 0
I165: =COUNTIFS($M$6:$M$133,#REF!) -> 0 | J165: 711 | K165: 0
I166: =COUNTIFS($M$6:$M$133,#REF!) -> 0 | J166: 710 | K166: 0
I167: =COUNTIFS($M$6:$M$133,#REF!) -> 0 | J167: 712 | K167: 0
I168: =COUNTIFS($M$6:$M$133,#REF!) -> 0 | J168: 704 | K168: 0
I169: =COUNTIFS($M$6:$M$133,#REF!) -> 0 | J169: 713 | K169: 0
I170: =COUNTIFS($M$6:$M$133,#REF!) -> 0 | J170: 707 | K170: 0
I171: =COUNTIFS($M$6:$M$133,#REF!) -> 0 | J171: 705 | K171: 0
I172: =COUNTIFS($M$6:$M$133,#REF!) -> 0 | J172: 708 | K172: 0
I173: =COUNTIFS($M$6:$M$133,#REF!) -> 0 | J173: 706 | K173: 0
I174: =COUNTIFS($M$6:$M$133,#REF!) -> 0 | J174: 702 | K174: 0
I175: =COUNTIFS($M$6:$M$133,#REF!) -> 0 | J175: 703 | K175: 0
I176: =COUNTIFS($M$6:$M$133,#REF!) -> 0 | J176: 413 | K176: 0
I177: =COUNTIFS($M$6:$M$133,#REF!) -> 0 | J177: 414 | K177: 0
I178: =COUNTIFS($M$6:$M$133,#REF!) -> 0 | J178: 412 | K178: 0
I179: =COUNTIFS($M$6:$M$133,#REF!) -> 0 | J179: 410 | K179: 0
I180: =COUNTIFS($M$6:$M$133,#REF!) -> 0 | J180: 415 | K180: 0
I181: =COUNTIFS($M$6:$M$133,#REF!) -> 0 | J181: 411 | K181: 0
I182: =COUNTIFS($M$6:$M$133,#REF!) -> 0 | J182: 602 | K182: 0
I183: =COUNTIFS($M$6:$M$133,#REF!) -> 0 | J183: 622 | K183: 0
I184: =COUNTIFS($M$6:$M$133,#REF!) -> 0 | J184: 301 | K184: 0
I185: =COUNTIFS($M$6:$M$133,#REF!) -> 0 | J185: 305 | K185: 0
I186: =COUNTIFS($M$6:$M$133,#REF!) -> 0 | J186: 302 | K186: 0
I187: =COUNTIFS($M$6:$M$133,#REF!) -> 0 | J187: 304 | K187: 0
I188: =COUNTIFS($M$6:$M$133,#REF!) -> 0 | J188: 303 | K188: 0
I189: =COUNTIFS($M$6:$M$133,#REF!) -> 0
I190: =COUNTIFS($M$6:$M$133,#REF!) -> 0
I191: =COUNTIFS($M$6:$M$133,#REF!) -> 0
I192: =COUNTIFS($M$6:$M$133,#REF!) -> 0
I193: =COUNTIFS($M$6:$M$133,#REF!) -> 0
I194: =COUNTIFS($M$6:$M$133,#REF!) -> 0
I195: =COUNTIFS($M$6:$M$133,#REF!) -> 0
I196: =COUNTIFS($M$6:$M$133,#REF!) -> 0
I197: =COUNTIFS($M$6:$M$133,#REF!) -> 0
I198: =COUNTIFS($M$6:$M$133,#REF!) -> 0
I199: =COUNTIFS($M$6:$M$133,#REF!) -> 0
I200: =COUNTIFS($M$6:$M$133,#REF!) -> 0
I201: =COUNTIFS($M$6:$M$133,#REF!) -> 0
I202: =COUNTIFS($M$6:$M$133,#REF!) -> 0
I203: =COUNTIFS($M$6:$M$133,#REF!) -> 0
I204: =COUNTIFS($M$6:$M$133,#REF!) -> 0
I205: =COUNTIFS($M$6:$M$133,#REF!) -> 0
I206: =COUNTIFS($M$6:$M$133,#REF!) -> 0
I207: =COUNTIFS($M$6:$M$133,#REF!) -> 0
... 511 more rows

Sheet Calificación
A1: Sistema de Evaluación por Puntajes para la PAZ del Sistema General de Regalías
A5: INFORMACIÓN GENERAL
A6: Código BPIN
A7: Nombre del proyecto
A8: Tipo de OCAD al que se presenta el proyecto
A9: Entidad que presenta el proyecto
A10: Entidad territorial | B10: =IFERROR(VLOOKUP(B9,Listas!A1:I1145,9,FALSE),"-") -> -
A11: Departamento / CAR | B11: =IFERROR(VLOOKUP(B9,Listas!A1:I1145,5,FALSE),"-") -> -
A12: Fase del proyecto
A13: Sector del proyecto
A14: Población Beneficiada
A15: Población Afectada
A16: Valor total del proyecto
A17: Valor SGR (de las fuentes del OCAD que viabiliza)
A18: Localización Población Beneficiaria | B18: Proyecto 1 (Código DANE de la ET)
A20: Código DANE Entidad 1 | B20: =+B9 -> 0
A21: Código DANE Entidad 2
A22: Código DANE Entidad 3
A23: Código DANE Entidad 4
A24: Código DANE Entidad 5
A25: Código DANE Entidad 6
A26: Código DANE Entidad 7
A27: Código DANE Entidad 8
A28: Código DANE Entidad 9
A29: Código DANE Entidad 10
A30: Código DANE Entidad 11
A31: Código DANE Entidad 12
A32: Código DANE Entidad 13
A33: Código DANE Entidad 14
A34: Código DANE Entidad 15
A35: Código DANE Entidad 16
A36: Código DANE Entidad 17
A37: Código DANE Entidad 18
A38: Código DANE Entidad 19
A39: Código DANE Entidad 20
A40: Código DANE Entidad 21
A41: Código DANE Entidad 22
A42: Código DANE Entidad 23
A43: Código DANE Entidad 24
A44: Código DANE Entidad 25
A45: Código DANE Entidad 26
A46: Código DANE Entidad 27
A47: Código DANE Entidad 28
A48: Código DANE Entidad 29
A49: Código DANE Entidad 30
A50: Código DANE Entidad 31
A51: Código DANE Entidad 32
A52: Código DANE Entidad 33
A53: Código DANE Entidad 34
A54: Código DANE Entidad 35
A55: Código DANE Entidad 36
A56: Código DANE Entidad 37
A57: Código DANE Entidad 38
A58: Código DANE Entidad 39
A59: Código DANE Entidad 40
A60: Código DANE Entidad 41
A61: Código DANE Entidad 42
A62: Código DANE Entidad 43
A63: Código DANE Entidad 44
A64: Código DANE Entidad 45
A65: Código DANE Entidad 46
A66: Código DANE Entidad 47
A67: Código DANE Entidad 48
A68: Código DANE Entidad 49
A69: Código DANE Entidad 50
A70: Código DANE Entidad 51
A71: Código DANE Entidad 52
A72: Código DANE Entidad 53
A73: Código DANE Entidad 54
A74: Código DANE Entidad 55
A75: Código DANE Entidad 56
A76: Código DANE Entidad 57
A77: Código DANE Entidad 58
A78: Código DANE Entidad 59
A79: Código DANE Entidad 60
A80: Código DANE Entidad 61
A81: Código DANE Entidad 62
A82: Código DANE Entidad 63
A83: Código DANE Entidad 64
A84: Código DANE Entidad 65
A85: Código DANE Entidad 66
A86: Código DANE Entidad 67
A87: Código DANE Entidad 68
A88: Código DANE Entidad 69
A89: Código DANE Entidad 70
A90: Código DANE Entidad 71
A91: Código DANE Entidad 72
A92: Código DANE Entidad 73
A93: Código DANE Entidad 74
A94: Código DANE Entidad 75
A95: Código DANE Entidad 76
A96: Código DANE Entidad 77
A97: Código DANE Entidad 78
A98: Código DANE Entidad 79
A99: Código DANE Entidad 80
A100: Código DANE Entidad 81
A101: Código DANE Entidad 82
A102: Código DANE Entidad 83
A103: Código DANE Entidad 84
A104: Código DANE Entidad 85
A105: Código DANE Entidad 86
A106: Código DANE Entidad 87
A107: Código DANE Entidad 88
A108: Código DANE Entidad 89
A109: Código DANE Entidad 90
A110: Código DANE Entidad 91
A111: Código DANE Entidad 92
A112: Código DANE Entidad 93
A113: Código DANE Entidad 94
A114: Código DANE Entidad 95
A115: Código DANE Entidad 96
A116: Código DANE Entidad 97
A117: Código DANE Entidad 98
A118: Código DANE Entidad 99
A119: Código DANE Entidad 100
A120: Código DANE Entidad 101
A121: Código DANE Entidad 102
A122: Código DANE Entidad 103
A123: Código DANE Entidad 104
A124: Código DANE Entidad 105
A125: Código DANE Entidad 106
A126: Código DANE Entidad 107
A127: Código DANE Entidad 108
A128: Código DANE Entidad 109
A129: Código DANE Entidad 110
A130: Código DANE Entidad 111
A131: Código DANE Entidad 112
A132: Código DANE Entidad 113
A133: Código DANE Entidad 114
A134: Código DANE Entidad 115
A135: Código DANE Entidad 116
A136: Código DANE Entidad 117
A137: Código DANE Entidad 118
A138: Código DANE Entidad 119
A139: Código DANE Entidad 120
A140: Código DANE Entidad 121
A141: Código DANE Entidad 122
A142: Código DANE Entidad 123
A143: Código DANE Entidad 124
A144: Código DANE Entidad 125
A145: Código DANE Entidad 126
A146: Código DANE Entidad 127
A147: Código DANE Entidad 128
A148: 1. Elementos de Priorización | B148: Puntaje
A150: a) Producción de recursos no renovables
A151: Zonas de exploración y explotación | B151: =Cálculos!P134 -> 0
A152: Zona portuaria | B152: =Cálculos!Q134 -> 0
A154: b) Pobreza rural
A155: Necesidades Básicas Insatisfechas (NBI) | B155: =Cálculos!G134 -> 0
A156: Categorías de Ruralidad | B156: =Cálculos!F134 -> 0
A158: c) Inversión destinada a la sustitución o erradicación de cultivos ilícitos
A159: Sistema Integrado de Monitoreo de Cultivos Ilícitos (SIMCI) | B159: =IFERROR(Cálculos!D134,"0") -> 0
A161: d) Debilidad institucional
A162: Medición del Desempeño Municipal (MDM) | B162: =Cálculos!E134 -> 0
A164: e) Inversión destinada a la reparación de víctimas del conflicto:
A165: Municipio ZOMAC | B165: =IF(C165>0,"Sí","No") -> No | C165: =Cálculos!R134 -> 0
A166: ¿El proyecto de inversión tiene por objeto reparar víctimas del conflicto o beneficia a víctimas del conflicto? | B166: No | C166: =IF(B166="Sí",4.33,0) -> 0
A167: Índice de Incidencia del Conflicto Armado (IICA) | B167: =Cálculos!C134 -> 0
A168: SUBTOTAL ELEMENTOS DE PRIORIZACIÓN (65%) | B168: =+B151+B152+B155+B156+B159+B162+C165+C166+B167 -> 0
A170: 2. Elementos Generales | B170: Puntaje
A172: a) Nivel de esfuerzo para el cierre de brechas | B172: =IF(B8=Listas!L17,Cálculos!J142,"0") -> 0
A173: b) Impacto Territorial - Población beneficiaria sobre población afectada | B173: =IFERROR(IF(B8=Listas!L17,Cálculos!F142,"0"),"0") -> 0
A174: c) Número de entidades cubiertas respecto del total subregional. | B174: =IFERROR(IF(B8=Listas!L17,Cálculos!M533,"0"),"0") -> 0
A175: d) Valor promedio histórico aprobado | B175: =+IFERROR('Promedio aprobaciones'!AB23,"0") -> 0
A176: e) Concurrencia | B176: =IFERROR(IF(B8=Listas!L17,Cálculos!F149,"0"),"0") -> 0
A177: SUBTOTAL ELEMENTOS GENERALES (30%) | B177: =SUM(B172:C176) -> 0
A179: 3. Elementos Adicionales | B179: ¿Aplica? | C179: Puntaje
A180: a) Mejoramiento de las condiciones de vida de las comunidades Negras, Afrocolombianas, Raizales y Palenqueras, de las comunidades Indígenas y del pueblo Rom o Gitano de Colombia. | B180: No | C180: =IF(B180="SÍ",0.714285714,0) -> 0
A181: b) Proyectos orientados al mejoramiento de la infraestructura en las zonas de frontera. | B181: =IF(C181>0,"Sí","No") -> No | C181: =Cálculos!I134 -> 0
A182: c) Proyectos de recuperación y estabilización ambiental, reforestación y recuperación de ecosistemas. | B182: No | C182: =IF(B182="SÍ",0.714285714,0) -> 0
A183: d) Para la extensión, ampliación y utilización de energía no convencional, tales como la eólica, solar, geotérmica o de iguales características, que sean renovables y sustentables ambientalmente. | B183: No | C183: 0
A184: e) Para las zonas no interconectadas del país, proyectos de energización. | B184: =IFERROR(IF(AND(Cálculos!J134>0,B13="Minas y Energía"),"Sí","No"),"No") -> No | C184: =IF(B184="Sí","0,71","0,00") -> 0,00
A185: f) Para la culminación de proyectos ya iniciados que sean prioritarios para el desarrollo regional. | B185: No | C185: 0
A186: g) Uso de proyectos tipo que hayan sido publicados por el Departamento Nacional de Planeación. | B186: No | C186: 0
A187: SUBTOTAL ELEMENTOS ADICIONALES (5%) | C187: =SUM(C180:C186) -> 0
A189: PUNTAJE FINAL | C189: =IFERROR(+C187+B177+B168,"-") -> 0

Sheet Tabla de Puntajes
A1: =+E4 -> Producción de recursos no renovables | B1: Puntaje | E1: Alternativa 1
B2: Fase I, II y III
A3: TOTAL | B3: =+F4 -> 13 | E3: RES 40211/2019 - Criterios de priorización | F3: 65
A4: Proyectos en zonas de exploración y explotación | B4: =+F5 -> 6.5 | E4: Producción de recursos no renovables | F4: =+F5+F6 -> 13
A5: Proyectos en zona portuaria | B5: =+F6 -> 6.5 | E5: Zonas de exploración y explotación | F5: 6.5
A6: Necesidades Básicas Insatisfechas (NBI) | B6: Puntaje | E6: Zona portuaria | F6: 6.5
B7: Fase I, II y III | E7: Pobreza rural | F7: =+F8+F9 -> 13
A8: TOTAL | B8: =+F8 -> 6.5 | D8: =+B8/10 -> 0.65 | E8: Necesidades Básicas Insatisfechas (NBI) | F8: 6.5
A9: Categoría 1 | B9: =+D8 -> 0.65 | E9: Ruralidad | F9: 6.5
A10: Categoría 2 | B10: =+B9+$D$8 -> 1.3 | E10: Economías ilegales | F10: =+F11 -> 13
A11: Categoría 3 | B11: =+B10+$D$8 -> 1.95 | E11: Hectáreas de Cultivos Ilícitos | F11: 13
A12: Categoría 4 | B12: 2.6 | E12: Debilidad institucional | F12: =+F13 -> 13
A13: Categoría 5 | B13: 3.25 | E13: Medición del Desempeño Municipal (MDM) | F13: 13
A14: Categoría 6 | B14: 3.9 | E14: Conflicto armado | F14: =+F15+F16+F17 -> 13
A15: Categoría 7 | B15: 4.55 | E15: Municipios ZOMAC | F15: 4.333333333
A16: Categoría 8 | B16: 5.2 | E16: Reparación de Víctimas del Conflicto (Sí/No) | F16: 4.333333333
A17: Categoría 9 | B17: 5.85 | E17: Índice de Incidencia del Conflicto Armado (IICA) | F17: 4.333333333
A18: Categoría 10 | B18: 6.5 | E18: Criterios generales | F18: 30
A19: Ruralidad | B19: Puntaje | E19: Nivel de esfuerzo para el cierre de brechas | F19: 6
B20: Fase I, II y III | E20: Valor del proyecto/históricamente aprobado | F20: 6
A21: TOTAL | B21: =+F9 -> 6.5 | D21: =+B21/4 -> 1.625 | E21: Población beneficiaria respecto afectada | F21: 6
A22: Ciudades y aglomeraciones | B22: =+D21 -> 1.625
A23: Intermediarios | B23: =+B22+$D$21 -> 3.25 | E23: Entidades cubiertas respecto del total subregional | F23: 6
A24: Rural | B24: =+B23+$D$21 -> 4.875 | E24: Concurrencia | F24: 6
A25: Rural disperso | B25: 6.5 | E25: Elementos adicionales de evaluación | F25: 5
A26: Hectáreas de Cultivos Ilícitos | B26: Puntaje | F26: =+F25+F18+F14+F12+F10+F7+F4 -> 100
B27: Fase I, II y III
A28: TOTAL | B28: =+F10 -> 13 | D28: =+B28/10 -> 1.3
A29: Categoría 1 | B29: =+D28 -> 1.3
A30: Categoría 2 | B30: =+B29+$D$28 -> 2.6
A31: Categoría 3 | B31: =+B30+$D$28 -> 3.9
A32: Categoría 4 | B32: 5.2
A33: Categoría 5 | B33: 6.5
A34: Categoría 6 | B34: 7.8
A35: Categoría 7 | B35: 9.1
A36: Categoría 8 | B36: 10.4
A37: Categoría 9 | B37: 11.7
A38: Categoría 10 | B38: 13
A39: Medición del Desempeño Municipal (MDM) | B39: Puntaje
B40: Fase I, II y III
A41: TOTAL | B41: =+F12 -> 13 | D41: =+B41/10 -> 1.3
A42: Categoría 1 | B42: =+D41 -> 1.3
A43: Categoría 2 | B43: =+B42+$D$41 -> 2.6
A44: Categoría 3 | B44: =+B43+$D$41 -> 3.9
A45: Categoría 4 | B45: 5.2
A46: Categoría 5 | B46: 6.5
A47: Categoría 6 | B47: 7.8
A48: Categoría 7 | B48: 9.1
A49: Categoría 8 | B49: 10.4
A50: Categoría 9 | B50: 11.7
A51: Categoría 10 | B51: 13
A52: ZOMAC | B52: Puntaje
B53: Fase I, II y III
A54: TOTAL | B54: =+F15 -> 4.333333333
A55: Proyectos en municipios no ZOMAC | B55: 0
A56: Proyectos en municipios ZOMAC | B56: =+F15 -> 4.333333333
A57: Reparación de Víctimas del Conflicto | B57: Puntaje
B58: Fase I, II y III
A59: TOTAL | B59: =+F16 -> 4.333333333
A60: No tiene por objeto reparar víctimas del conflicto | B60: 0
A61: Tiene por objeto reparar víctimas del conflicto | B61: =+F16 -> 4.333333333
A62: Índice de Incidencia del Conflicto Armado (IICA) | B62: Puntaje
B63: Fase I, II y III
A64: TOTAL | B64: =+F17 -> 4.333333333 | D64: =+B64/5 -> 0.8666666667
A65: Bajo | B65: =+D64 -> 0.8666666667
A66: Medio bajo | B66: =+B65+$D$64 -> 1.733333333
A67: Medio | B67: =+B66+$D$64 -> 2.6
A68: Alto | B68: 3.466666667
A69: Muy Alto | B69: 4.333333333
A70: Nivel de esfuerzo para el cierre de brechas | B70: Puntaje
B71: Fase I, II y III
A72: TOTAL | B72: =+F19 -> 6 | D72: =+B72/10 -> 0.6
A73: Categoría 1 | B73: =+D72 -> 0.6
A74: Categoría 2 | B74: =+B73+$D$72 -> 1.2 | C74: 1
A75: Categoría 3 | B75: =+B74+$D$72 -> 1.8 | C75: 2
A76: Categoría 4 | B76: 2.4 | C76: 3
A77: Categoría 5 | B77: 3 | C77: 4
A78: Categoría 6 | B78: 3.6 | C78: 5
A79: Categoría 7 | B79: 4.2 | C79: 6
A80: Categoría 8 | B80: 4.8 | C80: 7
A81: Categoría 9 | B81: 5.4 | C81: 8
A82: Categoría 10 | B82: 6 | C82: 9
A83: Valor del proyecto | B83: Puntaje
B84: Fase I, II y III
A85: TOTAL | B85: =+F20 -> 6 | D85: =+B85/10 -> 0.6
A86: Categoría 1 | B86: =+D85 -> 0.6
A87: Categoría 2 | B87: =+B86+$D$85 -> 1.2
A88: Categoría 3 | B88: =+B87+$D$85 -> 1.8
A89: Categoría 4 | B89: 2.4
A90: Categoría 5 | B90: 3
A91: Categoría 6 | B91: 3.6
A92: Categoría 7 | B92: 4.2
A93: Categoría 8 | B93: 4.8
A94: Categoría 9 | B94: 5.4
A95: Categoría 10 | B95: 6
A96: Población beneficiaria respecto afectada | B96: Puntaje
B97: Fase I, II y III
A98: TOTAL | B98: =+F21 -> 6 | D98: =+B98/10 -> 0.6
A99: 0%-10% | B99: =+D98 -> 0.6
A100: 10,1%-20% | B100: =+B99+$D$98 -> 1.2 | C100: 1.66
A101: 20,1%-30% | B101: =+B100+$D$98 -> 1.8 | C101: 2.66
A102: 30,1%-40% | B102: 2.4 | C102: 3.66
A103: 40,1%-50% | B103: 3 | C103: 4.66
A104: 50,1%-60% | B104: 3.6 | C104: 5.66
A105: 60,1%-70% | B105: 4.2 | C105: 6.66
A106: 70,1%-80% | B106: 4.8 | C106: 7.66
A107: 80,1%-90% | B107: 5.4 | C107: 8.66
A108: 90,1%-100% | B108: 6 | C108: 9.66
A109: Entidades cubiertas respecto del total subregional | B109: Puntaje
B110: Fase I, II y III
A111: TOTAL | B111: =+F23 -> 6 | D111: =+B111/10 -> 0.6
A112: 0%-10% | B112: =+D111 -> 0.6
A113: 10,1%-20% | B113: =+B112+$D$111 -> 1.2
A114: 20,1%-30% | B114: =+B113+$D$111 -> 1.8
A115: 30,1%-40% | B115: 2.4
A116: 40,1%-50% | B116: 3
A117: 50,1%-60% | B117: 3.6
A118: 60,1%-70% | B118: 4.2
A119: 70,1%-80% | B119: 4.8
A120: 80,1%-90% | B120: 5.4
A121: 90,1%-100% | B121: 6
A122: Concurrencia | B122: Puntaje
B123: Fase I, II y III
A124: TOTAL | B124: =+F24 -> 6 | D124: =+B124/10 -> 0.6
A125: 0 | B125: =+D124 -> 0.6
A126: 0,1%-0,5% | B126: =+B125+$D$124 -> 1.2 | C126: 1.66
A127: 0,51%-1% | B127: =+B126+$D$124 -> 1.8 | C127: 2.66
A128: 1,1%-5% | B128: 2.4 | C128: 3.66
A129: 5,1%-10% | B129: 3 | C129: 4.66
A130: 10,1%-20% | B130: 3.6 | C130: 5.66
A131: 20,1%-30% | B131: 4.2 | C131: 6.66
A132: 30,1%-40% | B132: 4.8 | C132: 7.66
A133: 40,1%-50% | B133: 5.4 | C133: 8.66
A134: 50,1% o más | B134: 6 | C134: 9.66
A135: Elementos adicionales de evaluación | B135: Puntaje
A136: TOTAL | B136: =+F25 -> 5 | D136: =+B136/7 -> 0.7142857143
A137: 1. Mejoramiento de las condiciones de vida de las comunidades Negras, Afrocolombianas, Raizales y Palenqueras, de las comunidades Indígenas y del pueblo Rom o Gitano de Colombia. | B137: 0.7142857143
A138: 2. Proyectos orientados al mejoramiento de la infraestructura en las zonas de frontera. | B138: 0.7142857143
A139: 3. Proyectos de recuperación y estabilización ambiental, reforestación y recuperación de ecosistemas. | B139: 0.7142857143
A140: 4. Para la extensión, ampliación y utilización de energía no convencional, tales como la eólica, solar, geotérmica o de iguales características, que sean renovables y sustentables ambientalmente. | B140: 0.7142857143
A141: 5. Proyectos de energización en zonas no interconectadas del país | B141: 0.7142857143
A142: 6. Culminación de proyectos ya iniciados que sean prioritarios para el desarrollo regional | B142: 0.7142857143
A143: 7. Uso de proyectos tipo que hayan sido publicados por el DNP | B143: 0.7142857143

Sheet Pruebas (hidden)
A1: Proyecto 1
A3: 1. Impacto territorial | B3: Proyecto 1 | C3: IICA | D3: CULTIVOS ILÍCITOS | E3: DEBILIDAD INSTITUCIONAL | F3: RURALIDAD | G3: NBI RURAL | H3: ICV | I3: ZONA DE FRONTERA | J3: ZONA NO INTERCONECTADA
A5: Código DANE Entidad 1 | B5: 5001 | C5: =IFERROR(VLOOKUP(B5,IICA!$A$9:$G$1131,7,FALSE),"-") -> 1.733333333 | D5: =IFERROR(VLOOKUP(B5,CultIllic!$A$2:$K$1144,11,FALSE),"-") -> 1.3 | E5: =IFERROR(VLOOKUP(B5,MDM!$A$1:$S$1102,14,FALSE),"-") -> 1.3 | F5: =IFERROR(VLOOKUP(B5,Ruralidad!$A$1:$E$1123,5,FALSE),"-") -> 1.625 | G5: =IFERROR(VLOOKUP(B5,'NBI Rural'!$B$2:$E$1124,4,FALSE),"-") -> 1.3 | H5: =IFERROR(VLOOKUP(B5,ICV!$A$1:$G$1123,7,FALSE),"-") -> 1.375 | I5: =IFERROR(VLOOKUP(B5,Frontera!$A$1:$G$103,7,FALSE),"-") -> - | J5: =IFERROR(VLOOKUP(B5,ZNI!$A$4:$X$118,24,FALSE),"-") -> -
B6: 5002 | C6: =IFERROR(VLOOKUP(B6,IICA!$A$9:$G$1131,7,FALSE),"-") -> 2.6 | D6: =IFERROR(VLOOKUP(B6,CultIllic!$A$2:$K$1144,11,FALSE),"-") -> 1.3 | E6: =IFERROR(VLOOKUP(B6,MDM!$A$1:$S$1102,14,FALSE),"-") -> 7.8 | F6: =IFERROR(VLOOKUP(B6,Ruralidad!$A$1:$E$1123,5,FALSE),"-") -> 4.875 | G6: =IFERROR(VLOOKUP(B6,'NBI Rural'!$B$2:$E$1124,4,FALSE),"-") -> 1.95 | H6: =IFERROR(VLOOKUP(B6,ICV!$A$1:$G$1123,7,FALSE),"-") -> 2.0625 | I6: =IFERROR(VLOOKUP(B6,Frontera!$A$1:$G$103,7,FALSE),"-") -> - | J6: =IFERROR(VLOOKUP(B6,ZNI!$A$4:$X$118,24,FALSE),"-") -> -
B7: 5004 | C7: =IFERROR(VLOOKUP(B7,IICA!$A$9:$G$1131,7,FALSE),"-") -> 2.6 | D7: =IFERROR(VLOOKUP(B7,CultIllic!$A$2:$K$1144,11,FALSE),"-") -> 1.3 | E7: =IFERROR(VLOOKUP(B7,MDM!$A$1:$S$1102,14,FALSE),"-") -> 9.1 | F7: =IFERROR(VLOOKUP(B7,Ruralidad!$A$1:$E$1123,5,FALSE),"-") -> 6.5 | G7: =IFERROR(VLOOKUP(B7,'NBI Rural'!$B$2:$E$1124,4,FALSE),"-") -> 1.95 | H7: =IFERROR(VLOOKUP(B7,ICV!$A$1:$G$1123,7,FALSE),"-") -> 2.0625 | I7: =IFERROR(VLOOKUP(B7,Frontera!$A$1:$G$103,7,FALSE),"-") -> - | J7: =IFERROR(VLOOKUP(B7,ZNI!$A$4:$X$118,24,FALSE),"-") -> -
B8: 5021 | C8: =IFERROR(VLOOKUP(B8,IICA!$A$9:$G$1131,7,FALSE),"-") -> 3.466666667 | D8: =IFERROR(VLOOKUP(B8,CultIllic!$A$2:$K$1144,11,FALSE),"-") -> 1.3 | E8: =IFERROR(VLOOKUP(B8,MDM!$A$1:$S$1102,14,FALSE),"-") -> 6.5 | F8: =IFERROR(VLOOKUP(B8,Ruralidad!$A$1:$E$1123,5,FALSE),"-") -> 4.875 | G8: =IFERROR(VLOOKUP(B8,'NBI Rural'!$B$2:$E$1124,4,FALSE),"-") -> 2.6 | H8: =IFERROR(VLOOKUP(B8,ICV!$A$1:$G$1123,7,FALSE),"-") -> 5.5 | I8: =IFERROR(VLOOKUP(B8,Frontera!$A$1:$G$103,7,FALSE),"-") -> - | J8: =IFERROR(VLOOKUP(B8,ZNI!$A$4:$X$118,24,FALSE),"-") -> -
B9: 5030 | C9: =IFERROR(VLOOKUP(B9,IICA!$A$9:$G$1131,7,FALSE),"-") -> 1.733333333 | D9: =IFERROR(VLOOKUP(B9,CultIllic!$A$2:$K$1144,11,FALSE),"-") -> 1.3 | E9: =IFERROR(VLOOKUP(B9,MDM!$A$1:$S$1102,14,FALSE),"-") -> 7.8 | F9: =IFERROR(VLOOKUP(B9,Ruralidad!$A$1:$E$1123,5,FALSE),"-") -> 3.25 | G9: =IFERROR(VLOOKUP(B9,'NBI Rural'!$B$2:$E$1124,4,FALSE),"-") -> 1.95 | H9: =IFERROR(VLOOKUP(B9,ICV!$A$1:$G$1123,7,FALSE),"-") -> 0.6875 | I9: =IFERROR(VLOOKUP(B9,Frontera!$A$1:$G$103,7,FALSE),"-") -> - | J9: =IFERROR(VLOOKUP(B9,ZNI!$A$4:$X$118,24,FALSE),"-") -> -
B10: 5031 | C10: =IFERROR(VLOOKUP(B10,IICA!$A$9:$G$1131,7,FALSE),"-") -> 3.466666667 | D10: =IFERROR(VLOOKUP(B10,CultIllic!$A$2:$K$1144,11,FALSE),"-") -> 1.3 | E10: =IFERROR(VLOOKUP(B10,MDM!$A$1:$S$1102,14,FALSE),"-") -> 5.2 | F10: =IFERROR(VLOOKUP(B10,Ruralidad!$A$1:$E$1123,5,FALSE),"-") -> 4.875 | G10: =IFERROR(VLOOKUP(B10,'NBI Rural'!$B$2:$E$1124,4,FALSE),"-") -> 4.55 | H10: =IFERROR(VLOOKUP(B10,ICV!$A$1:$G$1123,7,FALSE),"-") -> 1.375 | I10: =IFERROR(VLOOKUP(B10,Frontera!$A$1:$G$103,7,FALSE),"-") -> - | J10: =IFERROR(VLOOKUP(B10,ZNI!$A$4:$X$118,24,FALSE),"-") -> -
B11: 5034 | C11: =IFERROR(VLOOKUP(B11,IICA!$A$9:$G$1131,7,FALSE),"-") -> 1.733333333 | D11: =IFERROR(VLOOKUP(B11,CultIllic!$A$2:$K$1144,11,FALSE),"-") -> 1.3 | E11: =IFERROR(VLOOKUP(B11,MDM!$A$1:$S$1102,14,FALSE),"-") -> 6.5 | F11: =IFERROR(VLOOKUP(B11,Ruralidad!$A$1:$E$1123,5,FALSE),"-") -> 3.25 | G11: =IFERROR(VLOOKUP(B11,'NBI Rural'!$B$2:$E$1124,4,FALSE),"-") -> 2.6 | H11: =IFERROR(VLOOKUP(B11,ICV!$A$1:$G$1123,7,FALSE),"-") -> 0.6875 | I11: =IFERROR(VLOOKUP(B11,Frontera!$A$1:$G$103,7,FALSE),"-") -> - | J11: =IFERROR(VLOOKUP(B11,ZNI!$A$4:$X$118,24,FALSE),"-") -> -
B12: 5036 | C12: =IFERROR(VLOOKUP(B12,IICA!$A$9:$G$1131,7,FALSE),"-") -> 1.733333333 | D12: =IFERROR(VLOOKUP(B12,CultIllic!$A$2:$K$1144,11,FALSE),"-") -> 1.3 | E12: =IFERROR(VLOOKUP(B12,MDM!$A$1:$S$1102,14,FALSE),"-") -> 7.8 | F12: =IFERROR(VLOOKUP(B12,Ruralidad!$A$1:$E$1123,5,FALSE),"-") -> 3.25 | G12: =IFERROR(VLOOKUP(B12,'NBI Rural'!$B$2:$E$1124,4,FALSE),"-") -> 1.95 | H12: =IFERROR(VLOOKUP(B12,ICV!$A$1:$G$1123,7,FALSE),"-") -> 0.6875 | I12: =IFERROR(VLOOKUP(B12,Frontera!$A$1:$G$103,7,FALSE),"-") -> - | J12: =IFERROR(VLOOKUP(B12,ZNI!$A$4:$X$118,24,FALSE),"-") -> -
B13: 5038 | C13: =IFERROR(VLOOKUP(B13,IICA!$A$9:$G$1131,7,FALSE),"-") -> 3.466666667 | D13: =IFERROR(VLOOKUP(B13,CultIllic!$A$2:$K$1144,11,FALSE),"-") -> 1.3 | E13: =IFERROR(VLOOKUP(B13,MDM!$A$1:$S$1102,14,FALSE),"-") -> 5.2 | F13: =IFERROR(VLOOKUP(B13,Ruralidad!$A$1:$E$1123,5,FALSE),"-") -> 6.5 | G13: =IFERROR(VLOOKUP(B13,'NBI Rural'!$B$2:$E$1124,4,FALSE),"-") -> 3.9 | H13: =IFERROR(VLOOKUP(B13,ICV!$A$1:$G$1123,7,FALSE),"-") -> 1.375 | I13: =IFERROR(VLOOKUP(B13,Frontera!$A$1:$G$103,7,FALSE),"-") -> - | J13: =IFERROR(VLOOKUP(B13,ZNI!$A$4:$X$118,24,FALSE),"-") -> -
B14: 5040 | C14: =IFERROR(VLOOKUP(B14,IICA!$A$9:$G$1131,7,FALSE),"-") -> 4.333333333 | D14: =IFERROR(VLOOKUP(B14,CultIllic!$A$2:$K$1144,11,FALSE),"-") -> 1.3 | E14: =IFERROR(VLOOKUP(B14,MDM!$A$1:$S$1102,14,FALSE),"-") -> 7.8 | F14: =IFERROR(VLOOKUP(B14,Ruralidad!$A$1:$E$1123,5,FALSE),"-") -> 4.875 | G14: =IFERROR(VLOOKUP(B14,'NBI Rural'!$B$2:$E$1124,4,FALSE),"-") -> 3.9 | H14: =IFERROR(VLOOKUP(B14,ICV!$A$1:$G$1123,7,FALSE),"-") -> 2.0625 | I14: =IFERROR(VLOOKUP(B14,Frontera!$A$1:$G$103,7,FALSE),"-") -> - | J14: =IFERROR(VLOOKUP(B14,ZNI!$A$4:$X$118,24,FALSE),"-") -> -
B15: 5042 | C15: =IFERROR(VLOOKUP(B15,IICA!$A$9:$G$1131,7,FALSE),"-") -> 2.6 | D15: =IFERROR(VLOOKUP(B15,CultIllic!$A$2:$K$1144,11,FALSE),"-") -> 1.3 | E15: =IFERROR(VLOOKUP(B15,MDM!$A$1:$S$1102,14,FALSE),"-") -> 6.5 | F15: =IFERROR(VLOOKUP(B15,Ruralidad!$A$1:$E$1123,5,FALSE),"-") -> 4.875 | G15: =IFERROR(VLOOKUP(B15,'NBI Rural'!$B$2:$E$1124,4,FALSE),"-") -> 4.55 | H15: =IFERROR(VLOOKUP(B15,ICV!$A$1:$G$1123,7,FALSE),"-") -> 0.6875 | I15: =IFERROR(VLOOKUP(B15,Frontera!$A$1:$G$103,7,FALSE),"-") -> - | J15: =IFERROR(VLOOKUP(B15,ZNI!$A$4:$X$118,24,FALSE),"-") -> -
B16: 5044 | C16: =IFERROR(VLOOKUP(B16,IICA!$A$9:$G$1131,7,FALSE),"-") -> 1.733333333 | D16: =IFERROR(VLOOKUP(B16,CultIllic!$A$2:$K$1144,11,FALSE),"-") -> 1.3 | E16: =IFERROR(VLOOKUP(B16,MDM!$A$1:$S$1102,14,FALSE),"-") -> 9.1 | F16: =IFERROR(VLOOKUP(B16,Ruralidad!$A$1:$E$1123,5,FALSE),"-") -> 6.5 | G16: =IFERROR(VLOOKUP(B16,'NBI Rural'!$B$2:$E$1124,4,FALSE),"-") -> 3.9 | H16: =IFERROR(VLOOKUP(B16,ICV!$A$1:$G$1123,7,FALSE),"-") -> 2.0625 | I16: =IFERROR(VLOOKUP(B16,Frontera!$A$1:$G$103,7,FALSE),"-") -> - | J16: =IFERROR(VLOOKUP(B16,ZNI!$A$4:$X$118,24,FALSE),"-") -> -
B17: 5045 | C17: =IFERROR(VLOOKUP(B17,IICA!$A$9:$G$1131,7,FALSE),"-") -> 1.733333333 | D17: =IFERROR(VLOOKUP(B17,CultIllic!$A$2:$K$1144,11,FALSE),"-") -> 1.3 | E17: =IFERROR(VLOOKUP(B17,MDM!$A$1:$S$1102,14,FALSE),"-") -> 6.5 | F17: =IFERROR(VLOOKUP(B17,Ruralidad!$A$1:$E$1123,5,FALSE),"-") -> 1.625 | G17: =IFERROR(VLOOKUP(B17,'NBI Rural'!$B$2:$E$1124,4,FALSE),"-") -> 2.6 | H17: =IFERROR(VLOOKUP(B17,ICV!$A$1:$G$1123,7,FALSE),"-") -> 2.0625 | I17: =IFERROR(VLOOKUP(B17,Frontera!$A$1:$G$103,7,FALSE),"-") -> - | J17: =IFERROR(VLOOKUP(B17,ZNI!$A$4:$X$118,24,FALSE),"-") -> -
B18: 5051 | C18: =IFERROR(VLOOKUP(B18,IICA!$A$9:$G$1131,7,FALSE),"-") -> 0.8666666667 | D18: =IFERROR(VLOOKUP(B18,CultIllic!$A$2:$K$1144,11,FALSE),"-") -> 1.3 | E18: =IFERROR(VLOOKUP(B18,MDM!$A$1:$S$1102,14,FALSE),"-") -> 7.8 | F18: =IFERROR(VLOOKUP(B18,Ruralidad!$A$1:$E$1123,5,FALSE),"-") -> 3.25 | G18: =IFERROR(VLOOKUP(B18,'NBI Rural'!$B$2:$E$1124,4,FALSE),"-") -> 5.85 | H18: =IFERROR(VLOOKUP(B18,ICV!$A$1:$G$1123,7,FALSE),"-") -> 2.75 | I18: =IFERROR(VLOOKUP(B18,Frontera!$A$1:$G$103,7,FALSE),"-") -> - | J18: =IFERROR(VLOOKUP(B18,ZNI!$A$4:$X$118,24,FALSE),"-") -> -
B19: 5055 | C19: =IFERROR(VLOOKUP(B19,IICA!$A$9:$G$1131,7,FALSE),"-") -> 4.333333333 | D19: =IFERROR(VLOOKUP(B19,CultIllic!$A$2:$K$1144,11,FALSE),"-") -> 1.3 | E19: =IFERROR(VLOOKUP(B19,MDM!$A$1:$S$1102,14,FALSE),"-") -> 7.8 | F19: =IFERROR(VLOOKUP(B19,Ruralidad!$A$1:$E$1123,5,FALSE),"-") -> 6.5 | G19: =IFERROR(VLOOKUP(B19,'NBI Rural'!$B$2:$E$1124,4,FALSE),"-") -> 3.25 | H19: =IFERROR(VLOOKUP(B19,ICV!$A$1:$G$1123,7,FALSE),"-") -> 6.1875 | I19: =IFERROR(VLOOKUP(B19,Frontera!$A$1:$G$103,7,FALSE),"-") -> - | J19: =IFERROR(VLOOKUP(B19,ZNI!$A$4:$X$118,24,FALSE),"-") -> -
B20: 5059 | C20: =IFERROR(VLOOKUP(B20,IICA!$A$9:$G$1131,7,FALSE),"-") -> 1.733333333 | D20: =IFERROR(VLOOKUP(B20,CultIllic!$A$2:$K$1144,11,FALSE),"-") -> 1.3 | E20: =IFERROR(VLOOKUP(B20,MDM!$A$1:$S$1102,14,FALSE),"-") -> 9.1 | F20: =IFERROR(VLOOKUP(B20,Ruralidad!$A$1:$E$1123,5,FALSE),"-") -> 4.875 | G20: =IFERROR(VLOOKUP(B20,'NBI Rural'!$B$2:$E$1124,4,FALSE),"-") -> 3.25 | H20: =IFERROR(VLOOKUP(B20,ICV!$A$1:$G$1123,7,FALSE),"-") -> 1.375 | I20: =IFERROR(VLOOKUP(B20,Frontera!$A$1:$G$103,7,FALSE),"-") -> - | J20: =IFERROR(VLOOKUP(B20,ZNI!$A$4:$X$118,24,FALSE),"-") -> -
B21: 5079 | C21: =IFERROR(VLOOKUP(B21,IICA!$A$9:$G$1131,7,FALSE),"-") -> 1.733333333 | D21: =IFERROR(VLOOKUP(B21,CultIllic!$A$2:$K$1144,11,FALSE),"-") -> 1.3 | E21: =IFERROR(VLOOKUP(B21,MDM!$A$1:$S$1102,14,FALSE),"-") -> 5.2 | F21: =IFERROR(VLOOKUP(B21,Ruralidad!$A$1:$E$1123,5,FALSE),"-") -> 1.625 | G21: =IFERROR(VLOOKUP(B21,'NBI Rural'!$B$2:$E$1124,4,FALSE),"-") -> 1.95 | H21: =IFERROR(VLOOKUP(B21,ICV!$A$1:$G$1123,7,FALSE),"-") -> 0.6875 | I21: =IFERROR(VLOOKUP(B21,Frontera!$A$1:$G$103,7,FALSE),"-") -> - | J21: =IFERROR(VLOOKUP(B21,ZNI!$A$4:$X$118,24,FALSE),"-") -> -
B22: 5086 | C22: =IFERROR(VLOOKUP(B22,IICA!$A$9:$G$1131,7,FALSE),"-") -> 0.8666666667 | D22: =IFERROR(VLOOKUP(B22,CultIllic!$A$2:$K$1144,11,FALSE),"-") -> 1.3 | E22: =IFERROR(VLOOKUP(B22,MDM!$A$1:$S$1102,14,FALSE),"-") -> 6.5 | F22: =IFERROR(VLOOKUP(B22,Ruralidad!$A$1:$E$1123,5,FALSE),"-") -> 6.5 | G22: =IFERROR(VLOOKUP(B22,'NBI Rural'!$B$2:$E$1124,4,FALSE),"-") -> 1.95 | H22: =IFERROR(VLOOKUP(B22,ICV!$A$1:$G$1123,7,FALSE),"-") -> 0.6875 | I22: =IFERROR(VLOOKUP(B22,Frontera!$A$1:$G$103,7,FALSE),"-") -> - | J22: =IFERROR(VLOOKUP(B22,ZNI!$A$4:$X$118,24,FALSE),"-") -> -
B23: 5088 | C23: =IFERROR(VLOOKUP(B23,IICA!$A$9:$G$1131,7,FALSE),"-") -> 1.733333333 | D23: =IFERROR(VLOOKUP(B23,CultIllic!$A$2:$K$1144,11,FALSE),"-") -> 1.3 | E23: =IFERROR(VLOOKUP(B23,MDM!$A$1:$S$1102,14,FALSE),"-") -> 3.9 | F23: =IFERROR(VLOOKUP(B23,Ruralidad!$A$1:$E$1123,5,FALSE),"-") -> 1.625 | G23: =IFERROR(VLOOKUP(B23,'NBI Rural'!$B$2:$E$1124,4,FALSE),"-") -> 2.6 | H23: =IFERROR(VLOOKUP(B23,ICV!$A$1:$G$1123,7,FALSE),"-") -> 0.6875 | I23: =IFERROR(VLOOKUP(B23,Frontera!$A$1:$G$103,7,FALSE),"-") -> - | J23: =IFERROR(VLOOKUP(B23,ZNI!$A$4:$X$118,24,FALSE),"-") -> -
B24: 5091 | C24: =IFERROR(VLOOKUP(B24,IICA!$A$9:$G$1131,7,FALSE),"-") -> 1.733333333 | D24: =IFERROR(VLOOKUP(B24,CultIllic!$A$2:$K$1144,11,FALSE),"-") -> 1.3 | E24: =IFERROR(VLOOKUP(B24,MDM!$A$1:$S$1102,14,FALSE),"-") -> 7.8 | F24: =IFERROR(VLOOKUP(B24,Ruralidad!$A$1:$E$1123,5,FALSE),"-") -> 3.25 | G24: =IFERROR(VLOOKUP(B24,'NBI Rural'!$B$2:$E$1124,4,FALSE),"-") -> 1.95 | H24: =IFERROR(VLOOKUP(B24,ICV!$A$1:$G$1123,7,FALSE),"-") -> 1.375 | I24: =IFERROR(VLOOKUP(B24,Frontera!$A$1:$G$103,7,FALSE),"-") -> - | J24: =IFERROR(VLOOKUP(B24,ZNI!$A$4:$X$118,24,FALSE),"-") -> -
B25: 5093 | C25: =IFERROR(VLOOKUP(B25,IICA!$A$9:$G$1131,7,FALSE),"-") -> 1.733333333 | D25: =IFERROR(VLOOKUP(B25,CultIllic!$A$2:$K$1144,11,FALSE),"-") -> 1.3 | E25: =IFERROR(VLOOKUP(B25,MDM!$A$1:$S$1102,14,FALSE),"-") -> 9.1 | F25: =IFERROR(VLOOKUP(B25,Ruralidad!$A$1:$E$1123,5,FALSE),"-") -> 3.25 | G25: =IFERROR(VLOOKUP(B25,'NBI Rural'!$B$2:$E$1124,4,FALSE),"-") -> 3.25 | H25: =IFERROR(VLOOKUP(B25,ICV!$A$1:$G$1123,7,FALSE),"-") -> 3.4375 | I25: =IFERROR(VLOOKUP(B25,Frontera!$A$1:$G$103,7,FALSE),"-") -> - | J25: =IFERROR(VLOOKUP(B25,ZNI!$A$4:$X$118,24,FALSE),"-") -> -
B26: 5101 | C26: =IFERROR(VLOOKUP(B26,IICA!$A$9:$G$1131,7,FALSE),"-") -> 1.733333333 | D26: =IFERROR(VLOOKUP(B26,CultIllic!$A$2:$K$1144,11,FALSE),"-") -> 1.3 | E26: =IFERROR(VLOOKUP(B26,MDM!$A$1:$S$1102,14,FALSE),"-") -> 6.5 | F26: =IFERROR(VLOOKUP(B26,Ruralidad!$A$1:$E$1123,5,FALSE),"-") -> 3.25 | G26: =IFERROR(VLOOKUP(B26,'NBI Rural'!$B$2:$E$1124,4,FALSE),"-") -> 2.6 | H26: =IFERROR(VLOOKUP(B26,ICV!$A$1:$G$1123,7,FALSE),"-") -> 0.6875 | I26: =IFERROR(VLOOKUP(B26,Frontera!$A$1:$G$103,7,FALSE),"-") -> - | J26: =IFERROR(VLOOKUP(B26,ZNI!$A$4:$X$118,24,FALSE),"-") -> -
B27: 5107 | C27: =IFERROR(VLOOKUP(B27,IICA!$A$9:$G$1131,7,FALSE),"-") -> 4.333333333 | D27: =IFERROR(VLOOKUP(B27,CultIllic!$A$2:$K$1144,11,FALSE),"-") -> 1.3 | E27: =IFERROR(VLOOKUP(B27,MDM!$A$1:$S$1102,14,FALSE),"-") -> 6.5 | F27: =IFERROR(VLOOKUP(B27,Ruralidad!$A$1:$E$1123,5,FALSE),"-") -> 6.5 | G27: =IFERROR(VLOOKUP(B27,'NBI Rural'!$B$2:$E$1124,4,FALSE),"-") -> 3.9 | H27: =IFERROR(VLOOKUP(B27,ICV!$A$1:$G$1123,7,FALSE),"-") -> 1.375 | I27: =IFERROR(VLOOKUP(B27,Frontera!$A$1:$G$103,7,FALSE),"-") -> - | J27: =IFERROR(VLOOKUP(B27,ZNI!$A$4:$X$118,24,FALSE),"-") -> -
B28: 5113 | C28: =IFERROR(VLOOKUP(B28,IICA!$A$9:$G$1131,7,FALSE),"-") -> 1.733333333 | D28: =IFERROR(VLOOKUP(B28,CultIllic!$A$2:$K$1144,11,FALSE),"-") -> 1.3 | E28: =IFERROR(VLOOKUP(B28,MDM!$A$1:$S$1102,14,FALSE),"-") -> 10.4 | F28: =IFERROR(VLOOKUP(B28,Ruralidad!$A$1:$E$1123,5,FALSE),"-") -> 6.5 | G28: =IFERROR(VLOOKUP(B28,'NBI Rural'!$B$2:$E$1124,4,FALSE),"-") -> 5.2 | H28: =IFERROR(VLOOKUP(B28,ICV!$A$1:$G$1123,7,FALSE),"-") -> 2.75 | I28: =IFERROR(VLOOKUP(B28,Frontera!$A$1:$G$103,7,FALSE),"-") -> - | J28: =IFERROR(VLOOKUP(B28,ZNI!$A$4:$X$118,24,FALSE),"-") -> -
B29: 5120 | C29: =IFERROR(VLOOKUP(B29,IICA!$A$9:$G$1131,7,FALSE),"-") -> 3.466666667 | D29: =IFERROR(VLOOKUP(B29,CultIllic!$A$2:$K$1144,11,FALSE),"-") -> 1.3 | E29: =IFERROR(VLOOKUP(B29,MDM!$A$1:$S$1102,14,FALSE),"-") -> 9.1 | F29: =IFERROR(VLOOKUP(B29,Ruralidad!$A$1:$E$1123,5,FALSE),"-") -> 6.5 | G29: =IFERROR(VLOOKUP(B29,'NBI Rural'!$B$2:$E$1124,4,FALSE),"-") -> 4.55 | H29: =IFERROR(VLOOKUP(B29,ICV!$A$1:$G$1123,7,FALSE),"-") -> 1.375 | I29: =IFERROR(VLOOKUP(B29,Frontera!$A$1:$G$103,7,FALSE),"-") -> - | J29: =IFERROR(VLOOKUP(B29,ZNI!$A$4:$X$118,24,FALSE),"-") -> -
B30: 5125 | C30: =IFERROR(VLOOKUP(B30,IICA!$A$9:$G$1131,7,FALSE),"-") -> 2.6 | D30: =IFERROR(VLOOKUP(B30,CultIllic!$A$2:$K$1144,11,FALSE),"-") -> 1.3 | E30: =IFERROR(VLOOKUP(B30,MDM!$A$1:$S$1102,14,FALSE),"-") -> 7.8 | F30: =IFERROR(VLOOKUP(B30,Ruralidad!$A$1:$E$1123,5,FALSE),"-") -> 6.5 | G30: =IFERROR(VLOOKUP(B30,'NBI Rural'!$B$2:$E$1124,4,FALSE),"-") -> 4.55 | H30: =IFERROR(VLOOKUP(B30,ICV!$A$1:$G$1123,7,FALSE),"-") -> 0.6875 | I30: =IFERROR(VLOOKUP(B30,Frontera!$A$1:$G$103,7,FALSE),"-") -> - | J30: =IFERROR(VLOOKUP(B30,ZNI!$A$4:$X$118,24,FALSE),"-") -> -
B31: 5129 | C31: =IFERROR(VLOOKUP(B31,IICA!$A$9:$G$1131,7,FALSE),"-") -> 2.6 | D31: =IFERROR(VLOOKUP(B31,CultIllic!$A$2:$K$1144,11,FALSE),"-") -> 1.3 | E31: =IFERROR(VLOOKUP(B31,MDM!$A$1:$S$1102,14,FALSE),"-") -> 5.2 | F31: =IFERROR(VLOOKUP(B31,Ruralidad!$A$1:$E$1123,5,FALSE),"-") -> 1.625 | G31: =IFERROR(VLOOKUP(B31,'NBI Rural'!$B$2:$E$1124,4,FALSE),"-") -> 1.3 | H31: =IFERROR(VLOOKUP(B31,ICV!$A$1:$G$1123,7,FALSE),"-") -> 0.6875 | I31: =IFERROR(VLOOKUP(B31,Frontera!$A$1:$G$103,7,FALSE),"-") -> - | J31: =IFERROR(VLOOKUP(B31,ZNI!$A$4:$X$118,24,FALSE),"-") -> -
B32: 5134 | C32: =IFERROR(VLOOKUP(B32,IICA!$A$9:$G$1131,7,FALSE),"-") -> 3.466666667 | D32: =IFERROR(VLOOKUP(B32,CultIllic!$A$2:$K$1144,11,FALSE),"-") -> 1.3 | E32: =IFERROR(VLOOKUP(B32,MDM!$A$1:$S$1102,14,FALSE),"-") -> 9.1 | F32: =IFERROR(VLOOKUP(B32,Ruralidad!$A$1:$E$1123,5,FALSE),"-") -> 4.875 | G32: =IFERROR(VLOOKUP(B32,'NBI Rural'!$B$2:$E$1124,4,FALSE),"-") -> 6.5 | H32: =IFERROR(VLOOKUP(B32,ICV!$A$1:$G$1123,7,FALSE),"-") -> 1.375 | I32: =IFERROR(VLOOKUP(B32,Frontera!$A$1:$G$103,7,FALSE),"-") -> - | J32: =IFERROR(VLOOKUP(B32,ZNI!$A$4:$X$118,24,FALSE),"-") -> -
B33: 5138 | C33: =IFERROR(VLOOKUP(B33,IICA!$A$9:$G$1131,7,FALSE),"-") -> 1.733333333 | D33: =IFERROR(VLOOKUP(B33,CultIllic!$A$2:$K$1144,11,FALSE),"-") -> 1.3 | E33: =IFERROR(VLOOKUP(B33,MDM!$A$1:$S$1102,14,FALSE),"-") -> 7.8 | F33: =IFERROR(VLOOKUP(B33,Ruralidad!$A$1:$E$1123,5,FALSE),"-") -> 4.875 | G33: =IFERROR(VLOOKUP(B33,'NBI Rural'!$B$2:$E$1124,4,FALSE),"-") -> 4.55 | H33: =IFERROR(VLOOKUP(B33,ICV!$A$1:$G$1123,7,FALSE),"-") -> 1.375 | I33: =IFERROR(VLOOKUP(B33,Frontera!$A$1:$G$103,7,FALSE),"-") -> - | J33: =IFERROR(VLOOKUP(B33,ZNI!$A$4:$X$118,24,FALSE),"-") -> -
B34: 5142 | C34: =IFERROR(VLOOKUP(B34,IICA!$A$9:$G$1131,7,FALSE),"-") -> 1.733333333 | D34: =IFERROR(VLOOKUP(B34,CultIllic!$A$2:$K$1144,11,FALSE),"-") -> 1.3 | E34: =IFERROR(VLOOKUP(B34,MDM!$A$1:$S$1102,14,FALSE),"-") -> 7.8 | F34: =IFERROR(VLOOKUP(B34,Ruralidad!$A$1:$E$1123,5,FALSE),"-") -> 4.875 | G34: =IFERROR(VLOOKUP(B34,'NBI Rural'!$B$2:$E$1124,4,FALSE),"-") -> 2.6 | H34: =IFERROR(VLOOKUP(B34,ICV!$A$1:$G$1123,7,FALSE),"-") -> 0.6875 | I34: =IFERROR(VLOOKUP(B34,Frontera!$A$1:$G$103,7,FALSE),"-") -> - | J34: =IFERROR(VLOOKUP(B34,ZNI!$A$4:$X$118,24,FALSE),"-") -> -
B35: 5145 | C35: =IFERROR(VLOOKUP(B35,IICA!$A$9:$G$1131,7,FALSE),"-") -> 1.733333333 | D35: =IFERROR(VLOOKUP(B35,CultIllic!$A$2:$K$1144,11,FALSE),"-") -> 1.3 | E35: =IFERROR(VLOOKUP(B35,MDM!$A$1:$S$1102,14,FALSE),"-") -> 6.5 | F35: =IFERROR(VLOOKUP(B35,Ruralidad!$A$1:$E$1123,5,FALSE),"-") -> 3.25 | G35: =IFERROR(VLOOKUP(B35,'NBI Rural'!$B$2:$E$1124,4,FALSE),"-") -> 1.95 | H35: =IFERROR(VLOOKUP(B35,ICV!$A$1:$G$1123,7,FALSE),"-") -> 0.6875 | I35: =IFERROR(VLOOKUP(B35,Frontera!$A$1:$G$103,7,FALSE),"-") -> - | J35: =IFERROR(VLOOKUP(B35,ZNI!$A$4:$X$118,24,FALSE),"-") -> -
B36: 5147 | C36: =IFERROR(VLOOKUP(B36,IICA!$A$9:$G$1131,7,FALSE),"-") -> 1.733333333 | D36: =IFERROR(VLOOKUP(B36,CultIllic!$A$2:$K$1144,11,FALSE),"-") -> 1.3 | E36: =IFERROR(VLOOKUP(B36,MDM!$A$1:$S$1102,14,FALSE),"-") -> 7.8 | F36: =IFERROR(VLOOKUP(B36,Ruralidad!$A$1:$E$1123,5,FALSE),"-") -> 3.25 | G36: =IFERROR(VLOOKUP(B36,'NBI Rural'!$B$2:$E$1124,4,FALSE),"-") -> 3.9 | H36: =IFERROR(VLOOKUP(B36,ICV!$A$1:$G$1123,7,FALSE),"-") -> 3.4375 | I36: =IFERROR(VLOOKUP(B36,Frontera!$A$1:$G$103,7,FALSE),"-") -> - | J36: =IFERROR(VLOOKUP(B36,ZNI!$A$4:$X$118,24,FALSE),"-") -> -
B37: 5148 | C37: =IFERROR(VLOOKUP(B37,IICA!$A$9:$G$1131,7,FALSE),"-") -> 1.733333333 | D37: =IFERROR(VLOOKUP(B37,CultIllic!$A$2:$K$1144,11,FALSE),"-") -> 1.3 | E37: =IFERROR(VLOOKUP(B37,MDM!$A$1:$S$1102,14,FALSE),"-") -> 6.5 | F37: =IFERROR(VLOOKUP(B37,Ruralidad!$A$1:$E$1123,5,FALSE),"-") -> 3.25 | G37: =IFERROR(VLOOKUP(B37,'NBI Rural'!$B$2:$E$1124,4,FALSE),"-") -> 1.95 | H37: =IFERROR(VLOOKUP(B37,ICV!$A$1:$G$1123,7,FALSE),"-") -> 1.375 | I37: =IFERROR(VLOOKUP(B37,Frontera!$A$1:$G$103,7,FALSE),"-") -> - | J37: =IFERROR(VLOOKUP(B37,ZNI!$A$4:$X$118,24,FALSE),"-") -> -
B38: 5150 | C38: =IFERROR(VLOOKUP(B38,IICA!$A$9:$G$1131,7,FALSE),"-") -> 1.733333333 | D38: =IFERROR(VLOOKUP(B38,CultIllic!$A$2:$K$1144,11,FALSE),"-") -> 1.3 | E38: =IFERROR(VLOOKUP(B38,MDM!$A$1:$S$1102,14,FALSE),"-") -> 5.2 | F38: =IFERROR(VLOOKUP(B38,Ruralidad!$A$1:$E$1123,5,FALSE),"-") -> 4.875 | G38: =IFERROR(VLOOKUP(B38,'NBI Rural'!$B$2:$E$1124,4,FALSE),"-") -> 1.3 | H38: =IFERROR(VLOOKUP(B38,ICV!$A$1:$G$1123,7,FALSE),"-") -> 0.6875 | I38: =IFERROR(VLOOKUP(B38,Frontera!$A$1:$G$103,7,FALSE),"-") -> - | J38: =IFERROR(VLOOKUP(B38,ZNI!$A$4:$X$118,24,FALSE),"-") -> -
B39: 5154 | C39: =IFERROR(VLOOKUP(B39,IICA!$A$9:$G$1131,7,FALSE),"-") -> 1.733333333 | D39: =IFERROR(VLOOKUP(B39,CultIllic!$A$2:$K$1144,11,FALSE),"-") -> 1.3 | E39: =IFERROR(VLOOKUP(B39,MDM!$A$1:$S$1102,14,FALSE),"-") -> 6.5 | F39: =IFERROR(VLOOKUP(B39,Ruralidad!$A$1:$E$1123,5,FALSE),"-") -> 1.625 | G39: =IFERROR(VLOOKUP(B39,'NBI Rural'!$B$2:$E$1124,4,FALSE),"-") -> 4.55 | H39: =IFERROR(VLOOKUP(B39,ICV!$A$1:$G$1123,7,FALSE),"-") -> 1.375 | I39: =IFERROR(VLOOKUP(B39,Frontera!$A$1:$G$103,7,FALSE),"-") -> - | J39: =IFERROR(VLOOKUP(B39,ZNI!$A$4:$X$118,24,FALSE),"-") -> -
B40: 5172 | C40: =IFERROR(VLOOKUP(B40,IICA!$A$9:$G$1131,7,FALSE),"-") -> 1.733333333 | D40: =IFERROR(VLOOKUP(B40,CultIllic!$A$2:$K$1144,11,FALSE),"-") -> 1.3 | E40: =IFERROR(VLOOKUP(B40,MDM!$A$1:$S$1102,14,FALSE),"-") -> 6.5 | F40: =IFERROR(VLOOKUP(B40,Ruralidad!$A$1:$E$1123,5,FALSE),"-") -> 3.25 | G40: =IFERROR(VLOOKUP(B40,'NBI Rural'!$B$2:$E$1124,4,FALSE),"-") -> 4.55 | H40: =IFERROR(VLOOKUP(B40,ICV!$A$1:$G$1123,7,FALSE),"-") -> 2.75 | I40: =IFERROR(VLOOKUP(B40,Frontera!$A$1:$G$103,7,FALSE),"-") -> - | J40: =IFERROR(VLOOKUP(B40,ZNI!$A$4:$X$118,24,FALSE),"-") -> -
B41: 5190 | C41: =IFERROR(VLOOKUP(B41,IICA!$A$9:$G$1131,7,FALSE),"-") -> 1.733333333 | D41: =IFERROR(VLOOKUP(B41,CultIllic!$A$2:$K$1144,11,FALSE),"-") -> 1.3 | E41: =IFERROR(VLOOKUP(B41,MDM!$A$1:$S$1102,14,FALSE),"-") -> 7.8 | F41: =IFERROR(VLOOKUP(B41,Ruralidad!$A$1:$E$1123,5,FALSE),"-") -> 3.25 | G41: =IFERROR(VLOOKUP(B41,'NBI Rural'!$B$2:$E$1124,4,FALSE),"-") -> 1.95 | H41: =IFERROR(VLOOKUP(B41,ICV!$A$1:$G$1123,7,FALSE),"-") -> 1.375 | I41: =IFERROR(VLOOKUP(B41,Frontera!$A$1:$G$103,7,FALSE),"-") -> - | J41: =IFERROR(VLOOKUP(B41,ZNI!$A$4:$X$118,24,FALSE),"-") -> -
B42: 5197 | C42: =IFERROR(VLOOKUP(B42,IICA!$A$9:$G$1131,7,FALSE),"-") -> 4.333333333 | D42: =IFERROR(VLOOKUP(B42,CultIllic!$A$2:$K$1144,11,FALSE),"-") -> 1.3 | E42: =IFERROR(VLOOKUP(B42,MDM!$A$1:$S$1102,14,FALSE),"-") -> 6.5 | F42: =IFERROR(VLOOKUP(B42,Ruralidad!$A$1:$E$1123,5,FALSE),"-") -> 4.875 | G42: =IFERROR(VLOOKUP(B42,'NBI Rural'!$B$2:$E$1124,4,FALSE),"-") -> 2.6 | H42: =IFERROR(VLOOKUP(B42,ICV!$A$1:$G$1123,7,FALSE),"-") -> 5.5 | I42: =IFERROR(VLOOKUP(B42,Frontera!$A$1:$G$103,7,FALSE),"-") -> - | J42: =IFERROR(VLOOKUP(B42,ZNI!$A$4:$X$118,24,FALSE),"-") -> -
B43: 5206 | C43: =IFERROR(VLOOKUP(B43,IICA!$A$9:$G$1131,7,FALSE),"-") -> 2.6 | D43: =IFERROR(VLOOKUP(B43,CultIllic!$A$2:$K$1144,11,FALSE),"-") -> 1.3 | E43: =IFERROR(VLOOKUP(B43,MDM!$A$1:$S$1102,14,FALSE),"-") -> 9.1 | F43: =IFERROR(VLOOKUP(B43,Ruralidad!$A$1:$E$1123,5,FALSE),"-") -> 4.875 | G43: =IFERROR(VLOOKUP(B43,'NBI Rural'!$B$2:$E$1124,4,FALSE),"-") -> 1.95 | H43: =IFERROR(VLOOKUP(B43,ICV!$A$1:$G$1123,7,FALSE),"-") -> 2.0625 | I43: =IFERROR(VLOOKUP(B43,Frontera!$A$1:$G$103,7,FALSE),"-") -> - | J43: =IFERROR(VLOOKUP(B43,ZNI!$A$4:$X$118,24,FALSE),"-") -> -
B44: 5209 | C44: =IFERROR(VLOOKUP(B44,IICA!$A$9:$G$1131,7,FALSE),"-") -> 1.733333333 | D44: =IFERROR(VLOOKUP(B44,CultIllic!$A$2:$K$1144,11,FALSE),"-") -> 1.3 | E44: =IFERROR(VLOOKUP(B44,MDM!$A$1:$S$1102,14,FALSE),"-") -> 5.2 | F44: =IFERROR(VLOOKUP(B44,Ruralidad!$A$1:$E$1123,5,FALSE),"-") -> 3.25 | G44: =IFERROR(VLOOKUP(B44,'NBI Rural'!$B$2:$E$1124,4,FALSE),"-") -> 3.25 | H44: =IFERROR(VLOOKUP(B44,ICV!$A$1:$G$1123,7,FALSE),"-") -> 0.6875 | I44: =IFERROR(VLOOKUP(B44,Frontera!$A$1:$G$103,7,FALSE),"-") -> - | J44: =IFERROR(VLOOKUP(B44,ZNI!$A$4:$X$118,24,FALSE),"-") -> -
B45: 5212 | C45: =IFERROR(VLOOKUP(B45,IICA!$A$9:$G$1131,7,FALSE),"-") -> 1.733333333 | D45: =IFERROR(VLOOKUP(B45,CultIllic!$A$2:$K$1144,11,FALSE),"-") -> 1.3 | E45: =IFERROR(VLOOKUP(B45,MDM!$A$1:$S$1102,14,FALSE),"-") -> 3.9 | F45: =IFERROR(VLOOKUP(B45,Ruralidad!$A$1:$E$1123,5,FALSE),"-") -> 1.625 | G45: =IFERROR(VLOOKUP(B45,'NBI Rural'!$B$2:$E$1124,4,FALSE),"-") -> 1.3 | H45: =IFERROR(VLOOKUP(B45,ICV!$A$1:$G$1123,7,FALSE),"-") -> 0.6875 | I45: =IFERROR(VLOOKUP(B45,Frontera!$A$1:$G$103,7,FALSE),"-") -> - | J45: =IFERROR(VLOOKUP(B45,ZNI!$A$4:$X$118,24,FALSE),"-") -> -
B46: 5234 | C46: =IFERROR(VLOOKUP(B46,IICA!$A$9:$G$1131,7,FALSE),"-") -> 4.333333333 | D46: =IFERROR(VLOOKUP(B46,CultIllic!$A$2:$K$1144,11,FALSE),"-") -> 1.3 | E46: =IFERROR(VLOOKUP(B46,MDM!$A$1:$S$1102,14,FALSE),"-") -> 9.1 | F46: =IFERROR(VLOOKUP(B46,Ruralidad!$A$1:$E$1123,5,FALSE),"-") -> 4.875 | G46: =IFERROR(VLOOKUP(B46,'NBI Rural'!$B$2:$E$1124,4,FALSE),"-") -> 5.85 | H46: =IFERROR(VLOOKUP(B46,ICV!$A$1:$G$1123,7,FALSE),"-") -> 3.4375 | I46: =IFERROR(VLOOKUP(B46,Frontera!$A$1:$G$103,7,FALSE),"-") -> - | J46: =IFERROR(VLOOKUP(B46,ZNI!$A$4:$X$118,24,FALSE),"-") -> -
B47: 5237 | C47: =IFERROR(VLOOKUP(B47,IICA!$A$9:$G$1131,7,FALSE),"-") -> 1.733333333 | D47: =IFERROR(VLOOKUP(B47,CultIllic!$A$2:$K$1144,11,FALSE),"-") -> 1.3 | E47: =IFERROR(VLOOKUP(B47,MDM!$A$1:$S$1102,14,FALSE),"-") -> 7.8 | F47: =IFERROR(VLOOKUP(B47,Ruralidad!$A$1:$E$1123,5,FALSE),"-") -> 3.25 | G47: =IFERROR(VLOOKUP(B47,'NBI Rural'!$B$2:$E$1124,4,FALSE),"-") -> 1.95 | H47: =IFERROR(VLOOKUP(B47,ICV!$A$1:$G$1123,7,FALSE),"-") -> 0.6875 | I47: =IFERROR(VLOOKUP(B47,Frontera!$A$1:$G$103,7,FALSE),"-") -> - | J47: =IFERROR(VLOOKUP(B47,ZNI!$A$4:$X$118,24,FALSE),"-") -> -
B48: 5240 | C48: =IFERROR(VLOOKUP(B48,IICA!$A$9:$G$1131,7,FALSE),"-") -> 0.8666666667 | D48: =IFERROR(VLOOKUP(B48,CultIllic!$A$2:$K$1144,11,FALSE),"-") -> 1.3 | E48: =IFERROR(VLOOKUP(B48,MDM!$A$1:$S$1102,14,FALSE),"-") -> 9.1 | F48: =IFERROR(VLOOKUP(B48,Ruralidad!$A$1:$E$1123,5,FALSE),"-") -> 4.875 | G48: =IFERROR(VLOOKUP(B48,'NBI Rural'!$B$2:$E$1124,4,FALSE),"-") -> 3.25 | H48: =IFERROR(VLOOKUP(B48,ICV!$A$1:$G$1123,7,FALSE),"-") -> 0.6875 | I48: =IFERROR(VLOOKUP(B48,Frontera!$A$1:$G$103,7,FALSE),"-") -> - | J48: =IFERROR(VLOOKUP(B48,ZNI!$A$4:$X$118,24,FALSE),"-") -> -
B49: 5250 | C49: =IFERROR(VLOOKUP(B49,IICA!$A$9:$G$1131,7,FALSE),"-") -> 3.466666667 | D49: =IFERROR(VLOOKUP(B49,CultIllic!$A$2:$K$1144,11,FALSE),"-") -> 1.3 | E49: =IFERROR(VLOOKUP(B49,MDM!$A$1:$S$1102,14,FALSE),"-") -> 7.8 | F49: =IFERROR(VLOOKUP(B49,Ruralidad!$A$1:$E$1123,5,FALSE),"-") -> 3.25 | G49: =IFERROR(VLOOKUP(B49,'NBI Rural'!$B$2:$E$1124,4,FALSE),"-") -> 4.55 | H49: =IFERROR(VLOOKUP(B49,ICV!$A$1:$G$1123,7,FALSE),"-") -> 1.375 | I49: =IFERROR(VLOOKUP(B49,Frontera!$A$1:$G$103,7,FALSE),"-") -> - | J49: =IFERROR(VLOOKUP(B49,ZNI!$A$4:$X$118,24,FALSE),"-") -> -
B50: 5264 | C50: =IFERROR(VLOOKUP(B50,IICA!$A$9:$G$1131,7,FALSE),"-") -> 0.8666666667 | D50: =IFERROR(VLOOKUP(B50,CultIllic!$A$2:$K$1144,11,FALSE),"-") -> 1.3 | E50: =IFERROR(VLOOKUP(B50,MDM!$A$1:$S$1102,14,FALSE),"-") -> 5.2 | F50: =IFERROR(VLOOKUP(B50,Ruralidad!$A$1:$E$1123,5,FALSE),"-") -> 4.875 | G50: =IFERROR(VLOOKUP(B50,'NBI Rural'!$B$2:$E$1124,4,FALSE),"-") -> 1.3 | H50: =IFERROR(VLOOKUP(B50,ICV!$A$1:$G$1123,7,FALSE),"-") -> 0.6875 | I50: =IFERROR(VLOOKUP(B50,Frontera!$A$1:$G$103,7,FALSE),"-") -> - | J50: =IFERROR(VLOOKUP(B50,ZNI!$A$4:$X$118,24,FALSE),"-") -> -
B51: 5266 | C51: =IFERROR(VLOOKUP(B51,IICA!$A$9:$G$1131,7,FALSE),"-") -> 0.8666666667 | D51: =IFERROR(VLOOKUP(B51,CultIllic!$A$2:$K$1144,11,FALSE),"-") -> 1.3 | E51: =IFERROR(VLOOKUP(B51,MDM!$A$1:$S$1102,14,FALSE),"-") -> 1.3 | F51: =IFERROR(VLOOKUP(B51,Ruralidad!$A$1:$E$1123,5,FALSE),"-") -> 1.625 | G51: =IFERROR(VLOOKUP(B51,'NBI Rural'!$B$2:$E$1124,4,FALSE),"-") -> 0.65 | H51: =IFERROR(VLOOKUP(B51,ICV!$A$1:$G$1123,7,FALSE),"-") -> 0.6875 | I51: =IFERROR(VLOOKUP(B51,Frontera!$A$1:$G$103,7,FALSE),"-") -> - | J51: =IFERROR(VLOOKUP(B51,ZNI!$A$4:$X$118,24,FALSE),"-") -> -
B52: 5282 | C52: =IFERROR(VLOOKUP(B52,IICA!$A$9:$G$1131,7,FALSE),"-") -> 1.733333333 | D52: =IFERROR(VLOOKUP(B52,CultIllic!$A$2:$K$1144,11,FALSE),"-") -> 1.3 | E52: =IFERROR(VLOOKUP(B52,MDM!$A$1:$S$1102,14,FALSE),"-") -> 9.1 | F52: =IFERROR(VLOOKUP(B52,Ruralidad!$A$1:$E$1123,5,FALSE),"-") -> 3.25 | G52: =IFERROR(VLOOKUP(B52,'NBI Rural'!$B$2:$E$1124,4,FALSE),"-") -> 1.95 | H52: =IFERROR(VLOOKUP(B52,ICV!$A$1:$G$1123,7,FALSE),"-") -> 0.6875 | I52: =IFERROR(VLOOKUP(B52,Frontera!$A$1:$G$103,7,FALSE),"-") -> - | J52: =IFERROR(VLOOKUP(B52,ZNI!$A$4:$X$118,24,FALSE),"-") -> -
B53: 5284 | C53: =IFERROR(VLOOKUP(B53,IICA!$A$9:$G$1131,7,FALSE),"-") -> 2.6 | D53: =IFERROR(VLOOKUP(B53,CultIllic!$A$2:$K$1144,11,FALSE),"-") -> 1.3 | E53: =IFERROR(VLOOKUP(B53,MDM!$A$1:$S$1102,14,FALSE),"-") -> 6.5 | F53: =IFERROR(VLOOKUP(B53,Ruralidad!$A$1:$E$1123,5,FALSE),"-") -> 4.875 | G53: =IFERROR(VLOOKUP(B53,'NBI Rural'!$B$2:$E$1124,4,FALSE),"-") -> 3.9 | H53: =IFERROR(VLOOKUP(B53,ICV!$A$1:$G$1123,7,FALSE),"-") -> 3.4375 | I53: =IFERROR(VLOOKUP(B53,Frontera!$A$1:$G$103,7,FALSE),"-") -> - | J53: =IFERROR(VLOOKUP(B53,ZNI!$A$4:$X$118,24,FALSE),"-") -> -
B54: 5306 | C54: =IFERROR(VLOOKUP(B54,IICA!$A$9:$G$1131,7,FALSE),"-") -> 1.733333333 | D54: =IFERROR(VLOOKUP(B54,CultIllic!$A$2:$K$1144,11,FALSE),"-") -> 1.3 | E54: =IFERROR(VLOOKUP(B54,MDM!$A$1:$S$1102,14,FALSE),"-") -> 7.8 | F54: =IFERROR(VLOOKUP(B54,Ruralidad!$A$1:$E$1123,5,FALSE),"-") -> 4.875 | G54: =IFERROR(VLOOKUP(B54,'NBI Rural'!$B$2:$E$1124,4,FALSE),"-") -> 3.25 | H54: =IFERROR(VLOOKUP(B54,ICV!$A$1:$G$1123,7,FALSE),"-") -> 0.6875 | I54: =IFERROR(VLOOKUP(B54,Frontera!$A$1:$G$103,7,FALSE),"-") -> - | J54: =IFERROR(VLOOKUP(B54,ZNI!$A$4:$X$118,24,FALSE),"-") -> -
B55: 5308 | C55: =IFERROR(VLOOKUP(B55,IICA!$A$9:$G$1131,7,FALSE),"-") -> 1.733333333 | D55: =IFERROR(VLOOKUP(B55,CultIllic!$A$2:$K$1144,11,FALSE),"-") -> 1.3 | E55: =IFERROR(VLOOKUP(B55,MDM!$A$1:$S$1102,14,FALSE),"-") -> 5.2 | F55: =IFERROR(VLOOKUP(B55,Ruralidad!$A$1:$E$1123,5,FALSE),"-") -> 1.625 | G55: =IFERROR(VLOOKUP(B55,'NBI Rural'!$B$2:$E$1124,4,FALSE),"-") -> 1.3 | H55: =IFERROR(VLOOKUP(B55,ICV!$A$1:$G$1123,7,FALSE),"-") -> 0.6875 | I55: =IFERROR(VLOOKUP(B55,Frontera!$A$1:$G$103,7,FALSE),"-") -> - | J55: =IFERROR(VLOOKUP(B55,ZNI!$A$4:$X$118,24,FALSE),"-") -> -
B56: 5310 | C56: =IFERROR(VLOOKUP(B56,IICA!$A$9:$G$1131,7,FALSE),"-") -> 1.733333333 | D56: =IFERROR(VLOOKUP(B56,CultIllic!$A$2:$K$1144,11,FALSE),"-") -> 1.3 | E56: =IFERROR(VLOOKUP(B56,MDM!$A$1:$S$1102,14,FALSE),"-") -> 9.1 | F56: =IFERROR(VLOOKUP(B56,Ruralidad!$A$1:$E$1123,5,FALSE),"-") -> 4.875 | G56: =IFERROR(VLOOKUP(B56,'NBI Rural'!$B$2:$E$1124,4,FALSE),"-") -> 3.9 | H56: =IFERROR(VLOOKUP(B56,ICV!$A$1:$G$1123,7,FALSE),"-") -> 0.6875 | I56: =IFERROR(VLOOKUP(B56,Frontera!$A$1:$G$103,7,FALSE),"-") -> - | J56: =IFERROR(VLOOKUP(B56,ZNI!$A$4:$X$118,24,FALSE),"-") -> -
B57: 5313 | C57: =IFERROR(VLOOKUP(B57,IICA!$A$9:$G$1131,7,FALSE),"-") -> 4.333333333 | D57: =IFERROR(VLOOKUP(B57,CultIllic!$A$2:$K$1144,11,FALSE),"-") -> 1.3 | E57: =IFERROR(VLOOKUP(B57,MDM!$A$1:$S$1102,14,FALSE),"-") -> 7.8 | F57: =IFERROR(VLOOKUP(B57,Ruralidad!$A$1:$E$1123,5,FALSE),"-") -> 3.25 | G57: =IFERROR(VLOOKUP(B57,'NBI Rural'!$B$2:$E$1124,4,FALSE),"-") -> 1.95 | H57: =IFERROR(VLOOKUP(B57,ICV!$A$1:$G$1123,7,FALSE),"-") -> 6.1875 | I57: =IFERROR(VLOOKUP(B57,Frontera!$A$1:$G$103,7,FALSE),"-") -> - | J57: =IFERROR(VLOOKUP(B57,ZNI!$A$4:$X$118,24,FALSE),"-") -> -
B58: 5315 | C58: =IFERROR(VLOOKUP(B58,IICA!$A$9:$G$1131,7,FALSE),"-") -> 2.6 | D58: =IFERROR(VLOOKUP(B58,CultIllic!$A$2:$K$1144,11,FALSE),"-") -> 1.3 | E58: =IFERROR(VLOOKUP(B58,MDM!$A$1:$S$1102,14,FALSE),"-") -> 7.8 | F58: =IFERROR(VLOOKUP(B58,Ruralidad!$A$1:$E$1123,5,FALSE),"-") -> 3.25 | G58: =IFERROR(VLOOKUP(B58,'NBI Rural'!$B$2:$E$1124,4,FALSE),"-") -> 3.9 | H58: =IFERROR(VLOOKUP(B58,ICV!$A$1:$G$1123,7,FALSE),"-") -> 0.6875 | I58: =IFERROR(VLOOKUP(B58,Frontera!$A$1:$G$103,7,FALSE),"-") -> - | J58: =IFERROR(VLOOKUP(B58,ZNI!$A$4:$X$118,24,FALSE),"-") -> -
B59: 5318 | C59: =IFERROR(VLOOKUP(B59,IICA!$A$9:$G$1131,7,FALSE),"-") -> 1.733333333 | D59: =IFERROR(VLOOKUP(B59,CultIllic!$A$2:$K$1144,11,FALSE),"-") -> 1.3 | E59: =IFERROR(VLOOKUP(B59,MDM!$A$1:$S$1102,14,FALSE),"-") -> 3.9 | F59: =IFERROR(VLOOKUP(B59,Ruralidad!$A$1:$E$1123,5,FALSE),"-") -> 3.25 | G59: =IFERROR(VLOOKUP(B59,'NBI Rural'!$B$2:$E$1124,4,FALSE),"-") -> 1.3 | H59: =IFERROR(VLOOKUP(B59,ICV!$A$1:$G$1123,7,FALSE),"-") -> 0.6875 | I59: =IFERROR(VLOOKUP(B59,Frontera!$A$1:$G$103,7,FALSE),"-") -> - | J59: =IFERROR(VLOOKUP(B59,ZNI!$A$4:$X$118,24,FALSE),"-") -> -
B60: 5321 | C60: =IFERROR(VLOOKUP(B60,IICA!$A$9:$G$1131,7,FALSE),"-") -> 1.733333333 | D60: =IFERROR(VLOOKUP(B60,CultIllic!$A$2:$K$1144,11,FALSE),"-") -> 1.3 | E60: =IFERROR(VLOOKUP(B60,MDM!$A$1:$S$1102,14,FALSE),"-") -> 5.2 | F60: =IFERROR(VLOOKUP(B60,Ruralidad!$A$1:$E$1123,5,FALSE),"-") -> 3.25 | G60: =IFERROR(VLOOKUP(B60,'NBI Rural'!$B$2:$E$1124,4,FALSE),"-") -> 1.3 | H60: =IFERROR(VLOOKUP(B60,ICV!$A$1:$G$1123,7,FALSE),"-") -> 2.0625 | I60: =IFERROR(VLOOKUP(B60,Frontera!$A$1:$G$103,7,FALSE),"-") -> - | J60: =IFERROR(VLOOKUP(B60,ZNI!$A$4:$X$118,24,FALSE),"-") -> -
B61: 5347 | C61: =IFERROR(VLOOKUP(B61,IICA!$A$9:$G$1131,7,FALSE),"-") -> 1.733333333 | D61: =IFERROR(VLOOKUP(B61,CultIllic!$A$2:$K$1144,11,FALSE),"-") -> 1.3 | E61: =IFERROR(VLOOKUP(B61,MDM!$A$1:$S$1102,14,FALSE),"-") -> 6.5 | F61: =IFERROR(VLOOKUP(B61,Ruralidad!$A$1:$E$1123,5,FALSE),"-") -> 3.25 | G61: =IFERROR(VLOOKUP(B61,'NBI Rural'!$B$2:$E$1124,4,FALSE),"-") -> 2.6 | H61: =IFERROR(VLOOKUP(B61,ICV!$A$1:$G$1123,7,FALSE),"-") -> 1.375 | I61: =IFERROR(VLOOKUP(B61,Frontera!$A$1:$G$103,7,FALSE),"-") -> - | J61: =IFERROR(VLOOKUP(B61,ZNI!$A$4:$X$118,24,FALSE),"-") -> -
B62: 5353 | C62: =IFERROR(VLOOKUP(B62,IICA!$A$9:$G$1131,7,FALSE),"-") -> 0.8666666667 | D62: =IFERROR(VLOOKUP(B62,CultIllic!$A$2:$K$1144,11,FALSE),"-") -> 1.3 | E62: =IFERROR(VLOOKUP(B62,MDM!$A$1:$S$1102,14,FALSE),"-") -> 9.1 | F62: =IFERROR(VLOOKUP(B62,Ruralidad!$A$1:$E$1123,5,FALSE),"-") -> 3.25 | G62: =IFERROR(VLOOKUP(B62,'NBI Rural'!$B$2:$E$1124,4,FALSE),"-") -> 2.6 | H62: =IFERROR(VLOOKUP(B62,ICV!$A$1:$G$1123,7,FALSE),"-") -> 0.6875 | I62: =IFERROR(VLOOKUP(B62,Frontera!$A$1:$G$103,7,FALSE),"-") -> - | J62: =IFERROR(VLOOKUP(B62,ZNI!$A$4:$X$118,24,FALSE),"-") -> -
B63: 5360 | C63: =IFERROR(VLOOKUP(B63,IICA!$A$9:$G$1131,7,FALSE),"-") -> 1.733333333 | D63: =IFERROR(VLOOKUP(B63,CultIllic!$A$2:$K$1144,11,FALSE),"-") -> 1.3 | E63: =IFERROR(VLOOKUP(B63,MDM!$A$1:$S$1102,14,FALSE),"-") -> 2.6 | F63: =IFERROR(VLOOKUP(B63,Ruralidad!$A$1:$E$1123,5,FALSE),"-") -> 1.625 | G63: =IFERROR(VLOOKUP(B63,'NBI Rural'!$B$2:$E$1124,4,FALSE),"-") -> 1.3 | H63: =IFERROR(VLOOKUP(B63,ICV!$A$1:$G$1123,7,FALSE),"-") -> 0.6875 | I63: =IFERROR(VLOOKUP(B63,Frontera!$A$1:$G$103,7,FALSE),"-") -> - | J63: =IFERROR(VLOOKUP(B63,ZNI!$A$4:$X$118,24,FALSE),"-") -> -
B64: 5361 | C64: =IFERROR(VLOOKUP(B64,IICA!$A$9:$G$1131,7,FALSE),"-") -> 4.333333333 | D64: =IFERROR(VLOOKUP(B64,CultIllic!$A$2:$K$1144,11,FALSE),"-") -> 1.3 | E64: =IFERROR(VLOOKUP(B64,MDM!$A$1:$S$1102,14,FALSE),"-") -> 7.8 | F64: =IFERROR(VLOOKUP(B64,Ruralidad!$A$1:$E$1123,5,FALSE),"-") -> 6.5 | G64: =IFERROR(VLOOKUP(B64,'NBI Rural'!$B$2:$E$1124,4,FALSE),"-") -> 5.2 | H64: =IFERROR(VLOOKUP(B64,ICV!$A$1:$G$1123,7,FALSE),"-") -> 3.4375 | I64: =IFERROR(VLOOKUP(B64,Frontera!$A$1:$G$103,7,FALSE),"-") -> - | J64: =IFERROR(VLOOKUP(B64,ZNI!$A$4:$X$118,24,FALSE),"-") -> -
B65: 5364 | C65: =IFERROR(VLOOKUP(B65,IICA!$A$9:$G$1131,7,FALSE),"-") -> 1.733333333 | D65: =IFERROR(VLOOKUP(B65,CultIllic!$A$2:$K$1144,11,FALSE),"-") -> 1.3 | E65: =IFERROR(VLOOKUP(B65,MDM!$A$1:$S$1102,14,FALSE),"-") -> 7.8 | F65: =IFERROR(VLOOKUP(B65,Ruralidad!$A$1:$E$1123,5,FALSE),"-") -> 3.25 | G65: =IFERROR(VLOOKUP(B65,'NBI Rural'!$B$2:$E$1124,4,FALSE),"-") -> 1.95 | H65: =IFERROR(VLOOKUP(B65,ICV!$A$1:$G$1123,7,FALSE),"-") -> 0.6875 | I65: =IFERROR(VLOOKUP(B65,Frontera!$A$1:$G$103,7,FALSE),"-") -> - | J65: =IFERROR(VLOOKUP(B65,ZNI!$A$4:$X$118,24,FALSE),"-") -> -
B66: 5368 | C66: =IFERROR(VLOOKUP(B66,IICA!$A$9:$G$1131,7,FALSE),"-") -> 0.8666666667 | D66: =IFERROR(VLOOKUP(B66,CultIllic!$A$2:$K$1144,11,FALSE),"-") -> 1.3 | E66: =IFERROR(VLOOKUP(B66,MDM!$A$1:$S$1102,14,FALSE),"-") -> 7.8 | F66: =IFERROR(VLOOKUP(B66,Ruralidad!$A$1:$E$1123,5,FALSE),"-") -> 3.25 | G66: =IFERROR(VLOOKUP(B66,'NBI Rural'!$B$2:$E$1124,4,FALSE),"-") -> 1.95 | H66: =IFERROR(VLOOKUP(B66,ICV!$A$1:$G$1123,7,FALSE),"-") -> 0.6875 | I66: =IFERROR(VLOOKUP(B66,Frontera!$A$1:$G$103,7,FALSE),"-") -> - | J66: =IFERROR(VLOOKUP(B66,ZNI!$A$4:$X$118,24,FALSE),"-") -> -
B67: 5376 | C67: =IFERROR(VLOOKUP(B67,IICA!$A$9:$G$1131,7,FALSE),"-") -> 1.733333333 | D67: =IFERROR(VLOOKUP(B67,CultIllic!$A$2:$K$1144,11,FALSE),"-") -> 1.3 | E67: =IFERROR(VLOOKUP(B67,MDM!$A$1:$S$1102,14,FALSE),"-") -> 2.6 | F67: =IFERROR(VLOOKUP(B67,Ruralidad!$A$1:$E$1123,5,FALSE),"-") -> 3.25 | G67: =IFERROR(VLOOKUP(B67,'NBI Rural'!$B$2:$E$1124,4,FALSE),"-") -> 1.3 | H67: =IFERROR(VLOOKUP(B67,ICV!$A$1:$G$1123,7,FALSE),"-") -> 0.6875 | I67: =IFERROR(VLOOKUP(B67,Frontera!$A$1:$G$103,7,FALSE),"-") -> - | J67: =IFERROR(VLOOKUP(B67,ZNI!$A$4:$X$118,24,FALSE),"-") -> -
B68: 5380 | C68: =IFERROR(VLOOKUP(B68,IICA!$A$9:$G$1131,7,FALSE),"-") -> 1.733333333 | D68: =IFERROR(VLOOKUP(B68,CultIllic!$A$2:$K$1144,11,FALSE),"-") -> 1.3 | E68: =IFERROR(VLOOKUP(B68,MDM!$A$1:$S$1102,14,FALSE),"-") -> 2.6 | F68: =IFERROR(VLOOKUP(B68,Ruralidad!$A$1:$E$1123,5,FALSE),"-") -> 1.625 | G68: =IFERROR(VLOOKUP(B68,'NBI Rural'!$B$2:$E$1124,4,FALSE),"-") -> 0.65 | H68: =IFERROR(VLOOKUP(B68,ICV!$A$1:$G$1123,7,FALSE),"-") -> 0.6875 | I68: =IFERROR(VLOOKUP(B68,Frontera!$A$1:$G$103,7,FALSE),"-") -> - | J68: =IFERROR(VLOOKUP(B68,ZNI!$A$4:$X$118,24,FALSE),"-") -> -
B69: 5390 | C69: =IFERROR(VLOOKUP(B69,IICA!$A$9:$G$1131,7,FALSE),"-") -> 1.733333333 | D69: =IFERROR(VLOOKUP(B69,CultIllic!$A$2:$K$1144,11,FALSE),"-") -> 1.3 | E69: =IFERROR(VLOOKUP(B69,MDM!$A$1:$S$1102,14,FALSE),"-") -> 5.2 | F69: =IFERROR(VLOOKUP(B69,Ruralidad!$A$1:$E$1123,5,FALSE),"-") -> 3.25 | G69: =IFERROR(VLOOKUP(B69,'NBI Rural'!$B$2:$E$1124,4,FALSE),"-") -> 1.95 | H69: =IFERROR(VLOOKUP(B69,ICV!$A$1:$G$1123,7,FALSE),"-") -> 1.375 | I69: =IFERROR(VLOOKUP(B69,Frontera!$A$1:$G$103,7,FALSE),"-") -> - | J69: =IFERROR(VLOOKUP(B69,ZNI!$A$4:$X$118,24,FALSE),"-") -> -
B70: 5400 | C70: =IFERROR(VLOOKUP(B70,IICA!$A$9:$G$1131,7,FALSE),"-") -> 2.6 | D70: =IFERROR(VLOOKUP(B70,CultIllic!$A$2:$K$1144,11,FALSE),"-") -> 1.3 | E70: =IFERROR(VLOOKUP(B70,MDM!$A$1:$S$1102,14,FALSE),"-") -> 6.5 | F70: =IFERROR(VLOOKUP(B70,Ruralidad!$A$1:$E$1123,5,FALSE),"-") -> 3.25 | G70: =IFERROR(VLOOKUP(B70,'NBI Rural'!$B$2:$E$1124,4,FALSE),"-") -> 1.3 | H70: =IFERROR(VLOOKUP(B70,ICV!$A$1:$G$1123,7,FALSE),"-") -> 2.0625 | I70: =IFERROR(VLOOKUP(B70,Frontera!$A$1:$G$103,7,FALSE),"-") -> - | J70: =IFERROR(VLOOKUP(B70,ZNI!$A$4:$X$118,24,FALSE),"-") -> -
B71: 5411 | C71: =IFERROR(VLOOKUP(B71,IICA!$A$9:$G$1131,7,FALSE),"-") -> 0.8666666667 | D71: =IFERROR(VLOOKUP(B71,CultIllic!$A$2:$K$1144,11,FALSE),"-") -> 1.3 | E71: =IFERROR(VLOOKUP(B71,MDM!$A$1:$S$1102,14,FALSE),"-") -> 9.1 | F71: =IFERROR(VLOOKUP(B71,Ruralidad!$A$1:$E$1123,5,FALSE),"-") -> 6.5 | G71: =IFERROR(VLOOKUP(B71,'NBI Rural'!$B$2:$E$1124,4,FALSE),"-") -> 2.6 | H71: =IFERROR(VLOOKUP(B71,ICV!$A$1:$G$1123,7,FALSE),"-") -> 2.0625 | I71: =IFERROR(VLOOKUP(B71,Frontera!$A$1:$G$103,7,FALSE),"-") -> - | J71: =IFERROR(VLOOKUP(B71,ZNI!$A$4:$X$118,24,FALSE),"-") -> -
B72: 5425 | C72: =IFERROR(VLOOKUP(B72,IICA!$A$9:$G$1131,7,FALSE),"-") -> 1.733333333 | D72: =IFERROR(VLOOKUP(B72,CultIllic!$A$2:$K$1144,11,FALSE),"-") -> 1.3 | E72: =IFERROR(VLOOKUP(B72,MDM!$A$1:$S$1102,14,FALSE),"-") -> 6.5 | F72: =IFERROR(VLOOKUP(B72,Ruralidad!$A$1:$E$1123,5,FALSE),"-") -> 4.875 | G72: =IFERROR(VLOOKUP(B72,'NBI Rural'!$B$2:$E$1124,4,FALSE),"-") -> 2.6 | H72: =IFERROR(VLOOKUP(B72,ICV!$A$1:$G$1123,7,FALSE),"-") -> 2.0625 | I72: =IFERROR(VLOOKUP(B72,Frontera!$A$1:$G$103,7,FALSE),"-") -> - | J72: =IFERROR(VLOOKUP(B72,ZNI!$A$4:$X$118,24,FALSE),"-") -> -
B73: 5440 | C73: =IFERROR(VLOOKUP(B73,IICA!$A$9:$G$1131,7,FALSE),"-") -> 1.733333333 | D73: =IFERROR(VLOOKUP(B73,CultIllic!$A$2:$K$1144,11,FALSE),"-") -> 1.3 | E73: =IFERROR(VLOOKUP(B73,MDM!$A$1:$S$1102,14,FALSE),"-") -> 3.9 | F73: =IFERROR(VLOOKUP(B73,Ruralidad!$A$1:$E$1123,5,FALSE),"-") -> 3.25 | G73: =IFERROR(VLOOKUP(B73,'NBI Rural'!$B$2:$E$1124,4,FALSE),"-") -> 1.95 | H73: =IFERROR(VLOOKUP(B73,ICV!$A$1:$G$1123,7,FALSE),"-") -> 1.375 | I73: =IFERROR(VLOOKUP(B73,Frontera!$A$1:$G$103,7,FALSE),"-") -> - | J73: =IFERROR(VLOOKUP(B73,ZNI!$A$4:$X$118,24,FALSE),"-") -> -
B74: 5467 | C74: =IFERROR(VLOOKUP(B74,IICA!$A$9:$G$1131,7,FALSE),"-") -> 2.6 | D74: =IFERROR(VLOOKUP(B74,CultIllic!$A$2:$K$1144,11,FALSE),"-") -> 1.3 | E74: =IFERROR(VLOOKUP(B74,MDM!$A$1:$S$1102,14,FALSE),"-") -> 6.5 | F74: =IFERROR(VLOOKUP(B74,Ruralidad!$A$1:$E$1123,5,FALSE),"-") -> 3.25 | G74: =IFERROR(VLOOKUP(B74,'NBI Rural'!$B$2:$E$1124,4,FALSE),"-") -> 2.6 | H74: =IFERROR(VLOOKUP(B74,ICV!$A$1:$G$1123,7,FALSE),"-") -> 1.375 | I74: =IFERROR(VLOOKUP(B74,Frontera!$A$1:$G$103,7,FALSE),"-") -> - | J74: =IFERROR(VLOOKUP(B74,ZNI!$A$4:$X$118,24,FALSE),"-") -> -
B75: 5475 | C75: =IFERROR(VLOOKUP(B75,IICA!$A$9:$G$1131,7,FALSE),"-") -> 2.6 | D75: =IFERROR(VLOOKUP(B75,CultIllic!$A$2:$K$1144,11,FALSE),"-") -> 1.3 | E75: =IFERROR(VLOOKUP(B75,MDM!$A$1:$S$1102,14,FALSE),"-") -> 10.4 | F75: =IFERROR(VLOOKUP(B75,Ruralidad!$A$1:$E$1123,5,FALSE),"-") -> 6.5 | G75: =IFERROR(VLOOKUP(B75,'NBI Rural'!$B$2:$E$1124,4,FALSE),"-") -> 6.5 | H75: =IFERROR(VLOOKUP(B75,ICV!$A$1:$G$1123,7,FALSE),"-") -> 3.4375 | I75: =IFERROR(VLOOKUP(B75,Frontera!$A$1:$G$103,7,FALSE),"-") -> - | J75: =IFERROR(VLOOKUP(B75,ZNI!$A$4:$X$118,24,FALSE),"-") -> 0.714285714
B76: 5480 | C76: =IFERROR(VLOOKUP(B76,IICA!$A$9:$G$1131,7,FALSE),"-") -> 3.466666667 | D76: =IFERROR(VLOOKUP(B76,CultIllic!$A$2:$K$1144,11,FALSE),"-") -> 1.3 | E76: =IFERROR(VLOOKUP(B76,MDM!$A$1:$S$1102,14,FALSE),"-") -> 9.1 | F76: =IFERROR(VLOOKUP(B76,Ruralidad!$A$1:$E$1123,5,FALSE),"-") -> 6.5 | G76: =IFERROR(VLOOKUP(B76,'NBI Rural'!$B$2:$E$1124,4,FALSE),"-") -> 5.2 | H76: =IFERROR(VLOOKUP(B76,ICV!$A$1:$G$1123,7,FALSE),"-") -> 4.8125 | I76: =IFERROR(VLOOKUP(B76,Frontera!$A$1:$G$103,7,FALSE),"-") -> - | J76: =IFERROR(VLOOKUP(B76,ZNI!$A$4:$X$118,24,FALSE),"-") -> -
B77: 5483 | C77: =IFERROR(VLOOKUP(B77,IICA!$A$9:$G$1131,7,FALSE),"-") -> 3.466666667 | D77: =IFERROR(VLOOKUP(B77,CultIllic!$A$2:$K$1144,11,FALSE),"-") -> 1.3 | E77: =IFERROR(VLOOKUP(B77,MDM!$A$1:$S$1102,14,FALSE),"-") -> 6.5 | F77: =IFERROR(VLOOKUP(B77,Ruralidad!$A$1:$E$1123,5,FALSE),"-") -> 4.875 | G77: =IFERROR(VLOOKUP(B77,'NBI Rural'!$B$2:$E$1124,4,FALSE),"-") -> 2.6 | H77: =IFERROR(VLOOKUP(B77,ICV!$A$1:$G$1123,7,FALSE),"-") -> 2.75 | I77: =IFERROR(VLOOKUP(B77,Frontera!$A$1:$G$103,7,FALSE),"-") -> - | J77: =IFERROR(VLOOKUP(B77,ZNI!$A$4:$X$118,24,FALSE),"-") -> -
B78: 5490 | C78: =IFERROR(VLOOKUP(B78,IICA!$A$9:$G$1131,7,FALSE),"-") -> 1.733333333 | D78: =IFERROR(VLOOKUP(B78,CultIllic!$A$2:$K$1144,11,FALSE),"-") -> 1.3 | E78: =IFERROR(VLOOKUP(B78,MDM!$A$1:$S$1102,14,FALSE),"-") -> 6.5 | F78: =IFERROR(VLOOKUP(B78,Ruralidad!$A$1:$E$1123,5,FALSE),"-") -> 6.5 | G78: =IFERROR(VLOOKUP(B78,'NBI Rural'!$B$2:$E$1124,4,FALSE),"-") -> 5.85 | H78: =IFERROR(VLOOKUP(B78,ICV!$A$1:$G$1123,7,FALSE),"-") -> 2.75 | I78: =IFERROR(VLOOKUP(B78,Frontera!$A$1:$G$103,7,FALSE),"-") -> - | J78: =IFERROR(VLOOKUP(B78,ZNI!$A$4:$X$118,24,FALSE),"-") -> -
B79: 5495 | C79: =IFERROR(VLOOKUP(B79,IICA!$A$9:$G$1131,7,FALSE),"-") -> 3.466666667 | D79: =IFERROR(VLOOKUP(B79,CultIllic!$A$2:$K$1144,11,FALSE),"-") -> 1.3 | E79: =IFERROR(VLOOKUP(B79,MDM!$A$1:$S$1102,14,FALSE),"-") -> 7.8 | F79: =IFERROR(VLOOKUP(B79,Ruralidad!$A$1:$E$1123,5,FALSE),"-") -> 4.875 | G79: =IFERROR(VLOOKUP(B79,'NBI Rural'!$B$2:$E$1124,4,FALSE),"-") -> 5.2 | H79: =IFERROR(VLOOKUP(B79,ICV!$A$1:$G$1123,7,FALSE),"-") -> 1.375 | I79: =IFERROR(VLOOKUP(B79,Frontera!$A$1:$G$103,7,FALSE),"-") -> - | J79: =IFERROR(VLOOKUP(B79,ZNI!$A$4:$X$118,24,FALSE),"-") -> -
B80: 5501 | C80: =IFERROR(VLOOKUP(B80,IICA!$A$9:$G$1131,7,FALSE),"-") -> 1.733333333 | D80: =IFERROR(VLOOKUP(B80,CultIllic!$A$2:$K$1144,11,FALSE),"-") -> 1.3 | E80: =IFERROR(VLOOKUP(B80,MDM!$A$1:$S$1102,14,FALSE),"-") -> 6.5 | F80: =IFERROR(VLOOKUP(B80,Ruralidad!$A$1:$E$1123,5,FALSE),"-") -> 6.5 | G80: =IFERROR(VLOOKUP(B80,'NBI Rural'!$B$2:$E$1124,4,FALSE),"-") -> 2.6 | H80: =IFERROR(VLOOKUP(B80,ICV!$A$1:$G$1123,7,FALSE),"-") -> 0.6875 | I80: =IFERROR(VLOOKUP(B80,Frontera!$A$1:$G$103,7,FALSE),"-") -> - | J80: =IFERROR(VLOOKUP(B80,ZNI!$A$4:$X$118,24,FALSE),"-") -> -
B81: 5541 | C81: =IFERROR(VLOOKUP(B81,IICA!$A$9:$G$1131,7,FALSE),"-") -> 1.733333333 | D81: =IFERROR(VLOOKUP(B81,CultIllic!$A$2:$K$1144,11,FALSE),"-") -> 1.3 | E81: =IFERROR(VLOOKUP(B81,MDM!$A$1:$S$1102,14,FALSE),"-") -> 7.8 | F81: =IFERROR(VLOOKUP(B81,Ruralidad!$A$1:$E$1123,5,FALSE),"-") -> 3.25 | G81: =IFERROR(VLOOKUP(B81,'NBI Rural'!$B$2:$E$1124,4,FALSE),"-") -> 1.95 | H81: =IFERROR(VLOOKUP(B81,ICV!$A$1:$G$1123,7,FALSE),"-") -> 1.375 | I81: =IFERROR(VLOOKUP(B81,Frontera!$A$1:$G$103,7,FALSE),"-") -> - | J81: =IFERROR(VLOOKUP(B81,ZNI!$A$4:$X$118,24,FALSE),"-") -> -
B82: 5543 | C82: =IFERROR(VLOOKUP(B82,IICA!$A$9:$G$1131,7,FALSE),"-") -> 1.733333333 | D82: =IFERROR(VLOOKUP(B82,CultIllic!$A$2:$K$1144,11,FALSE),"-") -> 1.3 | E82: =IFERROR(VLOOKUP(B82,MDM!$A$1:$S$1102,14,FALSE),"-") -> 7.8 | F82: =IFERROR(VLOOKUP(B82,Ruralidad!$A$1:$E$1123,5,FALSE),"-") -> 6.5 | G82: =IFERROR(VLOOKUP(B82,'NBI Rural'!$B$2:$E$1124,4,FALSE),"-") -> 5.85 | H82: =IFERROR(VLOOKUP(B82,ICV!$A$1:$G$1123,7,FALSE),"-") -> 4.125 | I82: =IFERROR(VLOOKUP(B82,Frontera!$A$1:$G$103,7,FALSE),"-") -> - | J82: =IFERROR(VLOOKUP(B82,ZNI!$A$4:$X$118,24,FALSE),"-") -> -
B83: 5576 | C83: =IFERROR(VLOOKUP(B83,IICA!$A$9:$G$1131,7,FALSE),"-") -> 0.8666666667 | D83: =IFERROR(VLOOKUP(B83,CultIllic!$A$2:$K$1144,11,FALSE),"-") -> 1.3 | E83: =IFERROR(VLOOKUP(B83,MDM!$A$1:$S$1102,14,FALSE),"-") -> 6.5 | F83: =IFERROR(VLOOKUP(B83,Ruralidad!$A$1:$E$1123,5,FALSE),"-") -> 3.25 | G83: =IFERROR(VLOOKUP(B83,'NBI Rural'!$B$2:$E$1124,4,FALSE),"-") -> 2.6 | H83: =IFERROR(VLOOKUP(B83,ICV!$A$1:$G$1123,7,FALSE),"-") -> 0.6875 | I83: =IFERROR(VLOOKUP(B83,Frontera!$A$1:$G$103,7,FALSE),"-") -> - | J83: =IFERROR(VLOOKUP(B83,ZNI!$A$4:$X$118,24,FALSE),"-") -> -
B84: 5579 | C84: =IFERROR(VLOOKUP(B84,IICA!$A$9:$G$1131,7,FALSE),"-") -> 2.6 | D84: =IFERROR(VLOOKUP(B84,CultIllic!$A$2:$K$1144,11,FALSE),"-") -> 1.3 | E84: =IFERROR(VLOOKUP(B84,MDM!$A$1:$S$1102,14,FALSE),"-") -> 9.1 | F84: =IFERROR(VLOOKUP(B84,Ruralidad!$A$1:$E$1123,5,FALSE),"-") -> 3.25 | G84: =IFERROR(VLOOKUP(B84,'NBI Rural'!$B$2:$E$1124,4,FALSE),"-") -> 3.25 | H84: =IFERROR(VLOOKUP(B84,ICV!$A$1:$G$1123,7,FALSE),"-") -> 0.6875 | I84: =IFERROR(VLOOKUP(B84,Frontera!$A$1:$G$103,7,FALSE),"-") -> - | J84: =IFERROR(VLOOKUP(B84,ZNI!$A$4:$X$118,24,FALSE),"-") -> -
B85: 5585 | C85: =IFERROR(VLOOKUP(B85,IICA!$A$9:$G$1131,7,FALSE),"-") -> 1.733333333 | D85: =IFERROR(VLOOKUP(B85,CultIllic!$A$2:$K$1144,11,FALSE),"-") -> 1.3 | E85: =IFERROR(VLOOKUP(B85,MDM!$A$1:$S$1102,14,FALSE),"-") -> 6.5 | F85: =IFERROR(VLOOKUP(B85,Ruralidad!$A$1:$E$1123,5,FALSE),"-") -> 4.875 | G85: =IFERROR(VLOOKUP(B85,'NBI Rural'!$B$2:$E$1124,4,FALSE),"-") -> 1.95 | H85: =IFERROR(VLOOKUP(B85,ICV!$A$1:$G$1123,7,FALSE),"-") -> 0.6875 | I85: =IFERROR(VLOOKUP(B85,Frontera!$A$1:$G$103,7,FALSE),"-") -> - | J85: =IFERROR(VLOOKUP(B85,ZNI!$A$4:$X$118,24,FALSE),"-") -> -
B86: 5591 | C86: =IFERROR(VLOOKUP(B86,IICA!$A$9:$G$1131,7,FALSE),"-") -> 1.733333333 | D86: =IFERROR(VLOOKUP(B86,CultIllic!$A$2:$K$1144,11,FALSE),"-") -> 1.3 | E86: =IFERROR(VLOOKUP(B86,MDM!$A$1:$S$1102,14,FALSE),"-") -> 6.5 | F86: =IFERROR(VLOOKUP(B86,Ruralidad!$A$1:$E$1123,5,FALSE),"-") -> 3.25 | G86: =IFERROR(VLOOKUP(B86,'NBI Rural'!$B$2:$E$1124,4,FALSE),"-") -> 1.95 | H86: =IFERROR(VLOOKUP(B86,ICV!$A$1:$G$1123,7,FALSE),"-") -> 1.375 | I86: =IFERROR(VLOOKUP(B86,Frontera!$A$1:$G$103,7,FALSE),"-") -> - | J86: =IFERROR(VLOOKUP(B86,ZNI!$A$4:$X$118,24,FALSE),"-") -> -
B87: 5604 | C87: =IFERROR(VLOOKUP(B87,IICA!$A$9:$G$1131,7,FALSE),"-") -> 3.466666667 | D87: =IFERROR(VLOOKUP(B87,CultIllic!$A$2:$K$1144,11,FALSE),"-") -> 1.3 | E87: =IFERROR(VLOOKUP(B87,MDM!$A$1:$S$1102,14,FALSE),"-") -> 9.1 | F87: =IFERROR(VLOOKUP(B87,Ruralidad!$A$1:$E$1123,5,FALSE),"-") -> 4.875 | G87: =IFERROR(VLOOKUP(B87,'NBI Rural'!$B$2:$E$1124,4,FALSE),"-") -> 3.25 | H87: =IFERROR(VLOOKUP(B87,ICV!$A$1:$G$1123,7,FALSE),"-") -> 1.375 | I87: =IFERROR(VLOOKUP(B87,Frontera!$A$1:$G$103,7,FALSE),"-") -> - | J87: =IFERROR(VLOOKUP(B87,ZNI!$A$4:$X$118,24,FALSE),"-") -> -
B88: 5607 | C88: =IFERROR(VLOOKUP(B88,IICA!$A$9:$G$1131,7,FALSE),"-") -> 1.733333333 | D88: =IFERROR(VLOOKUP(B88,CultIllic!$A$2:$K$1144,11,FALSE),"-") -> 1.3 | E88: =IFERROR(VLOOKUP(B88,MDM!$A$1:$S$1102,14,FALSE),"-") -> 2.6 | F88: =IFERROR(VLOOKUP(B88,Ruralidad!$A$1:$E$1123,5,FALSE),"-") -> 3.25 | G88: =IFERROR(VLOOKUP(B88,'NBI Rural'!$B$2:$E$1124,4,FALSE),"-") -> 0.65 | H88: =IFERROR(VLOOKUP(B88,ICV!$A$1:$G$1123,7,FALSE),"-") -> 0.6875 | I88: =IFERROR(VLOOKUP(B88,Frontera!$A$1:$G$103,7,FALSE),"-") -> - | J88: =IFERROR(VLOOKUP(B88,ZNI!$A$4:$X$118,24,FALSE),"-") -> -
B89: 5615 | C89: =IFERROR(VLOOKUP(B89,IICA!$A$9:$G$1131,7,FALSE),"-") -> 1.733333333 | D89: =IFERROR(VLOOKUP(B89,CultIllic!$A$2:$K$1144,11,FALSE),"-") -> 1.3 | E89: =IFERROR(VLOOKUP(B89,MDM!$A$1:$S$1102,14,FALSE),"-") -> 1.3 | F89: =IFERROR(VLOOKUP(B89,Ruralidad!$A$1:$E$1123,5,FALSE),"-") -> 1.625 | G89: =IFERROR(VLOOKUP(B89,'NBI Rural'!$B$2:$E$1124,4,FALSE),"-") -> 1.3 | H89: =IFERROR(VLOOKUP(B89,ICV!$A$1:$G$1123,7,FALSE),"-") -> 0.6875 | I89: =IFERROR(VLOOKUP(B89,Frontera!$A$1:$G$103,7,FALSE),"-") -> - | J89: =IFERROR(VLOOKUP(B89,ZNI!$A$4:$X$118,24,FALSE),"-") -> -
B90: 5628 | C90: =IFERROR(VLOOKUP(B90,IICA!$A$9:$G$1131,7,FALSE),"-") -> 1.733333333 | D90: =IFERROR(VLOOKUP(B90,CultIllic!$A$2:$K$1144,11,FALSE),"-") -> 1.3 | E90: =IFERROR(VLOOKUP(B90,MDM!$A$1:$S$1102,14,FALSE),"-") -> 7.8 | F90: =IFERROR(VLOOKUP(B90,Ruralidad!$A$1:$E$1123,5,FALSE),"-") -> 4.875 | G90: =IFERROR(VLOOKUP(B90,'NBI Rural'!$B$2:$E$1124,4,FALSE),"-") -> 4.55 | H90: =IFERROR(VLOOKUP(B90,ICV!$A$1:$G$1123,7,FALSE),"-") -> 2.0625 | I90: =IFERROR(VLOOKUP(B90,Frontera!$A$1:$G$103,7,FALSE),"-") -> - | J90: =IFERROR(VLOOKUP(B90,ZNI!$A$4:$X$118,24,FALSE),"-") -> -
B91: 5631 | C91: =IFERROR(VLOOKUP(B91,IICA!$A$9:$G$1131,7,FALSE),"-") -> 1.733333333 | D91: =IFERROR(VLOOKUP(B91,CultIllic!$A$2:$K$1144,11,FALSE),"-") -> 1.3 | E91: =IFERROR(VLOOKUP(B91,MDM!$A$1:$S$1102,14,FALSE),"-") -> 3.9 | F91: =IFERROR(VLOOKUP(B91,Ruralidad!$A$1:$E$1123,5,FALSE),"-") -> 1.625 | G91: =IFERROR(VLOOKUP(B91,'NBI Rural'!$B$2:$E$1124,4,FALSE),"-") -> 0.65 | H91: =IFERROR(VLOOKUP(B91,ICV!$A$1:$G$1123,7,FALSE),"-") -> 0.6875 | I91: =IFERROR(VLOOKUP(B91,Frontera!$A$1:$G$103,7,FALSE),"-") -> - | J91: =IFERROR(VLOOKUP(B91,ZNI!$A$4:$X$118,24,FALSE),"-") -> -
B92: 5642 | C92: =IFERROR(VLOOKUP(B92,IICA!$A$9:$G$1131,7,FALSE),"-") -> 2.6 | D92: =IFERROR(VLOOKUP(B92,CultIllic!$A$2:$K$1144,11,FALSE),"-") -> 1.3 | E92: =IFERROR(VLOOKUP(B92,MDM!$A$1:$S$1102,14,FALSE),"-") -> 6.5 | F92: =IFERROR(VLOOKUP(B92,Ruralidad!$A$1:$E$1123,5,FALSE),"-") -> 4.875 | G92: =IFERROR(VLOOKUP(B92,'NBI Rural'!$B$2:$E$1124,4,FALSE),"-") -> 2.6 | H92: =IFERROR(VLOOKUP(B92,ICV!$A$1:$G$1123,7,FALSE),"-") -> 1.375 | I92: =IFERROR(VLOOKUP(B92,Frontera!$A$1:$G$103,7,FALSE),"-") -> - | J92: =IFERROR(VLOOKUP(B92,ZNI!$A$4:$X$118,24,FALSE),"-") -> -
B93: 5647 | C93: =IFERROR(VLOOKUP(B93,IICA!$A$9:$G$1131,7,FALSE),"-") -> 3.466666667 | D93: =IFERROR(VLOOKUP(B93,CultIllic!$A$2:$K$1144,11,FALSE),"-") -> 1.3 | E93: =IFERROR(VLOOKUP(B93,MDM!$A$1:$S$1102,14,FALSE),"-") -> 9.1 | F93: =IFERROR(VLOOKUP(B93,Ruralidad!$A$1:$E$1123,5,FALSE),"-") -> 4.875 | G93: =IFERROR(VLOOKUP(B93,'NBI Rural'!$B$2:$E$1124,4,FALSE),"-") -> 2.6 | H93: =IFERROR(VLOOKUP(B93,ICV!$A$1:$G$1123,7,FALSE),"-") -> 1.375 | I93: =IFERROR(VLOOKUP(B93,Frontera!$A$1:$G$103,7,FALSE),"-") -> - | J93: =IFERROR(VLOOKUP(B93,ZNI!$A$4:$X$118,24,FALSE),"-") -> -
B94: 5649 | C94: =IFERROR(VLOOKUP(B94,IICA!$A$9:$G$1131,7,FALSE),"-") -> 4.333333333 | D94: =IFERROR(VLOOKUP(B94,CultIllic!$A$2:$K$1144,11,FALSE),"-") -> 1.3 | E94: =IFERROR(VLOOKUP(B94,MDM!$A$1:$S$1102,14,FALSE),"-") -> 7.8 | F94: =IFERROR(VLOOKUP(B94,Ruralidad!$A$1:$E$1123,5,FALSE),"-") -> 4.875 | G94: =IFERROR(VLOOKUP(B94,'NBI Rural'!$B$2:$E$1124,4,FALSE),"-") -> 2.6 | H94: =IFERROR(VLOOKUP(B94,ICV!$A$1:$G$1123,7,FALSE),"-") -> 4.125 | I94: =IFERROR(VLOOKUP(B94,Frontera!$A$1:$G$103,7,FALSE),"-") -> - | J94: =IFERROR(VLOOKUP(B94,ZNI!$A$4:$X$118,24,FALSE),"-") -> -
B95: 5652 | C95: =IFERROR(VLOOKUP(B95,IICA!$A$9:$G$1131,7,FALSE),"-") -> 4.333333333 | D95: =IFERROR(VLOOKUP(B95,CultIllic!$A$2:$K$1144,11,FALSE),"-") -> 1.3 | E95: =IFERROR(VLOOKUP(B95,MDM!$A$1:$S$1102,14,FALSE),"-") -> 6.5 | F95: =IFERROR(VLOOKUP(B95,Ruralidad!$A$1:$E$1123,5,FALSE),"-") -> 4.875 | G95: =IFERROR(VLOOKUP(B95,'NBI Rural'!$B$2:$E$1124,4,FALSE),"-") -> 3.9 | H95: =IFERROR(VLOOKUP(B95,ICV!$A$1:$G$1123,7,FALSE),"-") -> 6.875 | I95: =IFERROR(VLOOKUP(B95,Frontera!$A$1:$G$103,7,FALSE),"-") -> - | J95: =IFERROR(VLOOKUP(B95,ZNI!$A$4:$X$118,24,FALSE),"-") -> -
B96: 5656 | C96: =IFERROR(VLOOKUP(B96,IICA!$A$9:$G$1131,7,FALSE),"-") -> 1.733333333 | D96: =IFERROR(VLOOKUP(B96,CultIllic!$A$2:$K$1144,11,FALSE),"-") -> 1.3 | E96: =IFERROR(VLOOKUP(B96,MDM!$A$1:$S$1102,14,FALSE),"-") -> 5.2 | F96: =IFERROR(VLOOKUP(B96,Ruralidad!$A$1:$E$1123,5,FALSE),"-") -> 3.25 | G96: =IFERROR(VLOOKUP(B96,'NBI Rural'!$B$2:$E$1124,4,FALSE),"-") -> 2.6 | H96: =IFERROR(VLOOKUP(B96,ICV!$A$1:$G$1123,7,FALSE),"-") -> 0.6875 | I96: =IFERROR(VLOOKUP(B96,Frontera!$A$1:$G$103,7,FALSE),"-") -> - | J96: =IFERROR(VLOOKUP(B96,ZNI!$A$4:$X$118,24,FALSE),"-") -> -
B97: 5658 | C97: =IFERROR(VLOOKUP(B97,IICA!$A$9:$G$1131,7,FALSE),"-") -> 1.733333333 | D97: =IFERROR(VLOOKUP(B97,CultIllic!$A$2:$K$1144,11,FALSE),"-") -> 1.3 | E97: =IFERROR(VLOOKUP(B97,MDM!$A$1:$S$1102,14,FALSE),"-") -> 9.1 | F97: =IFERROR(VLOOKUP(B97,Ruralidad!$A$1:$E$1123,5,FALSE),"-") -> 4.875 | G97: =IFERROR(VLOOKUP(B97,'NBI Rural'!$B$2:$E$1124,4,FALSE),"-") -> 1.3 | H97: =IFERROR(VLOOKUP(B97,ICV!$A$1:$G$1123,7,FALSE),"-") -> 0.6875 | I97: =IFERROR(VLOOKUP(B97,Frontera!$A$1:$G$103,7,FALSE),"-") -> - | J97: =IFERROR(VLOOKUP(B97,ZNI!$A$4:$X$118,24,FALSE),"-") -> -
B98: 5659 | C98: =IFERROR(VLOOKUP(B98,IICA!$A$9:$G$1131,7,FALSE),"-") -> 0.8666666667 | D98: =IFERROR(VLOOKUP(B98,CultIllic!$A$2:$K$1144,11,FALSE),"-") -> 1.3 | E98: =IFERROR(VLOOKUP(B98,MDM!$A$1:$S$1102,14,FALSE),"-") -> 9.1 | F98: =IFERROR(VLOOKUP(B98,Ruralidad!$A$1:$E$1123,5,FALSE),"-") -> 3.25 | G98: =IFERROR(VLOOKUP(B98,'NBI Rural'!$B$2:$E$1124,4,FALSE),"-") -> 5.85 | H98: =IFERROR(VLOOKUP(B98,ICV!$A$1:$G$1123,7,FALSE),"-") -> 2.75 | I98: =IFERROR(VLOOKUP(B98,Frontera!$A$1:$G$103,7,FALSE),"-") -> - | J98: =IFERROR(VLOOKUP(B98,ZNI!$A$4:$X$118,24,FALSE),"-") -> -
B99: 5660 | C99: =IFERROR(VLOOKUP(B99,IICA!$A$9:$G$1131,7,FALSE),"-") -> 4.333333333 | D99: =IFERROR(VLOOKUP(B99,CultIllic!$A$2:$K$1144,11,FALSE),"-") -> 1.3 | E99: =IFERROR(VLOOKUP(B99,MDM!$A$1:$S$1102,14,FALSE),"-") -> 9.1 | F99: =IFERROR(VLOOKUP(B99,Ruralidad!$A$1:$E$1123,5,FALSE),"-") -> 4.875 | G99: =IFERROR(VLOOKUP(B99,'NBI Rural'!$B$2:$E$1124,4,FALSE),"-") -> 2.6 | H99: =IFERROR(VLOOKUP(B99,ICV!$A$1:$G$1123,7,FALSE),"-") -> 6.875 | I99: =IFERROR(VLOOKUP(B99,Frontera!$A$1:$G$103,7,FALSE),"-") -> - | J99: =IFERROR(VLOOKUP(B99,ZNI!$A$4:$X$118,24,FALSE),"-") -> -
B100: 5664 | C100: =IFERROR(VLOOKUP(B100,IICA!$A$9:$G$1131,7,FALSE),"-") -> 1.733333333 | D100: =IFERROR(VLOOKUP(B100,CultIllic!$A$2:$K$1144,11,FALSE),"-") -> 1.3 | E100: =IFERROR(VLOOKUP(B100,MDM!$A$1:$S$1102,14,FALSE),"-") -> 6.5 | F100: =IFERROR(VLOOKUP(B100,Ruralidad!$A$1:$E$1123,5,FALSE),"-") -> 3.25 | G100: =IFERROR(VLOOKUP(B100,'NBI Rural'!$B$2:$E$1124,4,FALSE),"-") -> 1.3 | H100: =IFERROR(VLOOKUP(B100,ICV!$A$1:$G$1123,7,FALSE),"-") -> 0.6875 | I100: =IFERROR(VLOOKUP(B100,Frontera!$A$1:$G$103,7,FALSE),"-") -> - | J100: =IFERROR(VLOOKUP(B100,ZNI!$A$4:$X$118,24,FALSE),"-") -> -
B101: 5665 | C101: =IFERROR(VLOOKUP(B101,IICA!$A$9:$G$1131,7,FALSE),"-") -> 1.733333333 | D101: =IFERROR(VLOOKUP(B101,CultIllic!$A$2:$K$1144,11,FALSE),"-") -> 1.3 | E101: =IFERROR(VLOOKUP(B101,MDM!$A$1:$S$1102,14,FALSE),"-") -> 9.1 | F101: =IFERROR(VLOOKUP(B101,Ruralidad!$A$1:$E$1123,5,FALSE),"-") -> 3.25 | G101: =IFERROR(VLOOKUP(B101,'NBI Rural'!$B$2:$E$1124,4,FALSE),"-") -> 6.5 | H101: =IFERROR(VLOOKUP(B101,ICV!$A$1:$G$1123,7,FALSE),"-") -> 4.8125 | I101: =IFERROR(VLOOKUP(B101,Frontera!$A$1:$G$103,7,FALSE),"-") -> - | J101: =IFERROR(VLOOKUP(B101,ZNI!$A$4:$X$118,24,FALSE),"-") -> -
B102: 5667 | C102: =IFERROR(VLOOKUP(B102,IICA!$A$9:$G$1131,7,FALSE),"-") -> 3.466666667 | D102: =IFERROR(VLOOKUP(B102,CultIllic!$A$2:$K$1144,11,FALSE),"-") -> 1.3 | E102: =IFERROR(VLOOKUP(B102,MDM!$A$1:$S$1102,14,FALSE),"-") -> 6.5 | F102: =IFERROR(VLOOKUP(B102,Ruralidad!$A$1:$E$1123,5,FALSE),"-") -> 4.875 | G102: =IFERROR(VLOOKUP(B102,'NBI Rural'!$B$2:$E$1124,4,FALSE),"-") -> 2.6 | H102: =IFERROR(VLOOKUP(B102,ICV!$A$1:$G$1123,7,FALSE),"-") -> 4.8125 | I102: =IFERROR(VLOOKUP(B102,Frontera!$A$1:$G$103,7,FALSE),"-") -> - | J102: =IFERROR(VLOOKUP(B102,ZNI!$A$4:$X$118,24,FALSE),"-") -> -
B103: 5670 | C103: =IFERROR(VLOOKUP(B103,IICA!$A$9:$G$1131,7,FALSE),"-") -> 1.733333333 | D103: =IFERROR(VLOOKUP(B103,CultIllic!$A$2:$K$1144,11,FALSE),"-") -> 1.3 | E103: =IFERROR(VLOOKUP(B103,MDM!$A$1:$S$1102,14,FALSE),"-") -> 7.8 | F103: =IFERROR(VLOOKUP(B103,Ruralidad!$A$1:$E$1123,5,FALSE),"-") -> 4.875 | G103: =IFERROR(VLOOKUP(B103,'NBI Rural'!$B$2:$E$1124,4,FALSE),"-") -> 2.6 | H103: =IFERROR(VLOOKUP(B103,ICV!$A$1:$G$1123,7,FALSE),"-") -> 2.0625 | I103: =IFERROR(VLOOKUP(B103,Frontera!$A$1:$G$103,7,FALSE),"-") -> - | J103: =IFERROR(VLOOKUP(B103,ZNI!$A$4:$X$118,24,FALSE),"-") -> -
B104: 5674 | C104: =IFERROR(VLOOKUP(B104,IICA!$A$9:$G$1131,7,FALSE),"-") -> 1.733333333 | D104: =IFERROR(VLOOKUP(B104,CultIllic!$A$2:$K$1144,11,FALSE),"-") -> 1.3 | E104: =IFERROR(VLOOKUP(B104,MDM!$A$1:$S$1102,14,FALSE),"-") -> 7.8 | F104: =IFERROR(VLOOKUP(B104,Ruralidad!$A$1:$E$1123,5,FALSE),"-") -> 3.25 | G104: =IFERROR(VLOOKUP(B104,'NBI Rural'!$B$2:$E$1124,4,FALSE),"-") -> 1.95 | H104: =IFERROR(VLOOKUP(B104,ICV!$A$1:$G$1123,7,FALSE),"-") -> 1.375 | I104: =IFERROR(VLOOKUP(B104,Frontera!$A$1:$G$103,7,FALSE),"-") -> - | J104: =IFERROR(VLOOKUP(B104,ZNI!$A$4:$X$118,24,FALSE),"-") -> -
B105: 5679 | C105: =IFERROR(VLOOKUP(B105,IICA!$A$9:$G$1131,7,FALSE),"-") -> 1.733333333 | D105: =IFERROR(VLOOKUP(B105,CultIllic!$A$2:$K$1144,11,FALSE),"-") -> 1.3 | E105: =IFERROR(VLOOKUP(B105,MDM!$A$1:$S$1102,14,FALSE),"-") -> 7.8 | F105: =IFERROR(VLOOKUP(B105,Ruralidad!$A$1:$E$1123,5,FALSE),"-") -> 3.25 | G105: =IFERROR(VLOOKUP(B105,'NBI Rural'!$B$2:$E$1124,4,FALSE),"-") -> 2.6 | H105: =IFERROR(VLOOKUP(B105,ICV!$A$1:$G$1123,7,FALSE),"-") -> 0.6875 | I105: =IFERROR(VLOOKUP(B105,Frontera!$A$1:$G$103,7,FALSE),"-") -> - | J105: =IFERROR(VLOOKUP(B105,ZNI!$A$4:$X$118,24,FALSE),"-") -> -
B106: 5686 | C106: =IFERROR(VLOOKUP(B106,IICA!$A$9:$G$1131,7,FALSE),"-") -> 1.733333333 | D106: =IFERROR(VLOOKUP(B106,CultIllic!$A$2:$K$1144,11,FALSE),"-") -> 1.3 | E106: =IFERROR(VLOOKUP(B106,MDM!$A$1:$S$1102,14,FALSE),"-") -> 5.2 | F106: =IFERROR(VLOOKUP(B106,Ruralidad!$A$1:$E$1123,5,FALSE),"-") -> 4.875 | G106: =IFERROR(VLOOKUP(B106,'NBI Rural'!$B$2:$E$1124,4,FALSE),"-") -> 1.95 | H106: =IFERROR(VLOOKUP(B106,ICV!$A$1:$G$1123,7,FALSE),"-") -> 0.6875 | I106: =IFERROR(VLOOKUP(B106,Frontera!$A$1:$G$103,7,FALSE),"-") -> - | J106: =IFERROR(VLOOKUP(B106,ZNI!$A$4:$X$118,24,FALSE),"-") -> -
B107: 5690 | C107: =IFERROR(VLOOKUP(B107,IICA!$A$9:$G$1131,7,FALSE),"-") -> 3.466666667 | D107: =IFERROR(VLOOKUP(B107,CultIllic!$A$2:$K$1144,11,FALSE),"-") -> 1.3 | E107: =IFERROR(VLOOKUP(B107,MDM!$A$1:$S$1102,14,FALSE),"-") -> 7.8 | F107: =IFERROR(VLOOKUP(B107,Ruralidad!$A$1:$E$1123,5,FALSE),"-") -> 6.5 | G107: =IFERROR(VLOOKUP(B107,'NBI Rural'!$B$2:$E$1124,4,FALSE),"-") -> 1.95 | H107: =IFERROR(VLOOKUP(B107,ICV!$A$1:$G$1123,7,FALSE),"-") -> 1.375 | I107: =IFERROR(VLOOKUP(B107,Frontera!$A$1:$G$103,7,FALSE),"-") -> - | J107: =IFERROR(VLOOKUP(B107,ZNI!$A$4:$X$118,24,FALSE),"-") -> -
B108: 5697 | C108: =IFERROR(VLOOKUP(B108,IICA!$A$9:$G$1131,7,FALSE),"-") -> 1.733333333 | D108: =IFERROR(VLOOKUP(B108,CultIllic!$A$2:$K$1144,11,FALSE),"-") -> 1.3 | E108: =IFERROR(VLOOKUP(B108,MDM!$A$1:$S$1102,14,FALSE),"-") -> 3.9 | F108: =IFERROR(VLOOKUP(B108,Ruralidad!$A$1:$E$1123,5,FALSE),"-") -> 3.25 | G108: =IFERROR(VLOOKUP(B108,'NBI Rural'!$B$2:$E$1124,4,FALSE),"-") -> 2.6 | H108: =IFERROR(VLOOKUP(B108,ICV!$A$1:$G$1123,7,FALSE),"-") -> 1.375 | I108: =IFERROR(VLOOKUP(B108,Frontera!$A$1:$G$103,7,FALSE),"-") -> - | J108: =IFERROR(VLOOKUP(B108,ZNI!$A$4:$X$118,24,FALSE),"-") -> -
B109: 5736 | C109: =IFERROR(VLOOKUP(B109,IICA!$A$9:$G$1131,7,FALSE),"-") -> 3.466666667 | D109: =IFERROR(VLOOKUP(B109,CultIllic!$A$2:$K$1144,11,FALSE),"-") -> 1.3 | E109: =IFERROR(VLOOKUP(B109,MDM!$A$1:$S$1102,14,FALSE),"-") -> 7.8 | F109: =IFERROR(VLOOKUP(B109,Ruralidad!$A$1:$E$1123,5,FALSE),"-") -> 3.25 | G109: =IFERROR(VLOOKUP(B109,'NBI Rural'!$B$2:$E$1124,4,FALSE),"-") -> 4.55 | H109: =IFERROR(VLOOKUP(B109,ICV!$A$1:$G$1123,7,FALSE),"-") -> 1.375 | I109: =IFERROR(VLOOKUP(B109,Frontera!$A$1:$G$103,7,FALSE),"-") -> - | J109: =IFERROR(VLOOKUP(B109,ZNI!$A$4:$X$118,24,FALSE),"-") -> -
B110: 5756 | C110: =IFERROR(VLOOKUP(B110,IICA!$A$9:$G$1131,7,FALSE),"-") -> 3.466666667 | D110: =IFERROR(VLOOKUP(B110,CultIllic!$A$2:$K$1144,11,FALSE),"-") -> 1.3 | E110: =IFERROR(VLOOKUP(B110,MDM!$A$1:$S$1102,14,FALSE),"-") -> 6.5 | F110: =IFERROR(VLOOKUP(B110,Ruralidad!$A$1:$E$1123,5,FALSE),"-") -> 4.875 | G110: =IFERROR(VLOOKUP(B110,'NBI Rural'!$B$2:$E$1124,4,FALSE),"-") -> 2.6 | H110: =IFERROR(VLOOKUP(B110,ICV!$A$1:$G$1123,7,FALSE),"-") -> 2.0625 | I110: =IFERROR(VLOOKUP(B110,Frontera!$A$1:$G$103,7,FALSE),"-") -> - | J110: =IFERROR(VLOOKUP(B110,ZNI!$A$4:$X$118,24,FALSE),"-") -> -
B111: 5761 | C111: =IFERROR(VLOOKUP(B111,IICA!$A$9:$G$1131,7,FALSE),"-") -> 1.733333333 | D111: =IFERROR(VLOOKUP(B111,CultIllic!$A$2:$K$1144,11,FALSE),"-") -> 1.3 | E111: =IFERROR(VLOOKUP(B111,MDM!$A$1:$S$1102,14,FALSE),"-") -> 7.8 | F111: =IFERROR(VLOOKUP(B111,Ruralidad!$A$1:$E$1123,5,FALSE),"-") -> 3.25 | G111: =IFERROR(VLOOKUP(B111,'NBI Rural'!$B$2:$E$1124,4,FALSE),"-") -> 2.6 | H111: =IFERROR(VLOOKUP(B111,ICV!$A$1:$G$1123,7,FALSE),"-") -> 0.6875 | I111: =IFERROR(VLOOKUP(B111,Frontera!$A$1:$G$103,7,FALSE),"-") -> - | J111: =IFERROR(VLOOKUP(B111,ZNI!$A$4:$X$118,24,FALSE),"-") -> -
B112: 5789 | C112: =IFERROR(VLOOKUP(B112,IICA!$A$9:$G$1131,7,FALSE),"-") -> 1.733333333 | D112: =IFERROR(VLOOKUP(B112,CultIllic!$A$2:$K$1144,11,FALSE),"-") -> 1.3 | E112: =IFERROR(VLOOKUP(B112,MDM!$A$1:$S$1102,14,FALSE),"-") -> 7.8 | F112: =IFERROR(VLOOKUP(B112,Ruralidad!$A$1:$E$1123,5,FALSE),"-") -> 3.25 | G112: =IFERROR(VLOOKUP(B112,'NBI Rural'!$B$2:$E$1124,4,FALSE),"-") -> 1.95 | H112: =IFERROR(VLOOKUP(B112,ICV!$A$1:$G$1123,7,FALSE),"-") -> 0.6875 | I112: =IFERROR(VLOOKUP(B112,Frontera!$A$1:$G$103,7,FALSE),"-") -> - | J112: =IFERROR(VLOOKUP(B112,ZNI!$A$4:$X$118,24,FALSE),"-") -> -
B113: 5790 | C113: =IFERROR(VLOOKUP(B113,IICA!$A$9:$G$1131,7,FALSE),"-") -> 4.333333333 | D113: =IFERROR(VLOOKUP(B113,CultIllic!$A$2:$K$1144,11,FALSE),"-") -> 2.6 | E113: =IFERROR(VLOOKUP(B113,MDM!$A$1:$S$1102,14,FALSE),"-") -> 9.1 | F113: =IFERROR(VLOOKUP(B113,Ruralidad!$A$1:$E$1123,5,FALSE),"-") -> 3.25 | G113: =IFERROR(VLOOKUP(B113,'NBI Rural'!$B$2:$E$1124,4,FALSE),"-") -> 3.9 | H113: =IFERROR(VLOOKUP(B113,ICV!$A$1:$G$1123,7,FALSE),"-") -> 2.0625 | I113: =IFERROR(VLOOKUP(B113,Frontera!$A$1:$G$103,7,FALSE),"-") -> - | J113: =IFERROR(VLOOKUP(B113,ZNI!$A$4:$X$118,24,FALSE),"-") -> -
B114: 5792 | C114: =IFERROR(VLOOKUP(B114,IICA!$A$9:$G$1131,7,FALSE),"-") -> 0.8666666667 | D114: =IFERROR(VLOOKUP(B114,CultIllic!$A$2:$K$1144,11,FALSE),"-") -> 1.3 | E114: =IFERROR(VLOOKUP(B114,MDM!$A$1:$S$1102,14,FALSE),"-") -> 5.2 | F114: =IFERROR(VLOOKUP(B114,Ruralidad!$A$1:$E$1123,5,FALSE),"-") -> 3.25 | G114: =IFERROR(VLOOKUP(B114,'NBI Rural'!$B$2:$E$1124,4,FALSE),"-") -> 2.6 | H114: =IFERROR(VLOOKUP(B114,ICV!$A$1:$G$1123,7,FALSE),"-") -> 0.6875 | I114: =IFERROR(VLOOKUP(B114,Frontera!$A$1:$G$103,7,FALSE),"-") -> - | J114: =IFERROR(VLOOKUP(B114,ZNI!$A$4:$X$118,24,FALSE),"-") -> -
B115: 5809 | C115: =IFERROR(VLOOKUP(B115,IICA!$A$9:$G$1131,7,FALSE),"-") -> 1.733333333 | D115: =IFERROR(VLOOKUP(B115,CultIllic!$A$2:$K$1144,11,FALSE),"-") -> 1.3 | E115: =IFERROR(VLOOKUP(B115,MDM!$A$1:$S$1102,14,FALSE),"-") -> 9.1 | F115: =IFERROR(VLOOKUP(B115,Ruralidad!$A$1:$E$1123,5,FALSE),"-") -> 3.25 | G115: =IFERROR(VLOOKUP(B115,'NBI Rural'!$B$2:$E$1124,4,FALSE),"-") -> 2.6 | H115: =IFERROR(VLOOKUP(B115,ICV!$A$1:$G$1123,7,FALSE),"-") -> 0.6875 | I115: =IFERROR(VLOOKUP(B115,Frontera!$A$1:$G$103,7,FALSE),"-") -> - | J115: =IFERROR(VLOOKUP(B115,ZNI!$A$4:$X$118,24,FALSE),"-") -> -
B116: 5819 | C116: =IFERROR(VLOOKUP(B116,IICA!$A$9:$G$1131,7,FALSE),"-") -> 3.466666667 | D116: =IFERROR(VLOOKUP(B116,CultIllic!$A$2:$K$1144,11,FALSE),"-") -> 1.3 | E116: =IFERROR(VLOOKUP(B116,MDM!$A$1:$S$1102,14,FALSE),"-") -> 6.5 | F116: =IFERROR(VLOOKUP(B116,Ruralidad!$A$1:$E$1123,5,FALSE),"-") -> 6.5 | G116: =IFERROR(VLOOKUP(B116,'NBI Rural'!$B$2:$E$1124,4,FALSE),"-") -> 3.9 | H116: =IFERROR(VLOOKUP(B116,ICV!$A$1:$G$1123,7,FALSE),"-") -> 1.375 | I116: =IFERROR(VLOOKUP(B116,Frontera!$A$1:$G$103,7,FALSE),"-") -> - | J116: =IFERROR(VLOOKUP(B116,ZNI!$A$4:$X$118,24,FALSE),"-") -> -
B117: 5837 | C117: =IFERROR(VLOOKUP(B117,IICA!$A$9:$G$1131,7,FALSE),"-") -> 1.733333333 | D117: =IFERROR(VLOOKUP(B117,CultIllic!$A$2:$K$1144,11,FALSE),"-") -> 1.3 | E117: =IFERROR(VLOOKUP(B117,MDM!$A$1:$S$1102,14,FALSE),"-") -> 5.2 | F117: =IFERROR(VLOOKUP(B117,Ruralidad!$A$1:$E$1123,5,FALSE),"-") -> 1.625 | G117: =IFERROR(VLOOKUP(B117,'NBI Rural'!$B$2:$E$1124,4,FALSE),"-") -> 5.2 | H117: =IFERROR(VLOOKUP(B117,ICV!$A$1:$G$1123,7,FALSE),"-") -> 2.75 | I117: =IFERROR(VLOOKUP(B117,Frontera!$A$1:$G$103,7,FALSE),"-") -> - | J117: =IFERROR(VLOOKUP(B117,ZNI!$A$4:$X$118,24,FALSE),"-") -> -
B118: 5842 | C118: =IFERROR(VLOOKUP(B118,IICA!$A$9:$G$1131,7,FALSE),"-") -> 2.6 | D118: =IFERROR(VLOOKUP(B118,CultIllic!$A$2:$K$1144,11,FALSE),"-") -> 1.3 | E118: =IFERROR(VLOOKUP(B118,MDM!$A$1:$S$1102,14,FALSE),"-") -> 7.8 | F118: =IFERROR(VLOOKUP(B118,Ruralidad!$A$1:$E$1123,5,FALSE),"-") -> 4.875 | G118: =IFERROR(VLOOKUP(B118,'NBI Rural'!$B$2:$E$1124,4,FALSE),"-") -> 5.2 | H118: =IFERROR(VLOOKUP(B118,ICV!$A$1:$G$1123,7,FALSE),"-") -> 2.75 | I118: =IFERROR(VLOOKUP(B118,Frontera!$A$1:$G$103,7,FALSE),"-") -> - | J118: =IFERROR(VLOOKUP(B118,ZNI!$A$4:$X$118,24,FALSE),"-") -> -
B119: 5847 | C119: =IFERROR(VLOOKUP(B119,IICA!$A$9:$G$1131,7,FALSE),"-") -> 3.466666667 | D119: =IFERROR(VLOOKUP(B119,CultIllic!$A$2:$K$1144,11,FALSE),"-") -> 1.3 | E119: =IFERROR(VLOOKUP(B119,MDM!$A$1:$S$1102,14,FALSE),"-") -> 9.1 | F119: =IFERROR(VLOOKUP(B119,Ruralidad!$A$1:$E$1123,5,FALSE),"-") -> 4.875 | G119: =IFERROR(VLOOKUP(B119,'NBI Rural'!$B$2:$E$1124,4,FALSE),"-") -> 3.25 | H119: =IFERROR(VLOOKUP(B119,ICV!$A$1:$G$1123,7,FALSE),"-") -> 2.75 | I119: =IFERROR(VLOOKUP(B119,Frontera!$A$1:$G$103,7,FALSE),"-") -> - | J119: =IFERROR(VLOOKUP(B119,ZNI!$A$4:$X$118,24,FALSE),"-") -> 0.714285714
B120: 5854 | C120: =IFERROR(VLOOKUP(B120,IICA!$A$9:$G$1131,7,FALSE),"-") -> 4.333333333 | D120: =IFERROR(VLOOKUP(B120,CultIllic!$A$2:$K$1144,11,FALSE),"-") -> 1.3 | E120: =IFERROR(VLOOKUP(B120,MDM!$A$1:$S$1102,14,FALSE),"-") -> 7.8 | F120: =IFERROR(VLOOKUP(B120,Ruralidad!$A$1:$E$1123,5,FALSE),"-") -> 6.5 | G120: =IFERROR(VLOOKUP(B120,'NBI Rural'!$B$2:$E$1124,4,FALSE),"-") -> 3.9 | H120: =IFERROR(VLOOKUP(B120,ICV!$A$1:$G$1123,7,FALSE),"-") -> 1.375 | I120: =IFERROR(VLOOKUP(B120,Frontera!$A$1:$G$103,7,FALSE),"-") -> - | J120: =IFERROR(VLOOKUP(B120,ZNI!$A$4:$X$118,24,FALSE),"-") -> -
B121: 5856 | C121: =IFERROR(VLOOKUP(B121,IICA!$A$9:$G$1131,7,FALSE),"-") -> 1.733333333 | D121: =IFERROR(VLOOKUP(B121,CultIllic!$A$2:$K$1144,11,FALSE),"-") -> 1.3 | E121: =IFERROR(VLOOKUP(B121,MDM!$A$1:$S$1102,14,FALSE),"-") -> 6.5 | F121: =IFERROR(VLOOKUP(B121,Ruralidad!$A$1:$E$1123,5,FALSE),"-") -> 4.875 | G121: =IFERROR(VLOOKUP(B121,'NBI Rural'!$B$2:$E$1124,4,FALSE),"-") -> 1.95 | H121: =IFERROR(VLOOKUP(B121,ICV!$A$1:$G$1123,7,FALSE),"-") -> 0.6875 | I121: =IFERROR(VLOOKUP(B121,Frontera!$A$1:$G$103,7,FALSE),"-") -> - | J121: =IFERROR(VLOOKUP(B121,ZNI!$A$4:$X$118,24,FALSE),"-") -> -
B122: 5858 | C122: =IFERROR(VLOOKUP(B122,IICA!$A$9:$G$1131,7,FALSE),"-") -> 2.6 | D122: =IFERROR(VLOOKUP(B122,CultIllic!$A$2:$K$1144,11,FALSE),"-") -> 1.3 | E122: =IFERROR(VLOOKUP(B122,MDM!$A$1:$S$1102,14,FALSE),"-") -> 6.5 | F122: =IFERROR(VLOOKUP(B122,Ruralidad!$A$1:$E$1123,5,FALSE),"-") -> 4.875 | G122: =IFERROR(VLOOKUP(B122,'NBI Rural'!$B$2:$E$1124,4,FALSE),"-") -> 4.55 | H122: =IFERROR(VLOOKUP(B122,ICV!$A$1:$G$1123,7,FALSE),"-") -> 2.0625 | I122: =IFERROR(VLOOKUP(B122,Frontera!$A$1:$G$103,7,FALSE),"-") -> - | J122: =IFERROR(VLOOKUP(B122,ZNI!$A$4:$X$118,24,FALSE),"-") -> -
B123: 5861 | C123: =IFERROR(VLOOKUP(B123,IICA!$A$9:$G$1131,7,FALSE),"-") -> 0.8666666667 | D123: =IFERROR(VLOOKUP(B123,CultIllic!$A$2:$K$1144,11,FALSE),"-") -> 1.3 | E123: =IFERROR(VLOOKUP(B123,MDM!$A$1:$S$1102,14,FALSE),"-") -> 7.8 | F123: =IFERROR(VLOOKUP(B123,Ruralidad!$A$1:$E$1123,5,FALSE),"-") -> 3.25 | G123: =IFERROR(VLOOKUP(B123,'NBI Rural'!$B$2:$E$1124,4,FALSE),"-") -> 1.3 | H123: =IFERROR(VLOOKUP(B123,ICV!$A$1:$G$1123,7,FALSE),"-") -> 0.6875 | I123: =IFERROR(VLOOKUP(B123,Frontera!$A$1:$G$103,7,FALSE),"-") -> - | J123: =IFERROR(VLOOKUP(B123,ZNI!$A$4:$X$118,24,FALSE),"-") -> -
B124: 5873 | C124: =IFERROR(VLOOKUP(B124,IICA!$A$9:$G$1131,7,FALSE),"-") -> 3.466666667 | D124: =IFERROR(VLOOKUP(B124,CultIllic!$A$2:$K$1144,11,FALSE),"-") -> 1.3 | E124: =IFERROR(VLOOKUP(B124,MDM!$A$1:$S$1102,14,FALSE),"-") -> 7.8 | F124: =IFERROR(VLOOKUP(B124,Ruralidad!$A$1:$E$1123,5,FALSE),"-") -> 6.5 | G124: =IFERROR(VLOOKUP(B124,'NBI Rural'!$B$2:$E$1124,4,FALSE),"-") -> 5.2 | H124: =IFERROR(VLOOKUP(B124,ICV!$A$1:$G$1123,7,FALSE),"-") -> 4.8125 | I124: =IFERROR(VLOOKUP(B124,Frontera!$A$1:$G$103,7,FALSE),"-") -> - | J124: =IFERROR(VLOOKUP(B124,ZNI!$A$4:$X$118,24,FALSE),"-") -> 0.714285714
B125: 5885 | C125: =IFERROR(VLOOKUP(B125,IICA!$A$9:$G$1131,7,FALSE),"-") -> 2.6 | D125: =IFERROR(VLOOKUP(B125,CultIllic!$A$2:$K$1144,11,FALSE),"-") -> 1.3 | E125: =IFERROR(VLOOKUP(B125,MDM!$A$1:$S$1102,14,FALSE),"-") -> 9.1 | F125: =IFERROR(VLOOKUP(B125,Ruralidad!$A$1:$E$1123,5,FALSE),"-") -> 4.875 | G125: =IFERROR(VLOOKUP(B125,'NBI Rural'!$B$2:$E$1124,4,FALSE),"-") -> 4.55 | H125: =IFERROR(VLOOKUP(B125,ICV!$A$1:$G$1123,7,FALSE),"-") -> 0.6875 | I125: =IFERROR(VLOOKUP(B125,Frontera!$A$1:$G$103,7,FALSE),"-") -> - | J125: =IFERROR(VLOOKUP(B125,ZNI!$A$4:$X$118,24,FALSE),"-") -> -
B126: 5887 | C126: =IFERROR(VLOOKUP(B126,IICA!$A$9:$G$1131,7,FALSE),"-") -> 3.466666667 | D126: =IFERROR(VLOOKUP(B126,CultIllic!$A$2:$K$1144,11,FALSE),"-") -> 1.3 | E126: =IFERROR(VLOOKUP(B126,MDM!$A$1:$S$1102,14,FALSE),"-") -> 6.5 | F126: =IFERROR(VLOOKUP(B126,Ruralidad!$A$1:$E$1123,5,FALSE),"-") -> 3.25 | G126: =IFERROR(VLOOKUP(B126,'NBI Rural'!$B$2:$E$1124,4,FALSE),"-") -> 2.6 | H126: =IFERROR(VLOOKUP(B126,ICV!$A$1:$G$1123,7,FALSE),"-") -> 1.375 | I126: =IFERROR(VLOOKUP(B126,Frontera!$A$1:$G$103,7,FALSE),"-") -> - | J126: =IFERROR(VLOOKUP(B126,ZNI!$A$4:$X$118,24,FALSE),"-") -> -
B127: 5890 | C127: =IFERROR(VLOOKUP(B127,IICA!$A$9:$G$1131,7,FALSE),"-") -> 2.6 | D127: =IFERROR(VLOOKUP(B127,CultIllic!$A$2:$K$1144,11,FALSE),"-") -> 1.3 | E127: =IFERROR(VLOOKUP(B127,MDM!$A$1:$S$1102,14,FALSE),"-") -> 7.8 | F127: =IFERROR(VLOOKUP(B127,Ruralidad!$A$1:$E$1123,5,FALSE),"-") -> 4.875 | G127: =IFERROR(VLOOKUP(B127,'NBI Rural'!$B$2:$E$1124,4,FALSE),"-") -> 3.25 | H127: =IFERROR(VLOOKUP(B127,ICV!$A$1:$G$1123,7,FALSE),"-") -> 1.375 | I127: =IFERROR(VLOOKUP(B127,Frontera!$A$1:$G$103,7,FALSE),"-") -> - | J127: =IFERROR(VLOOKUP(B127,ZNI!$A$4:$X$118,24,FALSE),"-") -> -
B128: 5893 | C128: =IFERROR(VLOOKUP(B128,IICA!$A$9:$G$1131,7,FALSE),"-") -> 3.466666667 | D128: =IFERROR(VLOOKUP(B128,CultIllic!$A$2:$K$1144,11,FALSE),"-") -> 1.3 | E128: =IFERROR(VLOOKUP(B128,MDM!$A$1:$S$1102,14,FALSE),"-") -> 6.5 | F128: =IFERROR(VLOOKUP(B128,Ruralidad!$A$1:$E$1123,5,FALSE),"-") -> 6.5 | G128: =IFERROR(VLOOKUP(B128,'NBI Rural'!$B$2:$E$1124,4,FALSE),"-") -> 5.2 | H128: =IFERROR(VLOOKUP(B128,ICV!$A$1:$G$1123,7,FALSE),"-") -> 2.0625 | I128: =IFERROR(VLOOKUP(B128,Frontera!$A$1:$G$103,7,FALSE),"-") -> - | J128: =IFERROR(VLOOKUP(B128,ZNI!$A$4:$X$118,24,FALSE),"-") -> -
B129: 5895 | C129: =IFERROR(VLOOKUP(B129,IICA!$A$9:$G$1131,7,FALSE),"-") -> 3.466666667 | D129: =IFERROR(VLOOKUP(B129,CultIllic!$A$2:$K$1144,11,FALSE),"-") -> 1.3 | E129: =IFERROR(VLOOKUP(B129,MDM!$A$1:$S$1102,14,FALSE),"-") -> 10.4 | F129: =IFERROR(VLOOKUP(B129,Ruralidad!$A$1:$E$1123,5,FALSE),"-") -> 4.875 | G129: =IFERROR(VLOOKUP(B129,'NBI Rural'!$B$2:$E$1124,4,FALSE),"-") -> 5.85 | H129: =IFERROR(VLOOKUP(B129,ICV!$A$1:$G$1123,7,FALSE),"-") -> 1.375 | I129: =IFERROR(VLOOKUP(B129,Frontera!$A$1:$G$103,7,FALSE),"-") -> - | J129: =IFERROR(VLOOKUP(B129,ZNI!$A$4:$X$118,24,FALSE),"-") -> -
B130: 8001 | C130: =IFERROR(VLOOKUP(B130,IICA!$A$9:$G$1131,7,FALSE),"-") -> 0.8666666667 | D130: =IFERROR(VLOOKUP(B130,CultIllic!$A$2:$K$1144,11,FALSE),"-") -> 1.3 | E130: =IFERROR(VLOOKUP(B130,MDM!$A$1:$S$1102,14,FALSE),"-") -> 2.6 | F130: =IFERROR(VLOOKUP(B130,Ruralidad!$A$1:$E$1123,5,FALSE),"-") -> 1.625 | G130: =IFERROR(VLOOKUP(B130,'NBI Rural'!$B$2:$E$1124,4,FALSE),"-") -> 1.3 | H130: =IFERROR(VLOOKUP(B130,ICV!$A$1:$G$1123,7,FALSE),"-") -> 0.6875 | I130: =IFERROR(VLOOKUP(B130,Frontera!$A$1:$G$103,7,FALSE),"-") -> - | J130: =IFERROR(VLOOKUP(B130,ZNI!$A$4:$X$118,24,FALSE),"-") -> -
B131: 8078 | C131: =IFERROR(VLOOKUP(B131,IICA!$A$9:$G$1131,7,FALSE),"-") -> 0.8666666667 | D131: =IFERROR(VLOOKUP(B131,CultIllic!$A$2:$K$1144,11,FALSE),"-") -> 1.3 | E131: =IFERROR(VLOOKUP(B131,MDM!$A$1:$S$1102,14,FALSE),"-") -> 7.8 | F131: =IFERROR(VLOOKUP(B131,Ruralidad!$A$1:$E$1123,5,FALSE),"-") -> 1.625 | G131: =IFERROR(VLOOKUP(B131,'NBI Rural'!$B$2:$E$1124,4,FALSE),"-") -> 1.95 | H131: =IFERROR(VLOOKUP(B131,ICV!$A$1:$G$1123,7,FALSE),"-") -> 0.6875 | I131: =IFERROR(VLOOKUP(B131,Frontera!$A$1:$G$103,7,FALSE),"-") -> - | J131: =IFERROR(VLOOKUP(B131,ZNI!$A$4:$X$118,24,FALSE),"-") -> -
B132: 8137 | C132: =IFERROR(VLOOKUP(B132,IICA!$A$9:$G$1131,7,FALSE),"-") -> 0.8666666667 | D132: =IFERROR(VLOOKUP(B132,CultIllic!$A$2:$K$1144,11,FALSE),"-") -> 1.3 | E132: =IFERROR(VLOOKUP(B132,MDM!$A$1:$S$1102,14,FALSE),"-") -> 11.7 | F132: =IFERROR(VLOOKUP(B132,Ruralidad!$A$1:$E$1123,5,FALSE),"-") -> 3.25 | G132: =IFERROR(VLOOKUP(B132,'NBI Rural'!$B$2:$E$1124,4,FALSE),"-") -> 3.9 | H132: =IFERROR(VLOOKUP(B132,ICV!$A$1:$G$1123,7,FALSE),"-") -> 0.6875 | I132: =IFERROR(VLOOKUP(B132,Frontera!$A$1:$G$103,7,FALSE),"-") -> - | J132: =IFERROR(VLOOKUP(B132,ZNI!$A$4:$X$118,24,FALSE),"-") -> -
B133: 8141 | C133: =IFERROR(VLOOKUP(B133,IICA!$A$9:$G$1131,7,FALSE),"-") -> 0.8666666667 | D133: =IFERROR(VLOOKUP(B133,CultIllic!$A$2:$K$1144,11,FALSE),"-") -> 1.3 | E133: =IFERROR(VLOOKUP(B133,MDM!$A$1:$S$1102,14,FALSE),"-") -> 11.7 | F133: =IFERROR(VLOOKUP(B133,Ruralidad!$A$1:$E$1123,5,FALSE),"-") -> 3.25 | G133: =IFERROR(VLOOKUP(B133,'NBI Rural'!$B$2:$E$1124,4,FALSE),"-") -> 2.6 | H133: =IFERROR(VLOOKUP(B133,ICV!$A$1:$G$1123,7,FALSE),"-") -> 0.6875 | I133: =IFERROR(VLOOKUP(B133,Frontera!$A$1:$G$103,7,FALSE),"-") -> - | J133: =IFERROR(VLOOKUP(B133,ZNI!$A$4:$X$118,24,FALSE),"-") -> -
B134: 8296 | C134: =IFERROR(VLOOKUP(B134,IICA!$A$9:$G$1131,7,FALSE),"-") -> 0.8666666667 | D134: =IFERROR(VLOOKUP(B134,CultIllic!$A$2:$K$1144,11,FALSE),"-") -> 1.3 | E134: =IFERROR(VLOOKUP(B134,MDM!$A$1:$S$1102,14,FALSE),"-") -> 6.5 | F134: =IFERROR(VLOOKUP(B134,Ruralidad!$A$1:$E$1123,5,FALSE),"-") -> 1.625 | G134: =IFERROR(VLOOKUP(B134,'NBI Rural'!$B$2:$E$1124,4,FALSE),"-") -> 3.25 | H134: =IFERROR(VLOOKUP(B134,ICV!$A$1:$G$1123,7,FALSE),"-") -> 0.6875 | I134: =IFERROR(VLOOKUP(B134,Frontera!$A$1:$G$103,7,FALSE),"-") -> - | J134: =IFERROR(VLOOKUP(B134,ZNI!$A$4:$X$118,24,FALSE),"-") -> -
B135: 8372 | C135: =IFERROR(VLOOKUP(B135,IICA!$A$9:$G$1131,7,FALSE),"-") -> 0.8666666667 | D135: =IFERROR(VLOOKUP(B135,CultIllic!$A$2:$K$1144,11,FALSE),"-") -> 1.3 | E135: =IFERROR(VLOOKUP(B135,MDM!$A$1:$S$1102,14,FALSE),"-") -> 7.8 | F135: =IFERROR(VLOOKUP(B135,Ruralidad!$A$1:$E$1123,5,FALSE),"-") -> 3.25 | G135: =IFERROR(VLOOKUP(B135,'NBI Rural'!$B$2:$E$1124,4,FALSE),"-") -> 1.95 | H135: =IFERROR(VLOOKUP(B135,ICV!$A$1:$G$1123,7,FALSE),"-") -> 0.6875 | I135: =IFERROR(VLOOKUP(B135,Frontera!$A$1:$G$103,7,FALSE),"-") -> - | J135: =IFERROR(VLOOKUP(B135,ZNI!$A$4:$X$118,24,FALSE),"-") -> -
B136: 8421 | C136: =IFERROR(VLOOKUP(B136,IICA!$A$9:$G$1131,7,FALSE),"-") -> 0.8666666667 | D136: =IFERROR(VLOOKUP(B136,CultIllic!$A$2:$K$1144,11,FALSE),"-") -> 1.3 | E136: =IFERROR(VLOOKUP(B136,MDM!$A$1:$S$1102,14,FALSE),"-") -> 9.1 | F136: =IFERROR(VLOOKUP(B136,Ruralidad!$A$1:$E$1123,5,FALSE),"-") -> 3.25 | G136: =IFERROR(VLOOKUP(B136,'NBI Rural'!$B$2:$E$1124,4,FALSE),"-") -> 2.6 | H136: =IFERROR(VLOOKUP(B136,ICV!$A$1:$G$1123,7,FALSE),"-") -> 0.6875 | I136: =IFERROR(VLOOKUP(B136,Frontera!$A$1:$G$103,7,FALSE),"-") -> - | J136: =IFERROR(VLOOKUP(B136,ZNI!$A$4:$X$118,24,FALSE),"-") -> -
B137: 8433 | C137: =IFERROR(VLOOKUP(B137,IICA!$A$9:$G$1131,7,FALSE),"-") -> 0.8666666667 | D137: =IFERROR(VLOOKUP(B137,CultIllic!$A$2:$K$1144,11,FALSE),"-") -> 1.3 | E137: =IFERROR(VLOOKUP(B137,MDM!$A$1:$S$1102,14,FALSE),"-") -> 6.5 | F137: =IFERROR(VLOOKUP(B137,Ruralidad!$A$1:$E$1123,5,FALSE),"-") -> 1.625 | G137: =IFERROR(VLOOKUP(B137,'NBI Rural'!$B$2:$E$1124,4,FALSE),"-") -> 1.95 | H137: =IFERROR(VLOOKUP(B137,ICV!$A$1:$G$1123,7,FALSE),"-") -> 0.6875 | I137: =IFERROR(VLOOKUP(B137,Frontera!$A$1:$G$103,7,FALSE),"-") -> - | J137: =IFERROR(VLOOKUP(B137,ZNI!$A$4:$X$118,24,FALSE),"-") -> -
B138: 8436 | C138: =IFERROR(VLOOKUP(B138,IICA!$A$9:$G$1131,7,FALSE),"-") -> 0.8666666667 | D138: =IFERROR(VLOOKUP(B138,CultIllic!$A$2:$K$1144,11,FALSE),"-") -> 1.3 | E138: =IFERROR(VLOOKUP(B138,MDM!$A$1:$S$1102,14,FALSE),"-") -> 10.4 | F138: =IFERROR(VLOOKUP(B138,Ruralidad!$A$1:$E$1123,5,FALSE),"-") -> 3.25 | G138: =IFERROR(VLOOKUP(B138,'NBI Rural'!$B$2:$E$1124,4,FALSE),"-") -> 4.55 | H138: =IFERROR(VLOOKUP(B138,ICV!$A$1:$G$1123,7,FALSE),"-") -> 0.6875 | I138: =IFERROR(VLOOKUP(B138,Frontera!$A$1:$G$103,7,FALSE),"-") -> - | J138: =IFERROR(VLOOKUP(B138,ZNI!$A$4:$X$118,24,FALSE),"-") -> -
B139: 8520 | C139: =IFERROR(VLOOKUP(B139,IICA!$A$9:$G$1131,7,FALSE),"-") -> 0.8666666667 | D139: =IFERROR(VLOOKUP(B139,CultIllic!$A$2:$K$1144,11,FALSE),"-") -> 1.3 | E139: =IFERROR(VLOOKUP(B139,MDM!$A$1:$S$1102,14,FALSE),"-") -> 9.1 | F139: =IFERROR(VLOOKUP(B139,Ruralidad!$A$1:$E$1123,5,FALSE),"-") -> 1.625 | G139: =IFERROR(VLOOKUP(B139,'NBI Rural'!$B$2:$E$1124,4,FALSE),"-") -> 3.25 | H139: =IFERROR(VLOOKUP(B139,ICV!$A$1:$G$1123,7,FALSE),"-") -> 0.6875 | I139: =IFERROR(VLOOKUP(B139,Frontera!$A$1:$G$103,7,FALSE),"-") -> - | J139: =IFERROR(VLOOKUP(B139,ZNI!$A$4:$X$118,24,FALSE),"-") -> -
B140: 8549 | C140: =IFERROR(VLOOKUP(B140,IICA!$A$9:$G$1131,7,FALSE),"-") -> 0.8666666667 | D140: =IFERROR(VLOOKUP(B140,CultIllic!$A$2:$K$1144,11,FALSE),"-") -> 1.3 | E140: =IFERROR(VLOOKUP(B140,MDM!$A$1:$S$1102,14,FALSE),"-") -> 13 | F140: =IFERROR(VLOOKUP(B140,Ruralidad!$A$1:$E$1123,5,FALSE),"-") -> 4.875 | G140: =IFERROR(VLOOKUP(B140,'NBI Rural'!$B$2:$E$1124,4,FALSE),"-") -> 3.9 | H140: =IFERROR(VLOOKUP(B140,ICV!$A$1:$G$1123,7,FALSE),"-") -> 0.6875 | I140: =IFERROR(VLOOKUP(B140,Frontera!$A$1:$G$103,7,FALSE),"-") -> - | J140: =IFERROR(VLOOKUP(B140,ZNI!$A$4:$X$118,24,FALSE),"-") -> -
B141: 8558 | C141: =IFERROR(VLOOKUP(B141,IICA!$A$9:$G$1131,7,FALSE),"-") -> 0.8666666667 | D141: =IFERROR(VLOOKUP(B141,CultIllic!$A$2:$K$1144,11,FALSE),"-") -> 1.3 | E141: =IFERROR(VLOOKUP(B141,MDM!$A$1:$S$1102,14,FALSE),"-") -> 11.7 | F141: =IFERROR(VLOOKUP(B141,Ruralidad!$A$1:$E$1123,5,FALSE),"-") -> 1.625 | G141: =IFERROR(VLOOKUP(B141,'NBI Rural'!$B$2:$E$1124,4,FALSE),"-") -> 3.25 | H141: =IFERROR(VLOOKUP(B141,ICV!$A$1:$G$1123,7,FALSE),"-") -> 0.6875 | I141: =IFERROR(VLOOKUP(B141,Frontera!$A$1:$G$103,7,FALSE),"-") -> - | J141: =IFERROR(VLOOKUP(B141,ZNI!$A$4:$X$118,24,FALSE),"-") -> -
B142: 8560 | C142: =IFERROR(VLOOKUP(B142,IICA!$A$9:$G$1131,7,FALSE),"-") -> 0.8666666667 | D142: =IFERROR(VLOOKUP(B142,CultIllic!$A$2:$K$1144,11,FALSE),"-") -> 1.3 | E142: =IFERROR(VLOOKUP(B142,MDM!$A$1:$S$1102,14,FALSE),"-") -> 11.7 | F142: =IFERROR(VLOOKUP(B142,Ruralidad!$A$1:$E$1123,5,FALSE),"-") -> 1.625 | G142: =IFERROR(VLOOKUP(B142,'NBI Rural'!$B$2:$E$1124,4,FALSE),"-") -> 3.25 | H142: =IFERROR(VLOOKUP(B142,ICV!$A$1:$G$1123,7,FALSE),"-") -> 0.6875 | I142: =IFERROR(VLOOKUP(B142,Frontera!$A$1:$G$103,7,FALSE),"-") -> - | J142: =IFERROR(VLOOKUP(B142,ZNI!$A$4:$X$118,24,FALSE),"-") -> -
B143: 8573 | C143: =IFERROR(VLOOKUP(B143,IICA!$A$9:$G$1131,7,FALSE),"-") -> 0.8666666667 | D143: =IFERROR(VLOOKUP(B143,CultIllic!$A$2:$K$1144,11,FALSE),"-") -> 1.3 | E143: =IFERROR(VLOOKUP(B143,MDM!$A$1:$S$1102,14,FALSE),"-") -> 5.2 | F143: =IFERROR(VLOOKUP(B143,Ruralidad!$A$1:$E$1123,5,FALSE),"-") -> 1.625 | G143: =IFERROR(VLOOKUP(B143,'NBI Rural'!$B$2:$E$1124,4,FALSE),"-") -> 1.3 | H143: =IFERROR(VLOOKUP(B143,ICV!$A$1:$G$1123,7,FALSE),"-") -> 0.6875 | I143: =IFERROR(VLOOKUP(B143,Frontera!$A$1:$G$103,7,FALSE),"-") -> - | J143: =IFERROR(VLOOKUP(B143,ZNI!$A$4:$X$118,24,FALSE),"-") -> -
B144: 8606 | C144: =IFERROR(VLOOKUP(B144,IICA!$A$9:$G$1131,7,FALSE),"-") -> 0.8666666667 | D144: =IFERROR(VLOOKUP(B144,CultIllic!$A$2:$K$1144,11,FALSE),"-") -> 1.3 | E144: =IFERROR(VLOOKUP(B144,MDM!$A$1:$S$1102,14,FALSE),"-") -> 9.1 | F144: =IFERROR(VLOOKUP(B144,Ruralidad!$A$1:$E$1123,5,FALSE),"-") -> 3.25 | G144: =IFERROR(VLOOKUP(B144,'NBI Rural'!$B$2:$E$1124,4,FALSE),"-") -> 2.6 | H144: =IFERROR(VLOOKUP(B144,ICV!$A$1:$G$1123,7,FALSE),"-") -> 0.6875 | I144: =IFERROR(VLOOKUP(B144,Frontera!$A$1:$G$103,7,FALSE),"-") -> - | J144: =IFERROR(VLOOKUP(B144,ZNI!$A$4:$X$118,24,FALSE),"-") -> -
B145: 8634 | C145: =IFERROR(VLOOKUP(B145,IICA!$A$9:$G$1131,7,FALSE),"-") -> 0.8666666667 | D145: =IFERROR(VLOOKUP(B145,CultIllic!$A$2:$K$1144,11,FALSE),"-") -> 1.3 | E145: =IFERROR(VLOOKUP(B145,MDM!$A$1:$S$1102,14,FALSE),"-") -> 9.1 | F145: =IFERROR(VLOOKUP(B145,Ruralidad!$A$1:$E$1123,5,FALSE),"-") -> 1.625 | G145: =IFERROR(VLOOKUP(B145,'NBI Rural'!$B$2:$E$1124,4,FALSE),"-") -> 1.95 | H145: =IFERROR(VLOOKUP(B145,ICV!$A$1:$G$1123,7,FALSE),"-") -> 0.6875 | I145: =IFERROR(VLOOKUP(B145,Frontera!$A$1:$G$103,7,FALSE),"-") -> - | J145: =IFERROR(VLOOKUP(B145,ZNI!$A$4:$X$118,24,FALSE),"-") -> -
B146: 8638 | C146: =IFERROR(VLOOKUP(B146,IICA!$A$9:$G$1131,7,FALSE),"-") -> 0.8666666667 | D146: =IFERROR(VLOOKUP(B146,CultIllic!$A$2:$K$1144,11,FALSE),"-") -> 1.3 | E146: =IFERROR(VLOOKUP(B146,MDM!$A$1:$S$1102,14,FALSE),"-") -> 10.4 | F146: =IFERROR(VLOOKUP(B146,Ruralidad!$A$1:$E$1123,5,FALSE),"-") -> 1.625 | G146: =IFERROR(VLOOKUP(B146,'NBI Rural'!$B$2:$E$1124,4,FALSE),"-") -> 3.25 | H146: =IFERROR(VLOOKUP(B146,ICV!$A$1:$G$1123,7,FALSE),"-") -> 0.6875 | I146: =IFERROR(VLOOKUP(B146,Frontera!$A$1:$G$103,7,FALSE),"-") -> - | J146: =IFERROR(VLOOKUP(B146,ZNI!$A$4:$X$118,24,FALSE),"-") -> -
B147: 8675 | C147: =IFERROR(VLOOKUP(B147,IICA!$A$9:$G$1131,7,FALSE),"-") -> 0.8666666667 | D147: =IFERROR(VLOOKUP(B147,CultIllic!$A$2:$K$1144,11,FALSE),"-") -> 1.3 | E147: =IFERROR(VLOOKUP(B147,MDM!$A$1:$S$1102,14,FALSE),"-") -> 13 | F147: =IFERROR(VLOOKUP(B147,Ruralidad!$A$1:$E$1123,5,FALSE),"-") -> 3.25 | G147: =IFERROR(VLOOKUP(B147,'NBI Rural'!$B$2:$E$1124,4,FALSE),"-") -> 3.25 | H147: =IFERROR(VLOOKUP(B147,ICV!$A$1:$G$1123,7,FALSE),"-") -> 0.6875 | I147: =IFERROR(VLOOKUP(B147,Frontera!$A$1:$G$103,7,FALSE),"-") -> - | J147: =IFERROR(VLOOKUP(B147,ZNI!$A$4:$X$118,24,FALSE),"-") -> -
B148: 8685 | C148: =IFERROR(VLOOKUP(B148,IICA!$A$9:$G$1131,7,FALSE),"-") -> 0.8666666667 | D148: =IFERROR(VLOOKUP(B148,CultIllic!$A$2:$K$1144,11,FALSE),"-") -> 1.3 | E148: =IFERROR(VLOOKUP(B148,MDM!$A$1:$S$1102,14,FALSE),"-") -> 9.1 | F148: =IFERROR(VLOOKUP(B148,Ruralidad!$A$1:$E$1123,5,FALSE),"-") -> 1.625 | G148: =IFERROR(VLOOKUP(B148,'NBI Rural'!$B$2:$E$1124,4,FALSE),"-") -> 3.25 | H148: =IFERROR(VLOOKUP(B148,ICV!$A$1:$G$1123,7,FALSE),"-") -> 0.6875 | I148: =IFERROR(VLOOKUP(B148,Frontera!$A$1:$G$103,7,FALSE),"-") -> - | J148: =IFERROR(VLOOKUP(B148,ZNI!$A$4:$X$118,24,FALSE),"-") -> -
B149: 8758 | C149: =IFERROR(VLOOKUP(B149,IICA!$A$9:$G$1131,7,FALSE),"-") -> 0.8666666667 | D149: =IFERROR(VLOOKUP(B149,CultIllic!$A$2:$K$1144,11,FALSE),"-") -> 1.3 | E149: =IFERROR(VLOOKUP(B149,MDM!$A$1:$S$1102,14,FALSE),"-") -> 6.5 | F149: =IFERROR(VLOOKUP(B149,Ruralidad!$A$1:$E$1123,5,FALSE),"-") -> 1.625 | G149: =IFERROR(VLOOKUP(B149,'NBI Rural'!$B$2:$E$1124,4,FALSE),"-") -> 3.9 | H149: =IFERROR(VLOOKUP(B149,ICV!$A$1:$G$1123,7,FALSE),"-") -> 0.6875 | I149: =IFERROR(VLOOKUP(B149,Frontera!$A$1:$G$103,7,FALSE),"-") -> - | J149: =IFERROR(VLOOKUP(B149,ZNI!$A$4:$X$118,24,FALSE),"-") -> -
B150: 8770 | C150: =IFERROR(VLOOKUP(B150,IICA!$A$9:$G$1131,7,FALSE),"-") -> 0.8666666667 | D150: =IFERROR(VLOOKUP(B150,CultIllic!$A$2:$K$1144,11,FALSE),"-") -> 1.3 | E150: =IFERROR(VLOOKUP(B150,MDM!$A$1:$S$1102,14,FALSE),"-") -> 9.1 | F150: =IFERROR(VLOOKUP(B150,Ruralidad!$A$1:$E$1123,5,FALSE),"-") -> 3.25 | G150: =IFERROR(VLOOKUP(B150,'NBI Rural'!$B$2:$E$1124,4,FALSE),"-") -> 2.6 | H150: =IFERROR(VLOOKUP(B150,ICV!$A$1:$G$1123,7,FALSE),"-") -> 0.6875 | I150: =IFERROR(VLOOKUP(B150,Frontera!$A$1:$G$103,7,FALSE),"-") -> - | J150: =IFERROR(VLOOKUP(B150,ZNI!$A$4:$X$118,24,FALSE),"-") -> -
B151: 8832 | C151: =IFERROR(VLOOKUP(B151,IICA!$A$9:$G$1131,7,FALSE),"-") -> 0.8666666667 | D151: =IFERROR(VLOOKUP(B151,CultIllic!$A$2:$K$1144,11,FALSE),"-") -> 1.3 | E151: =IFERROR(VLOOKUP(B151,MDM!$A$1:$S$1102,14,FALSE),"-") -> 6.5 | F151: =IFERROR(VLOOKUP(B151,Ruralidad!$A$1:$E$1123,5,FALSE),"-") -> 1.625 | G151: =IFERROR(VLOOKUP(B151,'NBI Rural'!$B$2:$E$1124,4,FALSE),"-") -> 2.6 | H151: =IFERROR(VLOOKUP(B151,ICV!$A$1:$G$1123,7,FALSE),"-") -> 0.6875 | I151: =IFERROR(VLOOKUP(B151,Frontera!$A$1:$G$103,7,FALSE),"-") -> - | J151: =IFERROR(VLOOKUP(B151,ZNI!$A$4:$X$118,24,FALSE),"-") -> -
B152: 8849 | C152: =IFERROR(VLOOKUP(B152,IICA!$A$9:$G$1131,7,FALSE),"-") -> 0.8666666667 | D152: =IFERROR(VLOOKUP(B152,CultIllic!$A$2:$K$1144,11,FALSE),"-") -> 1.3 | E152: =IFERROR(VLOOKUP(B152,MDM!$A$1:$S$1102,14,FALSE),"-") -> 9.1 | F152: =IFERROR(VLOOKUP(B152,Ruralidad!$A$1:$E$1123,5,FALSE),"-") -> 1.625 | G152: =IFERROR(VLOOKUP(B152,'NBI Rural'!$B$2:$E$1124,4,FALSE),"-") -> 3.9 | H152: =IFERROR(VLOOKUP(B152,ICV!$A$1:$G$1123,7,FALSE),"-") -> 0.6875 | I152: =IFERROR(VLOOKUP(B152,Frontera!$A$1:$G$103,7,FALSE),"-") -> - | J152: =IFERROR(VLOOKUP(B152,ZNI!$A$4:$X$118,24,FALSE),"-") -> -
B153: 13001 | C153: =IFERROR(VLOOKUP(B153,IICA!$A$9:$G$1131,7,FALSE),"-") -> 0.8666666667 | D153: =IFERROR(VLOOKUP(B153,CultIllic!$A$2:$K$1144,11,FALSE),"-") -> 1.3 | E153: =IFERROR(VLOOKUP(B153,MDM!$A$1:$S$1102,14,FALSE),"-") -> 5.2 | F153: =IFERROR(VLOOKUP(B153,Ruralidad!$A$1:$E$1123,5,FALSE),"-") -> 1.625 | G153: =IFERROR(VLOOKUP(B153,'NBI Rural'!$B$2:$E$1124,4,FALSE),"-") -> 1.95 | H153: =IFERROR(VLOOKUP(B153,ICV!$A$1:$G$1123,7,FALSE),"-") -> 0.6875 | I153: =IFERROR(VLOOKUP(B153,Frontera!$A$1:$G$103,7,FALSE),"-") -> - | J153: =IFERROR(VLOOKUP(B153,ZNI!$A$4:$X$118,24,FALSE),"-") -> 0.714285714
B154: 13006 | C154: =IFERROR(VLOOKUP(B154,IICA!$A$9:$G$1131,7,FALSE),"-") -> 1.733333333 | D154: =IFERROR(VLOOKUP(B154,CultIllic!$A$2:$K$1144,11,FALSE),"-") -> 1.3 | E154: =IFERROR(VLOOKUP(B154,MDM!$A$1:$S$1102,14,FALSE),"-") -> 11.7 | F154: =IFERROR(VLOOKUP(B154,Ruralidad!$A$1:$E$1123,5,FALSE),"-") -> 6.5 | G154: =IFERROR(VLOOKUP(B154,'NBI Rural'!$B$2:$E$1124,4,FALSE),"-") -> 5.85 | H154: =IFERROR(VLOOKUP(B154,ICV!$A$1:$G$1123,7,FALSE),"-") -> 1.375 | I154: =IFERROR(VLOOKUP(B154,Frontera!$A$1:$G$103,7,FALSE),"-") -> - | J154: =IFERROR(VLOOKUP(B154,ZNI!$A$4:$X$118,24,FALSE),"-") -> -
B155: 13030 | C155: =IFERROR(VLOOKUP(B155,IICA!$A$9:$G$1131,7,FALSE),"-") -> 1.733333333 | D155: =IFERROR(VLOOKUP(B155,CultIllic!$A$2:$K$1144,11,FALSE),"-") -> 1.3 | E155: =IFERROR(VLOOKUP(B155,MDM!$A$1:$S$1102,14,FALSE),"-") -> 10.4 | F155: =IFERROR(VLOOKUP(B155,Ruralidad!$A$1:$E$1123,5,FALSE),"-") -> 4.875 | G155: =IFERROR(VLOOKUP(B155,'NBI Rural'!$B$2:$E$1124,4,FALSE),"-") -> 5.85 | H155: =IFERROR(VLOOKUP(B155,ICV!$A$1:$G$1123,7,FALSE),"-") -> 2.0625 | I155: =IFERROR(VLOOKUP(B155,Frontera!$A$1:$G$103,7,FALSE),"-") -> - | J155: =IFERROR(VLOOKUP(B155,ZNI!$A$4:$X$118,24,FALSE),"-") -> -
B156: 13042 | C156: =IFERROR(VLOOKUP(B156,IICA!$A$9:$G$1131,7,FALSE),"-") -> 2.6 | D156: =IFERROR(VLOOKUP(B156,CultIllic!$A$2:$K$1144,11,FALSE),"-") -> 1.3 | E156: =IFERROR(VLOOKUP(B156,MDM!$A$1:$S$1102,14,FALSE),"-") -> 9.1 | F156: =IFERROR(VLOOKUP(B156,Ruralidad!$A$1:$E$1123,5,FALSE),"-") -> 6.5 | G156: =IFERROR(VLOOKUP(B156,'NBI Rural'!$B$2:$E$1124,4,FALSE),"-") -> 5.2 | H156: =IFERROR(VLOOKUP(B156,ICV!$A$1:$G$1123,7,FALSE),"-") -> 1.375 | I156: =IFERROR(VLOOKUP(B156,Frontera!$A$1:$G$103,7,FALSE),"-") -> - | J156: =IFERROR(VLOOKUP(B156,ZNI!$A$4:$X$118,24,FALSE),"-") -> -
B157: 13052 | C157: =IFERROR(VLOOKUP(B157,IICA!$A$9:$G$1131,7,FALSE),"-") -> 0.8666666667 | D157: =IFERROR(VLOOKUP(B157,CultIllic!$A$2:$K$1144,11,FALSE),"-") -> 1.3 | E157: =IFERROR(VLOOKUP(B157,MDM!$A$1:$S$1102,14,FALSE),"-") -> 9.1 | F157: =IFERROR(VLOOKUP(B157,Ruralidad!$A$1:$E$1123,5,FALSE),"-") -> 1.625 | G157: =IFERROR(VLOOKUP(B157,'NBI Rural'!$B$2:$E$1124,4,FALSE),"-") -> 3.25 | H157: =IFERROR(VLOOKUP(B157,ICV!$A$1:$G$1123,7,FALSE),"-") -> 0.6875 | I157: =IFERROR(VLOOKUP(B157,Frontera!$A$1:$G$103,7,FALSE),"-") -> - | J157: =IFERROR(VLOOKUP(B157,ZNI!$A$4:$X$118,24,FALSE),"-") -> -
B158: 13062 | C158: =IFERROR(VLOOKUP(B158,IICA!$A$9:$G$1131,7,FALSE),"-") -> 0.8666666667 | D158: =IFERROR(VLOOKUP(B158,CultIllic!$A$2:$K$1144,11,FALSE),"-") -> 1.3 | E158: =IFERROR(VLOOKUP(B158,MDM!$A$1:$S$1102,14,FALSE),"-") -> 11.7 | F158: =IFERROR(VLOOKUP(B158,Ruralidad!$A$1:$E$1123,5,FALSE),"-") -> 3.25 | G158: =IFERROR(VLOOKUP(B158,'NBI Rural'!$B$2:$E$1124,4,FALSE),"-") -> 4.55 | H158: =IFERROR(VLOOKUP(B158,ICV!$A$1:$G$1123,7,FALSE),"-") -> 0.6875 | I158: =IFERROR(VLOOKUP(B158,Frontera!$A$1:$G$103,7,FALSE),"-") -> - | J158: =IFERROR(VLOOKUP(B158,ZNI!$A$4:$X$118,24,FALSE),"-") -> -
B159: 13074 | C159: =IFERROR(VLOOKUP(B159,IICA!$A$9:$G$1131,7,FALSE),"-") -> 1.733333333 | D159: =IFERROR(VLOOKUP(B159,CultIllic!$A$2:$K$1144,11,FALSE),"-") -> 1.3 | E159: =IFERROR(VLOOKUP(B159,MDM!$A$1:$S$1102,14,FALSE),"-") -> 11.7 | F159: =IFERROR(VLOOKUP(B159,Ruralidad!$A$1:$E$1123,5,FALSE),"-") -> 4.875 | G159: =IFERROR(VLOOKUP(B159,'NBI Rural'!$B$2:$E$1124,4,FALSE),"-") -> 5.85 | H159: =IFERROR(VLOOKUP(B159,ICV!$A$1:$G$1123,7,FALSE),"-") -> 2.0625 | I159: =IFERROR(VLOOKUP(B159,Frontera!$A$1:$G$103,7,FALSE),"-") -> - | J159: =IFERROR(VLOOKUP(B159,ZNI!$A$4:$X$118,24,FALSE),"-") -> -
B160: 13140 | C160: =IFERROR(VLOOKUP(B160,IICA!$A$9:$G$1131,7,FALSE),"-") -> 0.8666666667 | D160: =IFERROR(VLOOKUP(B160,CultIllic!$A$2:$K$1144,11,FALSE),"-") -> 1.3 | E160: =IFERROR(VLOOKUP(B160,MDM!$A$1:$S$1102,14,FALSE),"-") -> 10.4 | F160: =IFERROR(VLOOKUP(B160,Ruralidad!$A$1:$E$1123,5,FALSE),"-") -> 3.25 | G160: =IFERROR(VLOOKUP(B160,'NBI Rural'!$B$2:$E$1124,4,FALSE),"-") -> 5.2 | H160: =IFERROR(VLOOKUP(B160,ICV!$A$1:$G$1123,7,FALSE),"-") -> 0.6875 | I160: =IFERROR(VLOOKUP(B160,Frontera!$A$1:$G$103,7,FALSE),"-") -> - | J160: =IFERROR(VLOOKUP(B160,ZNI!$A$4:$X$118,24,FALSE),"-") -> -
B161: 13160 | C161: =IFERROR(VLOOKUP(B161,IICA!$A$9:$G$1131,7,FALSE),"-") -> 4.333333333 | D161: =IFERROR(VLOOKUP(B161,CultIllic!$A$2:$K$1144,11,FALSE),"-") -> 1.3 | E161: =IFERROR(VLOOKUP(B161,MDM!$A$1:$S$1102,14,FALSE),"-") -> 9.1 | F161: =IFERROR(VLOOKUP(B161,Ruralidad!$A$1:$E$1123,5,FALSE),"-") -> 4.875 | G161: =IFERROR(VLOOKUP(B161,'NBI Rural'!$B$2:$E$1124,4,FALSE),"-") -> 5.2 | H161: =IFERROR(VLOOKUP(B161,ICV!$A$1:$G$1123,7,FALSE),"-") -> 1.375 | I161: =IFERROR(VLOOKUP(B161,Frontera!$A$1:$G$103,7,FALSE),"-") -> - | J161: =IFERROR(VLOOKUP(B161,ZNI!$A$4:$X$118,24,FALSE),"-") -> -
B162: 13188 | C162: =IFERROR(VLOOKUP(B162,IICA!$A$9:$G$1131,7,FALSE),"-") -> 0.8666666667 | D162: =IFERROR(VLOOKUP(B162,CultIllic!$A$2:$K$1144,11,FALSE),"-") -> 1.3 | E162: =IFERROR(VLOOKUP(B162,MDM!$A$1:$S$1102,14,FALSE),"-") -> 10.4 | F162: =IFERROR(VLOOKUP(B162,Ruralidad!$A$1:$E$1123,5,FALSE),"-") -> 3.25 | G162: =IFERROR(VLOOKUP(B162,'NBI Rural'!$B$2:$E$1124,4,FALSE),"-") -> 4.55 | H162: =IFERROR(VLOOKUP(B162,ICV!$A$1:$G$1123,7,FALSE),"-") -> 0.6875 | I162: =IFERROR(VLOOKUP(B162,Frontera!$A$1:$G$103,7,FALSE),"-") -> - | J162: =IFERROR(VLOOKUP(B162,ZNI!$A$4:$X$118,24,FALSE),"-") -> -
B163: 13212 | C163: =IFERROR(VLOOKUP(B163,IICA!$A$9:$G$1131,7,FALSE),"-") -> 2.6 | D163: =IFERROR(VLOOKUP(B163,CultIllic!$A$2:$K$1144,11,FALSE),"-") -> 1.3 | E163: =IFERROR(VLOOKUP(B163,MDM!$A$1:$S$1102,14,FALSE),"-") -> 11.7 | F163: =IFERROR(VLOOKUP(B163,Ruralidad!$A$1:$E$1123,5,FALSE),"-") -> 6.5 | G163: =IFERROR(VLOOKUP(B163,'NBI Rural'!$B$2:$E$1124,4,FALSE),"-") -> 5.2 | H163: =IFERROR(VLOOKUP(B163,ICV!$A$1:$G$1123,7,FALSE),"-") -> 4.8125 | I163: =IFERROR(VLOOKUP(B163,Frontera!$A$1:$G$103,7,FALSE),"-") -> - | J163: =IFERROR(VLOOKUP(B163,ZNI!$A$4:$X$118,24,FALSE),"-") -> -
B164: 13222 | C164: =IFERROR(VLOOKUP(B164,IICA!$A$9:$G$1131,7,FALSE),"-") -> 1.733333333 | D164: =IFERROR(VLOOKUP(B164,CultIllic!$A$2:$K$1144,11,FALSE),"-") -> 1.3 | E164: =IFERROR(VLOOKUP(B164,MDM!$A$1:$S$1102,14,FALSE),"-") -> 11.7 | F164: =IFERROR(VLOOKUP(B164,Ruralidad!$A$1:$E$1123,5,FALSE),"-") -> 1.625 | G164: =IFERROR(VLOOKUP(B164,'NBI Rural'!$B$2:$E$1124,4,FALSE),"-") -> 3.9 | H164: =IFERROR(VLOOKUP(B164,ICV!$A$1:$G$1123,7,FALSE),"-") -> 0.6875 | I164: =IFERROR(VLOOKUP(B164,Frontera!$A$1:$G$103,7,FALSE),"-") -> - | J164: =IFERROR(VLOOKUP(B164,ZNI!$A$4:$X$118,24,FALSE),"-") -> -
B165: 13244 | C165: =IFERROR(VLOOKUP(B165,IICA!$A$9:$G$1131,7,FALSE),"-") -> 3.466666667 | D165: =IFERROR(VLOOKUP(B165,CultIllic!$A$2:$K$1144,11,FALSE),"-") -> 1.3 | E165: =IFERROR(VLOOKUP(B165,MDM!$A$1:$S$1102,14,FALSE),"-") -> 9.1 | F165: =IFERROR(VLOOKUP(B165,Ruralidad!$A$1:$E$1123,5,FALSE),"-") -> 3.25 | G165: =IFERROR(VLOOKUP(B165,'NBI Rural'!$B$2:$E$1124,4,FALSE),"-") -> 5.85 | H165: =IFERROR(VLOOKUP(B165,ICV!$A$1:$G$1123,7,FALSE),"-") -> 3.4375 | I165: =IFERROR(VLOOKUP(B165,Frontera!$A$1:$G$103,7,FALSE),"-") -> - | J165: =IFERROR(VLOOKUP(B165,ZNI!$A$4:$X$118,24,FALSE),"-") -> -
B166: 13248 | C166: =IFERROR(VLOOKUP(B166,IICA!$A$9:$G$1131,7,FALSE),"-") -> 1.733333333 | D166: =IFERROR(VLOOKUP(B166,CultIllic!$A$2:$K$1144,11,FALSE),"-") -> 1.3 | E166: =IFERROR(VLOOKUP(B166,MDM!$A$1:$S$1102,14,FALSE),"-") -> 11.7 | F166: =IFERROR(VLOOKUP(B166,Ruralidad!$A$1:$E$1123,5,FALSE),"-") -> 4.875 | G166: =IFERROR(VLOOKUP(B166,'NBI Rural'!$B$2:$E$1124,4,FALSE),"-") -> 3.25 | H166: =IFERROR(VLOOKUP(B166,ICV!$A$1:$G$1123,7,FALSE),"-") -> 1.375 | I166: =IFERROR(VLOOKUP(B166,Frontera!$A$1:$G$103,7,FALSE),"-") -> - | J166: =IFERROR(VLOOKUP(B166,ZNI!$A$4:$X$118,24,FALSE),"-") -> -
B167: 13268 | C167: =IFERROR(VLOOKUP(B167,IICA!$A$9:$G$1131,7,FALSE),"-") -> 0.8666666667 | D167: =IFERROR(VLOOKUP(B167,CultIllic!$A$2:$K$1144,11,FALSE),"-") -> 1.3 | E167: =IFERROR(VLOOKUP(B167,MDM!$A$1:$S$1102,14,FALSE),"-") -> 10.4 | F167: =IFERROR(VLOOKUP(B167,Ruralidad!$A$1:$E$1123,5,FALSE),"-") -> 4.875 | G167: =IFERROR(VLOOKUP(B167,'NBI Rural'!$B$2:$E$1124,4,FALSE),"-") -> 5.2 | H167: =IFERROR(VLOOKUP(B167,ICV!$A$1:$G$1123,7,FALSE),"-") -> 0.6875 | I167: =IFERROR(VLOOKUP(B167,Frontera!$A$1:$G$103,7,FALSE),"-") -> - | J167: =IFERROR(VLOOKUP(B167,ZNI!$A$4:$X$118,24,FALSE),"-") -> -
B168: 13300 | C168: =IFERROR(VLOOKUP(B168,IICA!$A$9:$G$1131,7,FALSE),"-") -> 0.8666666667 | D168: =IFERROR(VLOOKUP(B168,CultIllic!$A$2:$K$1144,11,FALSE),"-") -> 1.3 | E168: =IFERROR(VLOOKUP(B168,MDM!$A$1:$S$1102,14,FALSE),"-") -> 10.4 | F168: =IFERROR(VLOOKUP(B168,Ruralidad!$A$1:$E$1123,5,FALSE),"-") -> 4.875 | G168: =IFERROR(VLOOKUP(B168,'NBI Rural'!$B$2:$E$1124,4,FALSE),"-") -> 5.2 | H168: =IFERROR(VLOOKUP(B168,ICV!$A$1:$G$1123,7,FALSE),"-") -> 0.6875 | I168: =IFERROR(VLOOKUP(B168,Frontera!$A$1:$G$103,7,FALSE),"-") -> - | J168: =IFERROR(VLOOKUP(B168,ZNI!$A$4:$X$118,24,FALSE),"-") -> -
B169: 13430 | C169: =IFERROR(VLOOKUP(B169,IICA!$A$9:$G$1131,7,FALSE),"-") -> 0.8666666667 | D169: =IFERROR(VLOOKUP(B169,CultIllic!$A$2:$K$1144,11,FALSE),"-") -> 1.3 | E169: =IFERROR(VLOOKUP(B169,MDM!$A$1:$S$1102,14,FALSE),"-") -> 10.4 | F169: =IFERROR(VLOOKUP(B169,Ruralidad!$A$1:$E$1123,5,FALSE),"-") -> 3.25 | G169: =IFERROR(VLOOKUP(B169,'NBI Rural'!$B$2:$E$1124,4,FALSE),"-") -> 4.55 | H169: =IFERROR(VLOOKUP(B169,ICV!$A$1:$G$1123,7,FALSE),"-") -> 1.375 | I169: =IFERROR(VLOOKUP(B169,Frontera!$A$1:$G$103,7,FALSE),"-") -> - | J169: =IFERROR(VLOOKUP(B169,ZNI!$A$4:$X$118,24,FALSE),"-") -> -
B170: 13433 | C170: =IFERROR(VLOOKUP(B170,IICA!$A$9:$G$1131,7,FALSE),"-") -> 0.8666666667 | D170: =IFERROR(VLOOKUP(B170,CultIllic!$A$2:$K$1144,11,FALSE),"-") -> 1.3 | E170: =IFERROR(VLOOKUP(B170,MDM!$A$1:$S$1102,14,FALSE),"-") -> 10.4 | F170: =IFERROR(VLOOKUP(B170,Ruralidad!$A$1:$E$1123,5,FALSE),"-") -> 3.25 | G170: =IFERROR(VLOOKUP(B170,'NBI Rural'!$B$2:$E$1124,4,FALSE),"-") -> 3.25 | H170: =IFERROR(VLOOKUP(B170,ICV!$A$1:$G$1123,7,FALSE),"-") -> 0.6875 | I170: =IFERROR(VLOOKUP(B170,Frontera!$A$1:$G$103,7,FALSE),"-") -> - | J170: =IFERROR(VLOOKUP(B170,ZNI!$A$4:$X$118,24,FALSE),"-") -> -
B171: 13440 | C171: =IFERROR(VLOOKUP(B171,IICA!$A$9:$G$1131,7,FALSE),"-") -> 0.8666666667 | D171: =IFERROR(VLOOKUP(B171,CultIllic!$A$2:$K$1144,11,FALSE),"-") -> 1.3 | E171: =IFERROR(VLOOKUP(B171,MDM!$A$1:$S$1102,14,FALSE),"-") -> 10.4 | F171: =IFERROR(VLOOKUP(B171,Ruralidad!$A$1:$E$1123,5,FALSE),"-") -> 6.5 | G171: =IFERROR(VLOOKUP(B171,'NBI Rural'!$B$2:$E$1124,4,FALSE),"-") -> 5.2 | H171: =IFERROR(VLOOKUP(B171,ICV!$A$1:$G$1123,7,FALSE),"-") -> 0.6875 | I171: =IFERROR(VLOOKUP(B171,Frontera!$A$1:$G$103,7,FALSE),"-") -> - | J171: =IFERROR(VLOOKUP(B171,ZNI!$A$4:$X$118,24,FALSE),"-") -> -
B172: 13442 | C172: =IFERROR(VLOOKUP(B172,IICA!$A$9:$G$1131,7,FALSE),"-") -> 1.733333333 | D172: =IFERROR(VLOOKUP(B172,CultIllic!$A$2:$K$1144,11,FALSE),"-") -> 1.3 | E172: =IFERROR(VLOOKUP(B172,MDM!$A$1:$S$1102,14,FALSE),"-") -> 10.4 | F172: =IFERROR(VLOOKUP(B172,Ruralidad!$A$1:$E$1123,5,FALSE),"-") -> 3.25 | G172: =IFERROR(VLOOKUP(B172,'NBI Rural'!$B$2:$E$1124,4,FALSE),"-") -> 3.9 | H172: =IFERROR(VLOOKUP(B172,ICV!$A$1:$G$1123,7,FALSE),"-") -> 2.0625 | I172: =IFERROR(VLOOKUP(B172,Frontera!$A$1:$G$103,7,FALSE),"-") -> - | J172: =IFERROR(VLOOKUP(B172,ZNI!$A$4:$X$118,24,FALSE),"-") -> -
B173: 13458 | C173: =IFERROR(VLOOKUP(B173,IICA!$A$9:$G$1131,7,FALSE),"-") -> 3.466666667 | D173: =IFERROR(VLOOKUP(B173,CultIllic!$A$2:$K$1144,11,FALSE),"-") -> 1.3 | E173: =IFERROR(VLOOKUP(B173,MDM!$A$1:$S$1102,14,FALSE),"-") -> 10.4 | F173: =IFERROR(VLOOKUP(B173,Ruralidad!$A$1:$E$1123,5,FALSE),"-") -> 6.5 | G173: =IFERROR(VLOOKUP(B173,'NBI Rural'!$B$2:$E$1124,4,FALSE),"-") -> 6.5 | H173: =IFERROR(VLOOKUP(B173,ICV!$A$1:$G$1123,7,FALSE),"-") -> 2.0625 | I173: =IFERROR(VLOOKUP(B173,Frontera!$A$1:$G$103,7,FALSE),"-") -> - | J173: =IFERROR(VLOOKUP(B173,ZNI!$A$4:$X$118,24,FALSE),"-") -> -
B174: 13468 | C174: =IFERROR(VLOOKUP(B174,IICA!$A$9:$G$1131,7,FALSE),"-") -> 0.8666666667 | D174: =IFERROR(VLOOKUP(B174,CultIllic!$A$2:$K$1144,11,FALSE),"-") -> 1.3 | E174: =IFERROR(VLOOKUP(B174,MDM!$A$1:$S$1102,14,FALSE),"-") -> 9.1 | F174: =IFERROR(VLOOKUP(B174,Ruralidad!$A$1:$E$1123,5,FALSE),"-") -> 3.25 | G174: =IFERROR(VLOOKUP(B174,'NBI Rural'!$B$2:$E$1124,4,FALSE),"-") -> 5.2 | H174: =IFERROR(VLOOKUP(B174,ICV!$A$1:$G$1123,7,FALSE),"-") -> 0.6875 | I174: =IFERROR(VLOOKUP(B174,Frontera!$A$1:$G$103,7,FALSE),"-") -> - | J174: =IFERROR(VLOOKUP(B174,ZNI!$A$4:$X$118,24,FALSE),"-") -> -
B175: 13473 | C175: =IFERROR(VLOOKUP(B175,IICA!$A$9:$G$1131,7,FALSE),"-") -> 3.466666667 | D175: =IFERROR(VLOOKUP(B175,CultIllic!$A$2:$K$1144,11,FALSE),"-") -> 1.3 | E175: =IFERROR(VLOOKUP(B175,MDM!$A$1:$S$1102,14,FALSE),"-") -> 9.1 | F175: =IFERROR(VLOOKUP(B175,Ruralidad!$A$1:$E$1123,5,FALSE),"-") -> 6.5 | G175: =IFERROR(VLOOKUP(B175,'NBI Rural'!$B$2:$E$1124,4,FALSE),"-") -> 4.55 | H175: =IFERROR(VLOOKUP(B175,ICV!$A$1:$G$1123,7,FALSE),"-") -> 1.375 | I175: =IFERROR(VLOOKUP(B175,Frontera!$A$1:$G$103,7,FALSE),"-") -> - | J175: =IFERROR(VLOOKUP(B175,ZNI!$A$4:$X$118,24,FALSE),"-") -> -
B176: 13490 | C176: =IFERROR(VLOOKUP(B176,IICA!$A$9:$G$1131,7,FALSE),"-") -> 1.733333333 | D176: =IFERROR(VLOOKUP(B176,CultIllic!$A$2:$K$1144,11,FALSE),"-") -> 1.3 | E176: =IFERROR(VLOOKUP(B176,MDM!$A$1:$S$1102,14,FALSE),"-") -> 10.4 | F176: =IFERROR(VLOOKUP(B176,Ruralidad!$A$1:$E$1123,5,FALSE),"-") -> 4.875 | G176: =IFERROR(VLOOKUP(B176,'NBI Rural'!$B$2:$E$1124,4,FALSE),"-") -> 6.5 | H176: =IFERROR(VLOOKUP(B176,ICV!$A$1:$G$1123,7,FALSE),"-") -> 3.4375 | I176: =IFERROR(VLOOKUP(B176,Frontera!$A$1:$G$103,7,FALSE),"-") -> - | J176: =IFERROR(VLOOKUP(B176,ZNI!$A$4:$X$118,24,FALSE),"-") -> -
B177: 13549 | C177: =IFERROR(VLOOKUP(B177,IICA!$A$9:$G$1131,7,FALSE),"-") -> 0.8666666667 | D177: =IFERROR(VLOOKUP(B177,CultIllic!$A$2:$K$1144,11,FALSE),"-") -> 1.3 | E177: =IFERROR(VLOOKUP(B177,MDM!$A$1:$S$1102,14,FALSE),"-") -> 11.7 | F177: =IFERROR(VLOOKUP(B177,Ruralidad!$A$1:$E$1123,5,FALSE),"-") -> 6.5 | G177: =IFERROR(VLOOKUP(B177,'NBI Rural'!$B$2:$E$1124,4,FALSE),"-") -> 5.85 | H177: =IFERROR(VLOOKUP(B177,ICV!$A$1:$G$1123,7,FALSE),"-") -> 0.6875 | I177: =IFERROR(VLOOKUP(B177,Frontera!$A$1:$G$103,7,FALSE),"-") -> - | J177: =IFERROR(VLOOKUP(B177,ZNI!$A$4:$X$118,24,FALSE),"-") -> -
B178: 13580 | C178: =IFERROR(VLOOKUP(B178,IICA!$A$9:$G$1131,7,FALSE),"-") -> 0.8666666667 | D178: =IFERROR(VLOOKUP(B178,CultIllic!$A$2:$K$1144,11,FALSE),"-") -> 1.3 | E178: =IFERROR(VLOOKUP(B178,MDM!$A$1:$S$1102,14,FALSE),"-") -> 9.1 | F178: =IFERROR(VLOOKUP(B178,Ruralidad!$A$1:$E$1123,5,FALSE),"-") -> 3.25 | G178: =IFERROR(VLOOKUP(B178,'NBI Rural'!$B$2:$E$1124,4,FALSE),"-") -> 4.55 | H178: =IFERROR(VLOOKUP(B178,ICV!$A$1:$G$1123,7,FALSE),"-") -> 1.375 | I178: =IFERROR(VLOOKUP(B178,Frontera!$A$1:$G$103,7,FALSE),"-") -> - | J178: =IFERROR(VLOOKUP(B178,ZNI!$A$4:$X$118,24,FALSE),"-") -> -
B179: 13600 | C179: =IFERROR(VLOOKUP(B179,IICA!$A$9:$G$1131,7,FALSE),"-") -> 2.6 | D179: =IFERROR(VLOOKUP(B179,CultIllic!$A$2:$K$1144,11,FALSE),"-") -> 1.3 | E179: =IFERROR(VLOOKUP(B179,MDM!$A$1:$S$1102,14,FALSE),"-") -> 10.4 | F179: =IFERROR(VLOOKUP(B179,Ruralidad!$A$1:$E$1123,5,FALSE),"-") -> 4.875 | G179: =IFERROR(VLOOKUP(B179,'NBI Rural'!$B$2:$E$1124,4,FALSE),"-") -> 5.85 | H179: =IFERROR(VLOOKUP(B179,ICV!$A$1:$G$1123,7,FALSE),"-") -> 1.375 | I179: =IFERROR(VLOOKUP(B179,Frontera!$A$1:$G$103,7,FALSE),"-") -> - | J179: =IFERROR(VLOOKUP(B179,ZNI!$A$4:$X$118,24,FALSE),"-") -> -
B180: 13620 | C180: =IFERROR(VLOOKUP(B180,IICA!$A$9:$G$1131,7,FALSE),"-") -> 0.8666666667 | D180: =IFERROR(VLOOKUP(B180,CultIllic!$A$2:$K$1144,11,FALSE),"-") -> 1.3 | E180: =IFERROR(VLOOKUP(B180,MDM!$A$1:$S$1102,14,FALSE),"-") -> 10.4 | F180: =IFERROR(VLOOKUP(B180,Ruralidad!$A$1:$E$1123,5,FALSE),"-") -> 1.625 | G180: =IFERROR(VLOOKUP(B180,'NBI Rural'!$B$2:$E$1124,4,FALSE),"-") -> 2.6 | H180: =IFERROR(VLOOKUP(B180,ICV!$A$1:$G$1123,7,FALSE),"-") -> 0.6875 | I180: =IFERROR(VLOOKUP(B180,Frontera!$A$1:$G$103,7,FALSE),"-") -> - | J180: =IFERROR(VLOOKUP(B180,ZNI!$A$4:$X$118,24,FALSE),"-") -> -
B181: 13647 | C181: =IFERROR(VLOOKUP(B181,IICA!$A$9:$G$1131,7,FALSE),"-") -> 0.8666666667 | D181: =IFERROR(VLOOKUP(B181,CultIllic!$A$2:$K$1144,11,FALSE),"-") -> 1.3 | E181: =IFERROR(VLOOKUP(B181,MDM!$A$1:$S$1102,14,FALSE),"-") -> 10.4 | F181: =IFERROR(VLOOKUP(B181,Ruralidad!$A$1:$E$1123,5,FALSE),"-") -> 3.25 | G181: =IFERROR(VLOOKUP(B181,'NBI Rural'!$B$2:$E$1124,4,FALSE),"-") -> 3.25 | H181: =IFERROR(VLOOKUP(B181,ICV!$A$1:$G$1123,7,FALSE),"-") -> 0.6875 | I181: =IFERROR(VLOOKUP(B181,Frontera!$A$1:$G$103,7,FALSE),"-") -> - | J181: =IFERROR(VLOOKUP(B181,ZNI!$A$4:$X$118,24,FALSE),"-") -> -
B182: 13650 | C182: =IFERROR(VLOOKUP(B182,IICA!$A$9:$G$1131,7,FALSE),"-") -> 0.8666666667 | D182: =IFERROR(VLOOKUP(B182,CultIllic!$A$2:$K$1144,11,FALSE),"-") -> 1.3 | E182: =IFERROR(VLOOKUP(B182,MDM!$A$1:$S$1102,14,FALSE),"-") -> 10.4 | F182: =IFERROR(VLOOKUP(B182,Ruralidad!$A$1:$E$1123,5,FALSE),"-") -> 6.5 | G182: =IFERROR(VLOOKUP(B182,'NBI Rural'!$B$2:$E$1124,4,FALSE),"-") -> 5.2 | H182: =IFERROR(VLOOKUP(B182,ICV!$A$1:$G$1123,7,FALSE),"-") -> 0.6875 | I182: =IFERROR(VLOOKUP(B182,Frontera!$A$1:$G$103,7,FALSE),"-") -> - | J182: =IFERROR(VLOOKUP(B182,ZNI!$A$4:$X$118,24,FALSE),"-") -> -
B183: 13654 | C183: =IFERROR(VLOOKUP(B183,IICA!$A$9:$G$1131,7,FALSE),"-") -> 3.466666667 | D183: =IFERROR(VLOOKUP(B183,CultIllic!$A$2:$K$1144,11,FALSE),"-") -> 1.3 | E183: =IFERROR(VLOOKUP(B183,MDM!$A$1:$S$1102,14,FALSE),"-") -> 10.4 | F183: =IFERROR(VLOOKUP(B183,Ruralidad!$A$1:$E$1123,5,FALSE),"-") -> 4.875 | G183: =IFERROR(VLOOKUP(B183,'NBI Rural'!$B$2:$E$1124,4,FALSE),"-") -> 5.85 | H183: =IFERROR(VLOOKUP(B183,ICV!$A$1:$G$1123,7,FALSE),"-") -> 4.125 | I183: =IFERROR(VLOOKUP(B183,Frontera!$A$1:$G$103,7,FALSE),"-") -> - | J183: =IFERROR(VLOOKUP(B183,ZNI!$A$4:$X$118,24,FALSE),"-") -> -
B184: 13655 | C184: =IFERROR(VLOOKUP(B184,IICA!$A$9:$G$1131,7,FALSE),"-") -> 1.733333333 | D184: =IFERROR(VLOOKUP(B184,CultIllic!$A$2:$K$1144,11,FALSE),"-") -> 1.3 | E184: =IFERROR(VLOOKUP(B184,MDM!$A$1:$S$1102,14,FALSE),"-") -> 10.4 | F184: =IFERROR(VLOOKUP(B184,Ruralidad!$A$1:$E$1123,5,FALSE),"-") -> 6.5 | G184: =IFERROR(VLOOKUP(B184,'NBI Rural'!$B$2:$E$1124,4,FALSE),"-") -> 5.85 | H184: =IFERROR(VLOOKUP(B184,ICV!$A$1:$G$1123,7,FALSE),"-") -> 1.375 | I184: =IFERROR(VLOOKUP(B184,Frontera!$A$1:$G$103,7,FALSE),"-") -> - | J184: =IFERROR(VLOOKUP(B184,ZNI!$A$4:$X$118,24,FALSE),"-") -> -
B185: 13657 | C185: =IFERROR(VLOOKUP(B185,IICA!$A$9:$G$1131,7,FALSE),"-") -> 2.6 | D185: =IFERROR(VLOOKUP(B185,CultIllic!$A$2:$K$1144,11,FALSE),"-") -> 1.3 | E185: =IFERROR(VLOOKUP(B185,MDM!$A$1:$S$1102,14,FALSE),"-") -> 9.1 | F185: =IFERROR(VLOOKUP(B185,Ruralidad!$A$1:$E$1123,5,FALSE),"-") -> 3.25 | G185: =IFERROR(VLOOKUP(B185,'NBI Rural'!$B$2:$E$1124,4,FALSE),"-") -> 3.9 | H185: =IFERROR(VLOOKUP(B185,ICV!$A$1:$G$1123,7,FALSE),"-") -> 2.75 | I185: =IFERROR(VLOOKUP(B185,Frontera!$A$1:$G$103,7,FALSE),"-") -> - | J185: =IFERROR(VLOOKUP(B185,ZNI!$A$4:$X$118,24,FALSE),"-") -> -
B186: 13667 | C186: =IFERROR(VLOOKUP(B186,IICA!$A$9:$G$1131,7,FALSE),"-") -> 1.733333333 | D186: =IFERROR(VLOOKUP(B186,CultIllic!$A$2:$K$1144,11,FALSE),"-") -> 1.3 | E186: =IFERROR(VLOOKUP(B186,MDM!$A$1:$S$1102,14,FALSE),"-") -> 11.7 | F186: =IFERROR(VLOOKUP(B186,Ruralidad!$A$1:$E$1123,5,FALSE),"-") -> 4.875 | G186: =IFERROR(VLOOKUP(B186,'NBI Rural'!$B$2:$E$1124,4,FALSE),"-") -> 5.2 | H186: =IFERROR(VLOOKUP(B186,ICV!$A$1:$G$1123,7,FALSE),"-") -> 1.375 | I186: =IFERROR(VLOOKUP(B186,Frontera!$A$1:$G$103,7,FALSE),"-") -> - | J186: =IFERROR(VLOOKUP(B186,ZNI!$A$4:$X$118,24,FALSE),"-") -> -
B187: 13670 | C187: =IFERROR(VLOOKUP(B187,IICA!$A$9:$G$1131,7,FALSE),"-") -> 4.333333333 | D187: =IFERROR(VLOOKUP(B187,CultIllic!$A$2:$K$1144,11,FALSE),"-") -> 1.3 | E187: =IFERROR(VLOOKUP(B187,MDM!$A$1:$S$1102,14,FALSE),"-") -> 11.7 | F187: =IFERROR(VLOOKUP(B187,Ruralidad!$A$1:$E$1123,5,FALSE),"-") -> 3.25 | G187: =IFERROR(VLOOKUP(B187,'NBI Rural'!$B$2:$E$1124,4,FALSE),"-") -> 5.2 | H187: =IFERROR(VLOOKUP(B187,ICV!$A$1:$G$1123,7,FALSE),"-") -> 2.75 | I187: =IFERROR(VLOOKUP(B187,Frontera!$A$1:$G$103,7,FALSE),"-") -> - | J187: =IFERROR(VLOOKUP(B187,ZNI!$A$4:$X$118,24,FALSE),"-") -> -
B188: 13673 | C188: =IFERROR(VLOOKUP(B188,IICA!$A$9:$G$1131,7,FALSE),"-") -> 1.733333333 | D188: =IFERROR(VLOOKUP(B188,CultIllic!$A$2:$K$1144,11,FALSE),"-") -> 1.3 | E188: =IFERROR(VLOOKUP(B188,MDM!$A$1:$S$1102,14,FALSE),"-") -> 10.4 | F188: =IFERROR(VLOOKUP(B188,Ruralidad!$A$1:$E$1123,5,FALSE),"-") -> 3.25 | G188: =IFERROR(VLOOKUP(B188,'NBI Rural'!$B$2:$E$1124,4,FALSE),"-") -> 3.25 | H188: =IFERROR(VLOOKUP(B188,ICV!$A$1:$G$1123,7,FALSE),"-") -> 0.6875 | I188: =IFERROR(VLOOKUP(B188,Frontera!$A$1:$G$103,7,FALSE),"-") -> - | J188: =IFERROR(VLOOKUP(B188,ZNI!$A$4:$X$118,24,FALSE),"-") -> -
B189: 13683 | C189: =IFERROR(VLOOKUP(B189,IICA!$A$9:$G$1131,7,FALSE),"-") -> 2.6 | D189: =IFERROR(VLOOKUP(B189,CultIllic!$A$2:$K$1144,11,FALSE),"-") -> 1.3 | E189: =IFERROR(VLOOKUP(B189,MDM!$A$1:$S$1102,14,FALSE),"-") -> 9.1 | F189: =IFERROR(VLOOKUP(B189,Ruralidad!$A$1:$E$1123,5,FALSE),"-") -> 1.625 | G189: =IFERROR(VLOOKUP(B189,'NBI Rural'!$B$2:$E$1124,4,FALSE),"-") -> 5.2 | H189: =IFERROR(VLOOKUP(B189,ICV!$A$1:$G$1123,7,FALSE),"-") -> 0.6875 | I189: =IFERROR(VLOOKUP(B189,Frontera!$A$1:$G$103,7,FALSE),"-") -> - | J189: =IFERROR(VLOOKUP(B189,ZNI!$A$4:$X$118,24,FALSE),"-") -> -
B190: 13688 | C190: =IFERROR(VLOOKUP(B190,IICA!$A$9:$G$1131,7,FALSE),"-") -> 3.466666667 | D190: =IFERROR(VLOOKUP(B190,CultIllic!$A$2:$K$1144,11,FALSE),"-") -> 1.3 | E190: =IFERROR(VLOOKUP(B190,MDM!$A$1:$S$1102,14,FALSE),"-") -> 7.8 | F190: =IFERROR(VLOOKUP(B190,Ruralidad!$A$1:$E$1123,5,FALSE),"-") -> 4.875 | G190: =IFERROR(VLOOKUP(B190,'NBI Rural'!$B$2:$E$1124,4,FALSE),"-") -> 5.2 | H190: =IFERROR(VLOOKUP(B190,ICV!$A$1:$G$1123,7,FALSE),"-") -> 2.0625 | I190: =IFERROR(VLOOKUP(B190,Frontera!$A$1:$G$103,7,FALSE),"-") -> - | J190: =IFERROR(VLOOKUP(B190,ZNI!$A$4:$X$118,24,FALSE),"-") -> -
B191: 13744 | C191: =IFERROR(VLOOKUP(B191,IICA!$A$9:$G$1131,7,FALSE),"-") -> 3.466666667 | D191: =IFERROR(VLOOKUP(B191,CultIllic!$A$2:$K$1144,11,FALSE),"-") -> 1.3 | E191: =IFERROR(VLOOKUP(B191,MDM!$A$1:$S$1102,14,FALSE),"-") -> 10.4 | F191: =IFERROR(VLOOKUP(B191,Ruralidad!$A$1:$E$1123,5,FALSE),"-") -> 4.875 | G191: =IFERROR(VLOOKUP(B191,'NBI Rural'!$B$2:$E$1124,4,FALSE),"-") -> 5.2 | H191: =IFERROR(VLOOKUP(B191,ICV!$A$1:$G$1123,7,FALSE),"-") -> 2.0625 | I191: =IFERROR(VLOOKUP(B191,Frontera!$A$1:$G$103,7,FALSE),"-") -> - | J191: =IFERROR(VLOOKUP(B191,ZNI!$A$4:$X$118,24,FALSE),"-") -> -
B192: 13760 | C192: =IFERROR(VLOOKUP(B192,IICA!$A$9:$G$1131,7,FALSE),"-") -> 0.8666666667 | D192: =IFERROR(VLOOKUP(B192,CultIllic!$A$2:$K$1144,11,FALSE),"-") -> 1.3 | E192: =IFERROR(VLOOKUP(B192,MDM!$A$1:$S$1102,14,FALSE),"-") -> 11.7 | F192: =IFERROR(VLOOKUP(B192,Ruralidad!$A$1:$E$1123,5,FALSE),"-") -> 3.25 | G192: =IFERROR(VLOOKUP(B192,'NBI Rural'!$B$2:$E$1124,4,FALSE),"-") -> 3.9 | H192: =IFERROR(VLOOKUP(B192,ICV!$A$1:$G$1123,7,FALSE),"-") -> 0.6875 | I192: =IFERROR(VLOOKUP(B192,Frontera!$A$1:$G$103,7,FALSE),"-") -> - | J192: =IFERROR(VLOOKUP(B192,ZNI!$A$4:$X$118,24,FALSE),"-") -> -
B193: 13780 | C193: =IFERROR(VLOOKUP(B193,IICA!$A$9:$G$1131,7,FALSE),"-") -> 0.8666666667 | D193: =IFERROR(VLOOKUP(B193,CultIllic!$A$2:$K$1144,11,FALSE),"-") -> 1.3 | E193: =IFERROR(VLOOKUP(B193,MDM!$A$1:$S$1102,14,FALSE),"-") -> 9.1 | F193: =IFERROR(VLOOKUP(B193,Ruralidad!$A$1:$E$1123,5,FALSE),"-") -> 4.875 | G193: =IFERROR(VLOOKUP(B193,'NBI Rural'!$B$2:$E$1124,4,FALSE),"-") -> 4.55 | H193: =IFERROR(VLOOKUP(B193,ICV!$A$1:$G$1123,7,FALSE),"-") -> 0.6875 | I193: =IFERROR(VLOOKUP(B193,Frontera!$A$1:$G$103,7,FALSE),"-") -> - | J193: =IFERROR(VLOOKUP(B193,ZNI!$A$4:$X$118,24,FALSE),"-") -> -
B194: 13810 | C194: =IFERROR(VLOOKUP(B194,IICA!$A$9:$G$1131,7,FALSE),"-") -> 2.6 | D194: =IFERROR(VLOOKUP(B194,CultIllic!$A$2:$K$1144,11,FALSE),"-") -> 1.3 | E194: =IFERROR(VLOOKUP(B194,MDM!$A$1:$S$1102,14,FALSE),"-") -> 10.4 | F194: =IFERROR(VLOOKUP(B194,Ruralidad!$A$1:$E$1123,5,FALSE),"-") -> 6.5 | G194: =IFERROR(VLOOKUP(B194,'NBI Rural'!$B$2:$E$1124,4,FALSE),"-") -> 5.85 | H194: =IFERROR(VLOOKUP(B194,ICV!$A$1:$G$1123,7,FALSE),"-") -> 2.75 | I194: =IFERROR(VLOOKUP(B194,Frontera!$A$1:$G$103,7,FALSE),"-") -> - | J194: =IFERROR(VLOOKUP(B194,ZNI!$A$4:$X$118,24,FALSE),"-") -> -
B195: 13836 | C195: =IFERROR(VLOOKUP(B195,IICA!$A$9:$G$1131,7,FALSE),"-") -> 0.8666666667 | D195: =IFERROR(VLOOKUP(B195,CultIllic!$A$2:$K$1144,11,FALSE),"-") -> 1.3 | E195: =IFERROR(VLOOKUP(B195,MDM!$A$1:$S$1102,14,FALSE),"-") -> 9.1 | F195: =IFERROR(VLOOKUP(B195,Ruralidad!$A$1:$E$1123,5,FALSE),"-") -> 1.625 | G195: =IFERROR(VLOOKUP(B195,'NBI Rural'!$B$2:$E$1124,4,FALSE),"-") -> 3.25 | H195: =IFERROR(VLOOKUP(B195,ICV!$A$1:$G$1123,7,FALSE),"-") -> 0.6875 | I195: =IFERROR(VLOOKUP(B195,Frontera!$A$1:$G$103,7,FALSE),"-") -> - | J195: =IFERROR(VLOOKUP(B195,ZNI!$A$4:$X$118,24,FALSE),"-") -> -
